{"text_format":"1","workbook":"xlsx","n_sheets":16,"sheets":["Master","Timetable","DiscusProtocolForm","ShotPutProtocolForm","HammerProtocolForm","JavelinProtocolForm","ClubProtocolForm","TI Report","Specifications","AthleteData","Shot Put Data","Discus Data","Hammer Data","Javelin Data","Club Data","Model Types"],"not_rendered":{"charts":0,"images":15,"macros":1,"external_links":0,"defined_names":36,"comments":1,"pivot_tables":0},"unopened":[],"bounds":{"document_bytes":16777216,"sheet_cells":100000,"rows_first":2000,"rows_last":500,"rows_between":2000,"halvings":0,"cell_chars":16384,"cell_head_chars":4096},"cells_cut":0,"cells_raw":0,"read":"whole","date_system":"1900"}

{"sheet":"Master","index":0,"n_rows":2,"n_cols":25,"rows_kept":2,"cut":false,"hidden":false,"merged":[]}
[]
["Ne","Lodgement Date","Athlete No","Given Name","Surname","Mobile Number","Implement Type","Make","Model","Colours","Other Marks","Event Number 1","Event Name 1","Event Number 2","Event Name 2","Event Number 3","Event Name 3","Event Number 4","Event Name 4","Nominal\nWeight","Picked Up","Pass/Fail","Comments","SMS Status","Full Name"]

{"sheet":"Timetable","index":1,"n_rows":131,"n_cols":18,"rows_kept":131,"cut":false,"hidden":false,"merged":[]}
["Full EventName","Event Day","Event Time","Day-time","Event","Event Round","Entries","Event Location","Equipment Close Time","EventTime","Pool1","Pool2","Pool3","Pool4","Pool5","Pool6","Entries2","Type"]
[{"$f":"_xlfn.CONCAT(Timetable[[#This Row],[Event]],\" - \",F2)","v":" - "},null,null,0,null,null,null,null,{"$f":"IF(AND(NOT(ISBLANK(B2)),(NOT(ISBLANK(C2)))),IF(C1-(TIME(3,0,0))<TIMEVALUE(\"7:00\"),IF(B2=MIN(B:B),(B2-1)+TIME(17,0,0),(B2-1)+_xlfn.MAXIFS(C:C,B:B,B2-1)),B2+C2-(TIME(3,0,0))),\"\")","v":""},{"$f":"IF(AND(NOT(ISBLANK(B2)),(NOT(ISBLANK(C2)))),B2+C2,\"\")","v":""}]
[{"$f":"_xlfn.CONCAT(Timetable[[#This Row],[Event]],\" - \",F3)","v":"Open Male Javelin - Final"},"2025-03-08","13:00:00",{"$f":"Timetable[[#This Row],[Event Day]]+Timetable[[#This Row],[Event Time]]","v":"2025-03-08T13:00:00"},"Open Male Javelin","Final",null,null,{"$f":"TechCutOffTime(J3,90,8,18)","v":"2025-03-08T11:30:00"},{"$f":"IF(AND(NOT(ISBLANK(B3)),(NOT(ISBLANK(C3)))),B3+C3,\"\")","v":"2025-03-08T13:00:00"}]
[{"$f":"_xlfn.CONCAT(Timetable[[#This Row],[Event]],\" - \",F4)","v":" - "},null,null,null,null,null,null,null,{"$f":"TechCutOffTime(J4,90,8,18)","v":{"$error":"#VALUE!"}},{"$f":"IF(AND(NOT(ISBLANK(B4)),(NOT(ISBLANK(C4)))),B4+C4,\"\")","v":""}]
[{"$f":"_xlfn.CONCAT(Timetable[[#This Row],[Event]],\" - \",F5)","v":" - "},null,null,null,null,null,null,null,{"$f":"TechCutOffTime(J5,90,8,18)","v":{"$error":"#VALUE!"}},""]
[{"$f":"_xlfn.CONCAT(Timetable[[#This Row],[Event]],\" - \",F6)","v":" - "},null,null,null,null,null,null,null,{"$f":"TechCutOffTime(J6,90,8,18)","v":{"$error":"#VALUE!"}},{"$f":"IF(AND(NOT(ISBLANK(B6)),(NOT(ISBLANK(C6)))),B6+C6,\"\")","v":""}]
[{"$f":"_xlfn.CONCAT(Timetable[[#This Row],[Event]],\" - \",F7)","v":" - "},null,null,null,null,null,null,null,{"$f":"TechCutOffTime(J7,90,8,18)","v":{"$error":"#VALUE!"}},""]
[{"$f":"_xlfn.CONCAT(Timetable[[#This Row],[Event]],\" - \",F8)","v":" - "},null,null,null,null,null,null,null,{"$f":"TechCutOffTime(J8,90,8,18)","v":{"$error":"#VALUE!"}},""]
[{"$f":"_xlfn.CONCAT(Timetable[[#This Row],[Event]],\" - \",F9)","v":" - "},null,null,null,null,null,null,null,{"$f":"TechCutOffTime(J9,90,8,18)","v":{"$error":"#VALUE!"}},""]
[{"$f":"_xlfn.CONCAT(Timetable[[#This Row],[Event]],\" - \",F10)","v":" - "},null,null,null,null,null,null,null,{"$f":"TechCutOffTime(J10,90,8,18)","v":{"$error":"#VALUE!"}},""]
[{"$f":"_xlfn.CONCAT(Timetable[[#This Row],[Event]],\" - \",F11)","v":" - "},null,null,null,null,null,null,null,{"$f":"TechCutOffTime(J11,90,8,18)","v":{"$error":"#VALUE!"}},""]
[{"$f":"_xlfn.CONCAT(Timetable[[#This Row],[Event]],\" - \",F12)","v":" - "},null,null,null,null,null,null,null,{"$f":"TechCutOffTime(J12,90,8,18)","v":{"$error":"#VALUE!"}},""]
[{"$f":"_xlfn.CONCAT(Timetable[[#This Row],[Event]],\" - \",F13)","v":" - "},null,null,null,null,null,null,null,{"$f":"TechCutOffTime(J13,90,8,18)","v":{"$error":"#VALUE!"}},""]
[{"$f":"_xlfn.CONCAT(Timetable[[#This Row],[Event]],\" - \",F14)","v":" - "},null,null,null,null,null,null,null,{"$f":"TechCutOffTime(J14,90,8,18)","v":{"$error":"#VALUE!"}},""]
[{"$f":"_xlfn.CONCAT(Timetable[[#This Row],[Event]],\" - \",F15)","v":" - "},null,null,null,null,null,null,null,{"$f":"TechCutOffTime(J15,90,8,18)","v":{"$error":"#VALUE!"}},""]
[{"$f":"_xlfn.CONCAT(Timetable[[#This Row],[Event]],\" - \",F16)","v":" - "},null,null,null,null,null,null,null,{"$f":"TechCutOffTime(J16,90,8,18)","v":{"$error":"#VALUE!"}},""]
[{"$f":"_xlfn.CONCAT(Timetable[[#This Row],[Event]],\" - \",F17)","v":" - "},null,null,null,null,null,null,null,{"$f":"TechCutOffTime(J17,90,8,18)","v":{"$error":"#VALUE!"}},{"$f":"IF(AND(NOT(ISBLANK(B17)),(NOT(ISBLANK(C17)))),B17+C17,\"\")","v":""}]
[{"$f":"_xlfn.CONCAT(Timetable[[#This Row],[Event]],\" - \",F18)","v":" - "},null,null,null,null,null,null,null,{"$f":"TechCutOffTime(J18,90,8,18)","v":{"$error":"#VALUE!"}},""]
[{"$f":"_xlfn.CONCAT(Timetable[[#This Row],[Event]],\" - \",F19)","v":" - "},null,null,null,null,null,null,null,{"$f":"TechCutOffTime(J19,90,8,18)","v":{"$error":"#VALUE!"}},""]
[{"$f":"_xlfn.CONCAT(Timetable[[#This Row],[Event]],\" - \",F20)","v":" - "},null,null,null,null,null,null,null,{"$f":"TechCutOffTime(J20,90,8,18)","v":{"$error":"#VALUE!"}},""]
[{"$f":"_xlfn.CONCAT(Timetable[[#This Row],[Event]],\" - \",F21)","v":" - "},null,null,null,null,null,null,null,{"$f":"TechCutOffTime(J21,90,8,18)","v":{"$error":"#VALUE!"}},""]
[{"$f":"_xlfn.CONCAT(Timetable[[#This Row],[Event]],\" - \",F22)","v":" - "},null,null,null,null,null,null,null,{"$f":"TechCutOffTime(J22,90,8,18)","v":{"$error":"#VALUE!"}},""]
[{"$f":"_xlfn.CONCAT(Timetable[[#This Row],[Event]],\" - \",F23)","v":" - "},null,null,null,null,null,null,null,{"$f":"TechCutOffTime(J23,90,8,18)","v":{"$error":"#VALUE!"}},""]
[{"$f":"_xlfn.CONCAT(Timetable[[#This Row],[Event]],\" - \",F24)","v":" - "},null,null,null,null,null,null,null,{"$f":"TechCutOffTime(J24,90,8,18)","v":{"$error":"#VALUE!"}},""]
[{"$f":"_xlfn.CONCAT(Timetable[[#This Row],[Event]],\" - \",F25)","v":" - "},null,null,null,null,null,null,null,{"$f":"TechCutOffTime(J25,90,8,18)","v":{"$error":"#VALUE!"}},""]
[{"$f":"_xlfn.CONCAT(Timetable[[#This Row],[Event]],\" - \",F26)","v":" - "},null,null,null,null,null,null,null,{"$f":"TechCutOffTime(J26,90,8,18)","v":{"$error":"#VALUE!"}},""]
[{"$f":"_xlfn.CONCAT(Timetable[[#This Row],[Event]],\" - \",F27)","v":" - "},null,null,null,null,null,null,null,{"$f":"TechCutOffTime(J27,90,8,18)","v":{"$error":"#VALUE!"}},""]
[{"$f":"_xlfn.CONCAT(Timetable[[#This Row],[Event]],\" - \",F28)","v":" - "},null,null,null,null,null,null,null,{"$f":"TechCutOffTime(J28,90,8,18)","v":{"$error":"#VALUE!"}},""]
[{"$f":"_xlfn.CONCAT(Timetable[[#This Row],[Event]],\" - \",F29)","v":" - "},null,null,null,null,null,null,null,{"$f":"TechCutOffTime(J29,90,8,18)","v":{"$error":"#VALUE!"}},""]
[{"$f":"_xlfn.CONCAT(Timetable[[#This Row],[Event]],\" - \",F30)","v":" - "},null,null,null,null,null,null,null,{"$f":"TechCutOffTime(J30,90,8,18)","v":{"$error":"#VALUE!"}},""]
[{"$f":"_xlfn.CONCAT(Timetable[[#This Row],[Event]],\" - \",F31)","v":" - "},null,null,null,null,null,null,null,{"$f":"TechCutOffTime(J31,90,8,18)","v":{"$error":"#VALUE!"}},""]
[{"$f":"_xlfn.CONCAT(Timetable[[#This Row],[Event]],\" - \",F32)","v":" - "},null,null,null,null,null,null,null,{"$f":"TechCutOffTime(J32,90,8,18)","v":{"$error":"#VALUE!"}},""]
[{"$f":"_xlfn.CONCAT(Timetable[[#This Row],[Event]],\" - \",F33)","v":" - "},null,null,null,null,null,null,null,{"$f":"TechCutOffTime(J33,90,8,18)","v":{"$error":"#VALUE!"}},""]
[{"$f":"_xlfn.CONCAT(Timetable[[#This Row],[Event]],\" - \",F34)","v":" - "},null,null,null,null,null,null,null,{"$f":"TechCutOffTime(J34,90,8,18)","v":{"$error":"#VALUE!"}},""]
[{"$f":"_xlfn.CONCAT(Timetable[[#This Row],[Event]],\" - \",F35)","v":" - "},null,null,null,null,null,null,null,{"$f":"TechCutOffTime(J35,90,8,18)","v":{"$error":"#VALUE!"}},""]
[{"$f":"_xlfn.CONCAT(Timetable[[#This Row],[Event]],\" - \",F36)","v":" - "},null,null,null,null,null,null,null,{"$f":"TechCutOffTime(J36,90,8,18)","v":{"$error":"#VALUE!"}},""]
[{"$f":"_xlfn.CONCAT(Timetable[[#This Row],[Event]],\" - \",F37)","v":" - "},null,null,null,null,null,null,null,{"$f":"TechCutOffTime(J37,90,8,18)","v":{"$error":"#VALUE!"}},""]
[{"$f":"_xlfn.CONCAT(Timetable[[#This Row],[Event]],\" - \",F38)","v":" - "},null,null,null,null,null,null,null,{"$f":"TechCutOffTime(J38,90,8,18)","v":{"$error":"#VALUE!"}},""]
[{"$f":"_xlfn.CONCAT(Timetable[[#This Row],[Event]],\" - \",F39)","v":" - "},null,null,null,null,null,null,null,{"$f":"TechCutOffTime(J39,90,8,18)","v":{"$error":"#VALUE!"}},""]
[{"$f":"_xlfn.CONCAT(Timetable[[#This Row],[Event]],\" - \",F40)","v":" - "},null,null,null,null,null,null,null,{"$f":"TechCutOffTime(J40,90,8,18)","v":{"$error":"#VALUE!"}},""]
[{"$f":"_xlfn.CONCAT(Timetable[[#This Row],[Event]],\" - \",F41)","v":" - "},null,null,null,null,null,null,null,{"$f":"TechCutOffTime(J41,90,8,18)","v":{"$error":"#VALUE!"}},""]
[{"$f":"_xlfn.CONCAT(Timetable[[#This Row],[Event]],\" - \",F42)","v":" - "},null,null,null,null,null,null,null,{"$f":"TechCutOffTime(J42,90,8,18)","v":{"$error":"#VALUE!"}},""]
[{"$f":"_xlfn.CONCAT(Timetable[[#This Row],[Event]],\" - \",F43)","v":" - "},null,null,null,null,null,null,null,{"$f":"TechCutOffTime(J43,90,8,18)","v":{"$error":"#VALUE!"}},""]
[{"$f":"_xlfn.CONCAT(Timetable[[#This Row],[Event]],\" - \",F44)","v":" - "},null,null,null,null,null,null,null,{"$f":"TechCutOffTime(J44,90,8,18)","v":{"$error":"#VALUE!"}},""]
[{"$f":"_xlfn.CONCAT(Timetable[[#This Row],[Event]],\" - \",F45)","v":" - "},null,null,null,null,null,null,null,{"$f":"TechCutOffTime(J45,90,8,18)","v":{"$error":"#VALUE!"}},""]
[{"$f":"_xlfn.CONCAT(Timetable[[#This Row],[Event]],\" - \",F46)","v":" - "},null,null,null,null,null,null,null,{"$f":"TechCutOffTime(J46,90,8,18)","v":{"$error":"#VALUE!"}},""]
[{"$f":"_xlfn.CONCAT(Timetable[[#This Row],[Event]],\" - \",F47)","v":" - "},null,null,null,null,null,null,null,{"$f":"TechCutOffTime(J47,90,8,18)","v":{"$error":"#VALUE!"}},""]
[{"$f":"_xlfn.CONCAT(Timetable[[#This Row],[Event]],\" - \",F48)","v":" - "},null,null,null,null,null,null,null,{"$f":"TechCutOffTime(J48,90,8,18)","v":{"$error":"#VALUE!"}},""]
[{"$f":"_xlfn.CONCAT(Timetable[[#This Row],[Event]],\" - \",F49)","v":" - "},null,null,null,null,null,null,null,{"$f":"TechCutOffTime(J49,90,8,18)","v":{"$error":"#VALUE!"}},""]
[{"$f":"_xlfn.CONCAT(Timetable[[#This Row],[Event]],\" - \",F50)","v":" - "},null,null,null,null,null,null,null,{"$f":"TechCutOffTime(J50,90,8,18)","v":{"$error":"#VALUE!"}},""]
[{"$f":"_xlfn.CONCAT(Timetable[[#This Row],[Event]],\" - \",F51)","v":" - "},null,null,null,null,null,null,null,{"$f":"TechCutOffTime(J51,90,8,18)","v":{"$error":"#VALUE!"}},""]
[{"$f":"_xlfn.CONCAT(Timetable[[#This Row],[Event]],\" - \",F52)","v":" - "},null,null,null,null,null,null,null,{"$f":"TechCutOffTime(J52,90,8,18)","v":{"$error":"#VALUE!"}},""]
[{"$f":"_xlfn.CONCAT(Timetable[[#This Row],[Event]],\" - \",F53)","v":" - "},null,null,null,null,null,null,null,{"$f":"TechCutOffTime(J53,90,8,18)","v":{"$error":"#VALUE!"}},""]
[{"$f":"_xlfn.CONCAT(Timetable[[#This Row],[Event]],\" - \",F54)","v":" - "},null,null,null,null,null,null,null,{"$f":"TechCutOffTime(J54,90,8,18)","v":{"$error":"#VALUE!"}},""]
[{"$f":"_xlfn.CONCAT(Timetable[[#This Row],[Event]],\" - \",F55)","v":" - "},null,null,null,null,null,null,null,{"$f":"TechCutOffTime(J55,90,8,18)","v":{"$error":"#VALUE!"}},""]
[{"$f":"_xlfn.CONCAT(Timetable[[#This Row],[Event]],\" - \",F56)","v":" - "},null,null,null,null,null,null,null,{"$f":"TechCutOffTime(J56,90,8,18)","v":{"$error":"#VALUE!"}},""]
[{"$f":"_xlfn.CONCAT(Timetable[[#This Row],[Event]],\" - \",F57)","v":" - "},null,null,null,null,null,null,null,{"$f":"TechCutOffTime(J57,90,8,18)","v":{"$error":"#VALUE!"}},""]
[{"$f":"_xlfn.CONCAT(Timetable[[#This Row],[Event]],\" - \",F58)","v":" - "},null,null,null,null,null,null,null,{"$f":"TechCutOffTime(J58,90,8,18)","v":{"$error":"#VALUE!"}},""]
[{"$f":"_xlfn.CONCAT(Timetable[[#This Row],[Event]],\" - \",F59)","v":" - "},null,null,null,null,null,null,null,{"$f":"TechCutOffTime(J59,90,8,18)","v":{"$error":"#VALUE!"}},""]
[{"$f":"_xlfn.CONCAT(Timetable[[#This Row],[Event]],\" - \",F60)","v":" - "},null,null,null,null,null,null,null,{"$f":"TechCutOffTime(J60,90,8,18)","v":{"$error":"#VALUE!"}},""]
[{"$f":"_xlfn.CONCAT(Timetable[[#This Row],[Event]],\" - \",F61)","v":" - "},null,null,null,null,null,null,null,{"$f":"TechCutOffTime(J61,90,8,18)","v":{"$error":"#VALUE!"}},""]
[{"$f":"_xlfn.CONCAT(Timetable[[#This Row],[Event]],\" - \",F62)","v":" - "},null,null,null,null,null,null,null,{"$f":"TechCutOffTime(J62,90,8,18)","v":{"$error":"#VALUE!"}},""]
[{"$f":"_xlfn.CONCAT(Timetable[[#This Row],[Event]],\" - \",F63)","v":" - "},null,null,null,null,null,null,null,{"$f":"TechCutOffTime(J63,90,8,18)","v":{"$error":"#VALUE!"}},""]
[{"$f":"_xlfn.CONCAT(Timetable[[#This Row],[Event]],\" - \",F64)","v":" - "},null,null,null,null,null,null,null,{"$f":"TechCutOffTime(J64,90,8,18)","v":{"$error":"#VALUE!"}},""]
[{"$f":"_xlfn.CONCAT(Timetable[[#This Row],[Event]],\" - \",F65)","v":" - "},null,null,null,null,null,null,null,{"$f":"TechCutOffTime(J65,90,8,18)","v":{"$error":"#VALUE!"}},""]
[{"$f":"_xlfn.CONCAT(Timetable[[#This Row],[Event]],\" - \",F66)","v":" - "},null,null,null,null,null,null,null,{"$f":"TechCutOffTime(J66,90,8,18)","v":{"$error":"#VALUE!"}},""]
[{"$f":"_xlfn.CONCAT(Timetable[[#This Row],[Event]],\" - \",F67)","v":" - "},null,null,null,null,null,null,null,{"$f":"TechCutOffTime(J67,90,8,18)","v":{"$error":"#VALUE!"}},""]
[{"$f":"_xlfn.CONCAT(Timetable[[#This Row],[Event]],\" - \",F68)","v":" - "},null,null,null,null,null,null,null,{"$f":"TechCutOffTime(J68,90,8,18)","v":{"$error":"#VALUE!"}},""]
[{"$f":"_xlfn.CONCAT(Timetable[[#This Row],[Event]],\" - \",F69)","v":" - "},null,null,null,null,null,null,null,{"$f":"TechCutOffTime(J69,90,8,18)","v":{"$error":"#VALUE!"}},""]
[{"$f":"_xlfn.CONCAT(Timetable[[#This Row],[Event]],\" - \",F70)","v":" - "},null,null,null,null,null,null,null,{"$f":"TechCutOffTime(J70,90,8,18)","v":{"$error":"#VALUE!"}},""]
[{"$f":"_xlfn.CONCAT(Timetable[[#This Row],[Event]],\" - \",F71)","v":" - "},null,null,null,null,null,null,null,{"$f":"TechCutOffTime(J71,90,8,18)","v":{"$error":"#VALUE!"}},""]
[{"$f":"_xlfn.CONCAT(Timetable[[#This Row],[Event]],\" - \",F72)","v":" - "},null,null,null,null,null,null,null,{"$f":"TechCutOffTime(J72,90,8,18)","v":{"$error":"#VALUE!"}},""]
[{"$f":"_xlfn.CONCAT(Timetable[[#This Row],[Event]],\" - \",F73)","v":" - "},null,null,null,null,null,null,null,{"$f":"TechCutOffTime(J73,90,8,18)","v":{"$error":"#VALUE!"}},""]
[{"$f":"_xlfn.CONCAT(Timetable[[#This Row],[Event]],\" - \",F74)","v":" - "},null,null,null,null,null,null,null,{"$f":"TechCutOffTime(J74,90,8,18)","v":{"$error":"#VALUE!"}},""]
[{"$f":"_xlfn.CONCAT(Timetable[[#This Row],[Event]],\" - \",F75)","v":" - "},null,null,null,null,null,null,null,{"$f":"TechCutOffTime(J75,90,8,18)","v":{"$error":"#VALUE!"}},""]
[{"$f":"_xlfn.CONCAT(Timetable[[#This Row],[Event]],\" - \",F76)","v":" - "},null,null,null,null,null,null,null,{"$f":"TechCutOffTime(J76,90,8,18)","v":{"$error":"#VALUE!"}},""]
[{"$f":"_xlfn.CONCAT(Timetable[[#This Row],[Event]],\" - \",F77)","v":" - "},null,null,null,null,null,null,null,{"$f":"TechCutOffTime(J77,90,8,18)","v":{"$error":"#VALUE!"}},""]
[{"$f":"_xlfn.CONCAT(Timetable[[#This Row],[Event]],\" - \",F78)","v":" - "},null,null,null,null,null,null,null,{"$f":"TechCutOffTime(J78,90,8,18)","v":{"$error":"#VALUE!"}},""]
[{"$f":"_xlfn.CONCAT(Timetable[[#This Row],[Event]],\" - \",F79)","v":" - "},null,null,null,null,null,null,null,{"$f":"TechCutOffTime(J79,90,8,18)","v":{"$error":"#VALUE!"}},""]
[{"$f":"_xlfn.CONCAT(Timetable[[#This Row],[Event]],\" - \",F80)","v":" - "},null,null,null,null,null,null,null,{"$f":"TechCutOffTime(J80,90,8,18)","v":{"$error":"#VALUE!"}},""]
[{"$f":"_xlfn.CONCAT(Timetable[[#This Row],[Event]],\" - \",F81)","v":" - "},null,null,null,null,null,null,null,{"$f":"TechCutOffTime(J81,90,8,18)","v":{"$error":"#VALUE!"}},{"$f":"IF(AND(NOT(ISBLANK(B81)),(NOT(ISBLANK(C81)))),B81+C81,\"\")","v":""}]
[{"$f":"_xlfn.CONCAT(Timetable[[#This Row],[Event]],\" - \",F82)","v":" - "},null,null,null,null,null,null,null,{"$f":"TechCutOffTime(J82,90,8,18)","v":{"$error":"#VALUE!"}},""]
[{"$f":"_xlfn.CONCAT(Timetable[[#This Row],[Event]],\" - \",F83)","v":" - "},null,null,null,null,null,null,null,{"$f":"TechCutOffTime(J83,90,8,18)","v":{"$error":"#VALUE!"}},""]
[{"$f":"_xlfn.CONCAT(Timetable[[#This Row],[Event]],\" - \",F84)","v":" - "},null,null,null,null,null,null,null,{"$f":"TechCutOffTime(J84,90,8,18)","v":{"$error":"#VALUE!"}},""]
[{"$f":"_xlfn.CONCAT(Timetable[[#This Row],[Event]],\" - \",F85)","v":" - "},null,null,null,null,null,null,null,{"$f":"TechCutOffTime(J85,90,8,18)","v":{"$error":"#VALUE!"}},""]
[{"$f":"_xlfn.CONCAT(Timetable[[#This Row],[Event]],\" - \",F86)","v":" - "},null,null,null,null,null,null,null,{"$f":"TechCutOffTime(J86,90,8,18)","v":{"$error":"#VALUE!"}},""]
[{"$f":"_xlfn.CONCAT(Timetable[[#This Row],[Event]],\" - \",F87)","v":" - "},null,null,null,null,null,null,null,{"$f":"TechCutOffTime(J87,90,8,18)","v":{"$error":"#VALUE!"}},""]
[{"$f":"_xlfn.CONCAT(Timetable[[#This Row],[Event]],\" - \",F88)","v":" - "},null,null,null,null,null,null,null,{"$f":"TechCutOffTime(J88,90,8,18)","v":{"$error":"#VALUE!"}},""]
[{"$f":"_xlfn.CONCAT(Timetable[[#This Row],[Event]],\" - \",F89)","v":" - "},null,null,null,null,null,null,null,{"$f":"TechCutOffTime(J89,90,8,18)","v":{"$error":"#VALUE!"}},""]
[{"$f":"_xlfn.CONCAT(Timetable[[#This Row],[Event]],\" - \",F90)","v":" - "},null,null,null,null,null,null,null,{"$f":"TechCutOffTime(J90,90,8,18)","v":{"$error":"#VALUE!"}},""]
[{"$f":"_xlfn.CONCAT(Timetable[[#This Row],[Event]],\" - \",F91)","v":" - "},null,null,null,null,null,null,null,{"$f":"TechCutOffTime(J91,90,8,18)","v":{"$error":"#VALUE!"}},""]
[{"$f":"_xlfn.CONCAT(Timetable[[#This Row],[Event]],\" - \",F92)","v":" - "},null,null,null,null,null,null,null,{"$f":"TechCutOffTime(J92,90,8,18)","v":{"$error":"#VALUE!"}},""]
[{"$f":"_xlfn.CONCAT(Timetable[[#This Row],[Event]],\" - \",F93)","v":" - "},null,null,null,null,null,null,null,{"$f":"TechCutOffTime(J93,90,8,18)","v":{"$error":"#VALUE!"}},""]
[{"$f":"_xlfn.CONCAT(Timetable[[#This Row],[Event]],\" - \",F94)","v":" - "},null,null,null,null,null,null,null,{"$f":"TechCutOffTime(J94,90,8,18)","v":{"$error":"#VALUE!"}},""]
[{"$f":"_xlfn.CONCAT(Timetable[[#This Row],[Event]],\" - \",F95)","v":" - "},null,null,null,null,null,null,null,{"$f":"TechCutOffTime(J95,90,8,18)","v":{"$error":"#VALUE!"}},""]
[{"$f":"_xlfn.CONCAT(Timetable[[#This Row],[Event]],\" - \",F96)","v":" - "},null,null,null,null,null,null,null,{"$f":"TechCutOffTime(J96,90,8,18)","v":{"$error":"#VALUE!"}},""]
[{"$f":"_xlfn.CONCAT(Timetable[[#This Row],[Event]],\" - \",F97)","v":" - "},null,null,null,null,null,null,null,{"$f":"TechCutOffTime(J97,90,8,18)","v":{"$error":"#VALUE!"}},""]
[{"$f":"_xlfn.CONCAT(Timetable[[#This Row],[Event]],\" - \",F98)","v":" - "},null,null,null,null,null,null,null,{"$f":"TechCutOffTime(J98,90,8,18)","v":{"$error":"#VALUE!"}},""]
[{"$f":"_xlfn.CONCAT(Timetable[[#This Row],[Event]],\" - \",F99)","v":" - "},null,null,null,null,null,null,null,{"$f":"TechCutOffTime(J99,90,8,18)","v":{"$error":"#VALUE!"}},""]
[{"$f":"_xlfn.CONCAT(Timetable[[#This Row],[Event]],\" - \",F100)","v":" - "},null,null,null,null,null,null,null,{"$f":"TechCutOffTime(J100,90,8,18)","v":{"$error":"#VALUE!"}},""]
[{"$f":"_xlfn.CONCAT(Timetable[[#This Row],[Event]],\" - \",F101)","v":" - "},null,null,null,null,null,null,null,{"$f":"TechCutOffTime(J101,90,8,18)","v":{"$error":"#VALUE!"}},""]
[{"$f":"_xlfn.CONCAT(Timetable[[#This Row],[Event]],\" - \",F102)","v":" - "},null,null,null,null,null,null,null,{"$f":"TechCutOffTime(J102,90,8,18)","v":{"$error":"#VALUE!"}},""]
[{"$f":"_xlfn.CONCAT(Timetable[[#This Row],[Event]],\" - \",F103)","v":" - "},null,null,null,null,null,null,null,{"$f":"TechCutOffTime(J103,90,8,18)","v":{"$error":"#VALUE!"}},""]
[{"$f":"_xlfn.CONCAT(Timetable[[#This Row],[Event]],\" - \",F104)","v":" - "},null,null,null,null,null,null,null,{"$f":"TechCutOffTime(J104,90,8,18)","v":{"$error":"#VALUE!"}},""]
[{"$f":"_xlfn.CONCAT(Timetable[[#This Row],[Event]],\" - \",F105)","v":" - "},null,null,null,null,null,null,null,{"$f":"TechCutOffTime(J105,90,8,18)","v":{"$error":"#VALUE!"}},""]
[{"$f":"_xlfn.CONCAT(Timetable[[#This Row],[Event]],\" - \",F106)","v":" - "},null,null,null,null,null,null,null,{"$f":"TechCutOffTime(J106,90,8,18)","v":{"$error":"#VALUE!"}},""]
[{"$f":"_xlfn.CONCAT(Timetable[[#This Row],[Event]],\" - \",F107)","v":" - "},null,null,null,null,null,null,null,{"$f":"TechCutOffTime(J107,90,8,18)","v":{"$error":"#VALUE!"}},""]
[{"$f":"_xlfn.CONCAT(Timetable[[#This Row],[Event]],\" - \",F108)","v":" - "},null,null,null,null,null,null,null,{"$f":"TechCutOffTime(J108,90,8,18)","v":{"$error":"#VALUE!"}},""]
[{"$f":"_xlfn.CONCAT(Timetable[[#This Row],[Event]],\" - \",F109)","v":" - "},null,null,null,null,null,null,null,{"$f":"TechCutOffTime(J109,90,8,18)","v":{"$error":"#VALUE!"}},""]
[{"$f":"_xlfn.CONCAT(Timetable[[#This Row],[Event]],\" - \",F110)","v":" - "},null,null,null,null,null,null,null,{"$f":"TechCutOffTime(J110,90,8,18)","v":{"$error":"#VALUE!"}},""]
[{"$f":"_xlfn.CONCAT(Timetable[[#This Row],[Event]],\" - \",F111)","v":" - "},null,null,null,null,null,null,null,{"$f":"TechCutOffTime(J111,90,8,18)","v":{"$error":"#VALUE!"}},""]
[{"$f":"_xlfn.CONCAT(Timetable[[#This Row],[Event]],\" - \",F112)","v":" - "},null,null,null,null,null,null,null,{"$f":"TechCutOffTime(J112,90,8,18)","v":{"$error":"#VALUE!"}},""]
[{"$f":"_xlfn.CONCAT(Timetable[[#This Row],[Event]],\" - \",F113)","v":" - "},null,null,null,null,null,null,null,{"$f":"TechCutOffTime(J113,90,8,18)","v":{"$error":"#VALUE!"}},""]
[{"$f":"_xlfn.CONCAT(Timetable[[#This Row],[Event]],\" - \",F114)","v":" - "},null,null,null,null,null,null,null,{"$f":"TechCutOffTime(J114,90,8,18)","v":{"$error":"#VALUE!"}},""]
[{"$f":"_xlfn.CONCAT(Timetable[[#This Row],[Event]],\" - \",F115)","v":" - "},null,null,null,null,null,null,null,{"$f":"TechCutOffTime(J115,90,8,18)","v":{"$error":"#VALUE!"}},""]
[{"$f":"_xlfn.CONCAT(Timetable[[#This Row],[Event]],\" - \",F116)","v":" - "},null,null,null,null,null,null,null,{"$f":"TechCutOffTime(J116,90,8,18)","v":{"$error":"#VALUE!"}},""]
[{"$f":"_xlfn.CONCAT(Timetable[[#This Row],[Event]],\" - \",F117)","v":" - "},null,null,null,null,null,null,null,{"$f":"TechCutOffTime(J117,90,8,18)","v":{"$error":"#VALUE!"}},""]
[{"$f":"_xlfn.CONCAT(Timetable[[#This Row],[Event]],\" - \",F118)","v":" - "},null,null,null,null,null,null,null,{"$f":"TechCutOffTime(J118,90,8,18)","v":{"$error":"#VALUE!"}},""]
[{"$f":"_xlfn.CONCAT(Timetable[[#This Row],[Event]],\" - \",F119)","v":" - "},null,null,null,null,null,null,null,{"$f":"TechCutOffTime(J119,90,8,18)","v":{"$error":"#VALUE!"}},""]
[{"$f":"_xlfn.CONCAT(Timetable[[#This Row],[Event]],\" - \",F120)","v":" - "},null,null,null,null,null,null,null,{"$f":"TechCutOffTime(J120,90,8,18)","v":{"$error":"#VALUE!"}},""]
[{"$f":"_xlfn.CONCAT(Timetable[[#This Row],[Event]],\" - \",F121)","v":" - "},null,null,null,null,null,null,null,{"$f":"TechCutOffTime(J121,90,8,18)","v":{"$error":"#VALUE!"}},""]
[{"$f":"_xlfn.CONCAT(Timetable[[#This Row],[Event]],\" - \",F122)","v":" - "},null,null,null,null,null,null,null,{"$f":"TechCutOffTime(J122,90,8,18)","v":{"$error":"#VALUE!"}},""]
[{"$f":"_xlfn.CONCAT(Timetable[[#This Row],[Event]],\" - \",F123)","v":" - "},null,null,null,null,null,null,null,{"$f":"TechCutOffTime(J123,90,8,18)","v":{"$error":"#VALUE!"}},""]
[{"$f":"_xlfn.CONCAT(Timetable[[#This Row],[Event]],\" - \",F124)","v":" - "},null,null,null,null,null,null,null,{"$f":"TechCutOffTime(J124,90,8,18)","v":{"$error":"#VALUE!"}},""]
[{"$f":"_xlfn.CONCAT(Timetable[[#This Row],[Event]],\" - \",F125)","v":" - "},null,null,null,null,null,null,null,{"$f":"TechCutOffTime(J125,90,8,18)","v":{"$error":"#VALUE!"}},""]
[{"$f":"_xlfn.CONCAT(Timetable[[#This Row],[Event]],\" - \",F126)","v":" - "},null,null,null,null,null,null,null,{"$f":"TechCutOffTime(J126,90,8,18)","v":{"$error":"#VALUE!"}},""]
[{"$f":"_xlfn.CONCAT(Timetable[[#This Row],[Event]],\" - \",F127)","v":" - "},null,null,null,null,null,null,null,{"$f":"TechCutOffTime(J127,90,8,18)","v":{"$error":"#VALUE!"}},""]
[{"$f":"_xlfn.CONCAT(Timetable[[#This Row],[Event]],\" - \",F128)","v":" - "},null,null,null,null,null,null,null,{"$f":"TechCutOffTime(J128,90,8,18)","v":{"$error":"#VALUE!"}},""]
[{"$f":"_xlfn.CONCAT(Timetable[[#This Row],[Event]],\" - \",F129)","v":" - "},null,null,null,null,null,null,null,{"$f":"TechCutOffTime(J129,90,8,18)","v":{"$error":"#VALUE!"}},""]
[{"$f":"_xlfn.CONCAT(Timetable[[#This Row],[Event]],\" - \",F130)","v":" - "},null,null,null,null,null,null,null,{"$f":"TechCutOffTime(J130,90,8,18)","v":{"$error":"#VALUE!"}},""]
[{"$f":"_xlfn.CONCAT(Timetable[[#This Row],[Event]],\" - \",F131)","v":" - "},null,null,null,null,null,null,null,{"$f":"TechCutOffTime(J131,90,8,18)","v":{"$error":"#VALUE!"}},""]

{"sheet":"DiscusProtocolForm","index":2,"n_rows":41,"n_cols":20,"rows_kept":41,"cut":false,"hidden":false,"merged":[[1,1,1,11],[2,11,6,11],[3,7,3,8],[33,2,33,9]]}
[]
[null,"DISCUS PROTOCOL"]
[null,null,null,null,null,null,null,null,null,{"$f":"IF(COUNTIF($J$8:$J$14,\"Fail\")>0,\"FAILED\",IF(COUNTIF($J$8:$J$14,\"Pass\")=7,\"PASSED\",\"PENDING\"))","v":"PENDING"},null,{"$f":"IF(COUNTIF($J$8:$J$14,\"Fail\")>0,\"This Discus has FAILED a Technical Protocol and will NOT be placed in the pool of implements for this Competition\",IF(COUNTIF($J$8:$J$14,\"Pass\")=7,\"This Discus has PASSED all Technical Protocols and may be placed in the pool of implements for this Competition\",\"\"))","v":""}]
[null,null,null,null,"NOMINAL WEIGHT",null,null,{"$f":"IF(ISBLANK($G$4),\"\",IF(ISNA(VLOOKUP($G$4,DiscusSpecs,1,FALSE))=FALSE,\"\",\"Incorrect Nominal\"))","v":""}]
[]
[null,"Implement Number",null,null,null,null,"Actual Measure","Tolerance",null,"Pass or Fail"]
[null,null,null,null,null,null,null,"Min","Max"]
[null,"Athlete No.",null,null,"Visual Inspection",null,null,null,null,{"$f":"IF(AND(ISNUMBER(INT(_xlfn.TEXTJOIN(\"\", TRUE,IFERROR(MID(G4, _xlfn.SEQUENCE(LEN(G4)), 1) *1, \"\")))),NOT(ISBLANK(G8))),IF(G8 = \"P\",\"Pass\",\"Fail\"),\"\")","v":""}]
[null,"Given Name",null,null,"Actual Weight",null,null,{"$f":"IF(ISBLANK($G$4),\"\",IF(ISNA(VLOOKUP($G$4,DiscusSpecs,1,FALSE))=FALSE,VLOOKUP($G$4,DiscusSpecs,2,FALSE),\"\"))","v":""},null,{"$f":"IF(AND(ISNUMBER(INT(_xlfn.TEXTJOIN(\"\", TRUE,IFERROR(MID(G4, _xlfn.SEQUENCE(LEN(G4)), 1) *1, \"\")))),ISNUMBER(G9)),IF(G9>=INT(H9),\"Pass\",\"Fail\"),\"\")","v":""}]
[null,"Surname",null,null,"Outside diameter of metal rim",null,null,{"$f":"IF(ISBLANK($G$4),\"\",IF(ISNA(VLOOKUP($G$4,DiscusSpecs,1,FALSE))=FALSE,VLOOKUP($G$4,DiscusSpecs,3,FALSE),\"\"))","v":""},{"$f":"IF(ISBLANK($G$4),\"\",IF(ISNA(VLOOKUP($G$4,DiscusSpecs,1,FALSE))=FALSE,VLOOKUP($G$4,DiscusSpecs,4,FALSE),\"\"))","v":""},{"$f":"IF(AND(ISNUMBER(INT(_xlfn.TEXTJOIN(\"\", TRUE,IFERROR(MID(G4, _xlfn.SEQUENCE(LEN(G4)), 1) *1, \"\")))),ISNUMBER(G10)),IF(AND(G10>=H10,G10<=I10),\"Pass\",\"Fail\"),\"\")","v":""}]
[null,"Mobile Number",null,null,"Thickness of metal plate or flat centre",null,null,{"$f":"IF(ISBLANK($G$4),\"\",IF(ISNA(VLOOKUP($G$4,DiscusSpecs,1,FALSE))=FALSE,VLOOKUP($G$4,DiscusSpecs,7,FALSE),\"\"))","v":""},{"$f":"IF(ISBLANK($G$4),\"\",IF(ISNA(VLOOKUP($G$4,DiscusSpecs,1,FALSE))=FALSE,VLOOKUP($G$4,DiscusSpecs,8,FALSE),\"\"))","v":""},{"$f":"IF(AND(ISNUMBER(INT(_xlfn.TEXTJOIN(\"\", TRUE,IFERROR(MID(G4, _xlfn.SEQUENCE(LEN(G4)), 1) *1, \"\")))),ISNUMBER(G11)),IF(AND(G11>=H11,G11<=I11),\"Pass\",\"Fail\"),\"\")","v":""}]
[null,null,null,null,"Diameter of metal plate or flat centre",null,null,{"$f":"IF(ISBLANK($G$4),\"\",IF(ISNA(VLOOKUP($G$4,DiscusSpecs,1,FALSE))=FALSE,VLOOKUP($G$4,DiscusSpecs,5,FALSE),\"\"))","v":""},{"$f":"IF(ISBLANK($G$4),\"\",IF(ISNA(VLOOKUP($G$4,DiscusSpecs,1,FALSE))=FALSE,VLOOKUP($G$4,DiscusSpecs,6,FALSE),\"\"))","v":""},{"$f":"IF(AND(ISNUMBER(INT(_xlfn.TEXTJOIN(\"\", TRUE,IFERROR(MID(G4, _xlfn.SEQUENCE(LEN(G4)), 1) *1, \"\")))),ISNUMBER(G12)),IF(AND(G12>=H12,G12<=I12),\"Pass\",\"Fail\"),\"\")","v":""}]
[null,"Make",null,null,"Thickness of rim (6mm from edge)",null,null,{"$f":"IF(ISBLANK($G$4),\"\",IF(ISNA(VLOOKUP($G$4,DiscusSpecs,1,FALSE))=FALSE,VLOOKUP($G$4,DiscusSpecs,9,FALSE),\"\"))","v":""},{"$f":"IF(ISBLANK($G$4),\"\",IF(ISNA(VLOOKUP($G$4,DiscusSpecs,1,FALSE))=FALSE,VLOOKUP($G$4,DiscusSpecs,10,FALSE),\"\"))","v":""},{"$f":"IF(AND(ISNUMBER(INT(_xlfn.TEXTJOIN(\"\", TRUE,IFERROR(MID(G4, _xlfn.SEQUENCE(LEN(G4)), 1) *1, \"\")))),ISNUMBER(G13)),IF(AND(G13>=H13,G13<=I13),\"Pass\",\"Fail\"),\"\")","v":""}]
[null,"Model",null,null,"Smoothness of Rim & Overall Surface",null,null,null,null,{"$f":"IF(ISBLANK(G14),\"\",IF(G14 = \"SMOOTH\",\"Pass\",\"Fail\"))","v":""}]
[null,"Colours"]
[null,"Other Marks"]
[]
[null,"Event Number 1"]
[null,"Event Name 1"]
[]
[null,"Event Number 2"]
[null,"Event Name 2"]
[]
[null,"Event Number 3"]
[null,"Event Name 3"]
[]
[null,"Event Number 4"]
[null,"Event Name 4"]
[]
[null,"Test Venue"]
[null,"Test Date"]
[null,"Technical Judge"]
[]
[null,"Other\nComments"]
[]
[]
[]
[]
[null,null,null,null,null,null,null,null,null,null,null,null,null,null,null,null,"Imp.:",{"$f":"IF(C6=\"\",\"\",C6)","v":""},"Events"]
[null,null,null,null,null,null,null,null,null,null,null,null,null,null,null,null,"Wt.:",{"$f":"IF(G4=\"\",\"\",_xlfn.CONCAT(G9,\"g\"))","v":""},{"$f":"IF(C18=\"\",\"\",C18)","v":""},{"$f":"IF(C21=\"\",\"\",C21)","v":""}]
[null,null,null,null,null,null,null,null,null,null,null,null,null,null,null,null,"Tested:",{"$f":"IF(C31=\"\",\"\",C31)","v":""},{"$f":"IF(C24=\"\",\"\",C24)","v":""},{"$f":"IF(C27=\"\",\"\",C27)","v":""}]

{"sheet":"ShotPutProtocolForm","index":3,"n_rows":41,"n_cols":20,"rows_kept":41,"cut":false,"hidden":false,"merged":[[1,1,1,11],[2,11,6,11],[3,7,3,8],[33,2,33,9]]}
[]
[null,"SHOT PUT PROTOCOL"]
[null,null,null,null,null,null,null,null,null,{"$f":"IF(COUNTIF($J$8:$J$10,\"Fail\")>0,\"FAILED\",IF(COUNTIF($J$8:$J$10,\"Pass\")=3,\"PASSED\",\"PENDING\"))","v":"PENDING"},null,{"$f":"IF(COUNTIF($J$8:$J$11,\"Fail\")>0,\"This Shot put has FAILED a Technical Protocol and will NOT be placed in the pool of implements for this Competition\",IF(COUNTIF($J$8:$J$11,\"Pass\")=4,\"This Shot Put has PASSED all Technical Protocols and may be placed in the pool of implements for this Competition\",\"\"))","v":""}]
[null,null,null,null,"NOMINAL WEIGHT",null,null,{"$f":"IF(ISBLANK($G$4),\"\",IF(ISNA(VLOOKUP($G$4,ShotputSpecs,1,FALSE))=FALSE,\"\",\"Incorrect Nominal\"))","v":""}]
[]
[null,"Implement Number",null,null,null,null,"Actual Measure","Tolerance",null,"Pass or Fail"]
[null,null,null,null,null,null,null,"Min","Max"]
[null,"Athlete No.",null,null,"Visual Inspection",null,null,null,null,{"$f":"IF(AND(ISNUMBER(INT(_xlfn.TEXTJOIN(\"\", TRUE,IFERROR(MID(G4, _xlfn.SEQUENCE(LEN(G4)), 1) *1, \"\")))),NOT(ISBLANK(G8))),IF(G8 = \"P\",\"Pass\",\"Fail\"),\"\")","v":""}]
[null,"Given Name",null,null,"Actual Weight",null,null,{"$f":"IF(ISBLANK($G$4),\"\",IF(ISNUMBER(FIND(\" \",$G$4)),IF(ISNA(VLOOKUP($G$4,ShotputSpecs,1,FALSE))=FALSE,LEFT(VLOOKUP($G$4,ShotputSpecs,1,FALSE),FIND(\" \",VLOOKUP($G$4,ShotputSpecs,1,FALSE))-1),\"\"),VLOOKUP($G$4,ShotputSpecs,1,FALSE)))","v":""},null,{"$f":"IF(AND(ISNUMBER(INT(_xlfn.TEXTJOIN(\"\", TRUE,IFERROR(MID(G4, _xlfn.SEQUENCE(LEN(G4)), 1) *1, \"\")))),ISNUMBER(G9)),IF(G9>=INT(H9),\"Pass\",\"Fail\"),\"\")","v":""}]
[null,"Surname",null,null,"Diameter",null,null,{"$f":"IF(ISBLANK($G$4),\"\",IF(ISNA(VLOOKUP($G$4,ShotputSpecs,1,FALSE))=FALSE,VLOOKUP($G$4,ShotputSpecs,2,FALSE),\"\"))","v":""},{"$f":"IF(ISBLANK($G$4),\"\",IF(ISNA(VLOOKUP($G$4,ShotputSpecs,1,FALSE))=FALSE,VLOOKUP($G$4,ShotputSpecs,3,FALSE),\"\"))","v":""},{"$f":"IF(AND(ISNUMBER(INT(_xlfn.TEXTJOIN(\"\", TRUE,IFERROR(MID(G4, _xlfn.SEQUENCE(LEN(G4)), 1) *1, \"\")))),ISNUMBER(G10)),IF(G10<=I10,\"Pass\",\"Fail\"),\"\")","v":""}]
[null,"Mobile Number"]
[]
[null,"Make"]
[null,"Model"]
[null,"Colours"]
[null,"Other Marks"]
[]
[null,"Event Number 1"]
[null,"Event Name 1"]
[]
[null,"Event Number 2"]
[null,"Event Name 2"]
[]
[null,"Event Number 3"]
[null,"Event Name 3"]
[]
[null,"Event Number 4"]
[null,"Event Name 4"]
[]
[null,"Test Venue","QSAC"]
[null,"Test Date","2025-02-28T20:22:47"]
[null,"Technical Judge","Lauren Curry"]
[]
[null,"Other\nComments"]
[]
[]
[]
[]
[null,null,null,null,null,null,null,null,null,null,null,null,null,null,null,null,"Imp.:",{"$f":"IF(C6=\"\",\"\",C6)","v":""},"Events"]
[null,null,null,null,null,null,null,null,null,null,null,null,null,null,null,null,"Wt.:",{"$f":"IF(G4=\"\",\"\",_xlfn.CONCAT(G9,\"g\"))","v":""},{"$f":"IF(C18=\"\",\"\",C18)","v":""},{"$f":"IF(C21=\"\",\"\",C21)","v":""}]
[null,null,null,null,null,null,null,null,null,null,null,null,null,null,null,null,"Tested:",{"$f":"IF(C31=\"\",\"\",C31)","v":"2025-02-28T20:22:47"},{"$f":"IF(C24=\"\",\"\",C24)","v":""},{"$f":"IF(C27=\"\",\"\",C27)","v":""}]

{"sheet":"HammerProtocolForm","index":4,"n_rows":41,"n_cols":20,"rows_kept":41,"cut":false,"hidden":false,"merged":[[1,1,1,11],[2,11,6,11],[3,7,3,8],[33,2,33,9]]}
[]
[null,"HAMMER PROTOCOL"]
[null,null,null,null,null,null,null,null,null,{"$f":"IF(COUNTIF($J$8:$J$12,\"Fail\")>0,\"FAILED\",IF(COUNTIF($J$8:$J$12,\"Pass\")=5,\"PASSED\",\"PENDING\"))","v":"PENDING"},null,{"$f":"IF(COUNTIF($J$8:$J$12,\"Fail\")>0,\"This Hammer has FAILED a Technical Protocol and will NOT be placed in the pool of implements for this Competition\",IF(COUNTIF($J$8:$J$12,\"Pass\")=5,\"This Hammer has PASSED all Technical Protocols and may be placed in the pool of implements for this Competition\",\"\"))","v":""}]
[null,null,null,null,"NOMINAL WEIGHT",null,null,{"$f":"IF(ISBLANK($G$4),\"\",IF(ISNA(VLOOKUP($G$4,HammerSpecs,1,FALSE))=FALSE,\"\",\"Incorrect Nominal\"))","v":""}]
[]
[null,"Implement Number",null,null,null,null,"Actual Measure","Tolerance",null,"Pass or Fail"]
[null,null,null,null,null,null,null,"Min","Max"]
[null,"Athlete No.",null,null,"Visual Inspection",null,null,null,null,{"$f":"IF(AND(ISNUMBER(INT(_xlfn.TEXTJOIN(\"\", TRUE,IFERROR(MID(G4, _xlfn.SEQUENCE(LEN(G4)), 1) *1, \"\")))),NOT(ISBLANK(G8))),IF(G8 = \"P\",\"Pass\",\"Fail\"),\"\")","v":""}]
[null,"Given Name",null,null,"Actual Weight",null,null,{"$f":"IF(ISBLANK($G$4),\"\",IF(ISNUMBER(FIND(\" \",$G$4)),IF(ISNA(VLOOKUP($G$4,HammerSpecs,1,FALSE))=FALSE,LEFT(VLOOKUP($G$4,HammerSpecs,1,FALSE),FIND(\" \",VLOOKUP($G$4,HammerSpecs,1,FALSE))-1),\"\"),VLOOKUP($G$4,HammerSpecs,1,FALSE)))","v":""},null,{"$f":"IF(AND(ISNUMBER(INT(_xlfn.TEXTJOIN(\"\", TRUE,IFERROR(MID(G4, _xlfn.SEQUENCE(LEN(G4)), 1) *1, \"\")))),ISNUMBER(G9)),IF(G9>=INT(H9),\"Pass\",\"Fail\"),\"\")","v":""}]
[null,"Surname",null,null,"Length",null,null,null,{"$f":"IF(ISBLANK($G$4),\"\",IF(ISNA(VLOOKUP($G$4,HammerSpecs,1,FALSE))=FALSE,VLOOKUP($G$4,HammerSpecs,2),\"\"))","v":""},{"$f":"IF(AND(ISNUMBER(INT(_xlfn.TEXTJOIN(\"\", TRUE,IFERROR(MID(G4, _xlfn.SEQUENCE(LEN(G4)), 1) *1, \"\")))),ISNUMBER(G10)),IF(G10<=I10,\"Pass\",\"Fail\"),\"\")","v":""},null,"(measured from inside of handle)"]
[null,"Mobile Number",null,null,"Head Diameter",null,null,{"$f":"IF(ISBLANK($G$4),\"\",IF(ISNA(VLOOKUP($G$4,HammerSpecs,1,FALSE))=FALSE,VLOOKUP($G$4,HammerSpecs,3,FALSE),\"\"))","v":""},{"$f":"IF(ISBLANK($G$4),\"\",IF(ISNA(VLOOKUP($G$4,HammerSpecs,1,FALSE))=FALSE,VLOOKUP($G$4,HammerSpecs,4,FALSE),\"\"))","v":""},{"$f":"IF(AND(ISNUMBER(INT(_xlfn.TEXTJOIN(\"\", TRUE,IFERROR(MID(G4, _xlfn.SEQUENCE(LEN(G4)), 1) *1, \"\")))),ISNUMBER(G11)),IF(AND(G11>=H11,G11<=I11),\"Pass\",\"Fail\"),\"\")","v":""}]
[null,null,null,null,"CoG",null,null,null,null,{"$f":"IF(ISBLANK(G12),\"\",IF(G12 = \"P\",\"Pass\",\"Fail\"))","v":""}]
[null,"Make"]
[null,"Model",null,null,"Grip Type"]
[null,"Colours",null,null,"Brace Type"]
[null,"Other Marks"]
[]
[null,"Event Number 1"]
[null,"Event Name 1"]
[]
[null,"Event Number 2"]
[null,"Event Name 2"]
[]
[null,"Event Number 3"]
[null,"Event Name 3"]
[]
[null,"Event Number 4"]
[null,"Event Name 4"]
[]
[null,"Test Venue","QSAC"]
[null,"Test Date","2025-02-28T20:23:32"]
[null,"Technical Judge","Lauren Curry"]
[]
[null,"Other\nComments"]
[]
[]
[]
[]
[null,null,null,null,null,null,null,null,null,null,null,null,null,null,null,null,"Imp.:",{"$f":"IF(C6=\"\",\"\",C6)","v":""},"Events"]
[null,null,null,null,null,null,null,null,null,null,null,null,null,null,null,null,"Wt.:",{"$f":"IF(G4=\"\",\"\",_xlfn.CONCAT(G9,\"g\"))","v":""},{"$f":"IF(C18=\"\",\"\",C18)","v":""},{"$f":"IF(C21=\"\",\"\",C21)","v":""}]
[null,null,null,null,null,null,null,null,null,null,null,null,null,null,null,null,"Tested:",{"$f":"IF(C31=\"\",\"\",C31)","v":"2025-02-28T20:23:32"},{"$f":"IF(C24=\"\",\"\",C24)","v":""},{"$f":"IF(C27=\"\",\"\",C27)","v":""}]

{"sheet":"JavelinProtocolForm","index":5,"n_rows":46,"n_cols":20,"rows_kept":46,"cut":false,"hidden":false,"merged":[[1,1,1,11],[2,11,6,11],[3,7,3,8],[38,2,38,9]]}
[]
[null,"JAVELIN PROTOCOL"]
[null,null,null,null,null,null,null,null,null,{"$f":"IF(COUNTIF($J$8:$J$27,\"Fail\")>0,\"FAILED\",IF(COUNTIF($J$8:$J$27,\"Pass\")=17,\"PASSED\",\"PENDING\"))","v":"PENDING"},null,{"$f":"IF(COUNTIF($J$8:$J$36,\"Fail\")>0,\"This Javelin has FAILED a Technical Protocol and will NOT be placed in the pool of implements for this Competition\",IF(COUNTIF($J$8:$J$36,\"Pass\")=17,\"This Javelin has PASSED all Technical Protocols and may be placed in the pool of implements for this Competition\",\"\"))","v":""}]
[null,null,null,null,"NOMINAL WEIGHT",null,null,{"$f":"IF(ISBLANK($G$4),\"\",IF(ISNA(VLOOKUP($G$4,JavelinSpecs,1,FALSE))=FALSE,\"\",\"Incorrect Nominal\"))","v":""}]
[]
[null,"Implement Number",null,null,null,null,"Actual Measure","Tolerance",null,"Pass or Fail"]
[null,null,null,null,null,null,null,"Min","Max"]
[null,"Athlete No.",null,null,"Visual Inspection",null,null,null,null,{"$f":"IF(ISBLANK(G8),\"\",IF(G8 = \"P\",\"Pass\",\"Fail\"))","v":""}]
[null,"Given Name",null,null,"Actual Weight",null,null,{"$f":"IF(ISBLANK($G$4),\"\",IF(LEN($G$4>3),IF(ISNA(VLOOKUP($G$4,JavelinSpecs,1,FALSE))=FALSE,VALUE(LEFT(VLOOKUP($G$4,JavelinSpecs,1,FALSE),3)),IF(ISNA(VLOOKUP($G$4,JavelinSpecs,1,FALSE))=FALSE,VLOOKUP($G$4,JavelinSpecs,1,FALSE),\"\"))))","v":""},null,{"$f":"IF(AND(NOT(ISBLANK($G$4)),ISNUMBER(G9)),IF(G9>=H9,\"Pass\",\"Fail\"),\"\")","v":""}]
[null,"Surname",null,null,"Overall Length","L0",null,{"$f":"IF(ISBLANK($G$4),\"\",IF(ISNA(VLOOKUP($G$4,JavelinSpecs,1,FALSE))=FALSE,VLOOKUP($G$4,JavelinSpecs,2),\"\"))","v":""},{"$f":"IF(ISBLANK($G$4),\"\",IF(ISNA(VLOOKUP($G$4,JavelinSpecs,1,FALSE))=FALSE,VLOOKUP($G$4,JavelinSpecs,3),\"\"))","v":""},{"$f":"IF(AND(NOT(ISBLANK($G$4)),ISNUMBER(G10)),IF(AND(G10>=H10,G10<=I10),\"Pass\",\"Fail\"),\"\")","v":""}]
[null,"Mobile Number",null,null,"Tip to CoG","L1",null,{"$f":"IF(ISBLANK($G$4),\"\",IF(ISNA(VLOOKUP($G$4,JavelinSpecs,1,FALSE))=FALSE,VLOOKUP($G$4,JavelinSpecs,4),\"\"))","v":""},{"$f":"IF(ISBLANK($G$4),\"\",IF(ISNA(VLOOKUP($G$4,JavelinSpecs,1,FALSE))=FALSE,VLOOKUP($G$4,JavelinSpecs,5),\"\"))","v":""},{"$f":"IF(AND(NOT(ISBLANK($G$4)),ISNUMBER(G11)),IF(AND(G11>=H11,G11<=I11),\"Pass\",\"Fail\"),\"\")","v":""}]
[null,null,null,null,"Halfway Tip to CoG","1/2 L1",{"$f":"IF(ISBLANK(G11),\"\",ROUND(G11/2,0))","v":""},{"$f":"IF(OR(ISBLANK(G10),ISBLANK(G11)),\"\",(G10-G11))","v":""}]
[null,"Make",null,null,"Tail to CoG","L2",{"$f":"IF(OR(ISBLANK(G10),ISBLANK(G11)),\"\",(G10-G11))","v":""},{"$f":"IF(ISBLANK($G$4),\"\",IF(ISNA(VLOOKUP($G$4,JavelinSpecs,1,FALSE))=FALSE,VLOOKUP($G$4,JavelinSpecs,6),\"\"))","v":""},{"$f":"IF(ISBLANK($G$4),\"\",IF(ISNA(VLOOKUP($G$4,JavelinSpecs,1,FALSE))=FALSE,VLOOKUP($G$4,JavelinSpecs,7),\"\"))","v":""},{"$f":"IF(AND(NOT(ISBLANK($G$4)),ISNUMBER(G13)),IF(AND(G13>=H13,G13<=I13),\"Pass\",\"Fail\"),\"\")","v":""}]
[null,"Model",null,null,"Halfway Tail to CoG","1/2 L2",{"$f":"IF(OR(ISBLANK(G10),ISBLANK(G11)),\"\",ROUND(G13/2,0))","v":""}]
[null,"Colours",null,null,"Head","L3",null,{"$f":"IF(ISBLANK($G$4),\"\",IF(ISNA(VLOOKUP($G$4,JavelinSpecs,1,FALSE))=FALSE,VLOOKUP($G$4,JavelinSpecs,8),\"\"))","v":""},{"$f":"IF(ISBLANK($G$4),\"\",IF(ISNA(VLOOKUP($G$4,JavelinSpecs,1,FALSE))=FALSE,VLOOKUP($G$4,JavelinSpecs,9),\"\"))","v":""},{"$f":"IF(AND(NOT(ISBLANK($G$4)),ISNUMBER(G15)),IF(AND(G15>=H15,G15<=I15),\"Pass\",\"Fail\"),\"\")","v":""}]
[null,"Other Marks",null,null,"Grip","L4",null,{"$f":"IF(ISBLANK($G$4),\"\",IF(ISNA(VLOOKUP($G$4,JavelinSpecs,1,FALSE))=FALSE,VLOOKUP($G$4,JavelinSpecs,10),\"\"))","v":""},{"$f":"IF(ISBLANK($G$4),\"\",IF(ISNA(VLOOKUP($G$4,JavelinSpecs,1,FALSE))=FALSE,VLOOKUP($G$4,JavelinSpecs,11),\"\"))","v":""},{"$f":"IF(AND(NOT(ISBLANK($G$4)),ISNUMBER(G16)),IF(AND(G16>=H16,G16<=I16),\"Pass\",\"Fail\"),\"\")","v":""}]
[null,null,null,null,"Point Angle",null,null,null,{"$f":"IF(ISBLANK($G$4),\"\",IF(ISNA(VLOOKUP($G$4,JavelinSpecs,1,FALSE))=FALSE,VLOOKUP($G$4,JavelinSpecs,12),\"\"))","v":""},{"$f":"IF(AND(NOT(ISBLANK($G$4)),ISNUMBER(G17)),IF(AND(G17>0,G17<=I17),\"Pass\",\"Fail\"),\"\")","v":""},null,"(Maximum is 40°)"]
[null,"Event Number 1",null,null,"In Front of Grip","D0",null,{"$f":"IF(ISBLANK($G$4),\"\",IF(ISNA(VLOOKUP($G$4,JavelinSpecs,1,FALSE))=FALSE,VLOOKUP($G$4,JavelinSpecs,13),\"\"))","v":""},{"$f":"IF(ISBLANK($G$4),\"\",IF(ISNA(VLOOKUP($G$4,JavelinSpecs,1,FALSE))=FALSE,VLOOKUP($G$4,JavelinSpecs,14),\"\"))","v":""},{"$f":"IF(AND(NOT(ISBLANK($G$4)),ISNUMBER(G18)),IF(AND(G18>=H18,G18<=I18),\"Pass\",\"Fail\"),\"\")","v":""},null,""]
[null,"Event Name 1",null,null,"Rear of Grip","D1",null,{"$f":"IF(ISNUMBER($G$18),ROUND($G$18-0.25,2),\" \")","v":" "},{"$f":"IF(ISBLANK(G18),\"\",G18)","v":""},{"$f":"IF(AND(NOT(ISBLANK($G$4)),ISNUMBER(G19)),IF(AND(G19>=H19,G19<=I19),\"Pass\",\"Fail\"),\"\")","v":""},null,"(Minimum is D0 - 0.25mm)"]
[null,null,null,null,"150mm from Tip","D2",null,null,{"$f":"IF(ISNUMBER($G$18),ROUND($G$18*0.8,2),\" \")","v":" "},{"$f":"IF(AND(NOT(ISBLANK($G$4)),ISNUMBER(G20)),IF(AND(G20>0,G20<=I20),\"Pass\",\"Fail\"),\"\")","v":""},null,"(Maximum is 80% D0)"]
[null,"Event Number 2",null,null,"At Rear of Head","D3",null,null,null,null,null,""]
[null,"Event Name 2",null,null,"Immediately behind Head","D4",null,{"$f":"IF(ISNUMBER($G$21),ROUND($G$21-2.5,2),\" \")","v":" "},null,{"$f":"IF(AND(NOT(ISBLANK($G$4)),ISNUMBER(G22)),IF(AND(G22>0,G22>=H22),\"Pass\",\"Fail\"),\"\")","v":""},null,"(Minimum is D3 - 2.5mm)"]
[null,null,null,null,"Halfway Tip to CoG","D5",null,null,{"$f":"IF(ISNUMBER($G$18),ROUND($G$18*0.9,2),\" \")","v":" "},{"$f":"IF(AND(NOT(ISBLANK($G$4)),ISNUMBER(G23)),IF(AND(G23>0,G23<=I23),\"Pass\",\"Fail\"),\"\")","v":""},null,"(Maximum is 90% D0)"]
[null,"Event Number 3",null,null,"Over Grip","D6",null,null,{"$f":"IF(ISNUMBER($G$18),ROUND($G$18+8,2),\" \")","v":" "},{"$f":"IF(AND(NOT(ISBLANK($G$4)),ISNUMBER(G24)),IF(AND(G24>0,G24<=I24),\"Pass\",\"Fail\"),\"\")","v":""},null,"(Maximum is D0 + 8mm)"]
[null,"Event Name 3",null,null,"Half Tail to CoG","D7",null,{"$f":"IF(ISNUMBER($G$18),ROUND($G$18*0.9,2),\" \")","v":" "},null,{"$f":"IF(AND(NOT(ISBLANK($G$4)),ISNUMBER(G25)),IF(AND(G25>0,G25>=H25),\"Pass\",\"Fail\"),\"\")","v":""},null,"(Minimum is 90% D0)"]
[null,null,null,null,"150mm from Tail","D8",null,{"$f":"IF(ISNUMBER($G$18),ROUND($G$18*0.4,2),\" \")","v":" "},null,{"$f":"IF(AND(NOT(ISBLANK($G$4)),ISNUMBER(G26)),IF(AND(G26>0,G26>=H26),\"Pass\",\"Fail\"),\"\")","v":""},null,"(Minimum is 40% D0)"]
[null,"Event Number 4",null,null,"At Tail","D9",null,{"$f":"IF(ISNUMBER($G$18),3.5,\" \")","v":" "},null,{"$f":"IF(AND(NOT(ISBLANK($G$4)),ISNUMBER(G27)),IF(AND(G27>0,G27>=H27),\"Pass\",\"Fail\"),\"\")","v":""},null,"(Minimum is 3.5mm)"]
[null,"Event Name 4"]
[]
[null,"Test Venue"]
[null,"Test Date"]
[null,"Technical Judge"]
[]
[]
[]
[]
[]
[]
[null,"Other\nComments"]
[]
[]
[]
[]
[null,null,null,null,null,null,null,null,null,null,null,null,null,null,null,null,"Imp.:",{"$f":"IF(C6=\"\",\"\",C6)","v":""},"Events"]
[null,null,null,null,null,null,null,null,null,null,null,null,null,null,null,null,"Wt.:",{"$f":"IF(G9=\"\",\"\",_xlfn.CONCAT(G9,\"g\"))","v":""},{"$f":"IF(C18=\"\",\"\",C18)","v":""},{"$f":"IF(C21=\"\",\"\",C21)","v":""}]
[null,null,null,null,null,null,null,null,null,null,null,null,null,null,null,null,"Tested:",{"$f":"IF(C31=\"\",\"\",C31)","v":""},{"$f":"IF(C27=\"\",\"\",C27)","v":""},{"$f":"IF(C27=\"\",\"\",C27)","v":""}]

{"sheet":"ClubProtocolForm","index":6,"n_rows":41,"n_cols":20,"rows_kept":41,"cut":false,"hidden":false,"merged":[[1,1,1,11],[2,11,6,11],[3,7,3,8],[33,2,33,9]]}
[]
[null,"CLUB PROTOCOL"]
[null,null,null,null,null,null,null,null,null,{"$f":"IF(COUNTIF($J$8:$J$12,\"Fail\")>0,\"FAILED\",IF(COUNTIF($J$8:$J$12,\"Pass\")=5,\"PASSED\",\"PENDING\"))","v":"PENDING"},null,{"$f":"IF(COUNTIF($J$8:$J$12,\"Fail\")>0,\"This Hammer has FAILED a Technical Protocol and will NOT be placed in the pool of implements for this Competition\",IF(COUNTIF($J$8:$J$12,\"Pass\")=5,\"This Hammer has PASSED all Technical Protocols and may be placed in the pool of implements for this Competition\",\"\"))","v":""}]
[null,null,null,null,"NOMINAL WEIGHT",null,null,{"$f":"IF(ISBLANK($G$4),\"\",IF(ISNA(VLOOKUP($G$4,ClubSpecs,1,FALSE))=FALSE,\"\",\"Incorrect Nominal\"))","v":""}]
[]
[null,"Implement Number",null,null,null,null,"Actual Measure","Tolerance",null,"Pass or Fail"]
[null,null,null,null,null,null,null,"Min","Max"]
[null,"Athlete No.",null,null,"Visual Inspection",null,null,null,null,{"$f":"IF(AND(ISNUMBER(INT(_xlfn.TEXTJOIN(\"\", TRUE,IFERROR(MID(G4, _xlfn.SEQUENCE(LEN(G4)), 1) *1, \"\")))),NOT(ISBLANK(G8))),IF(G8 = \"P\",\"Pass\",\"Fail\"),\"\")","v":""}]
[null,"Given Name",null,null,"Actual Weight",null,null,{"$f":"IF(ISBLANK($G$4),\"\",IF(ISNUMBER(FIND(\" \",$G$4)),IF(ISNA(VLOOKUP($G$4,ClubSpecs,1,FALSE))=FALSE,LEFT(VLOOKUP($G$4,ClubSpecs,1,FALSE),FIND(\" \",VLOOKUP($G$4,ClubSpecs,1,FALSE))-1),\"\"),VLOOKUP($G$4,ClubSpecs,1,FALSE)))","v":""},null,{"$f":"IF(AND(ISNUMBER(INT(_xlfn.TEXTJOIN(\"\", TRUE,IFERROR(MID(G4, _xlfn.SEQUENCE(LEN(G4)), 1) *1, \"\")))),ISNUMBER(G9)),IF(G9>=INT(H9),\"Pass\",\"Fail\"),\"\")","v":""}]
[null,"Surname",null,null,"Overall Length",null,null,{"$f":"IF(ISBLANK($G$4),\"\",IF(ISNA(VLOOKUP($G$4,ClubSpecs,2,FALSE))=FALSE,VLOOKUP($G$4,ClubSpecs,2,FALSE),\"\"))","v":""},{"$f":"IF(ISBLANK($G$4),\"\",IF(ISNA(VLOOKUP($G$4,ClubSpecs,3,FALSE))=FALSE,VLOOKUP($G$4,ClubSpecs,3,FALSE),\"\"))","v":""},{"$f":"IF(AND(ISNUMBER(INT(_xlfn.TEXTJOIN(\"\", TRUE,IFERROR(MID(G4, _xlfn.SEQUENCE(LEN(G4)), 1) *1, \"\")))),ISNUMBER(G10)),IF(AND(G10>=H10,G10<=I10),\"Pass\",\"Fail\"),\"\")","v":""},null,"(measured from inside of handle)"]
[null,"Mobile Number",null,null,"Neck Diameter",null,null,{"$f":"IF(ISBLANK($G$4),\"\",IF(ISNA(VLOOKUP($G$4,ClubSpecs,4,FALSE))=FALSE,VLOOKUP($G$4,ClubSpecs,4,FALSE),\"\"))","v":""},{"$f":"IF(ISBLANK($G$4),\"\",IF(ISNA(VLOOKUP($G$4,ClubSpecs,5,FALSE))=FALSE,VLOOKUP($G$4,ClubSpecs,5,FALSE),\"\"))","v":""},{"$f":"IF(AND(ISNUMBER(INT(_xlfn.TEXTJOIN(\"\", TRUE,IFERROR(MID(G4, _xlfn.SEQUENCE(LEN(G4)), 1) *1, \"\")))),ISNUMBER(G11)),IF(AND(G11>=H11,G11<=I11),\"Pass\",\"Fail\"),\"\")","v":""}]
[null,null,null,null,"Body Diameter",null,null,{"$f":"IF(ISBLANK($G$4),\"\",IF(ISNA(VLOOKUP($G$4,ClubSpecs,6,FALSE))=FALSE,VLOOKUP($G$4,ClubSpecs,6,FALSE),\"\"))","v":""},{"$f":"IF(ISBLANK($G$4),\"\",IF(ISNA(VLOOKUP($G$4,ClubSpecs,7,FALSE))=FALSE,VLOOKUP($G$4,ClubSpecs,7,FALSE),\"\"))","v":""},{"$f":"IF(AND(ISNUMBER(INT(_xlfn.TEXTJOIN(\"\", TRUE,IFERROR(MID(G4, _xlfn.SEQUENCE(LEN(G4)), 1) *1, \"\")))),ISNUMBER(G12)),IF(AND(G12>=H12,G12<=I12),\"Pass\",\"Fail\"),\"\")","v":""}]
[null,"Make",null,null,"Metal End Diameter",null,null,{"$f":"IF(ISBLANK($G$4),\"\",IF(ISNA(VLOOKUP($G$4,ClubSpecs,8,FALSE))=FALSE,VLOOKUP($G$4,ClubSpecs,8,FALSE),\"\"))","v":""},{"$f":"IF(ISBLANK($G$4),\"\",IF(ISNA(VLOOKUP($G$4,ClubSpecs,9,FALSE))=FALSE,VLOOKUP($G$4,ClubSpecs,9,FALSE),\"\"))","v":""},{"$f":"IF(AND(ISNUMBER(INT(_xlfn.TEXTJOIN(\"\", TRUE,IFERROR(MID(G4, _xlfn.SEQUENCE(LEN(G4)), 1) *1, \"\")))),ISNUMBER(G13)),IF(AND(G13>=H13,G13<=I13),\"Pass\",\"Fail\"),\"\")","v":""}]
[null,"Model",null,null,"Metal End Thickness",null,null,{"$f":"IF(ISBLANK($G$4),\"\",IF(ISNA(VLOOKUP($G$4,ClubSpecs,10,FALSE))=FALSE,VLOOKUP($G$4,ClubSpecs,10,FALSE),\"\"))","v":""},{"$f":"IF(ISBLANK($G$4),\"\",IF(ISNA(VLOOKUP($G$4,ClubSpecs,11,FALSE))=FALSE,VLOOKUP($G$4,ClubSpecs,11,FALSE),\"\"))","v":""},{"$f":"IF(AND(ISNUMBER(INT(_xlfn.TEXTJOIN(\"\", TRUE,IFERROR(MID(G4, _xlfn.SEQUENCE(LEN(G4)), 1) *1, \"\")))),ISNUMBER(G14)),IF(AND(G14>=H14,G14<=I14),\"Pass\",\"Fail\"),\"\")","v":""}]
[null,"Colours"]
[null,"Other Marks"]
[]
[null,"Event Number 1"]
[null,"Event Name 1"]
[]
[null,"Event Number 2"]
[null,"Event Name 2"]
[]
[null,"Event Number 3"]
[null,"Event Name 3"]
[]
[null,"Event Number 4"]
[null,"Event Name 4"]
[]
[null,"Test Venue","SA AS"]
[null,"Test Date","2024-10-04T12:25:26"]
[null,"Technical Judge","Cameron Burrows"]
[]
[null,"Other\nComments"]
[]
[]
[]
[]
[null,null,null,null,null,null,null,null,null,null,null,null,null,null,null,null,"Imp.:",{"$f":"IF(C6=\"\",\"\",C6)","v":""},"Events"]
[null,null,null,null,null,null,null,null,null,null,null,null,null,null,null,null,"Wt.:",{"$f":"IF(G4=\"\",\"\",_xlfn.CONCAT(G9,\"g\"))","v":""},{"$f":"IF(C18=\"\",\"\",C18)","v":""},{"$f":"IF(C21=\"\",\"\",C21)","v":""}]
[null,null,null,null,null,null,null,null,null,null,null,null,null,null,null,null,"Tested:",{"$f":"IF(C31=\"\",\"\",C31)","v":"2024-10-04T12:25:26"},{"$f":"IF(C24=\"\",\"\",C24)","v":""},{"$f":"IF(C27=\"\",\"\",C27)","v":""}]

{"sheet":"TI Report","index":7,"n_rows":42,"n_cols":9,"rows_kept":42,"cut":false,"hidden":false,"merged":[[10,2,10,8],[20,2,20,8],[39,2,39,8],[1,1,1,9],[3,3,3,6],[4,3,4,6],[5,3,5,6]]}
[]
[null,"TECHNICAL IMPLEMENTS REPORT FOR EVENT SITE"]
[]
[null,null,"Event Name:"]
[null,null,"Event Time:",{"$f":"IF(D4=\"\",\"\",_xlfn.XLOOKUP(D4,Timetable[Full EventName],Timetable[Day-time],,0,1))","v":""}]
[null,null,"Event Location:",{"$f":"IF(D4=\"\",\"\",_xlfn.XLOOKUP(D4,Timetable[Full EventName],Timetable[Event Location],,0,1))","v":""}]
[]
[]
[null,null,"Total # Implements:",{"$f":"SUM(C14:C19)+COUNTA(C24:C38)","v":0}]
[]
[null,null,"POOL IMPLEMENTS"]
[]
[null,null,"Total","400g","500g","600g","700g","800g"]
[null,null,{"$f":"IF(COUNTA(D14:I14)=0,\"\",SUM(D14:I14))","v":""}]
[null,null,""]
[null,null,""]
[null,null,""]
[null,null,""]
[null,null,""]
[]
[null,null,"PERSONAL IMPLEMENTS"]
[]
[null,null,"Nom Weight","Implement #","Model","Type","Colour","Surname","Pass/Fail"]
[]
[]
[]
[]
[]
[]
[]
[]
[]
[]
[]
[]
[]
[]
[]
[]
[null,null,"FAILED PERSONAL IMPLEMENTS"]
[]
[null,null,"Nom Weight","Implement #","Model","Type","Colour","Surname","Pass/Fail"]

{"sheet":"Specifications","index":8,"n_rows":75,"n_cols":37,"rows_kept":75,"cut":false,"hidden":false,"merged":[[0,12,0,13],[33,2,33,3],[0,14,0,15],[42,1,42,2],[54,10,54,11],[0,1,0,2],[0,3,0,4],[0,5,0,6],[0,7,0,8],[0,9,0,10],[33,4,33,5],[72,9,72,10],[72,1,72,2],[72,3,72,4],[72,5,72,6],[72,7,72,8]]}
["Weight","L0",null,"L1",null,"L2",null,"L3",null,"L4",null,"Point Angle","D0 ",null,"Visual Inspection",null,null,null,null,"Implement Types","Weight","Weight",null,null,null,"Gender","Age","Shot","Discus","Hammer","Javelin",null,null,null,"Test Venues",null,"Technical Judges"]
["Mimimum","Minimum","Maximum","Minimum","Maximum","Minimum","Maximum","Minimum","Maximum","Minimum","Maximum","Maximum","Minimum","Maximum","P","F",null,null,null,"Shot Put - 1kg (LAA)","1000 (LAA)","1000 (LAA)",null,null,null,"Female","Open","4.000kg","1.000kg","4.000kg","600g"]
["400 (WPA)",1850,1950,750,800,1050,1200,200,250,130,140,40,20,23,null,null,null,null,null,"Shot Put - 2kg (WPA)","2000 (WPA)","2000 (WPA)",null,null,null,"Female","U20","4.000kg","1.000kg","4.000kg","600g"]
[500,2000,2100,780,880,1120,1320,220,270,135,145,40,20,24,null,null,null,null,null,"Shot Put - 3kg",3000,3000,null,null,null,"Female","U18","3.000kg","1.000kg","3.000kg","500g"]
[600,2200,2300,800,920,1280,1500,250,330,140,150,40,20,25,null,null,null,null,null,"Shot Put - 4kg",4000,4000,null,null,null,"Female","U17","3.000kg","1.000kg","3.000kg","500g"]
[700,2400,2500,850,990,1410,1650,250,330,150,160,40,23,28,null,null,null,null,null,"Shot Put - 5kg",5000,5000,null,null,null,"Female","U16","3.000kg","1.000kg","3.000kg","500g"]
[800,2600,2700,900,1060,1540,1800,250,330,150,160,40,25,30,null,null,null,null,null,"Shot Put - 6kg",6000,6000,null,null,null,"Female","U15","3.000kg","1.000kg","3.000kg","500g"]
[null,null,null,null,null,null,null,null,null,null,null,null,null,null,null,null,null,null,null,"Shot Put - 7.26kg",7260,7260,null,null,null,"Female","U14","3.000kg","1.000kg","3.000kg","400g"]
[null,null,null,null,null,null,null,null,null,null,null,null,null,null,null,null,null,null,null,"Discus - 750g (WPA)","750 (WPA)","750 (WPA)",null,null,null,"Female","U13","3.000kg","0.750kg","---","400g"]
[null,null,null,null,null,null,null,null,null,null,null,null,null,null,null,null,null,null,null,"Discus - 750g (WMA)","750 (WMA)","750 (WMA)",null,null,null,"Female","U12","2.000kg","0.750kg","---","400g"]
[null,null,null,null,null,null,null,null,null,null,null,null,null,null,null,null,null,null,null,"Discus - 750g (LAA)","750 (LAA)","750 (LAA)",null,null,null,"Female","U11","2.000kg","0.750kg","---","400g"]
[null,null,null,null,null,null,null,null,null,null,null,null,null,null,null,null,null,null,null,"Discus - 1kg",1000,1000,null,null,null,"Female","U10","2.000kg","0.500kg","---","---"]
[null,null,null,null,null,null,null,null,null,null,null,null,null,null,null,null,null,null,null,"Discus - 1.5kg",1500,1500,null,null,null,"Female","U09","2.000kg","0.500kg","---","---"]
[null,null,null,null,null,null,null,null,null,null,null,null,null,null,null,null,null,null,null,"Discus - 1.75kg",1750,1750,null,null,null,"Male","U20","6.000kg","1.750kg","6.000kg","800g"]
[null,null,null,null,null,null,null,null,null,null,null,null,null,null,null,null,null,null,null,"Discus - 2kg",2000,2000,null,null,null,"Male","U18","5.000kg","1.500kg","5.000kg","700g"]
[null,null,null,null,null,null,null,null,null,null,null,null,null,null,null,null,null,null,null,"Hammer - 2kg (WMA)","2000 (WMA)","2000 (WMA)",null,null,null,"Male","U17","5.000kg","1.500kg","5.000kg","700g"]
[null,null,null,null,null,null,null,null,null,null,null,null,null,null,null,null,null,null,null,"Hammer - 3kg",3000,3000,null,null,null,"Male","U16","4.000kg","1.000kg","4.000kg","700g"]
[null,null,null,null,null,null,null,null,null,null,null,null,null,null,null,null,null,null,null,"Hammer - 4kg",4000,4000,null,null,null,"Male","U15","4.000kg","1.000kg","4.000kg","700g"]
[null,null,null,null,null,null,null,null,null,null,null,null,null,null,null,null,null,null,null,"Hammer - 5kg",5000,5000,null,null,null,"Male","U14","3.000kg","1.000kg","3.000kg","600g"]
[null,null,null,null,null,null,null,null,null,null,null,null,null,null,null,null,null,null,null,"Hammer - 6kg",6000,6000,null,null,null,"Male","U13","3.000kg","0.750kg","---","600g"]
[null,null,null,null,null,null,null,null,null,null,null,null,null,null,null,null,null,null,null,"Hammer - 7.26kg",7260,7260,null,null,null,"Male","U12","2.000kg","0.750kg","---","400g"]
[null,null,null,null,null,null,null,null,null,null,null,null,null,null,null,null,null,null,null,"Javelin - 400g (WPA)","400 (WPA)","400 (WPA)",null,null,null,"Male","U11","2.000kg","0.500kg","---","400g"]
[null,null,null,null,null,null,null,null,null,null,null,null,null,null,null,null,null,null,null,"Javelin - 500g",500,500,null,null,null,"Male","U10","2.000kg","0.500kg","---","---"]
[null,null,null,null,null,null,null,null,null,null,null,null,null,null,null,null,null,null,null,"Javelin - 600g",600,600,null,null,null,"Male","U09","2.000kg","0.500kg","---","---"]
[null,null,null,null,null,null,null,null,null,null,null,null,null,null,null,null,null,null,null,"Javelin - 700g",700,700,null,null,null,"Male","Open","7.260kg","2.000kg","7.260kg","800g"]
[null,null,null,null,null,null,null,null,null,null,null,null,null,null,null,null,null,null,null,"Javelin - 800g",800,800]
[null,null,null,null,null,null,null,null,null,null,null,null,null,null,null,null,null,null,null,"Club - 397g",397,397]
[]
[]
[]
[]
[]
[]
["Weight","Length","Head Diameter",null,"Handle Inside",null,"Centre of Gravity",null,"Visual Inspection"]
["Mimimum","Maximum","Minimum","Maximum","Max Width","Max Length","P","F","P","F"]
["2000 (WMA)",1195,75,100,130,110,"Grip Type",null,"Brace Type"]
[3000,1195,85,100,130,110,"Straight","Curved","Straight","Curved"]
[4000,1195,95,110,130,110]
[5000,1200,100,120,130,110]
[6000,1215,105,125,130,110]
[7260,1215,110,130,130,110]
[]
["Weight","Diameter",null,"Centre of Gravity",null,"Visual Inspection"]
["Mimimum","Minimum","Maximum","P","F","P","F"]
["1000 (LAA)",65,85]
["2000 (WPA)",80,100]
[3000,85,110]
[4000,95,110]
[5000,100,120]
[6000,105,125]
[7260,110,130]
[]
[]
[]
[null,null,"Outside","Outside","Centre","Centre","Thickness","Thickness","Rim","Rim","Surface Texture",null,"Visual Inspection"]
["Type","Nominal","Minimum","Maximum","Minimum","Maximum","Minimum","Maximum","Minimum","Maximum","SMOOTH","ROUGH","P","F"]
["500g (LAA)",500,134,139,40,51,22,27,10,12]
["750 (WPA)",750,166,172,50,57,33,38,10,13,null,"WPA SPECS"]
["750 (WMA)",750,166,182,50,57,33,39,10,13,null,"WMA SPECS"]
["750 (LAA)",750,154,156,"N/A","N/A",27,35,10,10,null,"LAA SPECS"]
[1000,1000,180,182,50,57,37,39,12,13]
[1500,1500,200,202,50,57,38,40,12,13]
[1750,1750,210,212,50,57,41,43,12,13]
[2000,2000,219,221,50,57,44,46,12,13]
[]
[]
[]
[]
[]
[]
[]
[]
["Weight","Overall Length",null,"Diameter of neck",null,"Diameter of widest part of the body",null,"Diameter of Metal End",null,"Thickness of metal end"]
["Mimimum","Minimum","Maximum","Minimum","Maximum","Minimum","Maximum","Minimum","Maximum","Minimum","Maximum"]
[397,350,390,18,20,50,60,38,39,12.5,13]

{"sheet":"AthleteData","index":9,"n_rows":2115,"n_cols":10,"rows_kept":2115,"cut":false,"hidden":false,"merged":[]}
["Full_Name","Last_name","First_name","Ath_Sex","Birth_Date","Ath_age","Bib No.","Home_state","Home_evetele","Home_email"]
[{"$f":"_xlfn.CONCAT(AthleteData[[#This Row],[Last_name]],\", \",AthleteData[[#This Row],[First_name]])","v":", "}]
[{"$f":"_xlfn.CONCAT(AthleteData[[#This Row],[Last_name]],\", \",AthleteData[[#This Row],[First_name]])","v":", "}]
[{"$f":"_xlfn.CONCAT(AthleteData[[#This Row],[Last_name]],\", \",AthleteData[[#This Row],[First_name]])","v":", "}]
[{"$f":"_xlfn.CONCAT(AthleteData[[#This Row],[Last_name]],\", \",AthleteData[[#This Row],[First_name]])","v":", "}]
[{"$f":"_xlfn.CONCAT(AthleteData[[#This Row],[Last_name]],\", \",AthleteData[[#This Row],[First_name]])","v":", "}]
[{"$f":"_xlfn.CONCAT(AthleteData[[#This Row],[Last_name]],\", \",AthleteData[[#This Row],[First_name]])","v":", "}]
[{"$f":"_xlfn.CONCAT(AthleteData[[#This Row],[Last_name]],\", \",AthleteData[[#This Row],[First_name]])","v":", "}]
[{"$f":"_xlfn.CONCAT(AthleteData[[#This Row],[Last_name]],\", \",AthleteData[[#This Row],[First_name]])","v":", "}]
[{"$f":"_xlfn.CONCAT(AthleteData[[#This Row],[Last_name]],\", \",AthleteData[[#This Row],[First_name]])","v":", "}]
[{"$f":"_xlfn.CONCAT(AthleteData[[#This Row],[Last_name]],\", \",AthleteData[[#This Row],[First_name]])","v":", "}]
[{"$f":"_xlfn.CONCAT(AthleteData[[#This Row],[Last_name]],\", \",AthleteData[[#This Row],[First_name]])","v":", "}]
[{"$f":"_xlfn.CONCAT(AthleteData[[#This Row],[Last_name]],\", \",AthleteData[[#This Row],[First_name]])","v":", "}]
[{"$f":"_xlfn.CONCAT(AthleteData[[#This Row],[Last_name]],\", \",AthleteData[[#This Row],[First_name]])","v":", "}]
[{"$f":"_xlfn.CONCAT(AthleteData[[#This Row],[Last_name]],\", \",AthleteData[[#This Row],[First_name]])","v":", "}]
[{"$f":"_xlfn.CONCAT(AthleteData[[#This Row],[Last_name]],\", \",AthleteData[[#This Row],[First_name]])","v":", "}]
[{"$f":"_xlfn.CONCAT(AthleteData[[#This Row],[Last_name]],\", \",AthleteData[[#This Row],[First_name]])","v":", "}]
[{"$f":"_xlfn.CONCAT(AthleteData[[#This Row],[Last_name]],\", \",AthleteData[[#This Row],[First_name]])","v":", "}]
[{"$f":"_xlfn.CONCAT(AthleteData[[#This Row],[Last_name]],\", \",AthleteData[[#This Row],[First_name]])","v":", "}]
[{"$f":"_xlfn.CONCAT(AthleteData[[#This Row],[Last_name]],\", \",AthleteData[[#This Row],[First_name]])","v":", "}]
[{"$f":"_xlfn.CONCAT(AthleteData[[#This Row],[Last_name]],\", \",AthleteData[[#This Row],[First_name]])","v":", "}]
[{"$f":"_xlfn.CONCAT(AthleteData[[#This Row],[Last_name]],\", \",AthleteData[[#This Row],[First_name]])","v":", "}]
[{"$f":"_xlfn.CONCAT(AthleteData[[#This Row],[Last_name]],\", \",AthleteData[[#This Row],[First_name]])","v":", "}]
[{"$f":"_xlfn.CONCAT(AthleteData[[#This Row],[Last_name]],\", \",AthleteData[[#This Row],[First_name]])","v":", "}]
[{"$f":"_xlfn.CONCAT(AthleteData[[#This Row],[Last_name]],\", \",AthleteData[[#This Row],[First_name]])","v":", "}]
[{"$f":"_xlfn.CONCAT(AthleteData[[#This Row],[Last_name]],\", \",AthleteData[[#This Row],[First_name]])","v":", "}]
[{"$f":"_xlfn.CONCAT(AthleteData[[#This Row],[Last_name]],\", \",AthleteData[[#This Row],[First_name]])","v":", "}]
[{"$f":"_xlfn.CONCAT(AthleteData[[#This Row],[Last_name]],\", \",AthleteData[[#This Row],[First_name]])","v":", "}]
[{"$f":"_xlfn.CONCAT(AthleteData[[#This Row],[Last_name]],\", \",AthleteData[[#This Row],[First_name]])","v":", "}]
[{"$f":"_xlfn.CONCAT(AthleteData[[#This Row],[Last_name]],\", \",AthleteData[[#This Row],[First_name]])","v":", "}]
[{"$f":"_xlfn.CONCAT(AthleteData[[#This Row],[Last_name]],\", \",AthleteData[[#This Row],[First_name]])","v":", "}]
[{"$f":"_xlfn.CONCAT(AthleteData[[#This Row],[Last_name]],\", \",AthleteData[[#This Row],[First_name]])","v":", "}]
[{"$f":"_xlfn.CONCAT(AthleteData[[#This Row],[Last_name]],\", \",AthleteData[[#This Row],[First_name]])","v":", "}]
[{"$f":"_xlfn.CONCAT(AthleteData[[#This Row],[Last_name]],\", \",AthleteData[[#This Row],[First_name]])","v":", "}]
[{"$f":"_xlfn.CONCAT(AthleteData[[#This Row],[Last_name]],\", \",AthleteData[[#This Row],[First_name]])","v":", "}]
[{"$f":"_xlfn.CONCAT(AthleteData[[#This Row],[Last_name]],\", \",AthleteData[[#This Row],[First_name]])","v":", "}]
[{"$f":"_xlfn.CONCAT(AthleteData[[#This Row],[Last_name]],\", \",AthleteData[[#This Row],[First_name]])","v":", "}]
[{"$f":"_xlfn.CONCAT(AthleteData[[#This Row],[Last_name]],\", \",AthleteData[[#This Row],[First_name]])","v":", "}]
[{"$f":"_xlfn.CONCAT(AthleteData[[#This Row],[Last_name]],\", \",AthleteData[[#This Row],[First_name]])","v":", "}]
[{"$f":"_xlfn.CONCAT(AthleteData[[#This Row],[Last_name]],\", \",AthleteData[[#This Row],[First_name]])","v":", "}]
[{"$f":"_xlfn.CONCAT(AthleteData[[#This Row],[Last_name]],\", \",AthleteData[[#This Row],[First_name]])","v":", "}]
[{"$f":"_xlfn.CONCAT(AthleteData[[#This Row],[Last_name]],\", \",AthleteData[[#This Row],[First_name]])","v":", "}]
[{"$f":"_xlfn.CONCAT(AthleteData[[#This Row],[Last_name]],\", \",AthleteData[[#This Row],[First_name]])","v":", "}]
[{"$f":"_xlfn.CONCAT(AthleteData[[#This Row],[Last_name]],\", \",AthleteData[[#This Row],[First_name]])","v":", "}]
[{"$f":"_xlfn.CONCAT(AthleteData[[#This Row],[Last_name]],\", \",AthleteData[[#This Row],[First_name]])","v":", "}]
[{"$f":"_xlfn.CONCAT(AthleteData[[#This Row],[Last_name]],\", \",AthleteData[[#This Row],[First_name]])","v":", "}]
[{"$f":"_xlfn.CONCAT(AthleteData[[#This Row],[Last_name]],\", \",AthleteData[[#This Row],[First_name]])","v":", "}]
[{"$f":"_xlfn.CONCAT(AthleteData[[#This Row],[Last_name]],\", \",AthleteData[[#This Row],[First_name]])","v":", "}]
[{"$f":"_xlfn.CONCAT(AthleteData[[#This Row],[Last_name]],\", \",AthleteData[[#This Row],[First_name]])","v":", "}]
[{"$f":"_xlfn.CONCAT(AthleteData[[#This Row],[Last_name]],\", \",AthleteData[[#This Row],[First_name]])","v":", "}]
[{"$f":"_xlfn.CONCAT(AthleteData[[#This Row],[Last_name]],\", \",AthleteData[[#This Row],[First_name]])","v":", "}]
[{"$f":"_xlfn.CONCAT(AthleteData[[#This Row],[Last_name]],\", \",AthleteData[[#This Row],[First_name]])","v":", "}]
[{"$f":"_xlfn.CONCAT(AthleteData[[#This Row],[Last_name]],\", \",AthleteData[[#This Row],[First_name]])","v":", "}]
[{"$f":"_xlfn.CONCAT(AthleteData[[#This Row],[Last_name]],\", \",AthleteData[[#This Row],[First_name]])","v":", "}]
[{"$f":"_xlfn.CONCAT(AthleteData[[#This Row],[Last_name]],\", \",AthleteData[[#This Row],[First_name]])","v":", "}]
[{"$f":"_xlfn.CONCAT(AthleteData[[#This Row],[Last_name]],\", \",AthleteData[[#This Row],[First_name]])","v":", "}]
[{"$f":"_xlfn.CONCAT(AthleteData[[#This Row],[Last_name]],\", \",AthleteData[[#This Row],[First_name]])","v":", "}]
[{"$f":"_xlfn.CONCAT(AthleteData[[#This Row],[Last_name]],\", \",AthleteData[[#This Row],[First_name]])","v":", "}]
[{"$f":"_xlfn.CONCAT(AthleteData[[#This Row],[Last_name]],\", \",AthleteData[[#This Row],[First_name]])","v":", "}]
[{"$f":"_xlfn.CONCAT(AthleteData[[#This Row],[Last_name]],\", \",AthleteData[[#This Row],[First_name]])","v":", "}]
[{"$f":"_xlfn.CONCAT(AthleteData[[#This Row],[Last_name]],\", \",AthleteData[[#This Row],[First_name]])","v":", "}]
[{"$f":"_xlfn.CONCAT(AthleteData[[#This Row],[Last_name]],\", \",AthleteData[[#This Row],[First_name]])","v":", "}]
[{"$f":"_xlfn.CONCAT(AthleteData[[#This Row],[Last_name]],\", \",AthleteData[[#This Row],[First_name]])","v":", "}]
[{"$f":"_xlfn.CONCAT(AthleteData[[#This Row],[Last_name]],\", \",AthleteData[[#This Row],[First_name]])","v":", "}]
[{"$f":"_xlfn.CONCAT(AthleteData[[#This Row],[Last_name]],\", \",AthleteData[[#This Row],[First_name]])","v":", "}]
[{"$f":"_xlfn.CONCAT(AthleteData[[#This Row],[Last_name]],\", \",AthleteData[[#This Row],[First_name]])","v":", "}]
[{"$f":"_xlfn.CONCAT(AthleteData[[#This Row],[Last_name]],\", \",AthleteData[[#This Row],[First_name]])","v":", "}]
[{"$f":"_xlfn.CONCAT(AthleteData[[#This Row],[Last_name]],\", \",AthleteData[[#This Row],[First_name]])","v":", "}]
[{"$f":"_xlfn.CONCAT(AthleteData[[#This Row],[Last_name]],\", \",AthleteData[[#This Row],[First_name]])","v":", "}]
[{"$f":"_xlfn.CONCAT(AthleteData[[#This Row],[Last_name]],\", \",AthleteData[[#This Row],[First_name]])","v":", "}]
[{"$f":"_xlfn.CONCAT(AthleteData[[#This Row],[Last_name]],\", \",AthleteData[[#This Row],[First_name]])","v":", "}]
[{"$f":"_xlfn.CONCAT(AthleteData[[#This Row],[Last_name]],\", \",AthleteData[[#This Row],[First_name]])","v":", "}]
[{"$f":"_xlfn.CONCAT(AthleteData[[#This Row],[Last_name]],\", \",AthleteData[[#This Row],[First_name]])","v":", "}]
[{"$f":"_xlfn.CONCAT(AthleteData[[#This Row],[Last_name]],\", \",AthleteData[[#This Row],[First_name]])","v":", "}]
[{"$f":"_xlfn.CONCAT(AthleteData[[#This Row],[Last_name]],\", \",AthleteData[[#This Row],[First_name]])","v":", "}]
[{"$f":"_xlfn.CONCAT(AthleteData[[#This Row],[Last_name]],\", \",AthleteData[[#This Row],[First_name]])","v":", "}]
[{"$f":"_xlfn.CONCAT(AthleteData[[#This Row],[Last_name]],\", \",AthleteData[[#This Row],[First_name]])","v":", "}]
[{"$f":"_xlfn.CONCAT(AthleteData[[#This Row],[Last_name]],\", \",AthleteData[[#This Row],[First_name]])","v":", "}]
[{"$f":"_xlfn.CONCAT(AthleteData[[#This Row],[Last_name]],\", \",AthleteData[[#This Row],[First_name]])","v":", "}]
[{"$f":"_xlfn.CONCAT(AthleteData[[#This Row],[Last_name]],\", \",AthleteData[[#This Row],[First_name]])","v":", "}]
[{"$f":"_xlfn.CONCAT(AthleteData[[#This Row],[Last_name]],\", \",AthleteData[[#This Row],[First_name]])","v":", "}]
[{"$f":"_xlfn.CONCAT(AthleteData[[#This Row],[Last_name]],\", \",AthleteData[[#This Row],[First_name]])","v":", "}]
[{"$f":"_xlfn.CONCAT(AthleteData[[#This Row],[Last_name]],\", \",AthleteData[[#This Row],[First_name]])","v":", "}]
[{"$f":"_xlfn.CONCAT(AthleteData[[#This Row],[Last_name]],\", \",AthleteData[[#This Row],[First_name]])","v":", "}]
[{"$f":"_xlfn.CONCAT(AthleteData[[#This Row],[Last_name]],\", \",AthleteData[[#This Row],[First_name]])","v":", "}]
[{"$f":"_xlfn.CONCAT(AthleteData[[#This Row],[Last_name]],\", \",AthleteData[[#This Row],[First_name]])","v":", "}]
[{"$f":"_xlfn.CONCAT(AthleteData[[#This Row],[Last_name]],\", \",AthleteData[[#This Row],[First_name]])","v":", "}]
[{"$f":"_xlfn.CONCAT(AthleteData[[#This Row],[Last_name]],\", \",AthleteData[[#This Row],[First_name]])","v":", "}]
[{"$f":"_xlfn.CONCAT(AthleteData[[#This Row],[Last_name]],\", \",AthleteData[[#This Row],[First_name]])","v":", "}]
[{"$f":"_xlfn.CONCAT(AthleteData[[#This Row],[Last_name]],\", \",AthleteData[[#This Row],[First_name]])","v":", "}]
[{"$f":"_xlfn.CONCAT(AthleteData[[#This Row],[Last_name]],\", \",AthleteData[[#This Row],[First_name]])","v":", "}]
[{"$f":"_xlfn.CONCAT(AthleteData[[#This Row],[Last_name]],\", \",AthleteData[[#This Row],[First_name]])","v":", "}]
[{"$f":"_xlfn.CONCAT(AthleteData[[#This Row],[Last_name]],\", \",AthleteData[[#This Row],[First_name]])","v":", "}]
[{"$f":"_xlfn.CONCAT(AthleteData[[#This Row],[Last_name]],\", \",AthleteData[[#This Row],[First_name]])","v":", "}]
[{"$f":"_xlfn.CONCAT(AthleteData[[#This Row],[Last_name]],\", \",AthleteData[[#This Row],[First_name]])","v":", "}]
[{"$f":"_xlfn.CONCAT(AthleteData[[#This Row],[Last_name]],\", \",AthleteData[[#This Row],[First_name]])","v":", "}]
[{"$f":"_xlfn.CONCAT(AthleteData[[#This Row],[Last_name]],\", \",AthleteData[[#This Row],[First_name]])","v":", "}]
[{"$f":"_xlfn.CONCAT(AthleteData[[#This Row],[Last_name]],\", \",AthleteData[[#This Row],[First_name]])","v":", "}]
[{"$f":"_xlfn.CONCAT(AthleteData[[#This Row],[Last_name]],\", \",AthleteData[[#This Row],[First_name]])","v":", "}]
[{"$f":"_xlfn.CONCAT(AthleteData[[#This Row],[Last_name]],\", \",AthleteData[[#This Row],[First_name]])","v":", "}]
[{"$f":"_xlfn.CONCAT(AthleteData[[#This Row],[Last_name]],\", \",AthleteData[[#This Row],[First_name]])","v":", "}]
[{"$f":"_xlfn.CONCAT(AthleteData[[#This Row],[Last_name]],\", \",AthleteData[[#This Row],[First_name]])","v":", "}]
[{"$f":"_xlfn.CONCAT(AthleteData[[#This Row],[Last_name]],\", \",AthleteData[[#This Row],[First_name]])","v":", "}]
[{"$f":"_xlfn.CONCAT(AthleteData[[#This Row],[Last_name]],\", \",AthleteData[[#This Row],[First_name]])","v":", "}]
[{"$f":"_xlfn.CONCAT(AthleteData[[#This Row],[Last_name]],\", \",AthleteData[[#This Row],[First_name]])","v":", "}]
[{"$f":"_xlfn.CONCAT(AthleteData[[#This Row],[Last_name]],\", \",AthleteData[[#This Row],[First_name]])","v":", "}]
[{"$f":"_xlfn.CONCAT(AthleteData[[#This Row],[Last_name]],\", \",AthleteData[[#This Row],[First_name]])","v":", "}]
[{"$f":"_xlfn.CONCAT(AthleteData[[#This Row],[Last_name]],\", \",AthleteData[[#This Row],[First_name]])","v":", "}]
[{"$f":"_xlfn.CONCAT(AthleteData[[#This Row],[Last_name]],\", \",AthleteData[[#This Row],[First_name]])","v":", "}]
[{"$f":"_xlfn.CONCAT(AthleteData[[#This Row],[Last_name]],\", \",AthleteData[[#This Row],[First_name]])","v":", "}]
[{"$f":"_xlfn.CONCAT(AthleteData[[#This Row],[Last_name]],\", \",AthleteData[[#This Row],[First_name]])","v":", "}]
[{"$f":"_xlfn.CONCAT(AthleteData[[#This Row],[Last_name]],\", \",AthleteData[[#This Row],[First_name]])","v":", "}]
[{"$f":"_xlfn.CONCAT(AthleteData[[#This Row],[Last_name]],\", \",AthleteData[[#This Row],[First_name]])","v":", "}]
[{"$f":"_xlfn.CONCAT(AthleteData[[#This Row],[Last_name]],\", \",AthleteData[[#This Row],[First_name]])","v":", "}]
[{"$f":"_xlfn.CONCAT(AthleteData[[#This Row],[Last_name]],\", \",AthleteData[[#This Row],[First_name]])","v":", "}]
[{"$f":"_xlfn.CONCAT(AthleteData[[#This Row],[Last_name]],\", \",AthleteData[[#This Row],[First_name]])","v":", "}]
[{"$f":"_xlfn.CONCAT(AthleteData[[#This Row],[Last_name]],\", \",AthleteData[[#This Row],[First_name]])","v":", "}]
[{"$f":"_xlfn.CONCAT(AthleteData[[#This Row],[Last_name]],\", \",AthleteData[[#This Row],[First_name]])","v":", "}]
[{"$f":"_xlfn.CONCAT(AthleteData[[#This Row],[Last_name]],\", \",AthleteData[[#This Row],[First_name]])","v":", "}]
[{"$f":"_xlfn.CONCAT(AthleteData[[#This Row],[Last_name]],\", \",AthleteData[[#This Row],[First_name]])","v":", "}]
[{"$f":"_xlfn.CONCAT(AthleteData[[#This Row],[Last_name]],\", \",AthleteData[[#This Row],[First_name]])","v":", "}]
[{"$f":"_xlfn.CONCAT(AthleteData[[#This Row],[Last_name]],\", \",AthleteData[[#This Row],[First_name]])","v":", "}]
[{"$f":"_xlfn.CONCAT(AthleteData[[#This Row],[Last_name]],\", \",AthleteData[[#This Row],[First_name]])","v":", "}]
[{"$f":"_xlfn.CONCAT(AthleteData[[#This Row],[Last_name]],\", \",AthleteData[[#This Row],[First_name]])","v":", "}]
[{"$f":"_xlfn.CONCAT(AthleteData[[#This Row],[Last_name]],\", \",AthleteData[[#This Row],[First_name]])","v":", "}]
[{"$f":"_xlfn.CONCAT(AthleteData[[#This Row],[Last_name]],\", \",AthleteData[[#This Row],[First_name]])","v":", "}]
[{"$f":"_xlfn.CONCAT(AthleteData[[#This Row],[Last_name]],\", \",AthleteData[[#This Row],[First_name]])","v":", "}]
[{"$f":"_xlfn.CONCAT(AthleteData[[#This Row],[Last_name]],\", \",AthleteData[[#This Row],[First_name]])","v":", "}]
[{"$f":"_xlfn.CONCAT(AthleteData[[#This Row],[Last_name]],\", \",AthleteData[[#This Row],[First_name]])","v":", "}]
[{"$f":"_xlfn.CONCAT(AthleteData[[#This Row],[Last_name]],\", \",AthleteData[[#This Row],[First_name]])","v":", "}]
[{"$f":"_xlfn.CONCAT(AthleteData[[#This Row],[Last_name]],\", \",AthleteData[[#This Row],[First_name]])","v":", "}]
[{"$f":"_xlfn.CONCAT(AthleteData[[#This Row],[Last_name]],\", \",AthleteData[[#This Row],[First_name]])","v":", "}]
[{"$f":"_xlfn.CONCAT(AthleteData[[#This Row],[Last_name]],\", \",AthleteData[[#This Row],[First_name]])","v":", "}]
[{"$f":"_xlfn.CONCAT(AthleteData[[#This Row],[Last_name]],\", \",AthleteData[[#This Row],[First_name]])","v":", "}]
[{"$f":"_xlfn.CONCAT(AthleteData[[#This Row],[Last_name]],\", \",AthleteData[[#This Row],[First_name]])","v":", "}]
[{"$f":"_xlfn.CONCAT(AthleteData[[#This Row],[Last_name]],\", \",AthleteData[[#This Row],[First_name]])","v":", "}]
[{"$f":"_xlfn.CONCAT(AthleteData[[#This Row],[Last_name]],\", \",AthleteData[[#This Row],[First_name]])","v":", "}]
[{"$f":"_xlfn.CONCAT(AthleteData[[#This Row],[Last_name]],\", \",AthleteData[[#This Row],[First_name]])","v":", "}]
[{"$f":"_xlfn.CONCAT(AthleteData[[#This Row],[Last_name]],\", \",AthleteData[[#This Row],[First_name]])","v":", "}]
[{"$f":"_xlfn.CONCAT(AthleteData[[#This Row],[Last_name]],\", \",AthleteData[[#This Row],[First_name]])","v":", "}]
[{"$f":"_xlfn.CONCAT(AthleteData[[#This Row],[Last_name]],\", \",AthleteData[[#This Row],[First_name]])","v":", "}]
[{"$f":"_xlfn.CONCAT(AthleteData[[#This Row],[Last_name]],\", \",AthleteData[[#This Row],[First_name]])","v":", "}]
[{"$f":"_xlfn.CONCAT(AthleteData[[#This Row],[Last_name]],\", \",AthleteData[[#This Row],[First_name]])","v":", "}]
[{"$f":"_xlfn.CONCAT(AthleteData[[#This Row],[Last_name]],\", \",AthleteData[[#This Row],[First_name]])","v":", "}]
[{"$f":"_xlfn.CONCAT(AthleteData[[#This Row],[Last_name]],\", \",AthleteData[[#This Row],[First_name]])","v":", "}]
[{"$f":"_xlfn.CONCAT(AthleteData[[#This Row],[Last_name]],\", \",AthleteData[[#This Row],[First_name]])","v":", "}]
[{"$f":"_xlfn.CONCAT(AthleteData[[#This Row],[Last_name]],\", \",AthleteData[[#This Row],[First_name]])","v":", "}]
[{"$f":"_xlfn.CONCAT(AthleteData[[#This Row],[Last_name]],\", \",AthleteData[[#This Row],[First_name]])","v":", "}]
[{"$f":"_xlfn.CONCAT(AthleteData[[#This Row],[Last_name]],\", \",AthleteData[[#This Row],[First_name]])","v":", "}]
[{"$f":"_xlfn.CONCAT(AthleteData[[#This Row],[Last_name]],\", \",AthleteData[[#This Row],[First_name]])","v":", "}]
[{"$f":"_xlfn.CONCAT(AthleteData[[#This Row],[Last_name]],\", \",AthleteData[[#This Row],[First_name]])","v":", "}]
[{"$f":"_xlfn.CONCAT(AthleteData[[#This Row],[Last_name]],\", \",AthleteData[[#This Row],[First_name]])","v":", "}]
[{"$f":"_xlfn.CONCAT(AthleteData[[#This Row],[Last_name]],\", \",AthleteData[[#This Row],[First_name]])","v":", "}]
[{"$f":"_xlfn.CONCAT(AthleteData[[#This Row],[Last_name]],\", \",AthleteData[[#This Row],[First_name]])","v":", "}]
[{"$f":"_xlfn.CONCAT(AthleteData[[#This Row],[Last_name]],\", \",AthleteData[[#This Row],[First_name]])","v":", "}]
[{"$f":"_xlfn.CONCAT(AthleteData[[#This Row],[Last_name]],\", \",AthleteData[[#This Row],[First_name]])","v":", "}]
[{"$f":"_xlfn.CONCAT(AthleteData[[#This Row],[Last_name]],\", \",AthleteData[[#This Row],[First_name]])","v":", "}]
[{"$f":"_xlfn.CONCAT(AthleteData[[#This Row],[Last_name]],\", \",AthleteData[[#This Row],[First_name]])","v":", "}]
[{"$f":"_xlfn.CONCAT(AthleteData[[#This Row],[Last_name]],\", \",AthleteData[[#This Row],[First_name]])","v":", "}]
[{"$f":"_xlfn.CONCAT(AthleteData[[#This Row],[Last_name]],\", \",AthleteData[[#This Row],[First_name]])","v":", "}]
[{"$f":"_xlfn.CONCAT(AthleteData[[#This Row],[Last_name]],\", \",AthleteData[[#This Row],[First_name]])","v":", "}]
[{"$f":"_xlfn.CONCAT(AthleteData[[#This Row],[Last_name]],\", \",AthleteData[[#This Row],[First_name]])","v":", "}]
[{"$f":"_xlfn.CONCAT(AthleteData[[#This Row],[Last_name]],\", \",AthleteData[[#This Row],[First_name]])","v":", "}]
[{"$f":"_xlfn.CONCAT(AthleteData[[#This Row],[Last_name]],\", \",AthleteData[[#This Row],[First_name]])","v":", "}]
[{"$f":"_xlfn.CONCAT(AthleteData[[#This Row],[Last_name]],\", \",AthleteData[[#This Row],[First_name]])","v":", "}]
[{"$f":"_xlfn.CONCAT(AthleteData[[#This Row],[Last_name]],\", \",AthleteData[[#This Row],[First_name]])","v":", "}]
[{"$f":"_xlfn.CONCAT(AthleteData[[#This Row],[Last_name]],\", \",AthleteData[[#This Row],[First_name]])","v":", "}]
[{"$f":"_xlfn.CONCAT(AthleteData[[#This Row],[Last_name]],\", \",AthleteData[[#This Row],[First_name]])","v":", "}]
[{"$f":"_xlfn.CONCAT(AthleteData[[#This Row],[Last_name]],\", \",AthleteData[[#This Row],[First_name]])","v":", "}]
[{"$f":"_xlfn.CONCAT(AthleteData[[#This Row],[Last_name]],\", \",AthleteData[[#This Row],[First_name]])","v":", "}]
[{"$f":"_xlfn.CONCAT(AthleteData[[#This Row],[Last_name]],\", \",AthleteData[[#This Row],[First_name]])","v":", "}]
[{"$f":"_xlfn.CONCAT(AthleteData[[#This Row],[Last_name]],\", \",AthleteData[[#This Row],[First_name]])","v":", "}]
[{"$f":"_xlfn.CONCAT(AthleteData[[#This Row],[Last_name]],\", \",AthleteData[[#This Row],[First_name]])","v":", "}]
[{"$f":"_xlfn.CONCAT(AthleteData[[#This Row],[Last_name]],\", \",AthleteData[[#This Row],[First_name]])","v":", "}]
[{"$f":"_xlfn.CONCAT(AthleteData[[#This Row],[Last_name]],\", \",AthleteData[[#This Row],[First_name]])","v":", "}]
[{"$f":"_xlfn.CONCAT(AthleteData[[#This Row],[Last_name]],\", \",AthleteData[[#This Row],[First_name]])","v":", "}]
[{"$f":"_xlfn.CONCAT(AthleteData[[#This Row],[Last_name]],\", \",AthleteData[[#This Row],[First_name]])","v":", "}]
[{"$f":"_xlfn.CONCAT(AthleteData[[#This Row],[Last_name]],\", \",AthleteData[[#This Row],[First_name]])","v":", "}]
[{"$f":"_xlfn.CONCAT(AthleteData[[#This Row],[Last_name]],\", \",AthleteData[[#This Row],[First_name]])","v":", "}]
[{"$f":"_xlfn.CONCAT(AthleteData[[#This Row],[Last_name]],\", \",AthleteData[[#This Row],[First_name]])","v":", "}]
[{"$f":"_xlfn.CONCAT(AthleteData[[#This Row],[Last_name]],\", \",AthleteData[[#This Row],[First_name]])","v":", "}]
[{"$f":"_xlfn.CONCAT(AthleteData[[#This Row],[Last_name]],\", \",AthleteData[[#This Row],[First_name]])","v":", "}]
[{"$f":"_xlfn.CONCAT(AthleteData[[#This Row],[Last_name]],\", \",AthleteData[[#This Row],[First_name]])","v":", "}]
[{"$f":"_xlfn.CONCAT(AthleteData[[#This Row],[Last_name]],\", \",AthleteData[[#This Row],[First_name]])","v":", "}]
[{"$f":"_xlfn.CONCAT(AthleteData[[#This Row],[Last_name]],\", \",AthleteData[[#This Row],[First_name]])","v":", "}]
[{"$f":"_xlfn.CONCAT(AthleteData[[#This Row],[Last_name]],\", \",AthleteData[[#This Row],[First_name]])","v":", "}]
[{"$f":"_xlfn.CONCAT(AthleteData[[#This Row],[Last_name]],\", \",AthleteData[[#This Row],[First_name]])","v":", "}]
[{"$f":"_xlfn.CONCAT(AthleteData[[#This Row],[Last_name]],\", \",AthleteData[[#This Row],[First_name]])","v":", "}]
[{"$f":"_xlfn.CONCAT(AthleteData[[#This Row],[Last_name]],\", \",AthleteData[[#This Row],[First_name]])","v":", "}]
[{"$f":"_xlfn.CONCAT(AthleteData[[#This Row],[Last_name]],\", \",AthleteData[[#This Row],[First_name]])","v":", "}]
[{"$f":"_xlfn.CONCAT(AthleteData[[#This Row],[Last_name]],\", \",AthleteData[[#This Row],[First_name]])","v":", "}]
[{"$f":"_xlfn.CONCAT(AthleteData[[#This Row],[Last_name]],\", \",AthleteData[[#This Row],[First_name]])","v":", "}]
[{"$f":"_xlfn.CONCAT(AthleteData[[#This Row],[Last_name]],\", \",AthleteData[[#This Row],[First_name]])","v":", "}]
[{"$f":"_xlfn.CONCAT(AthleteData[[#This Row],[Last_name]],\", \",AthleteData[[#This Row],[First_name]])","v":", "}]
[{"$f":"_xlfn.CONCAT(AthleteData[[#This Row],[Last_name]],\", \",AthleteData[[#This Row],[First_name]])","v":", "}]
[{"$f":"_xlfn.CONCAT(AthleteData[[#This Row],[Last_name]],\", \",AthleteData[[#This Row],[First_name]])","v":", "}]
[{"$f":"_xlfn.CONCAT(AthleteData[[#This Row],[Last_name]],\", \",AthleteData[[#This Row],[First_name]])","v":", "}]
[{"$f":"_xlfn.CONCAT(AthleteData[[#This Row],[Last_name]],\", \",AthleteData[[#This Row],[First_name]])","v":", "}]
[{"$f":"_xlfn.CONCAT(AthleteData[[#This Row],[Last_name]],\", \",AthleteData[[#This Row],[First_name]])","v":", "}]
[{"$f":"_xlfn.CONCAT(AthleteData[[#This Row],[Last_name]],\", \",AthleteData[[#This Row],[First_name]])","v":", "}]
[{"$f":"_xlfn.CONCAT(AthleteData[[#This Row],[Last_name]],\", \",AthleteData[[#This Row],[First_name]])","v":", "}]
[{"$f":"_xlfn.CONCAT(AthleteData[[#This Row],[Last_name]],\", \",AthleteData[[#This Row],[First_name]])","v":", "}]
[{"$f":"_xlfn.CONCAT(AthleteData[[#This Row],[Last_name]],\", \",AthleteData[[#This Row],[First_name]])","v":", "}]
[{"$f":"_xlfn.CONCAT(AthleteData[[#This Row],[Last_name]],\", \",AthleteData[[#This Row],[First_name]])","v":", "}]
[{"$f":"_xlfn.CONCAT(AthleteData[[#This Row],[Last_name]],\", \",AthleteData[[#This Row],[First_name]])","v":", "}]
[{"$f":"_xlfn.CONCAT(AthleteData[[#This Row],[Last_name]],\", \",AthleteData[[#This Row],[First_name]])","v":", "}]
[{"$f":"_xlfn.CONCAT(AthleteData[[#This Row],[Last_name]],\", \",AthleteData[[#This Row],[First_name]])","v":", "}]
[{"$f":"_xlfn.CONCAT(AthleteData[[#This Row],[Last_name]],\", \",AthleteData[[#This Row],[First_name]])","v":", "}]
[{"$f":"_xlfn.CONCAT(AthleteData[[#This Row],[Last_name]],\", \",AthleteData[[#This Row],[First_name]])","v":", "}]
[{"$f":"_xlfn.CONCAT(AthleteData[[#This Row],[Last_name]],\", \",AthleteData[[#This Row],[First_name]])","v":", "}]
[{"$f":"_xlfn.CONCAT(AthleteData[[#This Row],[Last_name]],\", \",AthleteData[[#This Row],[First_name]])","v":", "}]
[{"$f":"_xlfn.CONCAT(AthleteData[[#This Row],[Last_name]],\", \",AthleteData[[#This Row],[First_name]])","v":", "}]
[{"$f":"_xlfn.CONCAT(AthleteData[[#This Row],[Last_name]],\", \",AthleteData[[#This Row],[First_name]])","v":", "}]
[{"$f":"_xlfn.CONCAT(AthleteData[[#This Row],[Last_name]],\", \",AthleteData[[#This Row],[First_name]])","v":", "}]
[{"$f":"_xlfn.CONCAT(AthleteData[[#This Row],[Last_name]],\", \",AthleteData[[#This Row],[First_name]])","v":", "}]
[{"$f":"_xlfn.CONCAT(AthleteData[[#This Row],[Last_name]],\", \",AthleteData[[#This Row],[First_name]])","v":", "}]
[{"$f":"_xlfn.CONCAT(AthleteData[[#This Row],[Last_name]],\", \",AthleteData[[#This Row],[First_name]])","v":", "}]
[{"$f":"_xlfn.CONCAT(AthleteData[[#This Row],[Last_name]],\", \",AthleteData[[#This Row],[First_name]])","v":", "}]
[{"$f":"_xlfn.CONCAT(AthleteData[[#This Row],[Last_name]],\", \",AthleteData[[#This Row],[First_name]])","v":", "}]
[{"$f":"_xlfn.CONCAT(AthleteData[[#This Row],[Last_name]],\", \",AthleteData[[#This Row],[First_name]])","v":", "}]
[{"$f":"_xlfn.CONCAT(AthleteData[[#This Row],[Last_name]],\", \",AthleteData[[#This Row],[First_name]])","v":", "}]
[{"$f":"_xlfn.CONCAT(AthleteData[[#This Row],[Last_name]],\", \",AthleteData[[#This Row],[First_name]])","v":", "}]
[{"$f":"_xlfn.CONCAT(AthleteData[[#This Row],[Last_name]],\", \",AthleteData[[#This Row],[First_name]])","v":", "}]
[{"$f":"_xlfn.CONCAT(AthleteData[[#This Row],[Last_name]],\", \",AthleteData[[#This Row],[First_name]])","v":", "}]
[{"$f":"_xlfn.CONCAT(AthleteData[[#This Row],[Last_name]],\", \",AthleteData[[#This Row],[First_name]])","v":", "}]
[{"$f":"_xlfn.CONCAT(AthleteData[[#This Row],[Last_name]],\", \",AthleteData[[#This Row],[First_name]])","v":", "}]
[{"$f":"_xlfn.CONCAT(AthleteData[[#This Row],[Last_name]],\", \",AthleteData[[#This Row],[First_name]])","v":", "}]
[{"$f":"_xlfn.CONCAT(AthleteData[[#This Row],[Last_name]],\", \",AthleteData[[#This Row],[First_name]])","v":", "}]
[{"$f":"_xlfn.CONCAT(AthleteData[[#This Row],[Last_name]],\", \",AthleteData[[#This Row],[First_name]])","v":", "}]
[{"$f":"_xlfn.CONCAT(AthleteData[[#This Row],[Last_name]],\", \",AthleteData[[#This Row],[First_name]])","v":", "}]
[{"$f":"_xlfn.CONCAT(AthleteData[[#This Row],[Last_name]],\", \",AthleteData[[#This Row],[First_name]])","v":", "}]
[{"$f":"_xlfn.CONCAT(AthleteData[[#This Row],[Last_name]],\", \",AthleteData[[#This Row],[First_name]])","v":", "}]
[{"$f":"_xlfn.CONCAT(AthleteData[[#This Row],[Last_name]],\", \",AthleteData[[#This Row],[First_name]])","v":", "}]
[{"$f":"_xlfn.CONCAT(AthleteData[[#This Row],[Last_name]],\", \",AthleteData[[#This Row],[First_name]])","v":", "}]
[{"$f":"_xlfn.CONCAT(AthleteData[[#This Row],[Last_name]],\", \",AthleteData[[#This Row],[First_name]])","v":", "}]
[{"$f":"_xlfn.CONCAT(AthleteData[[#This Row],[Last_name]],\", \",AthleteData[[#This Row],[First_name]])","v":", "}]
[{"$f":"_xlfn.CONCAT(AthleteData[[#This Row],[Last_name]],\", \",AthleteData[[#This Row],[First_name]])","v":", "}]
[{"$f":"_xlfn.CONCAT(AthleteData[[#This Row],[Last_name]],\", \",AthleteData[[#This Row],[First_name]])","v":", "}]
[{"$f":"_xlfn.CONCAT(AthleteData[[#This Row],[Last_name]],\", \",AthleteData[[#This Row],[First_name]])","v":", "}]
[{"$f":"_xlfn.CONCAT(AthleteData[[#This Row],[Last_name]],\", \",AthleteData[[#This Row],[First_name]])","v":", "}]
[{"$f":"_xlfn.CONCAT(AthleteData[[#This Row],[Last_name]],\", \",AthleteData[[#This Row],[First_name]])","v":", "}]
[{"$f":"_xlfn.CONCAT(AthleteData[[#This Row],[Last_name]],\", \",AthleteData[[#This Row],[First_name]])","v":", "}]
[{"$f":"_xlfn.CONCAT(AthleteData[[#This Row],[Last_name]],\", \",AthleteData[[#This Row],[First_name]])","v":", "}]
[{"$f":"_xlfn.CONCAT(AthleteData[[#This Row],[Last_name]],\", \",AthleteData[[#This Row],[First_name]])","v":", "}]
[{"$f":"_xlfn.CONCAT(AthleteData[[#This Row],[Last_name]],\", \",AthleteData[[#This Row],[First_name]])","v":", "}]
[{"$f":"_xlfn.CONCAT(AthleteData[[#This Row],[Last_name]],\", \",AthleteData[[#This Row],[First_name]])","v":", "}]
[{"$f":"_xlfn.CONCAT(AthleteData[[#This Row],[Last_name]],\", \",AthleteData[[#This Row],[First_name]])","v":", "}]
[{"$f":"_xlfn.CONCAT(AthleteData[[#This Row],[Last_name]],\", \",AthleteData[[#This Row],[First_name]])","v":", "}]
[{"$f":"_xlfn.CONCAT(AthleteData[[#This Row],[Last_name]],\", \",AthleteData[[#This Row],[First_name]])","v":", "}]
[{"$f":"_xlfn.CONCAT(AthleteData[[#This Row],[Last_name]],\", \",AthleteData[[#This Row],[First_name]])","v":", "}]
[{"$f":"_xlfn.CONCAT(AthleteData[[#This Row],[Last_name]],\", \",AthleteData[[#This Row],[First_name]])","v":", "}]
[{"$f":"_xlfn.CONCAT(AthleteData[[#This Row],[Last_name]],\", \",AthleteData[[#This Row],[First_name]])","v":", "}]
[{"$f":"_xlfn.CONCAT(AthleteData[[#This Row],[Last_name]],\", \",AthleteData[[#This Row],[First_name]])","v":", "}]
[{"$f":"_xlfn.CONCAT(AthleteData[[#This Row],[Last_name]],\", \",AthleteData[[#This Row],[First_name]])","v":", "}]
[{"$f":"_xlfn.CONCAT(AthleteData[[#This Row],[Last_name]],\", \",AthleteData[[#This Row],[First_name]])","v":", "}]
[{"$f":"_xlfn.CONCAT(AthleteData[[#This Row],[Last_name]],\", \",AthleteData[[#This Row],[First_name]])","v":", "}]
[{"$f":"_xlfn.CONCAT(AthleteData[[#This Row],[Last_name]],\", \",AthleteData[[#This Row],[First_name]])","v":", "}]
[{"$f":"_xlfn.CONCAT(AthleteData[[#This Row],[Last_name]],\", \",AthleteData[[#This Row],[First_name]])","v":", "}]
[{"$f":"_xlfn.CONCAT(AthleteData[[#This Row],[Last_name]],\", \",AthleteData[[#This Row],[First_name]])","v":", "}]
[{"$f":"_xlfn.CONCAT(AthleteData[[#This Row],[Last_name]],\", \",AthleteData[[#This Row],[First_name]])","v":", "}]
[{"$f":"_xlfn.CONCAT(AthleteData[[#This Row],[Last_name]],\", \",AthleteData[[#This Row],[First_name]])","v":", "}]
[{"$f":"_xlfn.CONCAT(AthleteData[[#This Row],[Last_name]],\", \",AthleteData[[#This Row],[First_name]])","v":", "}]
[{"$f":"_xlfn.CONCAT(AthleteData[[#This Row],[Last_name]],\", \",AthleteData[[#This Row],[First_name]])","v":", "}]
[{"$f":"_xlfn.CONCAT(AthleteData[[#This Row],[Last_name]],\", \",AthleteData[[#This Row],[First_name]])","v":", "}]
[{"$f":"_xlfn.CONCAT(AthleteData[[#This Row],[Last_name]],\", \",AthleteData[[#This Row],[First_name]])","v":", "}]
[{"$f":"_xlfn.CONCAT(AthleteData[[#This Row],[Last_name]],\", \",AthleteData[[#This Row],[First_name]])","v":", "}]
[{"$f":"_xlfn.CONCAT(AthleteData[[#This Row],[Last_name]],\", \",AthleteData[[#This Row],[First_name]])","v":", "}]
[{"$f":"_xlfn.CONCAT(AthleteData[[#This Row],[Last_name]],\", \",AthleteData[[#This Row],[First_name]])","v":", "}]
[{"$f":"_xlfn.CONCAT(AthleteData[[#This Row],[Last_name]],\", \",AthleteData[[#This Row],[First_name]])","v":", "}]
[{"$f":"_xlfn.CONCAT(AthleteData[[#This Row],[Last_name]],\", \",AthleteData[[#This Row],[First_name]])","v":", "}]
[{"$f":"_xlfn.CONCAT(AthleteData[[#This Row],[Last_name]],\", \",AthleteData[[#This Row],[First_name]])","v":", "}]
[{"$f":"_xlfn.CONCAT(AthleteData[[#This Row],[Last_name]],\", \",AthleteData[[#This Row],[First_name]])","v":", "}]
[{"$f":"_xlfn.CONCAT(AthleteData[[#This Row],[Last_name]],\", \",AthleteData[[#This Row],[First_name]])","v":", "}]
[{"$f":"_xlfn.CONCAT(AthleteData[[#This Row],[Last_name]],\", \",AthleteData[[#This Row],[First_name]])","v":", "}]
[{"$f":"_xlfn.CONCAT(AthleteData[[#This Row],[Last_name]],\", \",AthleteData[[#This Row],[First_name]])","v":", "}]
[{"$f":"_xlfn.CONCAT(AthleteData[[#This Row],[Last_name]],\", \",AthleteData[[#This Row],[First_name]])","v":", "}]
[{"$f":"_xlfn.CONCAT(AthleteData[[#This Row],[Last_name]],\", \",AthleteData[[#This Row],[First_name]])","v":", "}]
[{"$f":"_xlfn.CONCAT(AthleteData[[#This Row],[Last_name]],\", \",AthleteData[[#This Row],[First_name]])","v":", "}]
[{"$f":"_xlfn.CONCAT(AthleteData[[#This Row],[Last_name]],\", \",AthleteData[[#This Row],[First_name]])","v":", "}]
[{"$f":"_xlfn.CONCAT(AthleteData[[#This Row],[Last_name]],\", \",AthleteData[[#This Row],[First_name]])","v":", "}]
[{"$f":"_xlfn.CONCAT(AthleteData[[#This Row],[Last_name]],\", \",AthleteData[[#This Row],[First_name]])","v":", "}]
[{"$f":"_xlfn.CONCAT(AthleteData[[#This Row],[Last_name]],\", \",AthleteData[[#This Row],[First_name]])","v":", "}]
[{"$f":"_xlfn.CONCAT(AthleteData[[#This Row],[Last_name]],\", \",AthleteData[[#This Row],[First_name]])","v":", "}]
[{"$f":"_xlfn.CONCAT(AthleteData[[#This Row],[Last_name]],\", \",AthleteData[[#This Row],[First_name]])","v":", "}]
[{"$f":"_xlfn.CONCAT(AthleteData[[#This Row],[Last_name]],\", \",AthleteData[[#This Row],[First_name]])","v":", "}]
[{"$f":"_xlfn.CONCAT(AthleteData[[#This Row],[Last_name]],\", \",AthleteData[[#This Row],[First_name]])","v":", "}]
[{"$f":"_xlfn.CONCAT(AthleteData[[#This Row],[Last_name]],\", \",AthleteData[[#This Row],[First_name]])","v":", "}]
[{"$f":"_xlfn.CONCAT(AthleteData[[#This Row],[Last_name]],\", \",AthleteData[[#This Row],[First_name]])","v":", "}]
[{"$f":"_xlfn.CONCAT(AthleteData[[#This Row],[Last_name]],\", \",AthleteData[[#This Row],[First_name]])","v":", "}]
[{"$f":"_xlfn.CONCAT(AthleteData[[#This Row],[Last_name]],\", \",AthleteData[[#This Row],[First_name]])","v":", "}]
[{"$f":"_xlfn.CONCAT(AthleteData[[#This Row],[Last_name]],\", \",AthleteData[[#This Row],[First_name]])","v":", "}]
[{"$f":"_xlfn.CONCAT(AthleteData[[#This Row],[Last_name]],\", \",AthleteData[[#This Row],[First_name]])","v":", "}]
[{"$f":"_xlfn.CONCAT(AthleteData[[#This Row],[Last_name]],\", \",AthleteData[[#This Row],[First_name]])","v":", "}]
[{"$f":"_xlfn.CONCAT(AthleteData[[#This Row],[Last_name]],\", \",AthleteData[[#This Row],[First_name]])","v":", "}]
[{"$f":"_xlfn.CONCAT(AthleteData[[#This Row],[Last_name]],\", \",AthleteData[[#This Row],[First_name]])","v":", "}]
[{"$f":"_xlfn.CONCAT(AthleteData[[#This Row],[Last_name]],\", \",AthleteData[[#This Row],[First_name]])","v":", "}]
[{"$f":"_xlfn.CONCAT(AthleteData[[#This Row],[Last_name]],\", \",AthleteData[[#This Row],[First_name]])","v":", "}]
[{"$f":"_xlfn.CONCAT(AthleteData[[#This Row],[Last_name]],\", \",AthleteData[[#This Row],[First_name]])","v":", "}]
[{"$f":"_xlfn.CONCAT(AthleteData[[#This Row],[Last_name]],\", \",AthleteData[[#This Row],[First_name]])","v":", "}]
[{"$f":"_xlfn.CONCAT(AthleteData[[#This Row],[Last_name]],\", \",AthleteData[[#This Row],[First_name]])","v":", "}]
[{"$f":"_xlfn.CONCAT(AthleteData[[#This Row],[Last_name]],\", \",AthleteData[[#This Row],[First_name]])","v":", "}]
[{"$f":"_xlfn.CONCAT(AthleteData[[#This Row],[Last_name]],\", \",AthleteData[[#This Row],[First_name]])","v":", "}]
[{"$f":"_xlfn.CONCAT(AthleteData[[#This Row],[Last_name]],\", \",AthleteData[[#This Row],[First_name]])","v":", "}]
[{"$f":"_xlfn.CONCAT(AthleteData[[#This Row],[Last_name]],\", \",AthleteData[[#This Row],[First_name]])","v":", "}]
[{"$f":"_xlfn.CONCAT(AthleteData[[#This Row],[Last_name]],\", \",AthleteData[[#This Row],[First_name]])","v":", "}]
[{"$f":"_xlfn.CONCAT(AthleteData[[#This Row],[Last_name]],\", \",AthleteData[[#This Row],[First_name]])","v":", "}]
[{"$f":"_xlfn.CONCAT(AthleteData[[#This Row],[Last_name]],\", \",AthleteData[[#This Row],[First_name]])","v":", "}]
[{"$f":"_xlfn.CONCAT(AthleteData[[#This Row],[Last_name]],\", \",AthleteData[[#This Row],[First_name]])","v":", "}]
[{"$f":"_xlfn.CONCAT(AthleteData[[#This Row],[Last_name]],\", \",AthleteData[[#This Row],[First_name]])","v":", "}]
[{"$f":"_xlfn.CONCAT(AthleteData[[#This Row],[Last_name]],\", \",AthleteData[[#This Row],[First_name]])","v":", "}]
[{"$f":"_xlfn.CONCAT(AthleteData[[#This Row],[Last_name]],\", \",AthleteData[[#This Row],[First_name]])","v":", "}]
[{"$f":"_xlfn.CONCAT(AthleteData[[#This Row],[Last_name]],\", \",AthleteData[[#This Row],[First_name]])","v":", "}]
[{"$f":"_xlfn.CONCAT(AthleteData[[#This Row],[Last_name]],\", \",AthleteData[[#This Row],[First_name]])","v":", "}]
[{"$f":"_xlfn.CONCAT(AthleteData[[#This Row],[Last_name]],\", \",AthleteData[[#This Row],[First_name]])","v":", "}]
[{"$f":"_xlfn.CONCAT(AthleteData[[#This Row],[Last_name]],\", \",AthleteData[[#This Row],[First_name]])","v":", "}]
[{"$f":"_xlfn.CONCAT(AthleteData[[#This Row],[Last_name]],\", \",AthleteData[[#This Row],[First_name]])","v":", "}]
[{"$f":"_xlfn.CONCAT(AthleteData[[#This Row],[Last_name]],\", \",AthleteData[[#This Row],[First_name]])","v":", "}]
[{"$f":"_xlfn.CONCAT(AthleteData[[#This Row],[Last_name]],\", \",AthleteData[[#This Row],[First_name]])","v":", "}]
[{"$f":"_xlfn.CONCAT(AthleteData[[#This Row],[Last_name]],\", \",AthleteData[[#This Row],[First_name]])","v":", "}]
[{"$f":"_xlfn.CONCAT(AthleteData[[#This Row],[Last_name]],\", \",AthleteData[[#This Row],[First_name]])","v":", "}]
[{"$f":"_xlfn.CONCAT(AthleteData[[#This Row],[Last_name]],\", \",AthleteData[[#This Row],[First_name]])","v":", "}]
[{"$f":"_xlfn.CONCAT(AthleteData[[#This Row],[Last_name]],\", \",AthleteData[[#This Row],[First_name]])","v":", "}]
[{"$f":"_xlfn.CONCAT(AthleteData[[#This Row],[Last_name]],\", \",AthleteData[[#This Row],[First_name]])","v":", "}]
[{"$f":"_xlfn.CONCAT(AthleteData[[#This Row],[Last_name]],\", \",AthleteData[[#This Row],[First_name]])","v":", "}]
[{"$f":"_xlfn.CONCAT(AthleteData[[#This Row],[Last_name]],\", \",AthleteData[[#This Row],[First_name]])","v":", "}]
[{"$f":"_xlfn.CONCAT(AthleteData[[#This Row],[Last_name]],\", \",AthleteData[[#This Row],[First_name]])","v":", "}]
[{"$f":"_xlfn.CONCAT(AthleteData[[#This Row],[Last_name]],\", \",AthleteData[[#This Row],[First_name]])","v":", "}]
[{"$f":"_xlfn.CONCAT(AthleteData[[#This Row],[Last_name]],\", \",AthleteData[[#This Row],[First_name]])","v":", "}]
[{"$f":"_xlfn.CONCAT(AthleteData[[#This Row],[Last_name]],\", \",AthleteData[[#This Row],[First_name]])","v":", "}]
[{"$f":"_xlfn.CONCAT(AthleteData[[#This Row],[Last_name]],\", \",AthleteData[[#This Row],[First_name]])","v":", "}]
[{"$f":"_xlfn.CONCAT(AthleteData[[#This Row],[Last_name]],\", \",AthleteData[[#This Row],[First_name]])","v":", "}]
[{"$f":"_xlfn.CONCAT(AthleteData[[#This Row],[Last_name]],\", \",AthleteData[[#This Row],[First_name]])","v":", "}]
[{"$f":"_xlfn.CONCAT(AthleteData[[#This Row],[Last_name]],\", \",AthleteData[[#This Row],[First_name]])","v":", "}]
[{"$f":"_xlfn.CONCAT(AthleteData[[#This Row],[Last_name]],\", \",AthleteData[[#This Row],[First_name]])","v":", "}]
[{"$f":"_xlfn.CONCAT(AthleteData[[#This Row],[Last_name]],\", \",AthleteData[[#This Row],[First_name]])","v":", "}]
[{"$f":"_xlfn.CONCAT(AthleteData[[#This Row],[Last_name]],\", \",AthleteData[[#This Row],[First_name]])","v":", "}]
[{"$f":"_xlfn.CONCAT(AthleteData[[#This Row],[Last_name]],\", \",AthleteData[[#This Row],[First_name]])","v":", "}]
[{"$f":"_xlfn.CONCAT(AthleteData[[#This Row],[Last_name]],\", \",AthleteData[[#This Row],[First_name]])","v":", "}]
[{"$f":"_xlfn.CONCAT(AthleteData[[#This Row],[Last_name]],\", \",AthleteData[[#This Row],[First_name]])","v":", "}]
[{"$f":"_xlfn.CONCAT(AthleteData[[#This Row],[Last_name]],\", \",AthleteData[[#This Row],[First_name]])","v":", "}]
[{"$f":"_xlfn.CONCAT(AthleteData[[#This Row],[Last_name]],\", \",AthleteData[[#This Row],[First_name]])","v":", "}]
[{"$f":"_xlfn.CONCAT(AthleteData[[#This Row],[Last_name]],\", \",AthleteData[[#This Row],[First_name]])","v":", "}]
[{"$f":"_xlfn.CONCAT(AthleteData[[#This Row],[Last_name]],\", \",AthleteData[[#This Row],[First_name]])","v":", "}]
[{"$f":"_xlfn.CONCAT(AthleteData[[#This Row],[Last_name]],\", \",AthleteData[[#This Row],[First_name]])","v":", "}]
[{"$f":"_xlfn.CONCAT(AthleteData[[#This Row],[Last_name]],\", \",AthleteData[[#This Row],[First_name]])","v":", "}]
[{"$f":"_xlfn.CONCAT(AthleteData[[#This Row],[Last_name]],\", \",AthleteData[[#This Row],[First_name]])","v":", "}]
[{"$f":"_xlfn.CONCAT(AthleteData[[#This Row],[Last_name]],\", \",AthleteData[[#This Row],[First_name]])","v":", "}]
[{"$f":"_xlfn.CONCAT(AthleteData[[#This Row],[Last_name]],\", \",AthleteData[[#This Row],[First_name]])","v":", "}]
[{"$f":"_xlfn.CONCAT(AthleteData[[#This Row],[Last_name]],\", \",AthleteData[[#This Row],[First_name]])","v":", "}]
[{"$f":"_xlfn.CONCAT(AthleteData[[#This Row],[Last_name]],\", \",AthleteData[[#This Row],[First_name]])","v":", "}]
[{"$f":"_xlfn.CONCAT(AthleteData[[#This Row],[Last_name]],\", \",AthleteData[[#This Row],[First_name]])","v":", "}]
[{"$f":"_xlfn.CONCAT(AthleteData[[#This Row],[Last_name]],\", \",AthleteData[[#This Row],[First_name]])","v":", "}]
[{"$f":"_xlfn.CONCAT(AthleteData[[#This Row],[Last_name]],\", \",AthleteData[[#This Row],[First_name]])","v":", "}]
[{"$f":"_xlfn.CONCAT(AthleteData[[#This Row],[Last_name]],\", \",AthleteData[[#This Row],[First_name]])","v":", "}]
[{"$f":"_xlfn.CONCAT(AthleteData[[#This Row],[Last_name]],\", \",AthleteData[[#This Row],[First_name]])","v":", "}]
[{"$f":"_xlfn.CONCAT(AthleteData[[#This Row],[Last_name]],\", \",AthleteData[[#This Row],[First_name]])","v":", "}]
[{"$f":"_xlfn.CONCAT(AthleteData[[#This Row],[Last_name]],\", \",AthleteData[[#This Row],[First_name]])","v":", "}]
[{"$f":"_xlfn.CONCAT(AthleteData[[#This Row],[Last_name]],\", \",AthleteData[[#This Row],[First_name]])","v":", "}]
[{"$f":"_xlfn.CONCAT(AthleteData[[#This Row],[Last_name]],\", \",AthleteData[[#This Row],[First_name]])","v":", "}]
[{"$f":"_xlfn.CONCAT(AthleteData[[#This Row],[Last_name]],\", \",AthleteData[[#This Row],[First_name]])","v":", "}]
[{"$f":"_xlfn.CONCAT(AthleteData[[#This Row],[Last_name]],\", \",AthleteData[[#This Row],[First_name]])","v":", "}]
[{"$f":"_xlfn.CONCAT(AthleteData[[#This Row],[Last_name]],\", \",AthleteData[[#This Row],[First_name]])","v":", "}]
[{"$f":"_xlfn.CONCAT(AthleteData[[#This Row],[Last_name]],\", \",AthleteData[[#This Row],[First_name]])","v":", "}]
[{"$f":"_xlfn.CONCAT(AthleteData[[#This Row],[Last_name]],\", \",AthleteData[[#This Row],[First_name]])","v":", "}]
[{"$f":"_xlfn.CONCAT(AthleteData[[#This Row],[Last_name]],\", \",AthleteData[[#This Row],[First_name]])","v":", "}]
[{"$f":"_xlfn.CONCAT(AthleteData[[#This Row],[Last_name]],\", \",AthleteData[[#This Row],[First_name]])","v":", "}]
[{"$f":"_xlfn.CONCAT(AthleteData[[#This Row],[Last_name]],\", \",AthleteData[[#This Row],[First_name]])","v":", "}]
[{"$f":"_xlfn.CONCAT(AthleteData[[#This Row],[Last_name]],\", \",AthleteData[[#This Row],[First_name]])","v":", "}]
[{"$f":"_xlfn.CONCAT(AthleteData[[#This Row],[Last_name]],\", \",AthleteData[[#This Row],[First_name]])","v":", "}]
[{"$f":"_xlfn.CONCAT(AthleteData[[#This Row],[Last_name]],\", \",AthleteData[[#This Row],[First_name]])","v":", "}]
[{"$f":"_xlfn.CONCAT(AthleteData[[#This Row],[Last_name]],\", \",AthleteData[[#This Row],[First_name]])","v":", "}]
[{"$f":"_xlfn.CONCAT(AthleteData[[#This Row],[Last_name]],\", \",AthleteData[[#This Row],[First_name]])","v":", "}]
[{"$f":"_xlfn.CONCAT(AthleteData[[#This Row],[Last_name]],\", \",AthleteData[[#This Row],[First_name]])","v":", "}]
[{"$f":"_xlfn.CONCAT(AthleteData[[#This Row],[Last_name]],\", \",AthleteData[[#This Row],[First_name]])","v":", "}]
[{"$f":"_xlfn.CONCAT(AthleteData[[#This Row],[Last_name]],\", \",AthleteData[[#This Row],[First_name]])","v":", "}]
[{"$f":"_xlfn.CONCAT(AthleteData[[#This Row],[Last_name]],\", \",AthleteData[[#This Row],[First_name]])","v":", "}]
[{"$f":"_xlfn.CONCAT(AthleteData[[#This Row],[Last_name]],\", \",AthleteData[[#This Row],[First_name]])","v":", "}]
[{"$f":"_xlfn.CONCAT(AthleteData[[#This Row],[Last_name]],\", \",AthleteData[[#This Row],[First_name]])","v":", "}]
[{"$f":"_xlfn.CONCAT(AthleteData[[#This Row],[Last_name]],\", \",AthleteData[[#This Row],[First_name]])","v":", "}]
[{"$f":"_xlfn.CONCAT(AthleteData[[#This Row],[Last_name]],\", \",AthleteData[[#This Row],[First_name]])","v":", "}]
[{"$f":"_xlfn.CONCAT(AthleteData[[#This Row],[Last_name]],\", \",AthleteData[[#This Row],[First_name]])","v":", "}]
[{"$f":"_xlfn.CONCAT(AthleteData[[#This Row],[Last_name]],\", \",AthleteData[[#This Row],[First_name]])","v":", "}]
[{"$f":"_xlfn.CONCAT(AthleteData[[#This Row],[Last_name]],\", \",AthleteData[[#This Row],[First_name]])","v":", "}]
[{"$f":"_xlfn.CONCAT(AthleteData[[#This Row],[Last_name]],\", \",AthleteData[[#This Row],[First_name]])","v":", "}]
[{"$f":"_xlfn.CONCAT(AthleteData[[#This Row],[Last_name]],\", \",AthleteData[[#This Row],[First_name]])","v":", "}]
[{"$f":"_xlfn.CONCAT(AthleteData[[#This Row],[Last_name]],\", \",AthleteData[[#This Row],[First_name]])","v":", "}]
[{"$f":"_xlfn.CONCAT(AthleteData[[#This Row],[Last_name]],\", \",AthleteData[[#This Row],[First_name]])","v":", "}]
[{"$f":"_xlfn.CONCAT(AthleteData[[#This Row],[Last_name]],\", \",AthleteData[[#This Row],[First_name]])","v":", "}]
[{"$f":"_xlfn.CONCAT(AthleteData[[#This Row],[Last_name]],\", \",AthleteData[[#This Row],[First_name]])","v":", "}]
[{"$f":"_xlfn.CONCAT(AthleteData[[#This Row],[Last_name]],\", \",AthleteData[[#This Row],[First_name]])","v":", "}]
[{"$f":"_xlfn.CONCAT(AthleteData[[#This Row],[Last_name]],\", \",AthleteData[[#This Row],[First_name]])","v":", "}]
[{"$f":"_xlfn.CONCAT(AthleteData[[#This Row],[Last_name]],\", \",AthleteData[[#This Row],[First_name]])","v":", "}]
[{"$f":"_xlfn.CONCAT(AthleteData[[#This Row],[Last_name]],\", \",AthleteData[[#This Row],[First_name]])","v":", "}]
[{"$f":"_xlfn.CONCAT(AthleteData[[#This Row],[Last_name]],\", \",AthleteData[[#This Row],[First_name]])","v":", "}]
[{"$f":"_xlfn.CONCAT(AthleteData[[#This Row],[Last_name]],\", \",AthleteData[[#This Row],[First_name]])","v":", "}]
[{"$f":"_xlfn.CONCAT(AthleteData[[#This Row],[Last_name]],\", \",AthleteData[[#This Row],[First_name]])","v":", "}]
[{"$f":"_xlfn.CONCAT(AthleteData[[#This Row],[Last_name]],\", \",AthleteData[[#This Row],[First_name]])","v":", "}]
[{"$f":"_xlfn.CONCAT(AthleteData[[#This Row],[Last_name]],\", \",AthleteData[[#This Row],[First_name]])","v":", "}]
[{"$f":"_xlfn.CONCAT(AthleteData[[#This Row],[Last_name]],\", \",AthleteData[[#This Row],[First_name]])","v":", "}]
[{"$f":"_xlfn.CONCAT(AthleteData[[#This Row],[Last_name]],\", \",AthleteData[[#This Row],[First_name]])","v":", "}]
[{"$f":"_xlfn.CONCAT(AthleteData[[#This Row],[Last_name]],\", \",AthleteData[[#This Row],[First_name]])","v":", "}]
[{"$f":"_xlfn.CONCAT(AthleteData[[#This Row],[Last_name]],\", \",AthleteData[[#This Row],[First_name]])","v":", "}]
[{"$f":"_xlfn.CONCAT(AthleteData[[#This Row],[Last_name]],\", \",AthleteData[[#This Row],[First_name]])","v":", "}]
[{"$f":"_xlfn.CONCAT(AthleteData[[#This Row],[Last_name]],\", \",AthleteData[[#This Row],[First_name]])","v":", "}]
[{"$f":"_xlfn.CONCAT(AthleteData[[#This Row],[Last_name]],\", \",AthleteData[[#This Row],[First_name]])","v":", "}]
[{"$f":"_xlfn.CONCAT(AthleteData[[#This Row],[Last_name]],\", \",AthleteData[[#This Row],[First_name]])","v":", "}]
[{"$f":"_xlfn.CONCAT(AthleteData[[#This Row],[Last_name]],\", \",AthleteData[[#This Row],[First_name]])","v":", "}]
[{"$f":"_xlfn.CONCAT(AthleteData[[#This Row],[Last_name]],\", \",AthleteData[[#This Row],[First_name]])","v":", "}]
[{"$f":"_xlfn.CONCAT(AthleteData[[#This Row],[Last_name]],\", \",AthleteData[[#This Row],[First_name]])","v":", "}]
[{"$f":"_xlfn.CONCAT(AthleteData[[#This Row],[Last_name]],\", \",AthleteData[[#This Row],[First_name]])","v":", "}]
[{"$f":"_xlfn.CONCAT(AthleteData[[#This Row],[Last_name]],\", \",AthleteData[[#This Row],[First_name]])","v":", "}]
[{"$f":"_xlfn.CONCAT(AthleteData[[#This Row],[Last_name]],\", \",AthleteData[[#This Row],[First_name]])","v":", "}]
[{"$f":"_xlfn.CONCAT(AthleteData[[#This Row],[Last_name]],\", \",AthleteData[[#This Row],[First_name]])","v":", "}]
[{"$f":"_xlfn.CONCAT(AthleteData[[#This Row],[Last_name]],\", \",AthleteData[[#This Row],[First_name]])","v":", "}]
[{"$f":"_xlfn.CONCAT(AthleteData[[#This Row],[Last_name]],\", \",AthleteData[[#This Row],[First_name]])","v":", "}]
[{"$f":"_xlfn.CONCAT(AthleteData[[#This Row],[Last_name]],\", \",AthleteData[[#This Row],[First_name]])","v":", "}]
[{"$f":"_xlfn.CONCAT(AthleteData[[#This Row],[Last_name]],\", \",AthleteData[[#This Row],[First_name]])","v":", "}]
[{"$f":"_xlfn.CONCAT(AthleteData[[#This Row],[Last_name]],\", \",AthleteData[[#This Row],[First_name]])","v":", "}]
[{"$f":"_xlfn.CONCAT(AthleteData[[#This Row],[Last_name]],\", \",AthleteData[[#This Row],[First_name]])","v":", "}]
[{"$f":"_xlfn.CONCAT(AthleteData[[#This Row],[Last_name]],\", \",AthleteData[[#This Row],[First_name]])","v":", "}]
[{"$f":"_xlfn.CONCAT(AthleteData[[#This Row],[Last_name]],\", \",AthleteData[[#This Row],[First_name]])","v":", "}]
[{"$f":"_xlfn.CONCAT(AthleteData[[#This Row],[Last_name]],\", \",AthleteData[[#This Row],[First_name]])","v":", "}]
[{"$f":"_xlfn.CONCAT(AthleteData[[#This Row],[Last_name]],\", \",AthleteData[[#This Row],[First_name]])","v":", "}]
[{"$f":"_xlfn.CONCAT(AthleteData[[#This Row],[Last_name]],\", \",AthleteData[[#This Row],[First_name]])","v":", "}]
[{"$f":"_xlfn.CONCAT(AthleteData[[#This Row],[Last_name]],\", \",AthleteData[[#This Row],[First_name]])","v":", "}]
[{"$f":"_xlfn.CONCAT(AthleteData[[#This Row],[Last_name]],\", \",AthleteData[[#This Row],[First_name]])","v":", "}]
[{"$f":"_xlfn.CONCAT(AthleteData[[#This Row],[Last_name]],\", \",AthleteData[[#This Row],[First_name]])","v":", "}]
[{"$f":"_xlfn.CONCAT(AthleteData[[#This Row],[Last_name]],\", \",AthleteData[[#This Row],[First_name]])","v":", "}]
[{"$f":"_xlfn.CONCAT(AthleteData[[#This Row],[Last_name]],\", \",AthleteData[[#This Row],[First_name]])","v":", "}]
[{"$f":"_xlfn.CONCAT(AthleteData[[#This Row],[Last_name]],\", \",AthleteData[[#This Row],[First_name]])","v":", "}]
[{"$f":"_xlfn.CONCAT(AthleteData[[#This Row],[Last_name]],\", \",AthleteData[[#This Row],[First_name]])","v":", "}]
[{"$f":"_xlfn.CONCAT(AthleteData[[#This Row],[Last_name]],\", \",AthleteData[[#This Row],[First_name]])","v":", "}]
[{"$f":"_xlfn.CONCAT(AthleteData[[#This Row],[Last_name]],\", \",AthleteData[[#This Row],[First_name]])","v":", "}]
[{"$f":"_xlfn.CONCAT(AthleteData[[#This Row],[Last_name]],\", \",AthleteData[[#This Row],[First_name]])","v":", "}]
[{"$f":"_xlfn.CONCAT(AthleteData[[#This Row],[Last_name]],\", \",AthleteData[[#This Row],[First_name]])","v":", "}]
[{"$f":"_xlfn.CONCAT(AthleteData[[#This Row],[Last_name]],\", \",AthleteData[[#This Row],[First_name]])","v":", "}]
[{"$f":"_xlfn.CONCAT(AthleteData[[#This Row],[Last_name]],\", \",AthleteData[[#This Row],[First_name]])","v":", "}]
[{"$f":"_xlfn.CONCAT(AthleteData[[#This Row],[Last_name]],\", \",AthleteData[[#This Row],[First_name]])","v":", "}]
[{"$f":"_xlfn.CONCAT(AthleteData[[#This Row],[Last_name]],\", \",AthleteData[[#This Row],[First_name]])","v":", "}]
[{"$f":"_xlfn.CONCAT(AthleteData[[#This Row],[Last_name]],\", \",AthleteData[[#This Row],[First_name]])","v":", "}]
[{"$f":"_xlfn.CONCAT(AthleteData[[#This Row],[Last_name]],\", \",AthleteData[[#This Row],[First_name]])","v":", "}]
[{"$f":"_xlfn.CONCAT(AthleteData[[#This Row],[Last_name]],\", \",AthleteData[[#This Row],[First_name]])","v":", "}]
[{"$f":"_xlfn.CONCAT(AthleteData[[#This Row],[Last_name]],\", \",AthleteData[[#This Row],[First_name]])","v":", "}]
[{"$f":"_xlfn.CONCAT(AthleteData[[#This Row],[Last_name]],\", \",AthleteData[[#This Row],[First_name]])","v":", "}]
[{"$f":"_xlfn.CONCAT(AthleteData[[#This Row],[Last_name]],\", \",AthleteData[[#This Row],[First_name]])","v":", "}]
[{"$f":"_xlfn.CONCAT(AthleteData[[#This Row],[Last_name]],\", \",AthleteData[[#This Row],[First_name]])","v":", "}]
[{"$f":"_xlfn.CONCAT(AthleteData[[#This Row],[Last_name]],\", \",AthleteData[[#This Row],[First_name]])","v":", "}]
[{"$f":"_xlfn.CONCAT(AthleteData[[#This Row],[Last_name]],\", \",AthleteData[[#This Row],[First_name]])","v":", "}]
[{"$f":"_xlfn.CONCAT(AthleteData[[#This Row],[Last_name]],\", \",AthleteData[[#This Row],[First_name]])","v":", "}]
[{"$f":"_xlfn.CONCAT(AthleteData[[#This Row],[Last_name]],\", \",AthleteData[[#This Row],[First_name]])","v":", "}]
[{"$f":"_xlfn.CONCAT(AthleteData[[#This Row],[Last_name]],\", \",AthleteData[[#This Row],[First_name]])","v":", "}]
[{"$f":"_xlfn.CONCAT(AthleteData[[#This Row],[Last_name]],\", \",AthleteData[[#This Row],[First_name]])","v":", "}]
[{"$f":"_xlfn.CONCAT(AthleteData[[#This Row],[Last_name]],\", \",AthleteData[[#This Row],[First_name]])","v":", "}]
[{"$f":"_xlfn.CONCAT(AthleteData[[#This Row],[Last_name]],\", \",AthleteData[[#This Row],[First_name]])","v":", "}]
[{"$f":"_xlfn.CONCAT(AthleteData[[#This Row],[Last_name]],\", \",AthleteData[[#This Row],[First_name]])","v":", "}]
[{"$f":"_xlfn.CONCAT(AthleteData[[#This Row],[Last_name]],\", \",AthleteData[[#This Row],[First_name]])","v":", "}]
[{"$f":"_xlfn.CONCAT(AthleteData[[#This Row],[Last_name]],\", \",AthleteData[[#This Row],[First_name]])","v":", "}]
[{"$f":"_xlfn.CONCAT(AthleteData[[#This Row],[Last_name]],\", \",AthleteData[[#This Row],[First_name]])","v":", "}]
[{"$f":"_xlfn.CONCAT(AthleteData[[#This Row],[Last_name]],\", \",AthleteData[[#This Row],[First_name]])","v":", "}]
[{"$f":"_xlfn.CONCAT(AthleteData[[#This Row],[Last_name]],\", \",AthleteData[[#This Row],[First_name]])","v":", "}]
[{"$f":"_xlfn.CONCAT(AthleteData[[#This Row],[Last_name]],\", \",AthleteData[[#This Row],[First_name]])","v":", "}]
[{"$f":"_xlfn.CONCAT(AthleteData[[#This Row],[Last_name]],\", \",AthleteData[[#This Row],[First_name]])","v":", "}]
[{"$f":"_xlfn.CONCAT(AthleteData[[#This Row],[Last_name]],\", \",AthleteData[[#This Row],[First_name]])","v":", "}]
[{"$f":"_xlfn.CONCAT(AthleteData[[#This Row],[Last_name]],\", \",AthleteData[[#This Row],[First_name]])","v":", "}]
[{"$f":"_xlfn.CONCAT(AthleteData[[#This Row],[Last_name]],\", \",AthleteData[[#This Row],[First_name]])","v":", "}]
[{"$f":"_xlfn.CONCAT(AthleteData[[#This Row],[Last_name]],\", \",AthleteData[[#This Row],[First_name]])","v":", "}]
[{"$f":"_xlfn.CONCAT(AthleteData[[#This Row],[Last_name]],\", \",AthleteData[[#This Row],[First_name]])","v":", "}]
[{"$f":"_xlfn.CONCAT(AthleteData[[#This Row],[Last_name]],\", \",AthleteData[[#This Row],[First_name]])","v":", "}]
[{"$f":"_xlfn.CONCAT(AthleteData[[#This Row],[Last_name]],\", \",AthleteData[[#This Row],[First_name]])","v":", "}]
[{"$f":"_xlfn.CONCAT(AthleteData[[#This Row],[Last_name]],\", \",AthleteData[[#This Row],[First_name]])","v":", "}]
[{"$f":"_xlfn.CONCAT(AthleteData[[#This Row],[Last_name]],\", \",AthleteData[[#This Row],[First_name]])","v":", "}]
[{"$f":"_xlfn.CONCAT(AthleteData[[#This Row],[Last_name]],\", \",AthleteData[[#This Row],[First_name]])","v":", "}]
[{"$f":"_xlfn.CONCAT(AthleteData[[#This Row],[Last_name]],\", \",AthleteData[[#This Row],[First_name]])","v":", "}]
[{"$f":"_xlfn.CONCAT(AthleteData[[#This Row],[Last_name]],\", \",AthleteData[[#This Row],[First_name]])","v":", "}]
[{"$f":"_xlfn.CONCAT(AthleteData[[#This Row],[Last_name]],\", \",AthleteData[[#This Row],[First_name]])","v":", "}]
[{"$f":"_xlfn.CONCAT(AthleteData[[#This Row],[Last_name]],\", \",AthleteData[[#This Row],[First_name]])","v":", "}]
[{"$f":"_xlfn.CONCAT(AthleteData[[#This Row],[Last_name]],\", \",AthleteData[[#This Row],[First_name]])","v":", "}]
[{"$f":"_xlfn.CONCAT(AthleteData[[#This Row],[Last_name]],\", \",AthleteData[[#This Row],[First_name]])","v":", "}]
[{"$f":"_xlfn.CONCAT(AthleteData[[#This Row],[Last_name]],\", \",AthleteData[[#This Row],[First_name]])","v":", "}]
[{"$f":"_xlfn.CONCAT(AthleteData[[#This Row],[Last_name]],\", \",AthleteData[[#This Row],[First_name]])","v":", "}]
[{"$f":"_xlfn.CONCAT(AthleteData[[#This Row],[Last_name]],\", \",AthleteData[[#This Row],[First_name]])","v":", "}]
[{"$f":"_xlfn.CONCAT(AthleteData[[#This Row],[Last_name]],\", \",AthleteData[[#This Row],[First_name]])","v":", "}]
[{"$f":"_xlfn.CONCAT(AthleteData[[#This Row],[Last_name]],\", \",AthleteData[[#This Row],[First_name]])","v":", "}]
[{"$f":"_xlfn.CONCAT(AthleteData[[#This Row],[Last_name]],\", \",AthleteData[[#This Row],[First_name]])","v":", "}]
[{"$f":"_xlfn.CONCAT(AthleteData[[#This Row],[Last_name]],\", \",AthleteData[[#This Row],[First_name]])","v":", "}]
[{"$f":"_xlfn.CONCAT(AthleteData[[#This Row],[Last_name]],\", \",AthleteData[[#This Row],[First_name]])","v":", "}]
[{"$f":"_xlfn.CONCAT(AthleteData[[#This Row],[Last_name]],\", \",AthleteData[[#This Row],[First_name]])","v":", "}]
[{"$f":"_xlfn.CONCAT(AthleteData[[#This Row],[Last_name]],\", \",AthleteData[[#This Row],[First_name]])","v":", "}]
[{"$f":"_xlfn.CONCAT(AthleteData[[#This Row],[Last_name]],\", \",AthleteData[[#This Row],[First_name]])","v":", "}]
[{"$f":"_xlfn.CONCAT(AthleteData[[#This Row],[Last_name]],\", \",AthleteData[[#This Row],[First_name]])","v":", "}]
[{"$f":"_xlfn.CONCAT(AthleteData[[#This Row],[Last_name]],\", \",AthleteData[[#This Row],[First_name]])","v":", "}]
[{"$f":"_xlfn.CONCAT(AthleteData[[#This Row],[Last_name]],\", \",AthleteData[[#This Row],[First_name]])","v":", "}]
[{"$f":"_xlfn.CONCAT(AthleteData[[#This Row],[Last_name]],\", \",AthleteData[[#This Row],[First_name]])","v":", "}]
[{"$f":"_xlfn.CONCAT(AthleteData[[#This Row],[Last_name]],\", \",AthleteData[[#This Row],[First_name]])","v":", "}]
[{"$f":"_xlfn.CONCAT(AthleteData[[#This Row],[Last_name]],\", \",AthleteData[[#This Row],[First_name]])","v":", "}]
[{"$f":"_xlfn.CONCAT(AthleteData[[#This Row],[Last_name]],\", \",AthleteData[[#This Row],[First_name]])","v":", "}]
[{"$f":"_xlfn.CONCAT(AthleteData[[#This Row],[Last_name]],\", \",AthleteData[[#This Row],[First_name]])","v":", "}]
[{"$f":"_xlfn.CONCAT(AthleteData[[#This Row],[Last_name]],\", \",AthleteData[[#This Row],[First_name]])","v":", "}]
[{"$f":"_xlfn.CONCAT(AthleteData[[#This Row],[Last_name]],\", \",AthleteData[[#This Row],[First_name]])","v":", "}]
[{"$f":"_xlfn.CONCAT(AthleteData[[#This Row],[Last_name]],\", \",AthleteData[[#This Row],[First_name]])","v":", "}]
[{"$f":"_xlfn.CONCAT(AthleteData[[#This Row],[Last_name]],\", \",AthleteData[[#This Row],[First_name]])","v":", "}]
[{"$f":"_xlfn.CONCAT(AthleteData[[#This Row],[Last_name]],\", \",AthleteData[[#This Row],[First_name]])","v":", "}]
[{"$f":"_xlfn.CONCAT(AthleteData[[#This Row],[Last_name]],\", \",AthleteData[[#This Row],[First_name]])","v":", "}]
[{"$f":"_xlfn.CONCAT(AthleteData[[#This Row],[Last_name]],\", \",AthleteData[[#This Row],[First_name]])","v":", "}]
[{"$f":"_xlfn.CONCAT(AthleteData[[#This Row],[Last_name]],\", \",AthleteData[[#This Row],[First_name]])","v":", "}]
[{"$f":"_xlfn.CONCAT(AthleteData[[#This Row],[Last_name]],\", \",AthleteData[[#This Row],[First_name]])","v":", "}]
[{"$f":"_xlfn.CONCAT(AthleteData[[#This Row],[Last_name]],\", \",AthleteData[[#This Row],[First_name]])","v":", "}]
[{"$f":"_xlfn.CONCAT(AthleteData[[#This Row],[Last_name]],\", \",AthleteData[[#This Row],[First_name]])","v":", "}]
[{"$f":"_xlfn.CONCAT(AthleteData[[#This Row],[Last_name]],\", \",AthleteData[[#This Row],[First_name]])","v":", "}]
[{"$f":"_xlfn.CONCAT(AthleteData[[#This Row],[Last_name]],\", \",AthleteData[[#This Row],[First_name]])","v":", "}]
[{"$f":"_xlfn.CONCAT(AthleteData[[#This Row],[Last_name]],\", \",AthleteData[[#This Row],[First_name]])","v":", "}]
[{"$f":"_xlfn.CONCAT(AthleteData[[#This Row],[Last_name]],\", \",AthleteData[[#This Row],[First_name]])","v":", "}]
[{"$f":"_xlfn.CONCAT(AthleteData[[#This Row],[Last_name]],\", \",AthleteData[[#This Row],[First_name]])","v":", "}]
[{"$f":"_xlfn.CONCAT(AthleteData[[#This Row],[Last_name]],\", \",AthleteData[[#This Row],[First_name]])","v":", "}]
[{"$f":"_xlfn.CONCAT(AthleteData[[#This Row],[Last_name]],\", \",AthleteData[[#This Row],[First_name]])","v":", "}]
[{"$f":"_xlfn.CONCAT(AthleteData[[#This Row],[Last_name]],\", \",AthleteData[[#This Row],[First_name]])","v":", "}]
[{"$f":"_xlfn.CONCAT(AthleteData[[#This Row],[Last_name]],\", \",AthleteData[[#This Row],[First_name]])","v":", "}]
[{"$f":"_xlfn.CONCAT(AthleteData[[#This Row],[Last_name]],\", \",AthleteData[[#This Row],[First_name]])","v":", "}]
[{"$f":"_xlfn.CONCAT(AthleteData[[#This Row],[Last_name]],\", \",AthleteData[[#This Row],[First_name]])","v":", "}]
[{"$f":"_xlfn.CONCAT(AthleteData[[#This Row],[Last_name]],\", \",AthleteData[[#This Row],[First_name]])","v":", "}]
[{"$f":"_xlfn.CONCAT(AthleteData[[#This Row],[Last_name]],\", \",AthleteData[[#This Row],[First_name]])","v":", "}]
[{"$f":"_xlfn.CONCAT(AthleteData[[#This Row],[Last_name]],\", \",AthleteData[[#This Row],[First_name]])","v":", "}]
[{"$f":"_xlfn.CONCAT(AthleteData[[#This Row],[Last_name]],\", \",AthleteData[[#This Row],[First_name]])","v":", "}]
[{"$f":"_xlfn.CONCAT(AthleteData[[#This Row],[Last_name]],\", \",AthleteData[[#This Row],[First_name]])","v":", "}]
[{"$f":"_xlfn.CONCAT(AthleteData[[#This Row],[Last_name]],\", \",AthleteData[[#This Row],[First_name]])","v":", "}]
[{"$f":"_xlfn.CONCAT(AthleteData[[#This Row],[Last_name]],\", \",AthleteData[[#This Row],[First_name]])","v":", "}]
[{"$f":"_xlfn.CONCAT(AthleteData[[#This Row],[Last_name]],\", \",AthleteData[[#This Row],[First_name]])","v":", "}]
[{"$f":"_xlfn.CONCAT(AthleteData[[#This Row],[Last_name]],\", \",AthleteData[[#This Row],[First_name]])","v":", "}]
[{"$f":"_xlfn.CONCAT(AthleteData[[#This Row],[Last_name]],\", \",AthleteData[[#This Row],[First_name]])","v":", "}]
[{"$f":"_xlfn.CONCAT(AthleteData[[#This Row],[Last_name]],\", \",AthleteData[[#This Row],[First_name]])","v":", "}]
[{"$f":"_xlfn.CONCAT(AthleteData[[#This Row],[Last_name]],\", \",AthleteData[[#This Row],[First_name]])","v":", "}]
[{"$f":"_xlfn.CONCAT(AthleteData[[#This Row],[Last_name]],\", \",AthleteData[[#This Row],[First_name]])","v":", "}]
[{"$f":"_xlfn.CONCAT(AthleteData[[#This Row],[Last_name]],\", \",AthleteData[[#This Row],[First_name]])","v":", "}]
[{"$f":"_xlfn.CONCAT(AthleteData[[#This Row],[Last_name]],\", \",AthleteData[[#This Row],[First_name]])","v":", "}]
[{"$f":"_xlfn.CONCAT(AthleteData[[#This Row],[Last_name]],\", \",AthleteData[[#This Row],[First_name]])","v":", "}]
[{"$f":"_xlfn.CONCAT(AthleteData[[#This Row],[Last_name]],\", \",AthleteData[[#This Row],[First_name]])","v":", "}]
[{"$f":"_xlfn.CONCAT(AthleteData[[#This Row],[Last_name]],\", \",AthleteData[[#This Row],[First_name]])","v":", "}]
[{"$f":"_xlfn.CONCAT(AthleteData[[#This Row],[Last_name]],\", \",AthleteData[[#This Row],[First_name]])","v":", "}]
[{"$f":"_xlfn.CONCAT(AthleteData[[#This Row],[Last_name]],\", \",AthleteData[[#This Row],[First_name]])","v":", "}]
[{"$f":"_xlfn.CONCAT(AthleteData[[#This Row],[Last_name]],\", \",AthleteData[[#This Row],[First_name]])","v":", "}]
[{"$f":"_xlfn.CONCAT(AthleteData[[#This Row],[Last_name]],\", \",AthleteData[[#This Row],[First_name]])","v":", "}]
[{"$f":"_xlfn.CONCAT(AthleteData[[#This Row],[Last_name]],\", \",AthleteData[[#This Row],[First_name]])","v":", "}]
[{"$f":"_xlfn.CONCAT(AthleteData[[#This Row],[Last_name]],\", \",AthleteData[[#This Row],[First_name]])","v":", "}]
[{"$f":"_xlfn.CONCAT(AthleteData[[#This Row],[Last_name]],\", \",AthleteData[[#This Row],[First_name]])","v":", "}]
[{"$f":"_xlfn.CONCAT(AthleteData[[#This Row],[Last_name]],\", \",AthleteData[[#This Row],[First_name]])","v":", "}]
[{"$f":"_xlfn.CONCAT(AthleteData[[#This Row],[Last_name]],\", \",AthleteData[[#This Row],[First_name]])","v":", "}]
[{"$f":"_xlfn.CONCAT(AthleteData[[#This Row],[Last_name]],\", \",AthleteData[[#This Row],[First_name]])","v":", "}]
[{"$f":"_xlfn.CONCAT(AthleteData[[#This Row],[Last_name]],\", \",AthleteData[[#This Row],[First_name]])","v":", "}]
[{"$f":"_xlfn.CONCAT(AthleteData[[#This Row],[Last_name]],\", \",AthleteData[[#This Row],[First_name]])","v":", "}]
[{"$f":"_xlfn.CONCAT(AthleteData[[#This Row],[Last_name]],\", \",AthleteData[[#This Row],[First_name]])","v":", "}]
[{"$f":"_xlfn.CONCAT(AthleteData[[#This Row],[Last_name]],\", \",AthleteData[[#This Row],[First_name]])","v":", "}]
[{"$f":"_xlfn.CONCAT(AthleteData[[#This Row],[Last_name]],\", \",AthleteData[[#This Row],[First_name]])","v":", "}]
[{"$f":"_xlfn.CONCAT(AthleteData[[#This Row],[Last_name]],\", \",AthleteData[[#This Row],[First_name]])","v":", "}]
[{"$f":"_xlfn.CONCAT(AthleteData[[#This Row],[Last_name]],\", \",AthleteData[[#This Row],[First_name]])","v":", "}]
[{"$f":"_xlfn.CONCAT(AthleteData[[#This Row],[Last_name]],\", \",AthleteData[[#This Row],[First_name]])","v":", "}]
[{"$f":"_xlfn.CONCAT(AthleteData[[#This Row],[Last_name]],\", \",AthleteData[[#This Row],[First_name]])","v":", "}]
[{"$f":"_xlfn.CONCAT(AthleteData[[#This Row],[Last_name]],\", \",AthleteData[[#This Row],[First_name]])","v":", "}]
[{"$f":"_xlfn.CONCAT(AthleteData[[#This Row],[Last_name]],\", \",AthleteData[[#This Row],[First_name]])","v":", "}]
[{"$f":"_xlfn.CONCAT(AthleteData[[#This Row],[Last_name]],\", \",AthleteData[[#This Row],[First_name]])","v":", "}]
[{"$f":"_xlfn.CONCAT(AthleteData[[#This Row],[Last_name]],\", \",AthleteData[[#This Row],[First_name]])","v":", "}]
[{"$f":"_xlfn.CONCAT(AthleteData[[#This Row],[Last_name]],\", \",AthleteData[[#This Row],[First_name]])","v":", "}]
[{"$f":"_xlfn.CONCAT(AthleteData[[#This Row],[Last_name]],\", \",AthleteData[[#This Row],[First_name]])","v":", "}]
[{"$f":"_xlfn.CONCAT(AthleteData[[#This Row],[Last_name]],\", \",AthleteData[[#This Row],[First_name]])","v":", "}]
[{"$f":"_xlfn.CONCAT(AthleteData[[#This Row],[Last_name]],\", \",AthleteData[[#This Row],[First_name]])","v":", "}]
[{"$f":"_xlfn.CONCAT(AthleteData[[#This Row],[Last_name]],\", \",AthleteData[[#This Row],[First_name]])","v":", "}]
[{"$f":"_xlfn.CONCAT(AthleteData[[#This Row],[Last_name]],\", \",AthleteData[[#This Row],[First_name]])","v":", "}]
[{"$f":"_xlfn.CONCAT(AthleteData[[#This Row],[Last_name]],\", \",AthleteData[[#This Row],[First_name]])","v":", "}]
[{"$f":"_xlfn.CONCAT(AthleteData[[#This Row],[Last_name]],\", \",AthleteData[[#This Row],[First_name]])","v":", "}]
[{"$f":"_xlfn.CONCAT(AthleteData[[#This Row],[Last_name]],\", \",AthleteData[[#This Row],[First_name]])","v":", "}]
[{"$f":"_xlfn.CONCAT(AthleteData[[#This Row],[Last_name]],\", \",AthleteData[[#This Row],[First_name]])","v":", "}]
[{"$f":"_xlfn.CONCAT(AthleteData[[#This Row],[Last_name]],\", \",AthleteData[[#This Row],[First_name]])","v":", "}]
[{"$f":"_xlfn.CONCAT(AthleteData[[#This Row],[Last_name]],\", \",AthleteData[[#This Row],[First_name]])","v":", "}]
[{"$f":"_xlfn.CONCAT(AthleteData[[#This Row],[Last_name]],\", \",AthleteData[[#This Row],[First_name]])","v":", "}]
[{"$f":"_xlfn.CONCAT(AthleteData[[#This Row],[Last_name]],\", \",AthleteData[[#This Row],[First_name]])","v":", "}]
[{"$f":"_xlfn.CONCAT(AthleteData[[#This Row],[Last_name]],\", \",AthleteData[[#This Row],[First_name]])","v":", "}]
[{"$f":"_xlfn.CONCAT(AthleteData[[#This Row],[Last_name]],\", \",AthleteData[[#This Row],[First_name]])","v":", "}]
[{"$f":"_xlfn.CONCAT(AthleteData[[#This Row],[Last_name]],\", \",AthleteData[[#This Row],[First_name]])","v":", "}]
[{"$f":"_xlfn.CONCAT(AthleteData[[#This Row],[Last_name]],\", \",AthleteData[[#This Row],[First_name]])","v":", "}]
[{"$f":"_xlfn.CONCAT(AthleteData[[#This Row],[Last_name]],\", \",AthleteData[[#This Row],[First_name]])","v":", "}]
[{"$f":"_xlfn.CONCAT(AthleteData[[#This Row],[Last_name]],\", \",AthleteData[[#This Row],[First_name]])","v":", "}]
[{"$f":"_xlfn.CONCAT(AthleteData[[#This Row],[Last_name]],\", \",AthleteData[[#This Row],[First_name]])","v":", "}]
[{"$f":"_xlfn.CONCAT(AthleteData[[#This Row],[Last_name]],\", \",AthleteData[[#This Row],[First_name]])","v":", "}]
[{"$f":"_xlfn.CONCAT(AthleteData[[#This Row],[Last_name]],\", \",AthleteData[[#This Row],[First_name]])","v":", "}]
[{"$f":"_xlfn.CONCAT(AthleteData[[#This Row],[Last_name]],\", \",AthleteData[[#This Row],[First_name]])","v":", "}]
[{"$f":"_xlfn.CONCAT(AthleteData[[#This Row],[Last_name]],\", \",AthleteData[[#This Row],[First_name]])","v":", "}]
[{"$f":"_xlfn.CONCAT(AthleteData[[#This Row],[Last_name]],\", \",AthleteData[[#This Row],[First_name]])","v":", "}]
[{"$f":"_xlfn.CONCAT(AthleteData[[#This Row],[Last_name]],\", \",AthleteData[[#This Row],[First_name]])","v":", "}]
[{"$f":"_xlfn.CONCAT(AthleteData[[#This Row],[Last_name]],\", \",AthleteData[[#This Row],[First_name]])","v":", "}]
[{"$f":"_xlfn.CONCAT(AthleteData[[#This Row],[Last_name]],\", \",AthleteData[[#This Row],[First_name]])","v":", "}]
[{"$f":"_xlfn.CONCAT(AthleteData[[#This Row],[Last_name]],\", \",AthleteData[[#This Row],[First_name]])","v":", "}]
[{"$f":"_xlfn.CONCAT(AthleteData[[#This Row],[Last_name]],\", \",AthleteData[[#This Row],[First_name]])","v":", "}]
[{"$f":"_xlfn.CONCAT(AthleteData[[#This Row],[Last_name]],\", \",AthleteData[[#This Row],[First_name]])","v":", "}]
[{"$f":"_xlfn.CONCAT(AthleteData[[#This Row],[Last_name]],\", \",AthleteData[[#This Row],[First_name]])","v":", "}]
[{"$f":"_xlfn.CONCAT(AthleteData[[#This Row],[Last_name]],\", \",AthleteData[[#This Row],[First_name]])","v":", "}]
[{"$f":"_xlfn.CONCAT(AthleteData[[#This Row],[Last_name]],\", \",AthleteData[[#This Row],[First_name]])","v":", "}]
[{"$f":"_xlfn.CONCAT(AthleteData[[#This Row],[Last_name]],\", \",AthleteData[[#This Row],[First_name]])","v":", "}]
[{"$f":"_xlfn.CONCAT(AthleteData[[#This Row],[Last_name]],\", \",AthleteData[[#This Row],[First_name]])","v":", "}]
[{"$f":"_xlfn.CONCAT(AthleteData[[#This Row],[Last_name]],\", \",AthleteData[[#This Row],[First_name]])","v":", "}]
[{"$f":"_xlfn.CONCAT(AthleteData[[#This Row],[Last_name]],\", \",AthleteData[[#This Row],[First_name]])","v":", "}]
[{"$f":"_xlfn.CONCAT(AthleteData[[#This Row],[Last_name]],\", \",AthleteData[[#This Row],[First_name]])","v":", "}]
[{"$f":"_xlfn.CONCAT(AthleteData[[#This Row],[Last_name]],\", \",AthleteData[[#This Row],[First_name]])","v":", "}]
[{"$f":"_xlfn.CONCAT(AthleteData[[#This Row],[Last_name]],\", \",AthleteData[[#This Row],[First_name]])","v":", "}]
[{"$f":"_xlfn.CONCAT(AthleteData[[#This Row],[Last_name]],\", \",AthleteData[[#This Row],[First_name]])","v":", "}]
[{"$f":"_xlfn.CONCAT(AthleteData[[#This Row],[Last_name]],\", \",AthleteData[[#This Row],[First_name]])","v":", "}]
[{"$f":"_xlfn.CONCAT(AthleteData[[#This Row],[Last_name]],\", \",AthleteData[[#This Row],[First_name]])","v":", "}]
[{"$f":"_xlfn.CONCAT(AthleteData[[#This Row],[Last_name]],\", \",AthleteData[[#This Row],[First_name]])","v":", "}]
[{"$f":"_xlfn.CONCAT(AthleteData[[#This Row],[Last_name]],\", \",AthleteData[[#This Row],[First_name]])","v":", "}]
[{"$f":"_xlfn.CONCAT(AthleteData[[#This Row],[Last_name]],\", \",AthleteData[[#This Row],[First_name]])","v":", "}]
[{"$f":"_xlfn.CONCAT(AthleteData[[#This Row],[Last_name]],\", \",AthleteData[[#This Row],[First_name]])","v":", "}]
[{"$f":"_xlfn.CONCAT(AthleteData[[#This Row],[Last_name]],\", \",AthleteData[[#This Row],[First_name]])","v":", "}]
[{"$f":"_xlfn.CONCAT(AthleteData[[#This Row],[Last_name]],\", \",AthleteData[[#This Row],[First_name]])","v":", "}]
[{"$f":"_xlfn.CONCAT(AthleteData[[#This Row],[Last_name]],\", \",AthleteData[[#This Row],[First_name]])","v":", "}]
[{"$f":"_xlfn.CONCAT(AthleteData[[#This Row],[Last_name]],\", \",AthleteData[[#This Row],[First_name]])","v":", "}]
[{"$f":"_xlfn.CONCAT(AthleteData[[#This Row],[Last_name]],\", \",AthleteData[[#This Row],[First_name]])","v":", "}]
[{"$f":"_xlfn.CONCAT(AthleteData[[#This Row],[Last_name]],\", \",AthleteData[[#This Row],[First_name]])","v":", "}]
[{"$f":"_xlfn.CONCAT(AthleteData[[#This Row],[Last_name]],\", \",AthleteData[[#This Row],[First_name]])","v":", "}]
[{"$f":"_xlfn.CONCAT(AthleteData[[#This Row],[Last_name]],\", \",AthleteData[[#This Row],[First_name]])","v":", "}]
[{"$f":"_xlfn.CONCAT(AthleteData[[#This Row],[Last_name]],\", \",AthleteData[[#This Row],[First_name]])","v":", "}]
[{"$f":"_xlfn.CONCAT(AthleteData[[#This Row],[Last_name]],\", \",AthleteData[[#This Row],[First_name]])","v":", "}]
[{"$f":"_xlfn.CONCAT(AthleteData[[#This Row],[Last_name]],\", \",AthleteData[[#This Row],[First_name]])","v":", "}]
[{"$f":"_xlfn.CONCAT(AthleteData[[#This Row],[Last_name]],\", \",AthleteData[[#This Row],[First_name]])","v":", "}]
[{"$f":"_xlfn.CONCAT(AthleteData[[#This Row],[Last_name]],\", \",AthleteData[[#This Row],[First_name]])","v":", "}]
[{"$f":"_xlfn.CONCAT(AthleteData[[#This Row],[Last_name]],\", \",AthleteData[[#This Row],[First_name]])","v":", "}]
[{"$f":"_xlfn.CONCAT(AthleteData[[#This Row],[Last_name]],\", \",AthleteData[[#This Row],[First_name]])","v":", "}]
[{"$f":"_xlfn.CONCAT(AthleteData[[#This Row],[Last_name]],\", \",AthleteData[[#This Row],[First_name]])","v":", "}]
[{"$f":"_xlfn.CONCAT(AthleteData[[#This Row],[Last_name]],\", \",AthleteData[[#This Row],[First_name]])","v":", "}]
[{"$f":"_xlfn.CONCAT(AthleteData[[#This Row],[Last_name]],\", \",AthleteData[[#This Row],[First_name]])","v":", "}]
[{"$f":"_xlfn.CONCAT(AthleteData[[#This Row],[Last_name]],\", \",AthleteData[[#This Row],[First_name]])","v":", "}]
[{"$f":"_xlfn.CONCAT(AthleteData[[#This Row],[Last_name]],\", \",AthleteData[[#This Row],[First_name]])","v":", "}]
[{"$f":"_xlfn.CONCAT(AthleteData[[#This Row],[Last_name]],\", \",AthleteData[[#This Row],[First_name]])","v":", "}]
[{"$f":"_xlfn.CONCAT(AthleteData[[#This Row],[Last_name]],\", \",AthleteData[[#This Row],[First_name]])","v":", "}]
[{"$f":"_xlfn.CONCAT(AthleteData[[#This Row],[Last_name]],\", \",AthleteData[[#This Row],[First_name]])","v":", "}]
[{"$f":"_xlfn.CONCAT(AthleteData[[#This Row],[Last_name]],\", \",AthleteData[[#This Row],[First_name]])","v":", "}]
[{"$f":"_xlfn.CONCAT(AthleteData[[#This Row],[Last_name]],\", \",AthleteData[[#This Row],[First_name]])","v":", "}]
[{"$f":"_xlfn.CONCAT(AthleteData[[#This Row],[Last_name]],\", \",AthleteData[[#This Row],[First_name]])","v":", "}]
[{"$f":"_xlfn.CONCAT(AthleteData[[#This Row],[Last_name]],\", \",AthleteData[[#This Row],[First_name]])","v":", "}]
[{"$f":"_xlfn.CONCAT(AthleteData[[#This Row],[Last_name]],\", \",AthleteData[[#This Row],[First_name]])","v":", "}]
[{"$f":"_xlfn.CONCAT(AthleteData[[#This Row],[Last_name]],\", \",AthleteData[[#This Row],[First_name]])","v":", "}]
[{"$f":"_xlfn.CONCAT(AthleteData[[#This Row],[Last_name]],\", \",AthleteData[[#This Row],[First_name]])","v":", "}]
[{"$f":"_xlfn.CONCAT(AthleteData[[#This Row],[Last_name]],\", \",AthleteData[[#This Row],[First_name]])","v":", "}]
[{"$f":"_xlfn.CONCAT(AthleteData[[#This Row],[Last_name]],\", \",AthleteData[[#This Row],[First_name]])","v":", "}]
[{"$f":"_xlfn.CONCAT(AthleteData[[#This Row],[Last_name]],\", \",AthleteData[[#This Row],[First_name]])","v":", "}]
[{"$f":"_xlfn.CONCAT(AthleteData[[#This Row],[Last_name]],\", \",AthleteData[[#This Row],[First_name]])","v":", "}]
[{"$f":"_xlfn.CONCAT(AthleteData[[#This Row],[Last_name]],\", \",AthleteData[[#This Row],[First_name]])","v":", "}]
[{"$f":"_xlfn.CONCAT(AthleteData[[#This Row],[Last_name]],\", \",AthleteData[[#This Row],[First_name]])","v":", "}]
[{"$f":"_xlfn.CONCAT(AthleteData[[#This Row],[Last_name]],\", \",AthleteData[[#This Row],[First_name]])","v":", "}]
[{"$f":"_xlfn.CONCAT(AthleteData[[#This Row],[Last_name]],\", \",AthleteData[[#This Row],[First_name]])","v":", "}]
[{"$f":"_xlfn.CONCAT(AthleteData[[#This Row],[Last_name]],\", \",AthleteData[[#This Row],[First_name]])","v":", "}]
[{"$f":"_xlfn.CONCAT(AthleteData[[#This Row],[Last_name]],\", \",AthleteData[[#This Row],[First_name]])","v":", "}]
[{"$f":"_xlfn.CONCAT(AthleteData[[#This Row],[Last_name]],\", \",AthleteData[[#This Row],[First_name]])","v":", "}]
[{"$f":"_xlfn.CONCAT(AthleteData[[#This Row],[Last_name]],\", \",AthleteData[[#This Row],[First_name]])","v":", "}]
[{"$f":"_xlfn.CONCAT(AthleteData[[#This Row],[Last_name]],\", \",AthleteData[[#This Row],[First_name]])","v":", "}]
[{"$f":"_xlfn.CONCAT(AthleteData[[#This Row],[Last_name]],\", \",AthleteData[[#This Row],[First_name]])","v":", "}]
[{"$f":"_xlfn.CONCAT(AthleteData[[#This Row],[Last_name]],\", \",AthleteData[[#This Row],[First_name]])","v":", "}]
[{"$f":"_xlfn.CONCAT(AthleteData[[#This Row],[Last_name]],\", \",AthleteData[[#This Row],[First_name]])","v":", "}]
[{"$f":"_xlfn.CONCAT(AthleteData[[#This Row],[Last_name]],\", \",AthleteData[[#This Row],[First_name]])","v":", "}]
[{"$f":"_xlfn.CONCAT(AthleteData[[#This Row],[Last_name]],\", \",AthleteData[[#This Row],[First_name]])","v":", "}]
[{"$f":"_xlfn.CONCAT(AthleteData[[#This Row],[Last_name]],\", \",AthleteData[[#This Row],[First_name]])","v":", "}]
[{"$f":"_xlfn.CONCAT(AthleteData[[#This Row],[Last_name]],\", \",AthleteData[[#This Row],[First_name]])","v":", "}]
[{"$f":"_xlfn.CONCAT(AthleteData[[#This Row],[Last_name]],\", \",AthleteData[[#This Row],[First_name]])","v":", "}]
[{"$f":"_xlfn.CONCAT(AthleteData[[#This Row],[Last_name]],\", \",AthleteData[[#This Row],[First_name]])","v":", "}]
[{"$f":"_xlfn.CONCAT(AthleteData[[#This Row],[Last_name]],\", \",AthleteData[[#This Row],[First_name]])","v":", "}]
[{"$f":"_xlfn.CONCAT(AthleteData[[#This Row],[Last_name]],\", \",AthleteData[[#This Row],[First_name]])","v":", "}]
[{"$f":"_xlfn.CONCAT(AthleteData[[#This Row],[Last_name]],\", \",AthleteData[[#This Row],[First_name]])","v":", "}]
[{"$f":"_xlfn.CONCAT(AthleteData[[#This Row],[Last_name]],\", \",AthleteData[[#This Row],[First_name]])","v":", "}]
[{"$f":"_xlfn.CONCAT(AthleteData[[#This Row],[Last_name]],\", \",AthleteData[[#This Row],[First_name]])","v":", "}]
[{"$f":"_xlfn.CONCAT(AthleteData[[#This Row],[Last_name]],\", \",AthleteData[[#This Row],[First_name]])","v":", "}]
[{"$f":"_xlfn.CONCAT(AthleteData[[#This Row],[Last_name]],\", \",AthleteData[[#This Row],[First_name]])","v":", "}]
[{"$f":"_xlfn.CONCAT(AthleteData[[#This Row],[Last_name]],\", \",AthleteData[[#This Row],[First_name]])","v":", "}]
[{"$f":"_xlfn.CONCAT(AthleteData[[#This Row],[Last_name]],\", \",AthleteData[[#This Row],[First_name]])","v":", "}]
[{"$f":"_xlfn.CONCAT(AthleteData[[#This Row],[Last_name]],\", \",AthleteData[[#This Row],[First_name]])","v":", "}]
[{"$f":"_xlfn.CONCAT(AthleteData[[#This Row],[Last_name]],\", \",AthleteData[[#This Row],[First_name]])","v":", "}]
[{"$f":"_xlfn.CONCAT(AthleteData[[#This Row],[Last_name]],\", \",AthleteData[[#This Row],[First_name]])","v":", "}]
[{"$f":"_xlfn.CONCAT(AthleteData[[#This Row],[Last_name]],\", \",AthleteData[[#This Row],[First_name]])","v":", "}]
[{"$f":"_xlfn.CONCAT(AthleteData[[#This Row],[Last_name]],\", \",AthleteData[[#This Row],[First_name]])","v":", "}]
[{"$f":"_xlfn.CONCAT(AthleteData[[#This Row],[Last_name]],\", \",AthleteData[[#This Row],[First_name]])","v":", "}]
[{"$f":"_xlfn.CONCAT(AthleteData[[#This Row],[Last_name]],\", \",AthleteData[[#This Row],[First_name]])","v":", "}]
[{"$f":"_xlfn.CONCAT(AthleteData[[#This Row],[Last_name]],\", \",AthleteData[[#This Row],[First_name]])","v":", "}]
[{"$f":"_xlfn.CONCAT(AthleteData[[#This Row],[Last_name]],\", \",AthleteData[[#This Row],[First_name]])","v":", "}]
[{"$f":"_xlfn.CONCAT(AthleteData[[#This Row],[Last_name]],\", \",AthleteData[[#This Row],[First_name]])","v":", "}]
[{"$f":"_xlfn.CONCAT(AthleteData[[#This Row],[Last_name]],\", \",AthleteData[[#This Row],[First_name]])","v":", "}]
[{"$f":"_xlfn.CONCAT(AthleteData[[#This Row],[Last_name]],\", \",AthleteData[[#This Row],[First_name]])","v":", "}]
[{"$f":"_xlfn.CONCAT(AthleteData[[#This Row],[Last_name]],\", \",AthleteData[[#This Row],[First_name]])","v":", "}]
[{"$f":"_xlfn.CONCAT(AthleteData[[#This Row],[Last_name]],\", \",AthleteData[[#This Row],[First_name]])","v":", "}]
[{"$f":"_xlfn.CONCAT(AthleteData[[#This Row],[Last_name]],\", \",AthleteData[[#This Row],[First_name]])","v":", "}]
[{"$f":"_xlfn.CONCAT(AthleteData[[#This Row],[Last_name]],\", \",AthleteData[[#This Row],[First_name]])","v":", "}]
[{"$f":"_xlfn.CONCAT(AthleteData[[#This Row],[Last_name]],\", \",AthleteData[[#This Row],[First_name]])","v":", "}]
[{"$f":"_xlfn.CONCAT(AthleteData[[#This Row],[Last_name]],\", \",AthleteData[[#This Row],[First_name]])","v":", "}]
[{"$f":"_xlfn.CONCAT(AthleteData[[#This Row],[Last_name]],\", \",AthleteData[[#This Row],[First_name]])","v":", "}]
[{"$f":"_xlfn.CONCAT(AthleteData[[#This Row],[Last_name]],\", \",AthleteData[[#This Row],[First_name]])","v":", "}]
[{"$f":"_xlfn.CONCAT(AthleteData[[#This Row],[Last_name]],\", \",AthleteData[[#This Row],[First_name]])","v":", "}]
[{"$f":"_xlfn.CONCAT(AthleteData[[#This Row],[Last_name]],\", \",AthleteData[[#This Row],[First_name]])","v":", "}]
[{"$f":"_xlfn.CONCAT(AthleteData[[#This Row],[Last_name]],\", \",AthleteData[[#This Row],[First_name]])","v":", "}]
[{"$f":"_xlfn.CONCAT(AthleteData[[#This Row],[Last_name]],\", \",AthleteData[[#This Row],[First_name]])","v":", "}]
[{"$f":"_xlfn.CONCAT(AthleteData[[#This Row],[Last_name]],\", \",AthleteData[[#This Row],[First_name]])","v":", "}]
[{"$f":"_xlfn.CONCAT(AthleteData[[#This Row],[Last_name]],\", \",AthleteData[[#This Row],[First_name]])","v":", "}]
[{"$f":"_xlfn.CONCAT(AthleteData[[#This Row],[Last_name]],\", \",AthleteData[[#This Row],[First_name]])","v":", "}]
[{"$f":"_xlfn.CONCAT(AthleteData[[#This Row],[Last_name]],\", \",AthleteData[[#This Row],[First_name]])","v":", "}]
[{"$f":"_xlfn.CONCAT(AthleteData[[#This Row],[Last_name]],\", \",AthleteData[[#This Row],[First_name]])","v":", "}]
[{"$f":"_xlfn.CONCAT(AthleteData[[#This Row],[Last_name]],\", \",AthleteData[[#This Row],[First_name]])","v":", "}]
[{"$f":"_xlfn.CONCAT(AthleteData[[#This Row],[Last_name]],\", \",AthleteData[[#This Row],[First_name]])","v":", "}]
[{"$f":"_xlfn.CONCAT(AthleteData[[#This Row],[Last_name]],\", \",AthleteData[[#This Row],[First_name]])","v":", "}]
[{"$f":"_xlfn.CONCAT(AthleteData[[#This Row],[Last_name]],\", \",AthleteData[[#This Row],[First_name]])","v":", "}]
[{"$f":"_xlfn.CONCAT(AthleteData[[#This Row],[Last_name]],\", \",AthleteData[[#This Row],[First_name]])","v":", "}]
[{"$f":"_xlfn.CONCAT(AthleteData[[#This Row],[Last_name]],\", \",AthleteData[[#This Row],[First_name]])","v":", "}]
[{"$f":"_xlfn.CONCAT(AthleteData[[#This Row],[Last_name]],\", \",AthleteData[[#This Row],[First_name]])","v":", "}]
[{"$f":"_xlfn.CONCAT(AthleteData[[#This Row],[Last_name]],\", \",AthleteData[[#This Row],[First_name]])","v":", "}]
[{"$f":"_xlfn.CONCAT(AthleteData[[#This Row],[Last_name]],\", \",AthleteData[[#This Row],[First_name]])","v":", "}]
[{"$f":"_xlfn.CONCAT(AthleteData[[#This Row],[Last_name]],\", \",AthleteData[[#This Row],[First_name]])","v":", "}]
[{"$f":"_xlfn.CONCAT(AthleteData[[#This Row],[Last_name]],\", \",AthleteData[[#This Row],[First_name]])","v":", "}]
[{"$f":"_xlfn.CONCAT(AthleteData[[#This Row],[Last_name]],\", \",AthleteData[[#This Row],[First_name]])","v":", "}]
[{"$f":"_xlfn.CONCAT(AthleteData[[#This Row],[Last_name]],\", \",AthleteData[[#This Row],[First_name]])","v":", "}]
[{"$f":"_xlfn.CONCAT(AthleteData[[#This Row],[Last_name]],\", \",AthleteData[[#This Row],[First_name]])","v":", "}]
[{"$f":"_xlfn.CONCAT(AthleteData[[#This Row],[Last_name]],\", \",AthleteData[[#This Row],[First_name]])","v":", "}]
[{"$f":"_xlfn.CONCAT(AthleteData[[#This Row],[Last_name]],\", \",AthleteData[[#This Row],[First_name]])","v":", "}]
[{"$f":"_xlfn.CONCAT(AthleteData[[#This Row],[Last_name]],\", \",AthleteData[[#This Row],[First_name]])","v":", "}]
[{"$f":"_xlfn.CONCAT(AthleteData[[#This Row],[Last_name]],\", \",AthleteData[[#This Row],[First_name]])","v":", "}]
[{"$f":"_xlfn.CONCAT(AthleteData[[#This Row],[Last_name]],\", \",AthleteData[[#This Row],[First_name]])","v":", "}]
[{"$f":"_xlfn.CONCAT(AthleteData[[#This Row],[Last_name]],\", \",AthleteData[[#This Row],[First_name]])","v":", "}]
[{"$f":"_xlfn.CONCAT(AthleteData[[#This Row],[Last_name]],\", \",AthleteData[[#This Row],[First_name]])","v":", "}]
[{"$f":"_xlfn.CONCAT(AthleteData[[#This Row],[Last_name]],\", \",AthleteData[[#This Row],[First_name]])","v":", "}]
[{"$f":"_xlfn.CONCAT(AthleteData[[#This Row],[Last_name]],\", \",AthleteData[[#This Row],[First_name]])","v":", "}]
[{"$f":"_xlfn.CONCAT(AthleteData[[#This Row],[Last_name]],\", \",AthleteData[[#This Row],[First_name]])","v":", "}]
[{"$f":"_xlfn.CONCAT(AthleteData[[#This Row],[Last_name]],\", \",AthleteData[[#This Row],[First_name]])","v":", "}]
[{"$f":"_xlfn.CONCAT(AthleteData[[#This Row],[Last_name]],\", \",AthleteData[[#This Row],[First_name]])","v":", "}]
[{"$f":"_xlfn.CONCAT(AthleteData[[#This Row],[Last_name]],\", \",AthleteData[[#This Row],[First_name]])","v":", "}]
[{"$f":"_xlfn.CONCAT(AthleteData[[#This Row],[Last_name]],\", \",AthleteData[[#This Row],[First_name]])","v":", "}]
[{"$f":"_xlfn.CONCAT(AthleteData[[#This Row],[Last_name]],\", \",AthleteData[[#This Row],[First_name]])","v":", "}]
[{"$f":"_xlfn.CONCAT(AthleteData[[#This Row],[Last_name]],\", \",AthleteData[[#This Row],[First_name]])","v":", "}]
[{"$f":"_xlfn.CONCAT(AthleteData[[#This Row],[Last_name]],\", \",AthleteData[[#This Row],[First_name]])","v":", "}]
[{"$f":"_xlfn.CONCAT(AthleteData[[#This Row],[Last_name]],\", \",AthleteData[[#This Row],[First_name]])","v":", "}]
[{"$f":"_xlfn.CONCAT(AthleteData[[#This Row],[Last_name]],\", \",AthleteData[[#This Row],[First_name]])","v":", "}]
[{"$f":"_xlfn.CONCAT(AthleteData[[#This Row],[Last_name]],\", \",AthleteData[[#This Row],[First_name]])","v":", "}]
[{"$f":"_xlfn.CONCAT(AthleteData[[#This Row],[Last_name]],\", \",AthleteData[[#This Row],[First_name]])","v":", "}]
[{"$f":"_xlfn.CONCAT(AthleteData[[#This Row],[Last_name]],\", \",AthleteData[[#This Row],[First_name]])","v":", "}]
[{"$f":"_xlfn.CONCAT(AthleteData[[#This Row],[Last_name]],\", \",AthleteData[[#This Row],[First_name]])","v":", "}]
[{"$f":"_xlfn.CONCAT(AthleteData[[#This Row],[Last_name]],\", \",AthleteData[[#This Row],[First_name]])","v":", "}]
[{"$f":"_xlfn.CONCAT(AthleteData[[#This Row],[Last_name]],\", \",AthleteData[[#This Row],[First_name]])","v":", "}]
[{"$f":"_xlfn.CONCAT(AthleteData[[#This Row],[Last_name]],\", \",AthleteData[[#This Row],[First_name]])","v":", "}]
[{"$f":"_xlfn.CONCAT(AthleteData[[#This Row],[Last_name]],\", \",AthleteData[[#This Row],[First_name]])","v":", "}]
[{"$f":"_xlfn.CONCAT(AthleteData[[#This Row],[Last_name]],\", \",AthleteData[[#This Row],[First_name]])","v":", "}]
[{"$f":"_xlfn.CONCAT(AthleteData[[#This Row],[Last_name]],\", \",AthleteData[[#This Row],[First_name]])","v":", "}]
[{"$f":"_xlfn.CONCAT(AthleteData[[#This Row],[Last_name]],\", \",AthleteData[[#This Row],[First_name]])","v":", "}]
[{"$f":"_xlfn.CONCAT(AthleteData[[#This Row],[Last_name]],\", \",AthleteData[[#This Row],[First_name]])","v":", "}]
[{"$f":"_xlfn.CONCAT(AthleteData[[#This Row],[Last_name]],\", \",AthleteData[[#This Row],[First_name]])","v":", "}]
[{"$f":"_xlfn.CONCAT(AthleteData[[#This Row],[Last_name]],\", \",AthleteData[[#This Row],[First_name]])","v":", "}]
[{"$f":"_xlfn.CONCAT(AthleteData[[#This Row],[Last_name]],\", \",AthleteData[[#This Row],[First_name]])","v":", "}]
[{"$f":"_xlfn.CONCAT(AthleteData[[#This Row],[Last_name]],\", \",AthleteData[[#This Row],[First_name]])","v":", "}]
[{"$f":"_xlfn.CONCAT(AthleteData[[#This Row],[Last_name]],\", \",AthleteData[[#This Row],[First_name]])","v":", "}]
[{"$f":"_xlfn.CONCAT(AthleteData[[#This Row],[Last_name]],\", \",AthleteData[[#This Row],[First_name]])","v":", "}]
[{"$f":"_xlfn.CONCAT(AthleteData[[#This Row],[Last_name]],\", \",AthleteData[[#This Row],[First_name]])","v":", "}]
[{"$f":"_xlfn.CONCAT(AthleteData[[#This Row],[Last_name]],\", \",AthleteData[[#This Row],[First_name]])","v":", "}]
[{"$f":"_xlfn.CONCAT(AthleteData[[#This Row],[Last_name]],\", \",AthleteData[[#This Row],[First_name]])","v":", "}]
[{"$f":"_xlfn.CONCAT(AthleteData[[#This Row],[Last_name]],\", \",AthleteData[[#This Row],[First_name]])","v":", "}]
[{"$f":"_xlfn.CONCAT(AthleteData[[#This Row],[Last_name]],\", \",AthleteData[[#This Row],[First_name]])","v":", "}]
[{"$f":"_xlfn.CONCAT(AthleteData[[#This Row],[Last_name]],\", \",AthleteData[[#This Row],[First_name]])","v":", "}]
[{"$f":"_xlfn.CONCAT(AthleteData[[#This Row],[Last_name]],\", \",AthleteData[[#This Row],[First_name]])","v":", "}]
[{"$f":"_xlfn.CONCAT(AthleteData[[#This Row],[Last_name]],\", \",AthleteData[[#This Row],[First_name]])","v":", "}]
[{"$f":"_xlfn.CONCAT(AthleteData[[#This Row],[Last_name]],\", \",AthleteData[[#This Row],[First_name]])","v":", "}]
[{"$f":"_xlfn.CONCAT(AthleteData[[#This Row],[Last_name]],\", \",AthleteData[[#This Row],[First_name]])","v":", "}]
[{"$f":"_xlfn.CONCAT(AthleteData[[#This Row],[Last_name]],\", \",AthleteData[[#This Row],[First_name]])","v":", "}]
[{"$f":"_xlfn.CONCAT(AthleteData[[#This Row],[Last_name]],\", \",AthleteData[[#This Row],[First_name]])","v":", "}]
[{"$f":"_xlfn.CONCAT(AthleteData[[#This Row],[Last_name]],\", \",AthleteData[[#This Row],[First_name]])","v":", "}]
[{"$f":"_xlfn.CONCAT(AthleteData[[#This Row],[Last_name]],\", \",AthleteData[[#This Row],[First_name]])","v":", "}]
[{"$f":"_xlfn.CONCAT(AthleteData[[#This Row],[Last_name]],\", \",AthleteData[[#This Row],[First_name]])","v":", "}]
[{"$f":"_xlfn.CONCAT(AthleteData[[#This Row],[Last_name]],\", \",AthleteData[[#This Row],[First_name]])","v":", "}]
[{"$f":"_xlfn.CONCAT(AthleteData[[#This Row],[Last_name]],\", \",AthleteData[[#This Row],[First_name]])","v":", "}]
[{"$f":"_xlfn.CONCAT(AthleteData[[#This Row],[Last_name]],\", \",AthleteData[[#This Row],[First_name]])","v":", "}]
[{"$f":"_xlfn.CONCAT(AthleteData[[#This Row],[Last_name]],\", \",AthleteData[[#This Row],[First_name]])","v":", "}]
[{"$f":"_xlfn.CONCAT(AthleteData[[#This Row],[Last_name]],\", \",AthleteData[[#This Row],[First_name]])","v":", "}]
[{"$f":"_xlfn.CONCAT(AthleteData[[#This Row],[Last_name]],\", \",AthleteData[[#This Row],[First_name]])","v":", "}]
[{"$f":"_xlfn.CONCAT(AthleteData[[#This Row],[Last_name]],\", \",AthleteData[[#This Row],[First_name]])","v":", "}]
[{"$f":"_xlfn.CONCAT(AthleteData[[#This Row],[Last_name]],\", \",AthleteData[[#This Row],[First_name]])","v":", "}]
[{"$f":"_xlfn.CONCAT(AthleteData[[#This Row],[Last_name]],\", \",AthleteData[[#This Row],[First_name]])","v":", "}]
[{"$f":"_xlfn.CONCAT(AthleteData[[#This Row],[Last_name]],\", \",AthleteData[[#This Row],[First_name]])","v":", "}]
[{"$f":"_xlfn.CONCAT(AthleteData[[#This Row],[Last_name]],\", \",AthleteData[[#This Row],[First_name]])","v":", "}]
[{"$f":"_xlfn.CONCAT(AthleteData[[#This Row],[Last_name]],\", \",AthleteData[[#This Row],[First_name]])","v":", "}]
[{"$f":"_xlfn.CONCAT(AthleteData[[#This Row],[Last_name]],\", \",AthleteData[[#This Row],[First_name]])","v":", "}]
[{"$f":"_xlfn.CONCAT(AthleteData[[#This Row],[Last_name]],\", \",AthleteData[[#This Row],[First_name]])","v":", "}]
[{"$f":"_xlfn.CONCAT(AthleteData[[#This Row],[Last_name]],\", \",AthleteData[[#This Row],[First_name]])","v":", "}]
[{"$f":"_xlfn.CONCAT(AthleteData[[#This Row],[Last_name]],\", \",AthleteData[[#This Row],[First_name]])","v":", "}]
[{"$f":"_xlfn.CONCAT(AthleteData[[#This Row],[Last_name]],\", \",AthleteData[[#This Row],[First_name]])","v":", "}]
[{"$f":"_xlfn.CONCAT(AthleteData[[#This Row],[Last_name]],\", \",AthleteData[[#This Row],[First_name]])","v":", "}]
[{"$f":"_xlfn.CONCAT(AthleteData[[#This Row],[Last_name]],\", \",AthleteData[[#This Row],[First_name]])","v":", "}]
[{"$f":"_xlfn.CONCAT(AthleteData[[#This Row],[Last_name]],\", \",AthleteData[[#This Row],[First_name]])","v":", "}]
[{"$f":"_xlfn.CONCAT(AthleteData[[#This Row],[Last_name]],\", \",AthleteData[[#This Row],[First_name]])","v":", "}]
[{"$f":"_xlfn.CONCAT(AthleteData[[#This Row],[Last_name]],\", \",AthleteData[[#This Row],[First_name]])","v":", "}]
[{"$f":"_xlfn.CONCAT(AthleteData[[#This Row],[Last_name]],\", \",AthleteData[[#This Row],[First_name]])","v":", "}]
[{"$f":"_xlfn.CONCAT(AthleteData[[#This Row],[Last_name]],\", \",AthleteData[[#This Row],[First_name]])","v":", "}]
[{"$f":"_xlfn.CONCAT(AthleteData[[#This Row],[Last_name]],\", \",AthleteData[[#This Row],[First_name]])","v":", "}]
[{"$f":"_xlfn.CONCAT(AthleteData[[#This Row],[Last_name]],\", \",AthleteData[[#This Row],[First_name]])","v":", "}]
[{"$f":"_xlfn.CONCAT(AthleteData[[#This Row],[Last_name]],\", \",AthleteData[[#This Row],[First_name]])","v":", "}]
[{"$f":"_xlfn.CONCAT(AthleteData[[#This Row],[Last_name]],\", \",AthleteData[[#This Row],[First_name]])","v":", "}]
[{"$f":"_xlfn.CONCAT(AthleteData[[#This Row],[Last_name]],\", \",AthleteData[[#This Row],[First_name]])","v":", "}]
[{"$f":"_xlfn.CONCAT(AthleteData[[#This Row],[Last_name]],\", \",AthleteData[[#This Row],[First_name]])","v":", "}]
[{"$f":"_xlfn.CONCAT(AthleteData[[#This Row],[Last_name]],\", \",AthleteData[[#This Row],[First_name]])","v":", "}]
[{"$f":"_xlfn.CONCAT(AthleteData[[#This Row],[Last_name]],\", \",AthleteData[[#This Row],[First_name]])","v":", "}]
[{"$f":"_xlfn.CONCAT(AthleteData[[#This Row],[Last_name]],\", \",AthleteData[[#This Row],[First_name]])","v":", "}]
[{"$f":"_xlfn.CONCAT(AthleteData[[#This Row],[Last_name]],\", \",AthleteData[[#This Row],[First_name]])","v":", "}]
[{"$f":"_xlfn.CONCAT(AthleteData[[#This Row],[Last_name]],\", \",AthleteData[[#This Row],[First_name]])","v":", "}]
[{"$f":"_xlfn.CONCAT(AthleteData[[#This Row],[Last_name]],\", \",AthleteData[[#This Row],[First_name]])","v":", "}]
[{"$f":"_xlfn.CONCAT(AthleteData[[#This Row],[Last_name]],\", \",AthleteData[[#This Row],[First_name]])","v":", "}]
[{"$f":"_xlfn.CONCAT(AthleteData[[#This Row],[Last_name]],\", \",AthleteData[[#This Row],[First_name]])","v":", "}]
[{"$f":"_xlfn.CONCAT(AthleteData[[#This Row],[Last_name]],\", \",AthleteData[[#This Row],[First_name]])","v":", "}]
[{"$f":"_xlfn.CONCAT(AthleteData[[#This Row],[Last_name]],\", \",AthleteData[[#This Row],[First_name]])","v":", "}]
[{"$f":"_xlfn.CONCAT(AthleteData[[#This Row],[Last_name]],\", \",AthleteData[[#This Row],[First_name]])","v":", "}]
[{"$f":"_xlfn.CONCAT(AthleteData[[#This Row],[Last_name]],\", \",AthleteData[[#This Row],[First_name]])","v":", "}]
[{"$f":"_xlfn.CONCAT(AthleteData[[#This Row],[Last_name]],\", \",AthleteData[[#This Row],[First_name]])","v":", "}]
[{"$f":"_xlfn.CONCAT(AthleteData[[#This Row],[Last_name]],\", \",AthleteData[[#This Row],[First_name]])","v":", "}]
[{"$f":"_xlfn.CONCAT(AthleteData[[#This Row],[Last_name]],\", \",AthleteData[[#This Row],[First_name]])","v":", "}]
[{"$f":"_xlfn.CONCAT(AthleteData[[#This Row],[Last_name]],\", \",AthleteData[[#This Row],[First_name]])","v":", "}]
[{"$f":"_xlfn.CONCAT(AthleteData[[#This Row],[Last_name]],\", \",AthleteData[[#This Row],[First_name]])","v":", "}]
[{"$f":"_xlfn.CONCAT(AthleteData[[#This Row],[Last_name]],\", \",AthleteData[[#This Row],[First_name]])","v":", "}]
[{"$f":"_xlfn.CONCAT(AthleteData[[#This Row],[Last_name]],\", \",AthleteData[[#This Row],[First_name]])","v":", "}]
[{"$f":"_xlfn.CONCAT(AthleteData[[#This Row],[Last_name]],\", \",AthleteData[[#This Row],[First_name]])","v":", "}]
[{"$f":"_xlfn.CONCAT(AthleteData[[#This Row],[Last_name]],\", \",AthleteData[[#This Row],[First_name]])","v":", "}]
[{"$f":"_xlfn.CONCAT(AthleteData[[#This Row],[Last_name]],\", \",AthleteData[[#This Row],[First_name]])","v":", "}]
[{"$f":"_xlfn.CONCAT(AthleteData[[#This Row],[Last_name]],\", \",AthleteData[[#This Row],[First_name]])","v":", "}]
[{"$f":"_xlfn.CONCAT(AthleteData[[#This Row],[Last_name]],\", \",AthleteData[[#This Row],[First_name]])","v":", "}]
[{"$f":"_xlfn.CONCAT(AthleteData[[#This Row],[Last_name]],\", \",AthleteData[[#This Row],[First_name]])","v":", "}]
[{"$f":"_xlfn.CONCAT(AthleteData[[#This Row],[Last_name]],\", \",AthleteData[[#This Row],[First_name]])","v":", "}]
[{"$f":"_xlfn.CONCAT(AthleteData[[#This Row],[Last_name]],\", \",AthleteData[[#This Row],[First_name]])","v":", "}]
[{"$f":"_xlfn.CONCAT(AthleteData[[#This Row],[Last_name]],\", \",AthleteData[[#This Row],[First_name]])","v":", "}]
[{"$f":"_xlfn.CONCAT(AthleteData[[#This Row],[Last_name]],\", \",AthleteData[[#This Row],[First_name]])","v":", "}]
[{"$f":"_xlfn.CONCAT(AthleteData[[#This Row],[Last_name]],\", \",AthleteData[[#This Row],[First_name]])","v":", "}]
[{"$f":"_xlfn.CONCAT(AthleteData[[#This Row],[Last_name]],\", \",AthleteData[[#This Row],[First_name]])","v":", "}]
[{"$f":"_xlfn.CONCAT(AthleteData[[#This Row],[Last_name]],\", \",AthleteData[[#This Row],[First_name]])","v":", "}]
[{"$f":"_xlfn.CONCAT(AthleteData[[#This Row],[Last_name]],\", \",AthleteData[[#This Row],[First_name]])","v":", "}]
[{"$f":"_xlfn.CONCAT(AthleteData[[#This Row],[Last_name]],\", \",AthleteData[[#This Row],[First_name]])","v":", "}]
[{"$f":"_xlfn.CONCAT(AthleteData[[#This Row],[Last_name]],\", \",AthleteData[[#This Row],[First_name]])","v":", "}]
[{"$f":"_xlfn.CONCAT(AthleteData[[#This Row],[Last_name]],\", \",AthleteData[[#This Row],[First_name]])","v":", "}]
[{"$f":"_xlfn.CONCAT(AthleteData[[#This Row],[Last_name]],\", \",AthleteData[[#This Row],[First_name]])","v":", "}]
[{"$f":"_xlfn.CONCAT(AthleteData[[#This Row],[Last_name]],\", \",AthleteData[[#This Row],[First_name]])","v":", "}]
[{"$f":"_xlfn.CONCAT(AthleteData[[#This Row],[Last_name]],\", \",AthleteData[[#This Row],[First_name]])","v":", "}]
[{"$f":"_xlfn.CONCAT(AthleteData[[#This Row],[Last_name]],\", \",AthleteData[[#This Row],[First_name]])","v":", "}]
[{"$f":"_xlfn.CONCAT(AthleteData[[#This Row],[Last_name]],\", \",AthleteData[[#This Row],[First_name]])","v":", "}]
[{"$f":"_xlfn.CONCAT(AthleteData[[#This Row],[Last_name]],\", \",AthleteData[[#This Row],[First_name]])","v":", "}]
[{"$f":"_xlfn.CONCAT(AthleteData[[#This Row],[Last_name]],\", \",AthleteData[[#This Row],[First_name]])","v":", "}]
[{"$f":"_xlfn.CONCAT(AthleteData[[#This Row],[Last_name]],\", \",AthleteData[[#This Row],[First_name]])","v":", "}]
[{"$f":"_xlfn.CONCAT(AthleteData[[#This Row],[Last_name]],\", \",AthleteData[[#This Row],[First_name]])","v":", "}]
[{"$f":"_xlfn.CONCAT(AthleteData[[#This Row],[Last_name]],\", \",AthleteData[[#This Row],[First_name]])","v":", "}]
[{"$f":"_xlfn.CONCAT(AthleteData[[#This Row],[Last_name]],\", \",AthleteData[[#This Row],[First_name]])","v":", "}]
[{"$f":"_xlfn.CONCAT(AthleteData[[#This Row],[Last_name]],\", \",AthleteData[[#This Row],[First_name]])","v":", "}]
[{"$f":"_xlfn.CONCAT(AthleteData[[#This Row],[Last_name]],\", \",AthleteData[[#This Row],[First_name]])","v":", "}]
[{"$f":"_xlfn.CONCAT(AthleteData[[#This Row],[Last_name]],\", \",AthleteData[[#This Row],[First_name]])","v":", "}]
[{"$f":"_xlfn.CONCAT(AthleteData[[#This Row],[Last_name]],\", \",AthleteData[[#This Row],[First_name]])","v":", "}]
[{"$f":"_xlfn.CONCAT(AthleteData[[#This Row],[Last_name]],\", \",AthleteData[[#This Row],[First_name]])","v":", "}]
[{"$f":"_xlfn.CONCAT(AthleteData[[#This Row],[Last_name]],\", \",AthleteData[[#This Row],[First_name]])","v":", "}]
[{"$f":"_xlfn.CONCAT(AthleteData[[#This Row],[Last_name]],\", \",AthleteData[[#This Row],[First_name]])","v":", "}]
[{"$f":"_xlfn.CONCAT(AthleteData[[#This Row],[Last_name]],\", \",AthleteData[[#This Row],[First_name]])","v":", "}]
[{"$f":"_xlfn.CONCAT(AthleteData[[#This Row],[Last_name]],\", \",AthleteData[[#This Row],[First_name]])","v":", "}]
[{"$f":"_xlfn.CONCAT(AthleteData[[#This Row],[Last_name]],\", \",AthleteData[[#This Row],[First_name]])","v":", "}]
[{"$f":"_xlfn.CONCAT(AthleteData[[#This Row],[Last_name]],\", \",AthleteData[[#This Row],[First_name]])","v":", "}]
[{"$f":"_xlfn.CONCAT(AthleteData[[#This Row],[Last_name]],\", \",AthleteData[[#This Row],[First_name]])","v":", "}]
[{"$f":"_xlfn.CONCAT(AthleteData[[#This Row],[Last_name]],\", \",AthleteData[[#This Row],[First_name]])","v":", "}]
[{"$f":"_xlfn.CONCAT(AthleteData[[#This Row],[Last_name]],\", \",AthleteData[[#This Row],[First_name]])","v":", "}]
[{"$f":"_xlfn.CONCAT(AthleteData[[#This Row],[Last_name]],\", \",AthleteData[[#This Row],[First_name]])","v":", "}]
[{"$f":"_xlfn.CONCAT(AthleteData[[#This Row],[Last_name]],\", \",AthleteData[[#This Row],[First_name]])","v":", "}]
[{"$f":"_xlfn.CONCAT(AthleteData[[#This Row],[Last_name]],\", \",AthleteData[[#This Row],[First_name]])","v":", "}]
[{"$f":"_xlfn.CONCAT(AthleteData[[#This Row],[Last_name]],\", \",AthleteData[[#This Row],[First_name]])","v":", "}]
[{"$f":"_xlfn.CONCAT(AthleteData[[#This Row],[Last_name]],\", \",AthleteData[[#This Row],[First_name]])","v":", "}]
[{"$f":"_xlfn.CONCAT(AthleteData[[#This Row],[Last_name]],\", \",AthleteData[[#This Row],[First_name]])","v":", "}]
[{"$f":"_xlfn.CONCAT(AthleteData[[#This Row],[Last_name]],\", \",AthleteData[[#This Row],[First_name]])","v":", "}]
[{"$f":"_xlfn.CONCAT(AthleteData[[#This Row],[Last_name]],\", \",AthleteData[[#This Row],[First_name]])","v":", "}]
[{"$f":"_xlfn.CONCAT(AthleteData[[#This Row],[Last_name]],\", \",AthleteData[[#This Row],[First_name]])","v":", "}]
[{"$f":"_xlfn.CONCAT(AthleteData[[#This Row],[Last_name]],\", \",AthleteData[[#This Row],[First_name]])","v":", "}]
[{"$f":"_xlfn.CONCAT(AthleteData[[#This Row],[Last_name]],\", \",AthleteData[[#This Row],[First_name]])","v":", "}]
[{"$f":"_xlfn.CONCAT(AthleteData[[#This Row],[Last_name]],\", \",AthleteData[[#This Row],[First_name]])","v":", "}]
[{"$f":"_xlfn.CONCAT(AthleteData[[#This Row],[Last_name]],\", \",AthleteData[[#This Row],[First_name]])","v":", "}]
[{"$f":"_xlfn.CONCAT(AthleteData[[#This Row],[Last_name]],\", \",AthleteData[[#This Row],[First_name]])","v":", "}]
[{"$f":"_xlfn.CONCAT(AthleteData[[#This Row],[Last_name]],\", \",AthleteData[[#This Row],[First_name]])","v":", "}]
[{"$f":"_xlfn.CONCAT(AthleteData[[#This Row],[Last_name]],\", \",AthleteData[[#This Row],[First_name]])","v":", "}]
[{"$f":"_xlfn.CONCAT(AthleteData[[#This Row],[Last_name]],\", \",AthleteData[[#This Row],[First_name]])","v":", "}]
[{"$f":"_xlfn.CONCAT(AthleteData[[#This Row],[Last_name]],\", \",AthleteData[[#This Row],[First_name]])","v":", "}]
[{"$f":"_xlfn.CONCAT(AthleteData[[#This Row],[Last_name]],\", \",AthleteData[[#This Row],[First_name]])","v":", "}]
[{"$f":"_xlfn.CONCAT(AthleteData[[#This Row],[Last_name]],\", \",AthleteData[[#This Row],[First_name]])","v":", "}]
[{"$f":"_xlfn.CONCAT(AthleteData[[#This Row],[Last_name]],\", \",AthleteData[[#This Row],[First_name]])","v":", "}]
[{"$f":"_xlfn.CONCAT(AthleteData[[#This Row],[Last_name]],\", \",AthleteData[[#This Row],[First_name]])","v":", "}]
[{"$f":"_xlfn.CONCAT(AthleteData[[#This Row],[Last_name]],\", \",AthleteData[[#This Row],[First_name]])","v":", "}]
[{"$f":"_xlfn.CONCAT(AthleteData[[#This Row],[Last_name]],\", \",AthleteData[[#This Row],[First_name]])","v":", "}]
[{"$f":"_xlfn.CONCAT(AthleteData[[#This Row],[Last_name]],\", \",AthleteData[[#This Row],[First_name]])","v":", "}]
[{"$f":"_xlfn.CONCAT(AthleteData[[#This Row],[Last_name]],\", \",AthleteData[[#This Row],[First_name]])","v":", "}]
[{"$f":"_xlfn.CONCAT(AthleteData[[#This Row],[Last_name]],\", \",AthleteData[[#This Row],[First_name]])","v":", "}]
[{"$f":"_xlfn.CONCAT(AthleteData[[#This Row],[Last_name]],\", \",AthleteData[[#This Row],[First_name]])","v":", "}]
[{"$f":"_xlfn.CONCAT(AthleteData[[#This Row],[Last_name]],\", \",AthleteData[[#This Row],[First_name]])","v":", "}]
[{"$f":"_xlfn.CONCAT(AthleteData[[#This Row],[Last_name]],\", \",AthleteData[[#This Row],[First_name]])","v":", "}]
[{"$f":"_xlfn.CONCAT(AthleteData[[#This Row],[Last_name]],\", \",AthleteData[[#This Row],[First_name]])","v":", "}]
[{"$f":"_xlfn.CONCAT(AthleteData[[#This Row],[Last_name]],\", \",AthleteData[[#This Row],[First_name]])","v":", "}]
[{"$f":"_xlfn.CONCAT(AthleteData[[#This Row],[Last_name]],\", \",AthleteData[[#This Row],[First_name]])","v":", "}]
[{"$f":"_xlfn.CONCAT(AthleteData[[#This Row],[Last_name]],\", \",AthleteData[[#This Row],[First_name]])","v":", "}]
[{"$f":"_xlfn.CONCAT(AthleteData[[#This Row],[Last_name]],\", \",AthleteData[[#This Row],[First_name]])","v":", "}]
[{"$f":"_xlfn.CONCAT(AthleteData[[#This Row],[Last_name]],\", \",AthleteData[[#This Row],[First_name]])","v":", "}]
[{"$f":"_xlfn.CONCAT(AthleteData[[#This Row],[Last_name]],\", \",AthleteData[[#This Row],[First_name]])","v":", "}]
[{"$f":"_xlfn.CONCAT(AthleteData[[#This Row],[Last_name]],\", \",AthleteData[[#This Row],[First_name]])","v":", "}]
[{"$f":"_xlfn.CONCAT(AthleteData[[#This Row],[Last_name]],\", \",AthleteData[[#This Row],[First_name]])","v":", "}]
[{"$f":"_xlfn.CONCAT(AthleteData[[#This Row],[Last_name]],\", \",AthleteData[[#This Row],[First_name]])","v":", "}]
[{"$f":"_xlfn.CONCAT(AthleteData[[#This Row],[Last_name]],\", \",AthleteData[[#This Row],[First_name]])","v":", "}]
[{"$f":"_xlfn.CONCAT(AthleteData[[#This Row],[Last_name]],\", \",AthleteData[[#This Row],[First_name]])","v":", "}]
[{"$f":"_xlfn.CONCAT(AthleteData[[#This Row],[Last_name]],\", \",AthleteData[[#This Row],[First_name]])","v":", "}]
[{"$f":"_xlfn.CONCAT(AthleteData[[#This Row],[Last_name]],\", \",AthleteData[[#This Row],[First_name]])","v":", "}]
[{"$f":"_xlfn.CONCAT(AthleteData[[#This Row],[Last_name]],\", \",AthleteData[[#This Row],[First_name]])","v":", "}]
[{"$f":"_xlfn.CONCAT(AthleteData[[#This Row],[Last_name]],\", \",AthleteData[[#This Row],[First_name]])","v":", "}]
[{"$f":"_xlfn.CONCAT(AthleteData[[#This Row],[Last_name]],\", \",AthleteData[[#This Row],[First_name]])","v":", "}]
[{"$f":"_xlfn.CONCAT(AthleteData[[#This Row],[Last_name]],\", \",AthleteData[[#This Row],[First_name]])","v":", "}]
[{"$f":"_xlfn.CONCAT(AthleteData[[#This Row],[Last_name]],\", \",AthleteData[[#This Row],[First_name]])","v":", "}]
[{"$f":"_xlfn.CONCAT(AthleteData[[#This Row],[Last_name]],\", \",AthleteData[[#This Row],[First_name]])","v":", "}]
[{"$f":"_xlfn.CONCAT(AthleteData[[#This Row],[Last_name]],\", \",AthleteData[[#This Row],[First_name]])","v":", "}]
[{"$f":"_xlfn.CONCAT(AthleteData[[#This Row],[Last_name]],\", \",AthleteData[[#This Row],[First_name]])","v":", "}]
[{"$f":"_xlfn.CONCAT(AthleteData[[#This Row],[Last_name]],\", \",AthleteData[[#This Row],[First_name]])","v":", "}]
[{"$f":"_xlfn.CONCAT(AthleteData[[#This Row],[Last_name]],\", \",AthleteData[[#This Row],[First_name]])","v":", "}]
[{"$f":"_xlfn.CONCAT(AthleteData[[#This Row],[Last_name]],\", \",AthleteData[[#This Row],[First_name]])","v":", "}]
[{"$f":"_xlfn.CONCAT(AthleteData[[#This Row],[Last_name]],\", \",AthleteData[[#This Row],[First_name]])","v":", "}]
[{"$f":"_xlfn.CONCAT(AthleteData[[#This Row],[Last_name]],\", \",AthleteData[[#This Row],[First_name]])","v":", "}]
[{"$f":"_xlfn.CONCAT(AthleteData[[#This Row],[Last_name]],\", \",AthleteData[[#This Row],[First_name]])","v":", "}]
[{"$f":"_xlfn.CONCAT(AthleteData[[#This Row],[Last_name]],\", \",AthleteData[[#This Row],[First_name]])","v":", "}]
[{"$f":"_xlfn.CONCAT(AthleteData[[#This Row],[Last_name]],\", \",AthleteData[[#This Row],[First_name]])","v":", "}]
[{"$f":"_xlfn.CONCAT(AthleteData[[#This Row],[Last_name]],\", \",AthleteData[[#This Row],[First_name]])","v":", "}]
[{"$f":"_xlfn.CONCAT(AthleteData[[#This Row],[Last_name]],\", \",AthleteData[[#This Row],[First_name]])","v":", "}]
[{"$f":"_xlfn.CONCAT(AthleteData[[#This Row],[Last_name]],\", \",AthleteData[[#This Row],[First_name]])","v":", "}]
[{"$f":"_xlfn.CONCAT(AthleteData[[#This Row],[Last_name]],\", \",AthleteData[[#This Row],[First_name]])","v":", "}]
[{"$f":"_xlfn.CONCAT(AthleteData[[#This Row],[Last_name]],\", \",AthleteData[[#This Row],[First_name]])","v":", "}]
[{"$f":"_xlfn.CONCAT(AthleteData[[#This Row],[Last_name]],\", \",AthleteData[[#This Row],[First_name]])","v":", "}]
[{"$f":"_xlfn.CONCAT(AthleteData[[#This Row],[Last_name]],\", \",AthleteData[[#This Row],[First_name]])","v":", "}]
[{"$f":"_xlfn.CONCAT(AthleteData[[#This Row],[Last_name]],\", \",AthleteData[[#This Row],[First_name]])","v":", "}]
[{"$f":"_xlfn.CONCAT(AthleteData[[#This Row],[Last_name]],\", \",AthleteData[[#This Row],[First_name]])","v":", "}]
[{"$f":"_xlfn.CONCAT(AthleteData[[#This Row],[Last_name]],\", \",AthleteData[[#This Row],[First_name]])","v":", "}]
[{"$f":"_xlfn.CONCAT(AthleteData[[#This Row],[Last_name]],\", \",AthleteData[[#This Row],[First_name]])","v":", "}]
[{"$f":"_xlfn.CONCAT(AthleteData[[#This Row],[Last_name]],\", \",AthleteData[[#This Row],[First_name]])","v":", "}]
[{"$f":"_xlfn.CONCAT(AthleteData[[#This Row],[Last_name]],\", \",AthleteData[[#This Row],[First_name]])","v":", "}]
[{"$f":"_xlfn.CONCAT(AthleteData[[#This Row],[Last_name]],\", \",AthleteData[[#This Row],[First_name]])","v":", "}]
[{"$f":"_xlfn.CONCAT(AthleteData[[#This Row],[Last_name]],\", \",AthleteData[[#This Row],[First_name]])","v":", "}]
[{"$f":"_xlfn.CONCAT(AthleteData[[#This Row],[Last_name]],\", \",AthleteData[[#This Row],[First_name]])","v":", "}]
[{"$f":"_xlfn.CONCAT(AthleteData[[#This Row],[Last_name]],\", \",AthleteData[[#This Row],[First_name]])","v":", "}]
[{"$f":"_xlfn.CONCAT(AthleteData[[#This Row],[Last_name]],\", \",AthleteData[[#This Row],[First_name]])","v":", "}]
[{"$f":"_xlfn.CONCAT(AthleteData[[#This Row],[Last_name]],\", \",AthleteData[[#This Row],[First_name]])","v":", "}]
[{"$f":"_xlfn.CONCAT(AthleteData[[#This Row],[Last_name]],\", \",AthleteData[[#This Row],[First_name]])","v":", "}]
[{"$f":"_xlfn.CONCAT(AthleteData[[#This Row],[Last_name]],\", \",AthleteData[[#This Row],[First_name]])","v":", "}]
[{"$f":"_xlfn.CONCAT(AthleteData[[#This Row],[Last_name]],\", \",AthleteData[[#This Row],[First_name]])","v":", "}]
[{"$f":"_xlfn.CONCAT(AthleteData[[#This Row],[Last_name]],\", \",AthleteData[[#This Row],[First_name]])","v":", "}]
[{"$f":"_xlfn.CONCAT(AthleteData[[#This Row],[Last_name]],\", \",AthleteData[[#This Row],[First_name]])","v":", "}]
[{"$f":"_xlfn.CONCAT(AthleteData[[#This Row],[Last_name]],\", \",AthleteData[[#This Row],[First_name]])","v":", "}]
[{"$f":"_xlfn.CONCAT(AthleteData[[#This Row],[Last_name]],\", \",AthleteData[[#This Row],[First_name]])","v":", "}]
[{"$f":"_xlfn.CONCAT(AthleteData[[#This Row],[Last_name]],\", \",AthleteData[[#This Row],[First_name]])","v":", "}]
[{"$f":"_xlfn.CONCAT(AthleteData[[#This Row],[Last_name]],\", \",AthleteData[[#This Row],[First_name]])","v":", "}]
[{"$f":"_xlfn.CONCAT(AthleteData[[#This Row],[Last_name]],\", \",AthleteData[[#This Row],[First_name]])","v":", "}]
[{"$f":"_xlfn.CONCAT(AthleteData[[#This Row],[Last_name]],\", \",AthleteData[[#This Row],[First_name]])","v":", "}]
[{"$f":"_xlfn.CONCAT(AthleteData[[#This Row],[Last_name]],\", \",AthleteData[[#This Row],[First_name]])","v":", "}]
[{"$f":"_xlfn.CONCAT(AthleteData[[#This Row],[Last_name]],\", \",AthleteData[[#This Row],[First_name]])","v":", "}]
[{"$f":"_xlfn.CONCAT(AthleteData[[#This Row],[Last_name]],\", \",AthleteData[[#This Row],[First_name]])","v":", "}]
[{"$f":"_xlfn.CONCAT(AthleteData[[#This Row],[Last_name]],\", \",AthleteData[[#This Row],[First_name]])","v":", "}]
[{"$f":"_xlfn.CONCAT(AthleteData[[#This Row],[Last_name]],\", \",AthleteData[[#This Row],[First_name]])","v":", "}]
[{"$f":"_xlfn.CONCAT(AthleteData[[#This Row],[Last_name]],\", \",AthleteData[[#This Row],[First_name]])","v":", "}]
[{"$f":"_xlfn.CONCAT(AthleteData[[#This Row],[Last_name]],\", \",AthleteData[[#This Row],[First_name]])","v":", "}]
[{"$f":"_xlfn.CONCAT(AthleteData[[#This Row],[Last_name]],\", \",AthleteData[[#This Row],[First_name]])","v":", "}]
[{"$f":"_xlfn.CONCAT(AthleteData[[#This Row],[Last_name]],\", \",AthleteData[[#This Row],[First_name]])","v":", "}]
[{"$f":"_xlfn.CONCAT(AthleteData[[#This Row],[Last_name]],\", \",AthleteData[[#This Row],[First_name]])","v":", "}]
[{"$f":"_xlfn.CONCAT(AthleteData[[#This Row],[Last_name]],\", \",AthleteData[[#This Row],[First_name]])","v":", "}]
[{"$f":"_xlfn.CONCAT(AthleteData[[#This Row],[Last_name]],\", \",AthleteData[[#This Row],[First_name]])","v":", "}]
[{"$f":"_xlfn.CONCAT(AthleteData[[#This Row],[Last_name]],\", \",AthleteData[[#This Row],[First_name]])","v":", "}]
[{"$f":"_xlfn.CONCAT(AthleteData[[#This Row],[Last_name]],\", \",AthleteData[[#This Row],[First_name]])","v":", "}]
[{"$f":"_xlfn.CONCAT(AthleteData[[#This Row],[Last_name]],\", \",AthleteData[[#This Row],[First_name]])","v":", "}]
[{"$f":"_xlfn.CONCAT(AthleteData[[#This Row],[Last_name]],\", \",AthleteData[[#This Row],[First_name]])","v":", "}]
[{"$f":"_xlfn.CONCAT(AthleteData[[#This Row],[Last_name]],\", \",AthleteData[[#This Row],[First_name]])","v":", "}]
[{"$f":"_xlfn.CONCAT(AthleteData[[#This Row],[Last_name]],\", \",AthleteData[[#This Row],[First_name]])","v":", "}]
[{"$f":"_xlfn.CONCAT(AthleteData[[#This Row],[Last_name]],\", \",AthleteData[[#This Row],[First_name]])","v":", "}]
[{"$f":"_xlfn.CONCAT(AthleteData[[#This Row],[Last_name]],\", \",AthleteData[[#This Row],[First_name]])","v":", "}]
[{"$f":"_xlfn.CONCAT(AthleteData[[#This Row],[Last_name]],\", \",AthleteData[[#This Row],[First_name]])","v":", "}]
[{"$f":"_xlfn.CONCAT(AthleteData[[#This Row],[Last_name]],\", \",AthleteData[[#This Row],[First_name]])","v":", "}]
[{"$f":"_xlfn.CONCAT(AthleteData[[#This Row],[Last_name]],\", \",AthleteData[[#This Row],[First_name]])","v":", "}]
[{"$f":"_xlfn.CONCAT(AthleteData[[#This Row],[Last_name]],\", \",AthleteData[[#This Row],[First_name]])","v":", "}]
[{"$f":"_xlfn.CONCAT(AthleteData[[#This Row],[Last_name]],\", \",AthleteData[[#This Row],[First_name]])","v":", "}]
[{"$f":"_xlfn.CONCAT(AthleteData[[#This Row],[Last_name]],\", \",AthleteData[[#This Row],[First_name]])","v":", "}]
[{"$f":"_xlfn.CONCAT(AthleteData[[#This Row],[Last_name]],\", \",AthleteData[[#This Row],[First_name]])","v":", "}]
[{"$f":"_xlfn.CONCAT(AthleteData[[#This Row],[Last_name]],\", \",AthleteData[[#This Row],[First_name]])","v":", "}]
[{"$f":"_xlfn.CONCAT(AthleteData[[#This Row],[Last_name]],\", \",AthleteData[[#This Row],[First_name]])","v":", "}]
[{"$f":"_xlfn.CONCAT(AthleteData[[#This Row],[Last_name]],\", \",AthleteData[[#This Row],[First_name]])","v":", "}]
[{"$f":"_xlfn.CONCAT(AthleteData[[#This Row],[Last_name]],\", \",AthleteData[[#This Row],[First_name]])","v":", "}]
[{"$f":"_xlfn.CONCAT(AthleteData[[#This Row],[Last_name]],\", \",AthleteData[[#This Row],[First_name]])","v":", "}]
[{"$f":"_xlfn.CONCAT(AthleteData[[#This Row],[Last_name]],\", \",AthleteData[[#This Row],[First_name]])","v":", "}]
[{"$f":"_xlfn.CONCAT(AthleteData[[#This Row],[Last_name]],\", \",AthleteData[[#This Row],[First_name]])","v":", "}]
[{"$f":"_xlfn.CONCAT(AthleteData[[#This Row],[Last_name]],\", \",AthleteData[[#This Row],[First_name]])","v":", "}]
[{"$f":"_xlfn.CONCAT(AthleteData[[#This Row],[Last_name]],\", \",AthleteData[[#This Row],[First_name]])","v":", "}]
[{"$f":"_xlfn.CONCAT(AthleteData[[#This Row],[Last_name]],\", \",AthleteData[[#This Row],[First_name]])","v":", "}]
[{"$f":"_xlfn.CONCAT(AthleteData[[#This Row],[Last_name]],\", \",AthleteData[[#This Row],[First_name]])","v":", "}]
[{"$f":"_xlfn.CONCAT(AthleteData[[#This Row],[Last_name]],\", \",AthleteData[[#This Row],[First_name]])","v":", "}]
[{"$f":"_xlfn.CONCAT(AthleteData[[#This Row],[Last_name]],\", \",AthleteData[[#This Row],[First_name]])","v":", "}]
[{"$f":"_xlfn.CONCAT(AthleteData[[#This Row],[Last_name]],\", \",AthleteData[[#This Row],[First_name]])","v":", "}]
[{"$f":"_xlfn.CONCAT(AthleteData[[#This Row],[Last_name]],\", \",AthleteData[[#This Row],[First_name]])","v":", "}]
[{"$f":"_xlfn.CONCAT(AthleteData[[#This Row],[Last_name]],\", \",AthleteData[[#This Row],[First_name]])","v":", "}]
[{"$f":"_xlfn.CONCAT(AthleteData[[#This Row],[Last_name]],\", \",AthleteData[[#This Row],[First_name]])","v":", "}]
[{"$f":"_xlfn.CONCAT(AthleteData[[#This Row],[Last_name]],\", \",AthleteData[[#This Row],[First_name]])","v":", "}]
[{"$f":"_xlfn.CONCAT(AthleteData[[#This Row],[Last_name]],\", \",AthleteData[[#This Row],[First_name]])","v":", "}]
[{"$f":"_xlfn.CONCAT(AthleteData[[#This Row],[Last_name]],\", \",AthleteData[[#This Row],[First_name]])","v":", "}]
[{"$f":"_xlfn.CONCAT(AthleteData[[#This Row],[Last_name]],\", \",AthleteData[[#This Row],[First_name]])","v":", "}]
[{"$f":"_xlfn.CONCAT(AthleteData[[#This Row],[Last_name]],\", \",AthleteData[[#This Row],[First_name]])","v":", "}]
[{"$f":"_xlfn.CONCAT(AthleteData[[#This Row],[Last_name]],\", \",AthleteData[[#This Row],[First_name]])","v":", "}]
[{"$f":"_xlfn.CONCAT(AthleteData[[#This Row],[Last_name]],\", \",AthleteData[[#This Row],[First_name]])","v":", "}]
[{"$f":"_xlfn.CONCAT(AthleteData[[#This Row],[Last_name]],\", \",AthleteData[[#This Row],[First_name]])","v":", "}]
[{"$f":"_xlfn.CONCAT(AthleteData[[#This Row],[Last_name]],\", \",AthleteData[[#This Row],[First_name]])","v":", "}]
[{"$f":"_xlfn.CONCAT(AthleteData[[#This Row],[Last_name]],\", \",AthleteData[[#This Row],[First_name]])","v":", "}]
[{"$f":"_xlfn.CONCAT(AthleteData[[#This Row],[Last_name]],\", \",AthleteData[[#This Row],[First_name]])","v":", "}]
[{"$f":"_xlfn.CONCAT(AthleteData[[#This Row],[Last_name]],\", \",AthleteData[[#This Row],[First_name]])","v":", "}]
[{"$f":"_xlfn.CONCAT(AthleteData[[#This Row],[Last_name]],\", \",AthleteData[[#This Row],[First_name]])","v":", "}]
[{"$f":"_xlfn.CONCAT(AthleteData[[#This Row],[Last_name]],\", \",AthleteData[[#This Row],[First_name]])","v":", "}]
[{"$f":"_xlfn.CONCAT(AthleteData[[#This Row],[Last_name]],\", \",AthleteData[[#This Row],[First_name]])","v":", "}]
[{"$f":"_xlfn.CONCAT(AthleteData[[#This Row],[Last_name]],\", \",AthleteData[[#This Row],[First_name]])","v":", "}]
[{"$f":"_xlfn.CONCAT(AthleteData[[#This Row],[Last_name]],\", \",AthleteData[[#This Row],[First_name]])","v":", "}]
[{"$f":"_xlfn.CONCAT(AthleteData[[#This Row],[Last_name]],\", \",AthleteData[[#This Row],[First_name]])","v":", "}]
[{"$f":"_xlfn.CONCAT(AthleteData[[#This Row],[Last_name]],\", \",AthleteData[[#This Row],[First_name]])","v":", "}]
[{"$f":"_xlfn.CONCAT(AthleteData[[#This Row],[Last_name]],\", \",AthleteData[[#This Row],[First_name]])","v":", "}]
[{"$f":"_xlfn.CONCAT(AthleteData[[#This Row],[Last_name]],\", \",AthleteData[[#This Row],[First_name]])","v":", "}]
[{"$f":"_xlfn.CONCAT(AthleteData[[#This Row],[Last_name]],\", \",AthleteData[[#This Row],[First_name]])","v":", "}]
[{"$f":"_xlfn.CONCAT(AthleteData[[#This Row],[Last_name]],\", \",AthleteData[[#This Row],[First_name]])","v":", "}]
[{"$f":"_xlfn.CONCAT(AthleteData[[#This Row],[Last_name]],\", \",AthleteData[[#This Row],[First_name]])","v":", "}]
[{"$f":"_xlfn.CONCAT(AthleteData[[#This Row],[Last_name]],\", \",AthleteData[[#This Row],[First_name]])","v":", "}]
[{"$f":"_xlfn.CONCAT(AthleteData[[#This Row],[Last_name]],\", \",AthleteData[[#This Row],[First_name]])","v":", "}]
[{"$f":"_xlfn.CONCAT(AthleteData[[#This Row],[Last_name]],\", \",AthleteData[[#This Row],[First_name]])","v":", "}]
[{"$f":"_xlfn.CONCAT(AthleteData[[#This Row],[Last_name]],\", \",AthleteData[[#This Row],[First_name]])","v":", "}]
[{"$f":"_xlfn.CONCAT(AthleteData[[#This Row],[Last_name]],\", \",AthleteData[[#This Row],[First_name]])","v":", "}]
[{"$f":"_xlfn.CONCAT(AthleteData[[#This Row],[Last_name]],\", \",AthleteData[[#This Row],[First_name]])","v":", "}]
[{"$f":"_xlfn.CONCAT(AthleteData[[#This Row],[Last_name]],\", \",AthleteData[[#This Row],[First_name]])","v":", "}]
[{"$f":"_xlfn.CONCAT(AthleteData[[#This Row],[Last_name]],\", \",AthleteData[[#This Row],[First_name]])","v":", "}]
[{"$f":"_xlfn.CONCAT(AthleteData[[#This Row],[Last_name]],\", \",AthleteData[[#This Row],[First_name]])","v":", "}]
[{"$f":"_xlfn.CONCAT(AthleteData[[#This Row],[Last_name]],\", \",AthleteData[[#This Row],[First_name]])","v":", "}]
[{"$f":"_xlfn.CONCAT(AthleteData[[#This Row],[Last_name]],\", \",AthleteData[[#This Row],[First_name]])","v":", "}]
[{"$f":"_xlfn.CONCAT(AthleteData[[#This Row],[Last_name]],\", \",AthleteData[[#This Row],[First_name]])","v":", "}]
[{"$f":"_xlfn.CONCAT(AthleteData[[#This Row],[Last_name]],\", \",AthleteData[[#This Row],[First_name]])","v":", "}]
[{"$f":"_xlfn.CONCAT(AthleteData[[#This Row],[Last_name]],\", \",AthleteData[[#This Row],[First_name]])","v":", "}]
[{"$f":"_xlfn.CONCAT(AthleteData[[#This Row],[Last_name]],\", \",AthleteData[[#This Row],[First_name]])","v":", "}]
[{"$f":"_xlfn.CONCAT(AthleteData[[#This Row],[Last_name]],\", \",AthleteData[[#This Row],[First_name]])","v":", "}]
[{"$f":"_xlfn.CONCAT(AthleteData[[#This Row],[Last_name]],\", \",AthleteData[[#This Row],[First_name]])","v":", "}]
[{"$f":"_xlfn.CONCAT(AthleteData[[#This Row],[Last_name]],\", \",AthleteData[[#This Row],[First_name]])","v":", "}]
[{"$f":"_xlfn.CONCAT(AthleteData[[#This Row],[Last_name]],\", \",AthleteData[[#This Row],[First_name]])","v":", "}]
[{"$f":"_xlfn.CONCAT(AthleteData[[#This Row],[Last_name]],\", \",AthleteData[[#This Row],[First_name]])","v":", "}]
[{"$f":"_xlfn.CONCAT(AthleteData[[#This Row],[Last_name]],\", \",AthleteData[[#This Row],[First_name]])","v":", "}]
[{"$f":"_xlfn.CONCAT(AthleteData[[#This Row],[Last_name]],\", \",AthleteData[[#This Row],[First_name]])","v":", "}]
[{"$f":"_xlfn.CONCAT(AthleteData[[#This Row],[Last_name]],\", \",AthleteData[[#This Row],[First_name]])","v":", "}]
[{"$f":"_xlfn.CONCAT(AthleteData[[#This Row],[Last_name]],\", \",AthleteData[[#This Row],[First_name]])","v":", "}]
[{"$f":"_xlfn.CONCAT(AthleteData[[#This Row],[Last_name]],\", \",AthleteData[[#This Row],[First_name]])","v":", "}]
[{"$f":"_xlfn.CONCAT(AthleteData[[#This Row],[Last_name]],\", \",AthleteData[[#This Row],[First_name]])","v":", "}]
[{"$f":"_xlfn.CONCAT(AthleteData[[#This Row],[Last_name]],\", \",AthleteData[[#This Row],[First_name]])","v":", "}]
[{"$f":"_xlfn.CONCAT(AthleteData[[#This Row],[Last_name]],\", \",AthleteData[[#This Row],[First_name]])","v":", "}]
[{"$f":"_xlfn.CONCAT(AthleteData[[#This Row],[Last_name]],\", \",AthleteData[[#This Row],[First_name]])","v":", "}]
[{"$f":"_xlfn.CONCAT(AthleteData[[#This Row],[Last_name]],\", \",AthleteData[[#This Row],[First_name]])","v":", "}]
[{"$f":"_xlfn.CONCAT(AthleteData[[#This Row],[Last_name]],\", \",AthleteData[[#This Row],[First_name]])","v":", "}]
[{"$f":"_xlfn.CONCAT(AthleteData[[#This Row],[Last_name]],\", \",AthleteData[[#This Row],[First_name]])","v":", "}]
[{"$f":"_xlfn.CONCAT(AthleteData[[#This Row],[Last_name]],\", \",AthleteData[[#This Row],[First_name]])","v":", "}]
[{"$f":"_xlfn.CONCAT(AthleteData[[#This Row],[Last_name]],\", \",AthleteData[[#This Row],[First_name]])","v":", "}]
[{"$f":"_xlfn.CONCAT(AthleteData[[#This Row],[Last_name]],\", \",AthleteData[[#This Row],[First_name]])","v":", "}]
[{"$f":"_xlfn.CONCAT(AthleteData[[#This Row],[Last_name]],\", \",AthleteData[[#This Row],[First_name]])","v":", "}]
[{"$f":"_xlfn.CONCAT(AthleteData[[#This Row],[Last_name]],\", \",AthleteData[[#This Row],[First_name]])","v":", "}]
[{"$f":"_xlfn.CONCAT(AthleteData[[#This Row],[Last_name]],\", \",AthleteData[[#This Row],[First_name]])","v":", "}]
[{"$f":"_xlfn.CONCAT(AthleteData[[#This Row],[Last_name]],\", \",AthleteData[[#This Row],[First_name]])","v":", "}]
[{"$f":"_xlfn.CONCAT(AthleteData[[#This Row],[Last_name]],\", \",AthleteData[[#This Row],[First_name]])","v":", "}]
[{"$f":"_xlfn.CONCAT(AthleteData[[#This Row],[Last_name]],\", \",AthleteData[[#This Row],[First_name]])","v":", "}]
[{"$f":"_xlfn.CONCAT(AthleteData[[#This Row],[Last_name]],\", \",AthleteData[[#This Row],[First_name]])","v":", "}]
[{"$f":"_xlfn.CONCAT(AthleteData[[#This Row],[Last_name]],\", \",AthleteData[[#This Row],[First_name]])","v":", "}]
[{"$f":"_xlfn.CONCAT(AthleteData[[#This Row],[Last_name]],\", \",AthleteData[[#This Row],[First_name]])","v":", "}]
[{"$f":"_xlfn.CONCAT(AthleteData[[#This Row],[Last_name]],\", \",AthleteData[[#This Row],[First_name]])","v":", "}]
[{"$f":"_xlfn.CONCAT(AthleteData[[#This Row],[Last_name]],\", \",AthleteData[[#This Row],[First_name]])","v":", "}]
[{"$f":"_xlfn.CONCAT(AthleteData[[#This Row],[Last_name]],\", \",AthleteData[[#This Row],[First_name]])","v":", "}]
[{"$f":"_xlfn.CONCAT(AthleteData[[#This Row],[Last_name]],\", \",AthleteData[[#This Row],[First_name]])","v":", "}]
[{"$f":"_xlfn.CONCAT(AthleteData[[#This Row],[Last_name]],\", \",AthleteData[[#This Row],[First_name]])","v":", "}]
[{"$f":"_xlfn.CONCAT(AthleteData[[#This Row],[Last_name]],\", \",AthleteData[[#This Row],[First_name]])","v":", "}]
[{"$f":"_xlfn.CONCAT(AthleteData[[#This Row],[Last_name]],\", \",AthleteData[[#This Row],[First_name]])","v":", "}]
[{"$f":"_xlfn.CONCAT(AthleteData[[#This Row],[Last_name]],\", \",AthleteData[[#This Row],[First_name]])","v":", "}]
[{"$f":"_xlfn.CONCAT(AthleteData[[#This Row],[Last_name]],\", \",AthleteData[[#This Row],[First_name]])","v":", "}]
[{"$f":"_xlfn.CONCAT(AthleteData[[#This Row],[Last_name]],\", \",AthleteData[[#This Row],[First_name]])","v":", "}]
[{"$f":"_xlfn.CONCAT(AthleteData[[#This Row],[Last_name]],\", \",AthleteData[[#This Row],[First_name]])","v":", "}]
[{"$f":"_xlfn.CONCAT(AthleteData[[#This Row],[Last_name]],\", \",AthleteData[[#This Row],[First_name]])","v":", "}]
[{"$f":"_xlfn.CONCAT(AthleteData[[#This Row],[Last_name]],\", \",AthleteData[[#This Row],[First_name]])","v":", "}]
[{"$f":"_xlfn.CONCAT(AthleteData[[#This Row],[Last_name]],\", \",AthleteData[[#This Row],[First_name]])","v":", "}]
[{"$f":"_xlfn.CONCAT(AthleteData[[#This Row],[Last_name]],\", \",AthleteData[[#This Row],[First_name]])","v":", "}]
[{"$f":"_xlfn.CONCAT(AthleteData[[#This Row],[Last_name]],\", \",AthleteData[[#This Row],[First_name]])","v":", "}]
[{"$f":"_xlfn.CONCAT(AthleteData[[#This Row],[Last_name]],\", \",AthleteData[[#This Row],[First_name]])","v":", "}]
[{"$f":"_xlfn.CONCAT(AthleteData[[#This Row],[Last_name]],\", \",AthleteData[[#This Row],[First_name]])","v":", "}]
[{"$f":"_xlfn.CONCAT(AthleteData[[#This Row],[Last_name]],\", \",AthleteData[[#This Row],[First_name]])","v":", "}]
[{"$f":"_xlfn.CONCAT(AthleteData[[#This Row],[Last_name]],\", \",AthleteData[[#This Row],[First_name]])","v":", "}]
[{"$f":"_xlfn.CONCAT(AthleteData[[#This Row],[Last_name]],\", \",AthleteData[[#This Row],[First_name]])","v":", "}]
[{"$f":"_xlfn.CONCAT(AthleteData[[#This Row],[Last_name]],\", \",AthleteData[[#This Row],[First_name]])","v":", "}]
[{"$f":"_xlfn.CONCAT(AthleteData[[#This Row],[Last_name]],\", \",AthleteData[[#This Row],[First_name]])","v":", "}]
[{"$f":"_xlfn.CONCAT(AthleteData[[#This Row],[Last_name]],\", \",AthleteData[[#This Row],[First_name]])","v":", "}]
[{"$f":"_xlfn.CONCAT(AthleteData[[#This Row],[Last_name]],\", \",AthleteData[[#This Row],[First_name]])","v":", "}]
[{"$f":"_xlfn.CONCAT(AthleteData[[#This Row],[Last_name]],\", \",AthleteData[[#This Row],[First_name]])","v":", "}]
[{"$f":"_xlfn.CONCAT(AthleteData[[#This Row],[Last_name]],\", \",AthleteData[[#This Row],[First_name]])","v":", "}]
[{"$f":"_xlfn.CONCAT(AthleteData[[#This Row],[Last_name]],\", \",AthleteData[[#This Row],[First_name]])","v":", "}]
[{"$f":"_xlfn.CONCAT(AthleteData[[#This Row],[Last_name]],\", \",AthleteData[[#This Row],[First_name]])","v":", "}]
[{"$f":"_xlfn.CONCAT(AthleteData[[#This Row],[Last_name]],\", \",AthleteData[[#This Row],[First_name]])","v":", "}]
[{"$f":"_xlfn.CONCAT(AthleteData[[#This Row],[Last_name]],\", \",AthleteData[[#This Row],[First_name]])","v":", "}]
[{"$f":"_xlfn.CONCAT(AthleteData[[#This Row],[Last_name]],\", \",AthleteData[[#This Row],[First_name]])","v":", "}]
[{"$f":"_xlfn.CONCAT(AthleteData[[#This Row],[Last_name]],\", \",AthleteData[[#This Row],[First_name]])","v":", "}]
[{"$f":"_xlfn.CONCAT(AthleteData[[#This Row],[Last_name]],\", \",AthleteData[[#This Row],[First_name]])","v":", "}]
[{"$f":"_xlfn.CONCAT(AthleteData[[#This Row],[Last_name]],\", \",AthleteData[[#This Row],[First_name]])","v":", "}]
[{"$f":"_xlfn.CONCAT(AthleteData[[#This Row],[Last_name]],\", \",AthleteData[[#This Row],[First_name]])","v":", "}]
[{"$f":"_xlfn.CONCAT(AthleteData[[#This Row],[Last_name]],\", \",AthleteData[[#This Row],[First_name]])","v":", "}]
[{"$f":"_xlfn.CONCAT(AthleteData[[#This Row],[Last_name]],\", \",AthleteData[[#This Row],[First_name]])","v":", "}]
[{"$f":"_xlfn.CONCAT(AthleteData[[#This Row],[Last_name]],\", \",AthleteData[[#This Row],[First_name]])","v":", "}]
[{"$f":"_xlfn.CONCAT(AthleteData[[#This Row],[Last_name]],\", \",AthleteData[[#This Row],[First_name]])","v":", "}]
[{"$f":"_xlfn.CONCAT(AthleteData[[#This Row],[Last_name]],\", \",AthleteData[[#This Row],[First_name]])","v":", "}]
[{"$f":"_xlfn.CONCAT(AthleteData[[#This Row],[Last_name]],\", \",AthleteData[[#This Row],[First_name]])","v":", "}]
[{"$f":"_xlfn.CONCAT(AthleteData[[#This Row],[Last_name]],\", \",AthleteData[[#This Row],[First_name]])","v":", "}]
[{"$f":"_xlfn.CONCAT(AthleteData[[#This Row],[Last_name]],\", \",AthleteData[[#This Row],[First_name]])","v":", "}]
[{"$f":"_xlfn.CONCAT(AthleteData[[#This Row],[Last_name]],\", \",AthleteData[[#This Row],[First_name]])","v":", "}]
[{"$f":"_xlfn.CONCAT(AthleteData[[#This Row],[Last_name]],\", \",AthleteData[[#This Row],[First_name]])","v":", "}]
[{"$f":"_xlfn.CONCAT(AthleteData[[#This Row],[Last_name]],\", \",AthleteData[[#This Row],[First_name]])","v":", "}]
[{"$f":"_xlfn.CONCAT(AthleteData[[#This Row],[Last_name]],\", \",AthleteData[[#This Row],[First_name]])","v":", "}]
[{"$f":"_xlfn.CONCAT(AthleteData[[#This Row],[Last_name]],\", \",AthleteData[[#This Row],[First_name]])","v":", "}]
[{"$f":"_xlfn.CONCAT(AthleteData[[#This Row],[Last_name]],\", \",AthleteData[[#This Row],[First_name]])","v":", "}]
[{"$f":"_xlfn.CONCAT(AthleteData[[#This Row],[Last_name]],\", \",AthleteData[[#This Row],[First_name]])","v":", "}]
[{"$f":"_xlfn.CONCAT(AthleteData[[#This Row],[Last_name]],\", \",AthleteData[[#This Row],[First_name]])","v":", "}]
[{"$f":"_xlfn.CONCAT(AthleteData[[#This Row],[Last_name]],\", \",AthleteData[[#This Row],[First_name]])","v":", "}]
[{"$f":"_xlfn.CONCAT(AthleteData[[#This Row],[Last_name]],\", \",AthleteData[[#This Row],[First_name]])","v":", "}]
[{"$f":"_xlfn.CONCAT(AthleteData[[#This Row],[Last_name]],\", \",AthleteData[[#This Row],[First_name]])","v":", "}]
[{"$f":"_xlfn.CONCAT(AthleteData[[#This Row],[Last_name]],\", \",AthleteData[[#This Row],[First_name]])","v":", "}]
[{"$f":"_xlfn.CONCAT(AthleteData[[#This Row],[Last_name]],\", \",AthleteData[[#This Row],[First_name]])","v":", "}]
[{"$f":"_xlfn.CONCAT(AthleteData[[#This Row],[Last_name]],\", \",AthleteData[[#This Row],[First_name]])","v":", "}]
[{"$f":"_xlfn.CONCAT(AthleteData[[#This Row],[Last_name]],\", \",AthleteData[[#This Row],[First_name]])","v":", "}]
[{"$f":"_xlfn.CONCAT(AthleteData[[#This Row],[Last_name]],\", \",AthleteData[[#This Row],[First_name]])","v":", "}]
[{"$f":"_xlfn.CONCAT(AthleteData[[#This Row],[Last_name]],\", \",AthleteData[[#This Row],[First_name]])","v":", "}]
[{"$f":"_xlfn.CONCAT(AthleteData[[#This Row],[Last_name]],\", \",AthleteData[[#This Row],[First_name]])","v":", "}]
[{"$f":"_xlfn.CONCAT(AthleteData[[#This Row],[Last_name]],\", \",AthleteData[[#This Row],[First_name]])","v":", "}]
[{"$f":"_xlfn.CONCAT(AthleteData[[#This Row],[Last_name]],\", \",AthleteData[[#This Row],[First_name]])","v":", "}]
[{"$f":"_xlfn.CONCAT(AthleteData[[#This Row],[Last_name]],\", \",AthleteData[[#This Row],[First_name]])","v":", "}]
[{"$f":"_xlfn.CONCAT(AthleteData[[#This Row],[Last_name]],\", \",AthleteData[[#This Row],[First_name]])","v":", "}]
[{"$f":"_xlfn.CONCAT(AthleteData[[#This Row],[Last_name]],\", \",AthleteData[[#This Row],[First_name]])","v":", "}]
[{"$f":"_xlfn.CONCAT(AthleteData[[#This Row],[Last_name]],\", \",AthleteData[[#This Row],[First_name]])","v":", "}]
[{"$f":"_xlfn.CONCAT(AthleteData[[#This Row],[Last_name]],\", \",AthleteData[[#This Row],[First_name]])","v":", "}]
[{"$f":"_xlfn.CONCAT(AthleteData[[#This Row],[Last_name]],\", \",AthleteData[[#This Row],[First_name]])","v":", "}]
[{"$f":"_xlfn.CONCAT(AthleteData[[#This Row],[Last_name]],\", \",AthleteData[[#This Row],[First_name]])","v":", "}]
[{"$f":"_xlfn.CONCAT(AthleteData[[#This Row],[Last_name]],\", \",AthleteData[[#This Row],[First_name]])","v":", "}]
[{"$f":"_xlfn.CONCAT(AthleteData[[#This Row],[Last_name]],\", \",AthleteData[[#This Row],[First_name]])","v":", "}]
[{"$f":"_xlfn.CONCAT(AthleteData[[#This Row],[Last_name]],\", \",AthleteData[[#This Row],[First_name]])","v":", "}]
[{"$f":"_xlfn.CONCAT(AthleteData[[#This Row],[Last_name]],\", \",AthleteData[[#This Row],[First_name]])","v":", "}]
[{"$f":"_xlfn.CONCAT(AthleteData[[#This Row],[Last_name]],\", \",AthleteData[[#This Row],[First_name]])","v":", "}]
[{"$f":"_xlfn.CONCAT(AthleteData[[#This Row],[Last_name]],\", \",AthleteData[[#This Row],[First_name]])","v":", "}]
[{"$f":"_xlfn.CONCAT(AthleteData[[#This Row],[Last_name]],\", \",AthleteData[[#This Row],[First_name]])","v":", "}]
[{"$f":"_xlfn.CONCAT(AthleteData[[#This Row],[Last_name]],\", \",AthleteData[[#This Row],[First_name]])","v":", "}]
[{"$f":"_xlfn.CONCAT(AthleteData[[#This Row],[Last_name]],\", \",AthleteData[[#This Row],[First_name]])","v":", "}]
[{"$f":"_xlfn.CONCAT(AthleteData[[#This Row],[Last_name]],\", \",AthleteData[[#This Row],[First_name]])","v":", "}]
[{"$f":"_xlfn.CONCAT(AthleteData[[#This Row],[Last_name]],\", \",AthleteData[[#This Row],[First_name]])","v":", "}]
[{"$f":"_xlfn.CONCAT(AthleteData[[#This Row],[Last_name]],\", \",AthleteData[[#This Row],[First_name]])","v":", "}]
[{"$f":"_xlfn.CONCAT(AthleteData[[#This Row],[Last_name]],\", \",AthleteData[[#This Row],[First_name]])","v":", "}]
[{"$f":"_xlfn.CONCAT(AthleteData[[#This Row],[Last_name]],\", \",AthleteData[[#This Row],[First_name]])","v":", "}]
[{"$f":"_xlfn.CONCAT(AthleteData[[#This Row],[Last_name]],\", \",AthleteData[[#This Row],[First_name]])","v":", "}]
[{"$f":"_xlfn.CONCAT(AthleteData[[#This Row],[Last_name]],\", \",AthleteData[[#This Row],[First_name]])","v":", "}]
[{"$f":"_xlfn.CONCAT(AthleteData[[#This Row],[Last_name]],\", \",AthleteData[[#This Row],[First_name]])","v":", "}]
[{"$f":"_xlfn.CONCAT(AthleteData[[#This Row],[Last_name]],\", \",AthleteData[[#This Row],[First_name]])","v":", "}]
[{"$f":"_xlfn.CONCAT(AthleteData[[#This Row],[Last_name]],\", \",AthleteData[[#This Row],[First_name]])","v":", "}]
[{"$f":"_xlfn.CONCAT(AthleteData[[#This Row],[Last_name]],\", \",AthleteData[[#This Row],[First_name]])","v":", "}]
[{"$f":"_xlfn.CONCAT(AthleteData[[#This Row],[Last_name]],\", \",AthleteData[[#This Row],[First_name]])","v":", "}]
[{"$f":"_xlfn.CONCAT(AthleteData[[#This Row],[Last_name]],\", \",AthleteData[[#This Row],[First_name]])","v":", "}]
[{"$f":"_xlfn.CONCAT(AthleteData[[#This Row],[Last_name]],\", \",AthleteData[[#This Row],[First_name]])","v":", "}]
[{"$f":"_xlfn.CONCAT(AthleteData[[#This Row],[Last_name]],\", \",AthleteData[[#This Row],[First_name]])","v":", "}]
[{"$f":"_xlfn.CONCAT(AthleteData[[#This Row],[Last_name]],\", \",AthleteData[[#This Row],[First_name]])","v":", "}]
[{"$f":"_xlfn.CONCAT(AthleteData[[#This Row],[Last_name]],\", \",AthleteData[[#This Row],[First_name]])","v":", "}]
[{"$f":"_xlfn.CONCAT(AthleteData[[#This Row],[Last_name]],\", \",AthleteData[[#This Row],[First_name]])","v":", "}]
[{"$f":"_xlfn.CONCAT(AthleteData[[#This Row],[Last_name]],\", \",AthleteData[[#This Row],[First_name]])","v":", "}]
[{"$f":"_xlfn.CONCAT(AthleteData[[#This Row],[Last_name]],\", \",AthleteData[[#This Row],[First_name]])","v":", "}]
[{"$f":"_xlfn.CONCAT(AthleteData[[#This Row],[Last_name]],\", \",AthleteData[[#This Row],[First_name]])","v":", "}]
[{"$f":"_xlfn.CONCAT(AthleteData[[#This Row],[Last_name]],\", \",AthleteData[[#This Row],[First_name]])","v":", "}]
[{"$f":"_xlfn.CONCAT(AthleteData[[#This Row],[Last_name]],\", \",AthleteData[[#This Row],[First_name]])","v":", "}]
[{"$f":"_xlfn.CONCAT(AthleteData[[#This Row],[Last_name]],\", \",AthleteData[[#This Row],[First_name]])","v":", "}]
[{"$f":"_xlfn.CONCAT(AthleteData[[#This Row],[Last_name]],\", \",AthleteData[[#This Row],[First_name]])","v":", "}]
[{"$f":"_xlfn.CONCAT(AthleteData[[#This Row],[Last_name]],\", \",AthleteData[[#This Row],[First_name]])","v":", "}]
[{"$f":"_xlfn.CONCAT(AthleteData[[#This Row],[Last_name]],\", \",AthleteData[[#This Row],[First_name]])","v":", "}]
[{"$f":"_xlfn.CONCAT(AthleteData[[#This Row],[Last_name]],\", \",AthleteData[[#This Row],[First_name]])","v":", "}]
[{"$f":"_xlfn.CONCAT(AthleteData[[#This Row],[Last_name]],\", \",AthleteData[[#This Row],[First_name]])","v":", "}]
[{"$f":"_xlfn.CONCAT(AthleteData[[#This Row],[Last_name]],\", \",AthleteData[[#This Row],[First_name]])","v":", "}]
[{"$f":"_xlfn.CONCAT(AthleteData[[#This Row],[Last_name]],\", \",AthleteData[[#This Row],[First_name]])","v":", "}]
[{"$f":"_xlfn.CONCAT(AthleteData[[#This Row],[Last_name]],\", \",AthleteData[[#This Row],[First_name]])","v":", "}]
[{"$f":"_xlfn.CONCAT(AthleteData[[#This Row],[Last_name]],\", \",AthleteData[[#This Row],[First_name]])","v":", "}]
[{"$f":"_xlfn.CONCAT(AthleteData[[#This Row],[Last_name]],\", \",AthleteData[[#This Row],[First_name]])","v":", "}]
[{"$f":"_xlfn.CONCAT(AthleteData[[#This Row],[Last_name]],\", \",AthleteData[[#This Row],[First_name]])","v":", "}]
[{"$f":"_xlfn.CONCAT(AthleteData[[#This Row],[Last_name]],\", \",AthleteData[[#This Row],[First_name]])","v":", "}]
[{"$f":"_xlfn.CONCAT(AthleteData[[#This Row],[Last_name]],\", \",AthleteData[[#This Row],[First_name]])","v":", "}]
[{"$f":"_xlfn.CONCAT(AthleteData[[#This Row],[Last_name]],\", \",AthleteData[[#This Row],[First_name]])","v":", "}]
[{"$f":"_xlfn.CONCAT(AthleteData[[#This Row],[Last_name]],\", \",AthleteData[[#This Row],[First_name]])","v":", "}]
[{"$f":"_xlfn.CONCAT(AthleteData[[#This Row],[Last_name]],\", \",AthleteData[[#This Row],[First_name]])","v":", "}]
[{"$f":"_xlfn.CONCAT(AthleteData[[#This Row],[Last_name]],\", \",AthleteData[[#This Row],[First_name]])","v":", "}]
[{"$f":"_xlfn.CONCAT(AthleteData[[#This Row],[Last_name]],\", \",AthleteData[[#This Row],[First_name]])","v":", "}]
[{"$f":"_xlfn.CONCAT(AthleteData[[#This Row],[Last_name]],\", \",AthleteData[[#This Row],[First_name]])","v":", "}]
[{"$f":"_xlfn.CONCAT(AthleteData[[#This Row],[Last_name]],\", \",AthleteData[[#This Row],[First_name]])","v":", "}]
[{"$f":"_xlfn.CONCAT(AthleteData[[#This Row],[Last_name]],\", \",AthleteData[[#This Row],[First_name]])","v":", "}]
[{"$f":"_xlfn.CONCAT(AthleteData[[#This Row],[Last_name]],\", \",AthleteData[[#This Row],[First_name]])","v":", "}]
[{"$f":"_xlfn.CONCAT(AthleteData[[#This Row],[Last_name]],\", \",AthleteData[[#This Row],[First_name]])","v":", "}]
[{"$f":"_xlfn.CONCAT(AthleteData[[#This Row],[Last_name]],\", \",AthleteData[[#This Row],[First_name]])","v":", "}]
[{"$f":"_xlfn.CONCAT(AthleteData[[#This Row],[Last_name]],\", \",AthleteData[[#This Row],[First_name]])","v":", "}]
[{"$f":"_xlfn.CONCAT(AthleteData[[#This Row],[Last_name]],\", \",AthleteData[[#This Row],[First_name]])","v":", "}]
[{"$f":"_xlfn.CONCAT(AthleteData[[#This Row],[Last_name]],\", \",AthleteData[[#This Row],[First_name]])","v":", "}]
[{"$f":"_xlfn.CONCAT(AthleteData[[#This Row],[Last_name]],\", \",AthleteData[[#This Row],[First_name]])","v":", "}]
[{"$f":"_xlfn.CONCAT(AthleteData[[#This Row],[Last_name]],\", \",AthleteData[[#This Row],[First_name]])","v":", "}]
[{"$f":"_xlfn.CONCAT(AthleteData[[#This Row],[Last_name]],\", \",AthleteData[[#This Row],[First_name]])","v":", "}]
[{"$f":"_xlfn.CONCAT(AthleteData[[#This Row],[Last_name]],\", \",AthleteData[[#This Row],[First_name]])","v":", "}]
[{"$f":"_xlfn.CONCAT(AthleteData[[#This Row],[Last_name]],\", \",AthleteData[[#This Row],[First_name]])","v":", "}]
[{"$f":"_xlfn.CONCAT(AthleteData[[#This Row],[Last_name]],\", \",AthleteData[[#This Row],[First_name]])","v":", "}]
[{"$f":"_xlfn.CONCAT(AthleteData[[#This Row],[Last_name]],\", \",AthleteData[[#This Row],[First_name]])","v":", "}]
[{"$f":"_xlfn.CONCAT(AthleteData[[#This Row],[Last_name]],\", \",AthleteData[[#This Row],[First_name]])","v":", "}]
[{"$f":"_xlfn.CONCAT(AthleteData[[#This Row],[Last_name]],\", \",AthleteData[[#This Row],[First_name]])","v":", "}]
[{"$f":"_xlfn.CONCAT(AthleteData[[#This Row],[Last_name]],\", \",AthleteData[[#This Row],[First_name]])","v":", "}]
[{"$f":"_xlfn.CONCAT(AthleteData[[#This Row],[Last_name]],\", \",AthleteData[[#This Row],[First_name]])","v":", "}]
[{"$f":"_xlfn.CONCAT(AthleteData[[#This Row],[Last_name]],\", \",AthleteData[[#This Row],[First_name]])","v":", "}]
[{"$f":"_xlfn.CONCAT(AthleteData[[#This Row],[Last_name]],\", \",AthleteData[[#This Row],[First_name]])","v":", "}]
[{"$f":"_xlfn.CONCAT(AthleteData[[#This Row],[Last_name]],\", \",AthleteData[[#This Row],[First_name]])","v":", "}]
[{"$f":"_xlfn.CONCAT(AthleteData[[#This Row],[Last_name]],\", \",AthleteData[[#This Row],[First_name]])","v":", "}]
[{"$f":"_xlfn.CONCAT(AthleteData[[#This Row],[Last_name]],\", \",AthleteData[[#This Row],[First_name]])","v":", "}]
[{"$f":"_xlfn.CONCAT(AthleteData[[#This Row],[Last_name]],\", \",AthleteData[[#This Row],[First_name]])","v":", "}]
[{"$f":"_xlfn.CONCAT(AthleteData[[#This Row],[Last_name]],\", \",AthleteData[[#This Row],[First_name]])","v":", "}]
[{"$f":"_xlfn.CONCAT(AthleteData[[#This Row],[Last_name]],\", \",AthleteData[[#This Row],[First_name]])","v":", "}]
[{"$f":"_xlfn.CONCAT(AthleteData[[#This Row],[Last_name]],\", \",AthleteData[[#This Row],[First_name]])","v":", "}]
[{"$f":"_xlfn.CONCAT(AthleteData[[#This Row],[Last_name]],\", \",AthleteData[[#This Row],[First_name]])","v":", "}]
[{"$f":"_xlfn.CONCAT(AthleteData[[#This Row],[Last_name]],\", \",AthleteData[[#This Row],[First_name]])","v":", "}]
[{"$f":"_xlfn.CONCAT(AthleteData[[#This Row],[Last_name]],\", \",AthleteData[[#This Row],[First_name]])","v":", "}]
[{"$f":"_xlfn.CONCAT(AthleteData[[#This Row],[Last_name]],\", \",AthleteData[[#This Row],[First_name]])","v":", "}]
[{"$f":"_xlfn.CONCAT(AthleteData[[#This Row],[Last_name]],\", \",AthleteData[[#This Row],[First_name]])","v":", "}]
[{"$f":"_xlfn.CONCAT(AthleteData[[#This Row],[Last_name]],\", \",AthleteData[[#This Row],[First_name]])","v":", "}]
[{"$f":"_xlfn.CONCAT(AthleteData[[#This Row],[Last_name]],\", \",AthleteData[[#This Row],[First_name]])","v":", "}]
[{"$f":"_xlfn.CONCAT(AthleteData[[#This Row],[Last_name]],\", \",AthleteData[[#This Row],[First_name]])","v":", "}]
[{"$f":"_xlfn.CONCAT(AthleteData[[#This Row],[Last_name]],\", \",AthleteData[[#This Row],[First_name]])","v":", "}]
[{"$f":"_xlfn.CONCAT(AthleteData[[#This Row],[Last_name]],\", \",AthleteData[[#This Row],[First_name]])","v":", "}]
[{"$f":"_xlfn.CONCAT(AthleteData[[#This Row],[Last_name]],\", \",AthleteData[[#This Row],[First_name]])","v":", "}]
[{"$f":"_xlfn.CONCAT(AthleteData[[#This Row],[Last_name]],\", \",AthleteData[[#This Row],[First_name]])","v":", "}]
[{"$f":"_xlfn.CONCAT(AthleteData[[#This Row],[Last_name]],\", \",AthleteData[[#This Row],[First_name]])","v":", "}]
[{"$f":"_xlfn.CONCAT(AthleteData[[#This Row],[Last_name]],\", \",AthleteData[[#This Row],[First_name]])","v":", "}]
[{"$f":"_xlfn.CONCAT(AthleteData[[#This Row],[Last_name]],\", \",AthleteData[[#This Row],[First_name]])","v":", "}]
[{"$f":"_xlfn.CONCAT(AthleteData[[#This Row],[Last_name]],\", \",AthleteData[[#This Row],[First_name]])","v":", "}]
[{"$f":"_xlfn.CONCAT(AthleteData[[#This Row],[Last_name]],\", \",AthleteData[[#This Row],[First_name]])","v":", "}]
[{"$f":"_xlfn.CONCAT(AthleteData[[#This Row],[Last_name]],\", \",AthleteData[[#This Row],[First_name]])","v":", "}]
[{"$f":"_xlfn.CONCAT(AthleteData[[#This Row],[Last_name]],\", \",AthleteData[[#This Row],[First_name]])","v":", "}]
[{"$f":"_xlfn.CONCAT(AthleteData[[#This Row],[Last_name]],\", \",AthleteData[[#This Row],[First_name]])","v":", "}]
[{"$f":"_xlfn.CONCAT(AthleteData[[#This Row],[Last_name]],\", \",AthleteData[[#This Row],[First_name]])","v":", "}]
[{"$f":"_xlfn.CONCAT(AthleteData[[#This Row],[Last_name]],\", \",AthleteData[[#This Row],[First_name]])","v":", "}]
[{"$f":"_xlfn.CONCAT(AthleteData[[#This Row],[Last_name]],\", \",AthleteData[[#This Row],[First_name]])","v":", "}]
[{"$f":"_xlfn.CONCAT(AthleteData[[#This Row],[Last_name]],\", \",AthleteData[[#This Row],[First_name]])","v":", "}]
[{"$f":"_xlfn.CONCAT(AthleteData[[#This Row],[Last_name]],\", \",AthleteData[[#This Row],[First_name]])","v":", "}]
[{"$f":"_xlfn.CONCAT(AthleteData[[#This Row],[Last_name]],\", \",AthleteData[[#This Row],[First_name]])","v":", "}]
[{"$f":"_xlfn.CONCAT(AthleteData[[#This Row],[Last_name]],\", \",AthleteData[[#This Row],[First_name]])","v":", "}]
[{"$f":"_xlfn.CONCAT(AthleteData[[#This Row],[Last_name]],\", \",AthleteData[[#This Row],[First_name]])","v":", "}]
[{"$f":"_xlfn.CONCAT(AthleteData[[#This Row],[Last_name]],\", \",AthleteData[[#This Row],[First_name]])","v":", "}]
[{"$f":"_xlfn.CONCAT(AthleteData[[#This Row],[Last_name]],\", \",AthleteData[[#This Row],[First_name]])","v":", "}]
[{"$f":"_xlfn.CONCAT(AthleteData[[#This Row],[Last_name]],\", \",AthleteData[[#This Row],[First_name]])","v":", "}]
[{"$f":"_xlfn.CONCAT(AthleteData[[#This Row],[Last_name]],\", \",AthleteData[[#This Row],[First_name]])","v":", "}]
[{"$f":"_xlfn.CONCAT(AthleteData[[#This Row],[Last_name]],\", \",AthleteData[[#This Row],[First_name]])","v":", "}]
[{"$f":"_xlfn.CONCAT(AthleteData[[#This Row],[Last_name]],\", \",AthleteData[[#This Row],[First_name]])","v":", "}]
[{"$f":"_xlfn.CONCAT(AthleteData[[#This Row],[Last_name]],\", \",AthleteData[[#This Row],[First_name]])","v":", "}]
[{"$f":"_xlfn.CONCAT(AthleteData[[#This Row],[Last_name]],\", \",AthleteData[[#This Row],[First_name]])","v":", "}]
[{"$f":"_xlfn.CONCAT(AthleteData[[#This Row],[Last_name]],\", \",AthleteData[[#This Row],[First_name]])","v":", "}]
[{"$f":"_xlfn.CONCAT(AthleteData[[#This Row],[Last_name]],\", \",AthleteData[[#This Row],[First_name]])","v":", "}]
[{"$f":"_xlfn.CONCAT(AthleteData[[#This Row],[Last_name]],\", \",AthleteData[[#This Row],[First_name]])","v":", "}]
[{"$f":"_xlfn.CONCAT(AthleteData[[#This Row],[Last_name]],\", \",AthleteData[[#This Row],[First_name]])","v":", "}]
[{"$f":"_xlfn.CONCAT(AthleteData[[#This Row],[Last_name]],\", \",AthleteData[[#This Row],[First_name]])","v":", "}]
[{"$f":"_xlfn.CONCAT(AthleteData[[#This Row],[Last_name]],\", \",AthleteData[[#This Row],[First_name]])","v":", "}]
[{"$f":"_xlfn.CONCAT(AthleteData[[#This Row],[Last_name]],\", \",AthleteData[[#This Row],[First_name]])","v":", "}]
[{"$f":"_xlfn.CONCAT(AthleteData[[#This Row],[Last_name]],\", \",AthleteData[[#This Row],[First_name]])","v":", "}]
[{"$f":"_xlfn.CONCAT(AthleteData[[#This Row],[Last_name]],\", \",AthleteData[[#This Row],[First_name]])","v":", "}]
[{"$f":"_xlfn.CONCAT(AthleteData[[#This Row],[Last_name]],\", \",AthleteData[[#This Row],[First_name]])","v":", "}]
[{"$f":"_xlfn.CONCAT(AthleteData[[#This Row],[Last_name]],\", \",AthleteData[[#This Row],[First_name]])","v":", "}]
[{"$f":"_xlfn.CONCAT(AthleteData[[#This Row],[Last_name]],\", \",AthleteData[[#This Row],[First_name]])","v":", "}]
[{"$f":"_xlfn.CONCAT(AthleteData[[#This Row],[Last_name]],\", \",AthleteData[[#This Row],[First_name]])","v":", "}]
[{"$f":"_xlfn.CONCAT(AthleteData[[#This Row],[Last_name]],\", \",AthleteData[[#This Row],[First_name]])","v":", "}]
[{"$f":"_xlfn.CONCAT(AthleteData[[#This Row],[Last_name]],\", \",AthleteData[[#This Row],[First_name]])","v":", "}]
[{"$f":"_xlfn.CONCAT(AthleteData[[#This Row],[Last_name]],\", \",AthleteData[[#This Row],[First_name]])","v":", "}]
[{"$f":"_xlfn.CONCAT(AthleteData[[#This Row],[Last_name]],\", \",AthleteData[[#This Row],[First_name]])","v":", "}]
[{"$f":"_xlfn.CONCAT(AthleteData[[#This Row],[Last_name]],\", \",AthleteData[[#This Row],[First_name]])","v":", "}]
[{"$f":"_xlfn.CONCAT(AthleteData[[#This Row],[Last_name]],\", \",AthleteData[[#This Row],[First_name]])","v":", "}]
[{"$f":"_xlfn.CONCAT(AthleteData[[#This Row],[Last_name]],\", \",AthleteData[[#This Row],[First_name]])","v":", "}]
[{"$f":"_xlfn.CONCAT(AthleteData[[#This Row],[Last_name]],\", \",AthleteData[[#This Row],[First_name]])","v":", "}]
[{"$f":"_xlfn.CONCAT(AthleteData[[#This Row],[Last_name]],\", \",AthleteData[[#This Row],[First_name]])","v":", "}]
[{"$f":"_xlfn.CONCAT(AthleteData[[#This Row],[Last_name]],\", \",AthleteData[[#This Row],[First_name]])","v":", "}]
[{"$f":"_xlfn.CONCAT(AthleteData[[#This Row],[Last_name]],\", \",AthleteData[[#This Row],[First_name]])","v":", "}]
[{"$f":"_xlfn.CONCAT(AthleteData[[#This Row],[Last_name]],\", \",AthleteData[[#This Row],[First_name]])","v":", "}]
[{"$f":"_xlfn.CONCAT(AthleteData[[#This Row],[Last_name]],\", \",AthleteData[[#This Row],[First_name]])","v":", "}]
[{"$f":"_xlfn.CONCAT(AthleteData[[#This Row],[Last_name]],\", \",AthleteData[[#This Row],[First_name]])","v":", "}]
[{"$f":"_xlfn.CONCAT(AthleteData[[#This Row],[Last_name]],\", \",AthleteData[[#This Row],[First_name]])","v":", "}]
[{"$f":"_xlfn.CONCAT(AthleteData[[#This Row],[Last_name]],\", \",AthleteData[[#This Row],[First_name]])","v":", "}]
[{"$f":"_xlfn.CONCAT(AthleteData[[#This Row],[Last_name]],\", \",AthleteData[[#This Row],[First_name]])","v":", "}]
[{"$f":"_xlfn.CONCAT(AthleteData[[#This Row],[Last_name]],\", \",AthleteData[[#This Row],[First_name]])","v":", "}]
[{"$f":"_xlfn.CONCAT(AthleteData[[#This Row],[Last_name]],\", \",AthleteData[[#This Row],[First_name]])","v":", "}]
[{"$f":"_xlfn.CONCAT(AthleteData[[#This Row],[Last_name]],\", \",AthleteData[[#This Row],[First_name]])","v":", "}]
[{"$f":"_xlfn.CONCAT(AthleteData[[#This Row],[Last_name]],\", \",AthleteData[[#This Row],[First_name]])","v":", "}]
[{"$f":"_xlfn.CONCAT(AthleteData[[#This Row],[Last_name]],\", \",AthleteData[[#This Row],[First_name]])","v":", "}]
[{"$f":"_xlfn.CONCAT(AthleteData[[#This Row],[Last_name]],\", \",AthleteData[[#This Row],[First_name]])","v":", "}]
[{"$f":"_xlfn.CONCAT(AthleteData[[#This Row],[Last_name]],\", \",AthleteData[[#This Row],[First_name]])","v":", "}]
[{"$f":"_xlfn.CONCAT(AthleteData[[#This Row],[Last_name]],\", \",AthleteData[[#This Row],[First_name]])","v":", "}]
[{"$f":"_xlfn.CONCAT(AthleteData[[#This Row],[Last_name]],\", \",AthleteData[[#This Row],[First_name]])","v":", "}]
[{"$f":"_xlfn.CONCAT(AthleteData[[#This Row],[Last_name]],\", \",AthleteData[[#This Row],[First_name]])","v":", "}]
[{"$f":"_xlfn.CONCAT(AthleteData[[#This Row],[Last_name]],\", \",AthleteData[[#This Row],[First_name]])","v":", "}]
[{"$f":"_xlfn.CONCAT(AthleteData[[#This Row],[Last_name]],\", \",AthleteData[[#This Row],[First_name]])","v":", "}]
[{"$f":"_xlfn.CONCAT(AthleteData[[#This Row],[Last_name]],\", \",AthleteData[[#This Row],[First_name]])","v":", "}]
[{"$f":"_xlfn.CONCAT(AthleteData[[#This Row],[Last_name]],\", \",AthleteData[[#This Row],[First_name]])","v":", "}]
[{"$f":"_xlfn.CONCAT(AthleteData[[#This Row],[Last_name]],\", \",AthleteData[[#This Row],[First_name]])","v":", "}]
[{"$f":"_xlfn.CONCAT(AthleteData[[#This Row],[Last_name]],\", \",AthleteData[[#This Row],[First_name]])","v":", "}]
[{"$f":"_xlfn.CONCAT(AthleteData[[#This Row],[Last_name]],\", \",AthleteData[[#This Row],[First_name]])","v":", "}]
[{"$f":"_xlfn.CONCAT(AthleteData[[#This Row],[Last_name]],\", \",AthleteData[[#This Row],[First_name]])","v":", "}]
[{"$f":"_xlfn.CONCAT(AthleteData[[#This Row],[Last_name]],\", \",AthleteData[[#This Row],[First_name]])","v":", "}]
[{"$f":"_xlfn.CONCAT(AthleteData[[#This Row],[Last_name]],\", \",AthleteData[[#This Row],[First_name]])","v":", "}]
[{"$f":"_xlfn.CONCAT(AthleteData[[#This Row],[Last_name]],\", \",AthleteData[[#This Row],[First_name]])","v":", "}]
[{"$f":"_xlfn.CONCAT(AthleteData[[#This Row],[Last_name]],\", \",AthleteData[[#This Row],[First_name]])","v":", "}]
[{"$f":"_xlfn.CONCAT(AthleteData[[#This Row],[Last_name]],\", \",AthleteData[[#This Row],[First_name]])","v":", "}]
[{"$f":"_xlfn.CONCAT(AthleteData[[#This Row],[Last_name]],\", \",AthleteData[[#This Row],[First_name]])","v":", "}]
[{"$f":"_xlfn.CONCAT(AthleteData[[#This Row],[Last_name]],\", \",AthleteData[[#This Row],[First_name]])","v":", "}]
[{"$f":"_xlfn.CONCAT(AthleteData[[#This Row],[Last_name]],\", \",AthleteData[[#This Row],[First_name]])","v":", "}]
[{"$f":"_xlfn.CONCAT(AthleteData[[#This Row],[Last_name]],\", \",AthleteData[[#This Row],[First_name]])","v":", "}]
[{"$f":"_xlfn.CONCAT(AthleteData[[#This Row],[Last_name]],\", \",AthleteData[[#This Row],[First_name]])","v":", "}]
[{"$f":"_xlfn.CONCAT(AthleteData[[#This Row],[Last_name]],\", \",AthleteData[[#This Row],[First_name]])","v":", "}]
[{"$f":"_xlfn.CONCAT(AthleteData[[#This Row],[Last_name]],\", \",AthleteData[[#This Row],[First_name]])","v":", "}]
[{"$f":"_xlfn.CONCAT(AthleteData[[#This Row],[Last_name]],\", \",AthleteData[[#This Row],[First_name]])","v":", "}]
[{"$f":"_xlfn.CONCAT(AthleteData[[#This Row],[Last_name]],\", \",AthleteData[[#This Row],[First_name]])","v":", "}]
[{"$f":"_xlfn.CONCAT(AthleteData[[#This Row],[Last_name]],\", \",AthleteData[[#This Row],[First_name]])","v":", "}]
[{"$f":"_xlfn.CONCAT(AthleteData[[#This Row],[Last_name]],\", \",AthleteData[[#This Row],[First_name]])","v":", "}]
[{"$f":"_xlfn.CONCAT(AthleteData[[#This Row],[Last_name]],\", \",AthleteData[[#This Row],[First_name]])","v":", "}]
[{"$f":"_xlfn.CONCAT(AthleteData[[#This Row],[Last_name]],\", \",AthleteData[[#This Row],[First_name]])","v":", "}]
[{"$f":"_xlfn.CONCAT(AthleteData[[#This Row],[Last_name]],\", \",AthleteData[[#This Row],[First_name]])","v":", "}]
[{"$f":"_xlfn.CONCAT(AthleteData[[#This Row],[Last_name]],\", \",AthleteData[[#This Row],[First_name]])","v":", "}]
[{"$f":"_xlfn.CONCAT(AthleteData[[#This Row],[Last_name]],\", \",AthleteData[[#This Row],[First_name]])","v":", "}]
[{"$f":"_xlfn.CONCAT(AthleteData[[#This Row],[Last_name]],\", \",AthleteData[[#This Row],[First_name]])","v":", "}]
[{"$f":"_xlfn.CONCAT(AthleteData[[#This Row],[Last_name]],\", \",AthleteData[[#This Row],[First_name]])","v":", "}]
[{"$f":"_xlfn.CONCAT(AthleteData[[#This Row],[Last_name]],\", \",AthleteData[[#This Row],[First_name]])","v":", "}]
[{"$f":"_xlfn.CONCAT(AthleteData[[#This Row],[Last_name]],\", \",AthleteData[[#This Row],[First_name]])","v":", "}]
[{"$f":"_xlfn.CONCAT(AthleteData[[#This Row],[Last_name]],\", \",AthleteData[[#This Row],[First_name]])","v":", "}]
[{"$f":"_xlfn.CONCAT(AthleteData[[#This Row],[Last_name]],\", \",AthleteData[[#This Row],[First_name]])","v":", "}]
[{"$f":"_xlfn.CONCAT(AthleteData[[#This Row],[Last_name]],\", \",AthleteData[[#This Row],[First_name]])","v":", "}]
[{"$f":"_xlfn.CONCAT(AthleteData[[#This Row],[Last_name]],\", \",AthleteData[[#This Row],[First_name]])","v":", "}]
[{"$f":"_xlfn.CONCAT(AthleteData[[#This Row],[Last_name]],\", \",AthleteData[[#This Row],[First_name]])","v":", "}]
[{"$f":"_xlfn.CONCAT(AthleteData[[#This Row],[Last_name]],\", \",AthleteData[[#This Row],[First_name]])","v":", "}]
[{"$f":"_xlfn.CONCAT(AthleteData[[#This Row],[Last_name]],\", \",AthleteData[[#This Row],[First_name]])","v":", "}]
[{"$f":"_xlfn.CONCAT(AthleteData[[#This Row],[Last_name]],\", \",AthleteData[[#This Row],[First_name]])","v":", "}]
[{"$f":"_xlfn.CONCAT(AthleteData[[#This Row],[Last_name]],\", \",AthleteData[[#This Row],[First_name]])","v":", "}]
[{"$f":"_xlfn.CONCAT(AthleteData[[#This Row],[Last_name]],\", \",AthleteData[[#This Row],[First_name]])","v":", "}]
[{"$f":"_xlfn.CONCAT(AthleteData[[#This Row],[Last_name]],\", \",AthleteData[[#This Row],[First_name]])","v":", "}]
[{"$f":"_xlfn.CONCAT(AthleteData[[#This Row],[Last_name]],\", \",AthleteData[[#This Row],[First_name]])","v":", "}]
[{"$f":"_xlfn.CONCAT(AthleteData[[#This Row],[Last_name]],\", \",AthleteData[[#This Row],[First_name]])","v":", "}]
[{"$f":"_xlfn.CONCAT(AthleteData[[#This Row],[Last_name]],\", \",AthleteData[[#This Row],[First_name]])","v":", "}]
[{"$f":"_xlfn.CONCAT(AthleteData[[#This Row],[Last_name]],\", \",AthleteData[[#This Row],[First_name]])","v":", "}]
[{"$f":"_xlfn.CONCAT(AthleteData[[#This Row],[Last_name]],\", \",AthleteData[[#This Row],[First_name]])","v":", "}]
[{"$f":"_xlfn.CONCAT(AthleteData[[#This Row],[Last_name]],\", \",AthleteData[[#This Row],[First_name]])","v":", "}]
[{"$f":"_xlfn.CONCAT(AthleteData[[#This Row],[Last_name]],\", \",AthleteData[[#This Row],[First_name]])","v":", "}]
[{"$f":"_xlfn.CONCAT(AthleteData[[#This Row],[Last_name]],\", \",AthleteData[[#This Row],[First_name]])","v":", "}]
[{"$f":"_xlfn.CONCAT(AthleteData[[#This Row],[Last_name]],\", \",AthleteData[[#This Row],[First_name]])","v":", "}]
[{"$f":"_xlfn.CONCAT(AthleteData[[#This Row],[Last_name]],\", \",AthleteData[[#This Row],[First_name]])","v":", "}]
[{"$f":"_xlfn.CONCAT(AthleteData[[#This Row],[Last_name]],\", \",AthleteData[[#This Row],[First_name]])","v":", "}]
[{"$f":"_xlfn.CONCAT(AthleteData[[#This Row],[Last_name]],\", \",AthleteData[[#This Row],[First_name]])","v":", "}]
[{"$f":"_xlfn.CONCAT(AthleteData[[#This Row],[Last_name]],\", \",AthleteData[[#This Row],[First_name]])","v":", "}]
[{"$f":"_xlfn.CONCAT(AthleteData[[#This Row],[Last_name]],\", \",AthleteData[[#This Row],[First_name]])","v":", "}]
[{"$f":"_xlfn.CONCAT(AthleteData[[#This Row],[Last_name]],\", \",AthleteData[[#This Row],[First_name]])","v":", "}]
[{"$f":"_xlfn.CONCAT(AthleteData[[#This Row],[Last_name]],\", \",AthleteData[[#This Row],[First_name]])","v":", "}]
[{"$f":"_xlfn.CONCAT(AthleteData[[#This Row],[Last_name]],\", \",AthleteData[[#This Row],[First_name]])","v":", "}]
[{"$f":"_xlfn.CONCAT(AthleteData[[#This Row],[Last_name]],\", \",AthleteData[[#This Row],[First_name]])","v":", "}]
[{"$f":"_xlfn.CONCAT(AthleteData[[#This Row],[Last_name]],\", \",AthleteData[[#This Row],[First_name]])","v":", "}]
[{"$f":"_xlfn.CONCAT(AthleteData[[#This Row],[Last_name]],\", \",AthleteData[[#This Row],[First_name]])","v":", "}]
[{"$f":"_xlfn.CONCAT(AthleteData[[#This Row],[Last_name]],\", \",AthleteData[[#This Row],[First_name]])","v":", "}]
[{"$f":"_xlfn.CONCAT(AthleteData[[#This Row],[Last_name]],\", \",AthleteData[[#This Row],[First_name]])","v":", "}]
[{"$f":"_xlfn.CONCAT(AthleteData[[#This Row],[Last_name]],\", \",AthleteData[[#This Row],[First_name]])","v":", "}]
[{"$f":"_xlfn.CONCAT(AthleteData[[#This Row],[Last_name]],\", \",AthleteData[[#This Row],[First_name]])","v":", "}]
[{"$f":"_xlfn.CONCAT(AthleteData[[#This Row],[Last_name]],\", \",AthleteData[[#This Row],[First_name]])","v":", "}]
[{"$f":"_xlfn.CONCAT(AthleteData[[#This Row],[Last_name]],\", \",AthleteData[[#This Row],[First_name]])","v":", "}]
[{"$f":"_xlfn.CONCAT(AthleteData[[#This Row],[Last_name]],\", \",AthleteData[[#This Row],[First_name]])","v":", "}]
[{"$f":"_xlfn.CONCAT(AthleteData[[#This Row],[Last_name]],\", \",AthleteData[[#This Row],[First_name]])","v":", "}]
[{"$f":"_xlfn.CONCAT(AthleteData[[#This Row],[Last_name]],\", \",AthleteData[[#This Row],[First_name]])","v":", "}]
[{"$f":"_xlfn.CONCAT(AthleteData[[#This Row],[Last_name]],\", \",AthleteData[[#This Row],[First_name]])","v":", "}]
[{"$f":"_xlfn.CONCAT(AthleteData[[#This Row],[Last_name]],\", \",AthleteData[[#This Row],[First_name]])","v":", "}]
[{"$f":"_xlfn.CONCAT(AthleteData[[#This Row],[Last_name]],\", \",AthleteData[[#This Row],[First_name]])","v":", "}]
[{"$f":"_xlfn.CONCAT(AthleteData[[#This Row],[Last_name]],\", \",AthleteData[[#This Row],[First_name]])","v":", "}]
[{"$f":"_xlfn.CONCAT(AthleteData[[#This Row],[Last_name]],\", \",AthleteData[[#This Row],[First_name]])","v":", "}]
[{"$f":"_xlfn.CONCAT(AthleteData[[#This Row],[Last_name]],\", \",AthleteData[[#This Row],[First_name]])","v":", "}]
[{"$f":"_xlfn.CONCAT(AthleteData[[#This Row],[Last_name]],\", \",AthleteData[[#This Row],[First_name]])","v":", "}]
[{"$f":"_xlfn.CONCAT(AthleteData[[#This Row],[Last_name]],\", \",AthleteData[[#This Row],[First_name]])","v":", "}]
[{"$f":"_xlfn.CONCAT(AthleteData[[#This Row],[Last_name]],\", \",AthleteData[[#This Row],[First_name]])","v":", "}]
[{"$f":"_xlfn.CONCAT(AthleteData[[#This Row],[Last_name]],\", \",AthleteData[[#This Row],[First_name]])","v":", "}]
[{"$f":"_xlfn.CONCAT(AthleteData[[#This Row],[Last_name]],\", \",AthleteData[[#This Row],[First_name]])","v":", "}]
[{"$f":"_xlfn.CONCAT(AthleteData[[#This Row],[Last_name]],\", \",AthleteData[[#This Row],[First_name]])","v":", "}]
[{"$f":"_xlfn.CONCAT(AthleteData[[#This Row],[Last_name]],\", \",AthleteData[[#This Row],[First_name]])","v":", "}]
[{"$f":"_xlfn.CONCAT(AthleteData[[#This Row],[Last_name]],\", \",AthleteData[[#This Row],[First_name]])","v":", "}]
[{"$f":"_xlfn.CONCAT(AthleteData[[#This Row],[Last_name]],\", \",AthleteData[[#This Row],[First_name]])","v":", "}]
[{"$f":"_xlfn.CONCAT(AthleteData[[#This Row],[Last_name]],\", \",AthleteData[[#This Row],[First_name]])","v":", "}]
[{"$f":"_xlfn.CONCAT(AthleteData[[#This Row],[Last_name]],\", \",AthleteData[[#This Row],[First_name]])","v":", "}]
[{"$f":"_xlfn.CONCAT(AthleteData[[#This Row],[Last_name]],\", \",AthleteData[[#This Row],[First_name]])","v":", "}]
[{"$f":"_xlfn.CONCAT(AthleteData[[#This Row],[Last_name]],\", \",AthleteData[[#This Row],[First_name]])","v":", "}]
[{"$f":"_xlfn.CONCAT(AthleteData[[#This Row],[Last_name]],\", \",AthleteData[[#This Row],[First_name]])","v":", "}]
[{"$f":"_xlfn.CONCAT(AthleteData[[#This Row],[Last_name]],\", \",AthleteData[[#This Row],[First_name]])","v":", "}]
[{"$f":"_xlfn.CONCAT(AthleteData[[#This Row],[Last_name]],\", \",AthleteData[[#This Row],[First_name]])","v":", "}]
[{"$f":"_xlfn.CONCAT(AthleteData[[#This Row],[Last_name]],\", \",AthleteData[[#This Row],[First_name]])","v":", "}]
[{"$f":"_xlfn.CONCAT(AthleteData[[#This Row],[Last_name]],\", \",AthleteData[[#This Row],[First_name]])","v":", "}]
[{"$f":"_xlfn.CONCAT(AthleteData[[#This Row],[Last_name]],\", \",AthleteData[[#This Row],[First_name]])","v":", "}]
[{"$f":"_xlfn.CONCAT(AthleteData[[#This Row],[Last_name]],\", \",AthleteData[[#This Row],[First_name]])","v":", "}]
[{"$f":"_xlfn.CONCAT(AthleteData[[#This Row],[Last_name]],\", \",AthleteData[[#This Row],[First_name]])","v":", "}]
[{"$f":"_xlfn.CONCAT(AthleteData[[#This Row],[Last_name]],\", \",AthleteData[[#This Row],[First_name]])","v":", "}]
[{"$f":"_xlfn.CONCAT(AthleteData[[#This Row],[Last_name]],\", \",AthleteData[[#This Row],[First_name]])","v":", "}]
[{"$f":"_xlfn.CONCAT(AthleteData[[#This Row],[Last_name]],\", \",AthleteData[[#This Row],[First_name]])","v":", "}]
[{"$f":"_xlfn.CONCAT(AthleteData[[#This Row],[Last_name]],\", \",AthleteData[[#This Row],[First_name]])","v":", "}]
[{"$f":"_xlfn.CONCAT(AthleteData[[#This Row],[Last_name]],\", \",AthleteData[[#This Row],[First_name]])","v":", "}]
[{"$f":"_xlfn.CONCAT(AthleteData[[#This Row],[Last_name]],\", \",AthleteData[[#This Row],[First_name]])","v":", "}]
[{"$f":"_xlfn.CONCAT(AthleteData[[#This Row],[Last_name]],\", \",AthleteData[[#This Row],[First_name]])","v":", "}]
[{"$f":"_xlfn.CONCAT(AthleteData[[#This Row],[Last_name]],\", \",AthleteData[[#This Row],[First_name]])","v":", "}]
[{"$f":"_xlfn.CONCAT(AthleteData[[#This Row],[Last_name]],\", \",AthleteData[[#This Row],[First_name]])","v":", "}]
[{"$f":"_xlfn.CONCAT(AthleteData[[#This Row],[Last_name]],\", \",AthleteData[[#This Row],[First_name]])","v":", "}]
[{"$f":"_xlfn.CONCAT(AthleteData[[#This Row],[Last_name]],\", \",AthleteData[[#This Row],[First_name]])","v":", "}]
[{"$f":"_xlfn.CONCAT(AthleteData[[#This Row],[Last_name]],\", \",AthleteData[[#This Row],[First_name]])","v":", "}]
[{"$f":"_xlfn.CONCAT(AthleteData[[#This Row],[Last_name]],\", \",AthleteData[[#This Row],[First_name]])","v":", "}]
[{"$f":"_xlfn.CONCAT(AthleteData[[#This Row],[Last_name]],\", \",AthleteData[[#This Row],[First_name]])","v":", "}]
[{"$f":"_xlfn.CONCAT(AthleteData[[#This Row],[Last_name]],\", \",AthleteData[[#This Row],[First_name]])","v":", "}]
[{"$f":"_xlfn.CONCAT(AthleteData[[#This Row],[Last_name]],\", \",AthleteData[[#This Row],[First_name]])","v":", "}]
[{"$f":"_xlfn.CONCAT(AthleteData[[#This Row],[Last_name]],\", \",AthleteData[[#This Row],[First_name]])","v":", "}]
[{"$f":"_xlfn.CONCAT(AthleteData[[#This Row],[Last_name]],\", \",AthleteData[[#This Row],[First_name]])","v":", "}]
[{"$f":"_xlfn.CONCAT(AthleteData[[#This Row],[Last_name]],\", \",AthleteData[[#This Row],[First_name]])","v":", "}]
[{"$f":"_xlfn.CONCAT(AthleteData[[#This Row],[Last_name]],\", \",AthleteData[[#This Row],[First_name]])","v":", "}]
[{"$f":"_xlfn.CONCAT(AthleteData[[#This Row],[Last_name]],\", \",AthleteData[[#This Row],[First_name]])","v":", "}]
[{"$f":"_xlfn.CONCAT(AthleteData[[#This Row],[Last_name]],\", \",AthleteData[[#This Row],[First_name]])","v":", "}]
[{"$f":"_xlfn.CONCAT(AthleteData[[#This Row],[Last_name]],\", \",AthleteData[[#This Row],[First_name]])","v":", "}]
[{"$f":"_xlfn.CONCAT(AthleteData[[#This Row],[Last_name]],\", \",AthleteData[[#This Row],[First_name]])","v":", "}]
[{"$f":"_xlfn.CONCAT(AthleteData[[#This Row],[Last_name]],\", \",AthleteData[[#This Row],[First_name]])","v":", "}]
[{"$f":"_xlfn.CONCAT(AthleteData[[#This Row],[Last_name]],\", \",AthleteData[[#This Row],[First_name]])","v":", "}]
[{"$f":"_xlfn.CONCAT(AthleteData[[#This Row],[Last_name]],\", \",AthleteData[[#This Row],[First_name]])","v":", "}]
[{"$f":"_xlfn.CONCAT(AthleteData[[#This Row],[Last_name]],\", \",AthleteData[[#This Row],[First_name]])","v":", "}]
[{"$f":"_xlfn.CONCAT(AthleteData[[#This Row],[Last_name]],\", \",AthleteData[[#This Row],[First_name]])","v":", "}]
[{"$f":"_xlfn.CONCAT(AthleteData[[#This Row],[Last_name]],\", \",AthleteData[[#This Row],[First_name]])","v":", "}]
[{"$f":"_xlfn.CONCAT(AthleteData[[#This Row],[Last_name]],\", \",AthleteData[[#This Row],[First_name]])","v":", "}]
[{"$f":"_xlfn.CONCAT(AthleteData[[#This Row],[Last_name]],\", \",AthleteData[[#This Row],[First_name]])","v":", "}]
[{"$f":"_xlfn.CONCAT(AthleteData[[#This Row],[Last_name]],\", \",AthleteData[[#This Row],[First_name]])","v":", "}]
[{"$f":"_xlfn.CONCAT(AthleteData[[#This Row],[Last_name]],\", \",AthleteData[[#This Row],[First_name]])","v":", "}]
[{"$f":"_xlfn.CONCAT(AthleteData[[#This Row],[Last_name]],\", \",AthleteData[[#This Row],[First_name]])","v":", "}]
[{"$f":"_xlfn.CONCAT(AthleteData[[#This Row],[Last_name]],\", \",AthleteData[[#This Row],[First_name]])","v":", "}]
[{"$f":"_xlfn.CONCAT(AthleteData[[#This Row],[Last_name]],\", \",AthleteData[[#This Row],[First_name]])","v":", "}]
[{"$f":"_xlfn.CONCAT(AthleteData[[#This Row],[Last_name]],\", \",AthleteData[[#This Row],[First_name]])","v":", "}]
[{"$f":"_xlfn.CONCAT(AthleteData[[#This Row],[Last_name]],\", \",AthleteData[[#This Row],[First_name]])","v":", "}]
[{"$f":"_xlfn.CONCAT(AthleteData[[#This Row],[Last_name]],\", \",AthleteData[[#This Row],[First_name]])","v":", "}]
[{"$f":"_xlfn.CONCAT(AthleteData[[#This Row],[Last_name]],\", \",AthleteData[[#This Row],[First_name]])","v":", "}]
[{"$f":"_xlfn.CONCAT(AthleteData[[#This Row],[Last_name]],\", \",AthleteData[[#This Row],[First_name]])","v":", "}]
[{"$f":"_xlfn.CONCAT(AthleteData[[#This Row],[Last_name]],\", \",AthleteData[[#This Row],[First_name]])","v":", "}]
[{"$f":"_xlfn.CONCAT(AthleteData[[#This Row],[Last_name]],\", \",AthleteData[[#This Row],[First_name]])","v":", "}]
[{"$f":"_xlfn.CONCAT(AthleteData[[#This Row],[Last_name]],\", \",AthleteData[[#This Row],[First_name]])","v":", "}]
[{"$f":"_xlfn.CONCAT(AthleteData[[#This Row],[Last_name]],\", \",AthleteData[[#This Row],[First_name]])","v":", "}]
[{"$f":"_xlfn.CONCAT(AthleteData[[#This Row],[Last_name]],\", \",AthleteData[[#This Row],[First_name]])","v":", "}]
[{"$f":"_xlfn.CONCAT(AthleteData[[#This Row],[Last_name]],\", \",AthleteData[[#This Row],[First_name]])","v":", "}]
[{"$f":"_xlfn.CONCAT(AthleteData[[#This Row],[Last_name]],\", \",AthleteData[[#This Row],[First_name]])","v":", "}]
[{"$f":"_xlfn.CONCAT(AthleteData[[#This Row],[Last_name]],\", \",AthleteData[[#This Row],[First_name]])","v":", "}]
[{"$f":"_xlfn.CONCAT(AthleteData[[#This Row],[Last_name]],\", \",AthleteData[[#This Row],[First_name]])","v":", "}]
[{"$f":"_xlfn.CONCAT(AthleteData[[#This Row],[Last_name]],\", \",AthleteData[[#This Row],[First_name]])","v":", "}]
[{"$f":"_xlfn.CONCAT(AthleteData[[#This Row],[Last_name]],\", \",AthleteData[[#This Row],[First_name]])","v":", "}]
[{"$f":"_xlfn.CONCAT(AthleteData[[#This Row],[Last_name]],\", \",AthleteData[[#This Row],[First_name]])","v":", "}]
[{"$f":"_xlfn.CONCAT(AthleteData[[#This Row],[Last_name]],\", \",AthleteData[[#This Row],[First_name]])","v":", "}]
[{"$f":"_xlfn.CONCAT(AthleteData[[#This Row],[Last_name]],\", \",AthleteData[[#This Row],[First_name]])","v":", "}]
[{"$f":"_xlfn.CONCAT(AthleteData[[#This Row],[Last_name]],\", \",AthleteData[[#This Row],[First_name]])","v":", "}]
[{"$f":"_xlfn.CONCAT(AthleteData[[#This Row],[Last_name]],\", \",AthleteData[[#This Row],[First_name]])","v":", "}]
[{"$f":"_xlfn.CONCAT(AthleteData[[#This Row],[Last_name]],\", \",AthleteData[[#This Row],[First_name]])","v":", "}]
[{"$f":"_xlfn.CONCAT(AthleteData[[#This Row],[Last_name]],\", \",AthleteData[[#This Row],[First_name]])","v":", "}]
[{"$f":"_xlfn.CONCAT(AthleteData[[#This Row],[Last_name]],\", \",AthleteData[[#This Row],[First_name]])","v":", "}]
[{"$f":"_xlfn.CONCAT(AthleteData[[#This Row],[Last_name]],\", \",AthleteData[[#This Row],[First_name]])","v":", "}]
[{"$f":"_xlfn.CONCAT(AthleteData[[#This Row],[Last_name]],\", \",AthleteData[[#This Row],[First_name]])","v":", "}]
[{"$f":"_xlfn.CONCAT(AthleteData[[#This Row],[Last_name]],\", \",AthleteData[[#This Row],[First_name]])","v":", "}]
[{"$f":"_xlfn.CONCAT(AthleteData[[#This Row],[Last_name]],\", \",AthleteData[[#This Row],[First_name]])","v":", "}]
[{"$f":"_xlfn.CONCAT(AthleteData[[#This Row],[Last_name]],\", \",AthleteData[[#This Row],[First_name]])","v":", "}]
[{"$f":"_xlfn.CONCAT(AthleteData[[#This Row],[Last_name]],\", \",AthleteData[[#This Row],[First_name]])","v":", "}]
[{"$f":"_xlfn.CONCAT(AthleteData[[#This Row],[Last_name]],\", \",AthleteData[[#This Row],[First_name]])","v":", "}]
[{"$f":"_xlfn.CONCAT(AthleteData[[#This Row],[Last_name]],\", \",AthleteData[[#This Row],[First_name]])","v":", "}]
[{"$f":"_xlfn.CONCAT(AthleteData[[#This Row],[Last_name]],\", \",AthleteData[[#This Row],[First_name]])","v":", "}]
[{"$f":"_xlfn.CONCAT(AthleteData[[#This Row],[Last_name]],\", \",AthleteData[[#This Row],[First_name]])","v":", "}]
[{"$f":"_xlfn.CONCAT(AthleteData[[#This Row],[Last_name]],\", \",AthleteData[[#This Row],[First_name]])","v":", "}]
[{"$f":"_xlfn.CONCAT(AthleteData[[#This Row],[Last_name]],\", \",AthleteData[[#This Row],[First_name]])","v":", "}]
[{"$f":"_xlfn.CONCAT(AthleteData[[#This Row],[Last_name]],\", \",AthleteData[[#This Row],[First_name]])","v":", "}]
[{"$f":"_xlfn.CONCAT(AthleteData[[#This Row],[Last_name]],\", \",AthleteData[[#This Row],[First_name]])","v":", "}]
[{"$f":"_xlfn.CONCAT(AthleteData[[#This Row],[Last_name]],\", \",AthleteData[[#This Row],[First_name]])","v":", "}]
[{"$f":"_xlfn.CONCAT(AthleteData[[#This Row],[Last_name]],\", \",AthleteData[[#This Row],[First_name]])","v":", "}]
[{"$f":"_xlfn.CONCAT(AthleteData[[#This Row],[Last_name]],\", \",AthleteData[[#This Row],[First_name]])","v":", "}]
[{"$f":"_xlfn.CONCAT(AthleteData[[#This Row],[Last_name]],\", \",AthleteData[[#This Row],[First_name]])","v":", "}]
[{"$f":"_xlfn.CONCAT(AthleteData[[#This Row],[Last_name]],\", \",AthleteData[[#This Row],[First_name]])","v":", "}]
[{"$f":"_xlfn.CONCAT(AthleteData[[#This Row],[Last_name]],\", \",AthleteData[[#This Row],[First_name]])","v":", "}]
[{"$f":"_xlfn.CONCAT(AthleteData[[#This Row],[Last_name]],\", \",AthleteData[[#This Row],[First_name]])","v":", "}]
[{"$f":"_xlfn.CONCAT(AthleteData[[#This Row],[Last_name]],\", \",AthleteData[[#This Row],[First_name]])","v":", "}]
[{"$f":"_xlfn.CONCAT(AthleteData[[#This Row],[Last_name]],\", \",AthleteData[[#This Row],[First_name]])","v":", "}]
[{"$f":"_xlfn.CONCAT(AthleteData[[#This Row],[Last_name]],\", \",AthleteData[[#This Row],[First_name]])","v":", "}]
[{"$f":"_xlfn.CONCAT(AthleteData[[#This Row],[Last_name]],\", \",AthleteData[[#This Row],[First_name]])","v":", "}]
[{"$f":"_xlfn.CONCAT(AthleteData[[#This Row],[Last_name]],\", \",AthleteData[[#This Row],[First_name]])","v":", "}]
[{"$f":"_xlfn.CONCAT(AthleteData[[#This Row],[Last_name]],\", \",AthleteData[[#This Row],[First_name]])","v":", "}]
[{"$f":"_xlfn.CONCAT(AthleteData[[#This Row],[Last_name]],\", \",AthleteData[[#This Row],[First_name]])","v":", "}]
[{"$f":"_xlfn.CONCAT(AthleteData[[#This Row],[Last_name]],\", \",AthleteData[[#This Row],[First_name]])","v":", "}]
[{"$f":"_xlfn.CONCAT(AthleteData[[#This Row],[Last_name]],\", \",AthleteData[[#This Row],[First_name]])","v":", "}]
[{"$f":"_xlfn.CONCAT(AthleteData[[#This Row],[Last_name]],\", \",AthleteData[[#This Row],[First_name]])","v":", "}]
[{"$f":"_xlfn.CONCAT(AthleteData[[#This Row],[Last_name]],\", \",AthleteData[[#This Row],[First_name]])","v":", "}]
[{"$f":"_xlfn.CONCAT(AthleteData[[#This Row],[Last_name]],\", \",AthleteData[[#This Row],[First_name]])","v":", "}]
[{"$f":"_xlfn.CONCAT(AthleteData[[#This Row],[Last_name]],\", \",AthleteData[[#This Row],[First_name]])","v":", "}]
[{"$f":"_xlfn.CONCAT(AthleteData[[#This Row],[Last_name]],\", \",AthleteData[[#This Row],[First_name]])","v":", "}]
[{"$f":"_xlfn.CONCAT(AthleteData[[#This Row],[Last_name]],\", \",AthleteData[[#This Row],[First_name]])","v":", "}]
[{"$f":"_xlfn.CONCAT(AthleteData[[#This Row],[Last_name]],\", \",AthleteData[[#This Row],[First_name]])","v":", "}]
[{"$f":"_xlfn.CONCAT(AthleteData[[#This Row],[Last_name]],\", \",AthleteData[[#This Row],[First_name]])","v":", "}]
[{"$f":"_xlfn.CONCAT(AthleteData[[#This Row],[Last_name]],\", \",AthleteData[[#This Row],[First_name]])","v":", "}]
[{"$f":"_xlfn.CONCAT(AthleteData[[#This Row],[Last_name]],\", \",AthleteData[[#This Row],[First_name]])","v":", "}]
[{"$f":"_xlfn.CONCAT(AthleteData[[#This Row],[Last_name]],\", \",AthleteData[[#This Row],[First_name]])","v":", "}]
[{"$f":"_xlfn.CONCAT(AthleteData[[#This Row],[Last_name]],\", \",AthleteData[[#This Row],[First_name]])","v":", "}]
[{"$f":"_xlfn.CONCAT(AthleteData[[#This Row],[Last_name]],\", \",AthleteData[[#This Row],[First_name]])","v":", "}]
[{"$f":"_xlfn.CONCAT(AthleteData[[#This Row],[Last_name]],\", \",AthleteData[[#This Row],[First_name]])","v":", "}]
[{"$f":"_xlfn.CONCAT(AthleteData[[#This Row],[Last_name]],\", \",AthleteData[[#This Row],[First_name]])","v":", "}]
[{"$f":"_xlfn.CONCAT(AthleteData[[#This Row],[Last_name]],\", \",AthleteData[[#This Row],[First_name]])","v":", "}]
[{"$f":"_xlfn.CONCAT(AthleteData[[#This Row],[Last_name]],\", \",AthleteData[[#This Row],[First_name]])","v":", "}]
[{"$f":"_xlfn.CONCAT(AthleteData[[#This Row],[Last_name]],\", \",AthleteData[[#This Row],[First_name]])","v":", "}]
[{"$f":"_xlfn.CONCAT(AthleteData[[#This Row],[Last_name]],\", \",AthleteData[[#This Row],[First_name]])","v":", "}]
[{"$f":"_xlfn.CONCAT(AthleteData[[#This Row],[Last_name]],\", \",AthleteData[[#This Row],[First_name]])","v":", "}]
[{"$f":"_xlfn.CONCAT(AthleteData[[#This Row],[Last_name]],\", \",AthleteData[[#This Row],[First_name]])","v":", "}]
[{"$f":"_xlfn.CONCAT(AthleteData[[#This Row],[Last_name]],\", \",AthleteData[[#This Row],[First_name]])","v":", "}]
[{"$f":"_xlfn.CONCAT(AthleteData[[#This Row],[Last_name]],\", \",AthleteData[[#This Row],[First_name]])","v":", "}]
[{"$f":"_xlfn.CONCAT(AthleteData[[#This Row],[Last_name]],\", \",AthleteData[[#This Row],[First_name]])","v":", "}]
[{"$f":"_xlfn.CONCAT(AthleteData[[#This Row],[Last_name]],\", \",AthleteData[[#This Row],[First_name]])","v":", "}]
[{"$f":"_xlfn.CONCAT(AthleteData[[#This Row],[Last_name]],\", \",AthleteData[[#This Row],[First_name]])","v":", "}]
[{"$f":"_xlfn.CONCAT(AthleteData[[#This Row],[Last_name]],\", \",AthleteData[[#This Row],[First_name]])","v":", "}]
[{"$f":"_xlfn.CONCAT(AthleteData[[#This Row],[Last_name]],\", \",AthleteData[[#This Row],[First_name]])","v":", "}]
[{"$f":"_xlfn.CONCAT(AthleteData[[#This Row],[Last_name]],\", \",AthleteData[[#This Row],[First_name]])","v":", "}]
[{"$f":"_xlfn.CONCAT(AthleteData[[#This Row],[Last_name]],\", \",AthleteData[[#This Row],[First_name]])","v":", "}]
[{"$f":"_xlfn.CONCAT(AthleteData[[#This Row],[Last_name]],\", \",AthleteData[[#This Row],[First_name]])","v":", "}]
[{"$f":"_xlfn.CONCAT(AthleteData[[#This Row],[Last_name]],\", \",AthleteData[[#This Row],[First_name]])","v":", "}]
[{"$f":"_xlfn.CONCAT(AthleteData[[#This Row],[Last_name]],\", \",AthleteData[[#This Row],[First_name]])","v":", "}]
[{"$f":"_xlfn.CONCAT(AthleteData[[#This Row],[Last_name]],\", \",AthleteData[[#This Row],[First_name]])","v":", "}]
[{"$f":"_xlfn.CONCAT(AthleteData[[#This Row],[Last_name]],\", \",AthleteData[[#This Row],[First_name]])","v":", "}]
[{"$f":"_xlfn.CONCAT(AthleteData[[#This Row],[Last_name]],\", \",AthleteData[[#This Row],[First_name]])","v":", "}]
[{"$f":"_xlfn.CONCAT(AthleteData[[#This Row],[Last_name]],\", \",AthleteData[[#This Row],[First_name]])","v":", "}]
[{"$f":"_xlfn.CONCAT(AthleteData[[#This Row],[Last_name]],\", \",AthleteData[[#This Row],[First_name]])","v":", "}]
[{"$f":"_xlfn.CONCAT(AthleteData[[#This Row],[Last_name]],\", \",AthleteData[[#This Row],[First_name]])","v":", "}]
[{"$f":"_xlfn.CONCAT(AthleteData[[#This Row],[Last_name]],\", \",AthleteData[[#This Row],[First_name]])","v":", "}]
[{"$f":"_xlfn.CONCAT(AthleteData[[#This Row],[Last_name]],\", \",AthleteData[[#This Row],[First_name]])","v":", "}]
[{"$f":"_xlfn.CONCAT(AthleteData[[#This Row],[Last_name]],\", \",AthleteData[[#This Row],[First_name]])","v":", "}]
[{"$f":"_xlfn.CONCAT(AthleteData[[#This Row],[Last_name]],\", \",AthleteData[[#This Row],[First_name]])","v":", "}]
[{"$f":"_xlfn.CONCAT(AthleteData[[#This Row],[Last_name]],\", \",AthleteData[[#This Row],[First_name]])","v":", "}]
[{"$f":"_xlfn.CONCAT(AthleteData[[#This Row],[Last_name]],\", \",AthleteData[[#This Row],[First_name]])","v":", "}]
[{"$f":"_xlfn.CONCAT(AthleteData[[#This Row],[Last_name]],\", \",AthleteData[[#This Row],[First_name]])","v":", "}]
[{"$f":"_xlfn.CONCAT(AthleteData[[#This Row],[Last_name]],\", \",AthleteData[[#This Row],[First_name]])","v":", "}]
[{"$f":"_xlfn.CONCAT(AthleteData[[#This Row],[Last_name]],\", \",AthleteData[[#This Row],[First_name]])","v":", "}]
[{"$f":"_xlfn.CONCAT(AthleteData[[#This Row],[Last_name]],\", \",AthleteData[[#This Row],[First_name]])","v":", "}]
[{"$f":"_xlfn.CONCAT(AthleteData[[#This Row],[Last_name]],\", \",AthleteData[[#This Row],[First_name]])","v":", "}]
[{"$f":"_xlfn.CONCAT(AthleteData[[#This Row],[Last_name]],\", \",AthleteData[[#This Row],[First_name]])","v":", "}]
[{"$f":"_xlfn.CONCAT(AthleteData[[#This Row],[Last_name]],\", \",AthleteData[[#This Row],[First_name]])","v":", "}]
[{"$f":"_xlfn.CONCAT(AthleteData[[#This Row],[Last_name]],\", \",AthleteData[[#This Row],[First_name]])","v":", "}]
[{"$f":"_xlfn.CONCAT(AthleteData[[#This Row],[Last_name]],\", \",AthleteData[[#This Row],[First_name]])","v":", "}]
[{"$f":"_xlfn.CONCAT(AthleteData[[#This Row],[Last_name]],\", \",AthleteData[[#This Row],[First_name]])","v":", "}]
[{"$f":"_xlfn.CONCAT(AthleteData[[#This Row],[Last_name]],\", \",AthleteData[[#This Row],[First_name]])","v":", "}]
[{"$f":"_xlfn.CONCAT(AthleteData[[#This Row],[Last_name]],\", \",AthleteData[[#This Row],[First_name]])","v":", "}]
[{"$f":"_xlfn.CONCAT(AthleteData[[#This Row],[Last_name]],\", \",AthleteData[[#This Row],[First_name]])","v":", "}]
[{"$f":"_xlfn.CONCAT(AthleteData[[#This Row],[Last_name]],\", \",AthleteData[[#This Row],[First_name]])","v":", "}]
[{"$f":"_xlfn.CONCAT(AthleteData[[#This Row],[Last_name]],\", \",AthleteData[[#This Row],[First_name]])","v":", "}]
[{"$f":"_xlfn.CONCAT(AthleteData[[#This Row],[Last_name]],\", \",AthleteData[[#This Row],[First_name]])","v":", "}]
[{"$f":"_xlfn.CONCAT(AthleteData[[#This Row],[Last_name]],\", \",AthleteData[[#This Row],[First_name]])","v":", "}]
[{"$f":"_xlfn.CONCAT(AthleteData[[#This Row],[Last_name]],\", \",AthleteData[[#This Row],[First_name]])","v":", "}]
[{"$f":"_xlfn.CONCAT(AthleteData[[#This Row],[Last_name]],\", \",AthleteData[[#This Row],[First_name]])","v":", "}]
[{"$f":"_xlfn.CONCAT(AthleteData[[#This Row],[Last_name]],\", \",AthleteData[[#This Row],[First_name]])","v":", "}]
[{"$f":"_xlfn.CONCAT(AthleteData[[#This Row],[Last_name]],\", \",AthleteData[[#This Row],[First_name]])","v":", "}]
[{"$f":"_xlfn.CONCAT(AthleteData[[#This Row],[Last_name]],\", \",AthleteData[[#This Row],[First_name]])","v":", "}]
[{"$f":"_xlfn.CONCAT(AthleteData[[#This Row],[Last_name]],\", \",AthleteData[[#This Row],[First_name]])","v":", "}]
[{"$f":"_xlfn.CONCAT(AthleteData[[#This Row],[Last_name]],\", \",AthleteData[[#This Row],[First_name]])","v":", "}]
[{"$f":"_xlfn.CONCAT(AthleteData[[#This Row],[Last_name]],\", \",AthleteData[[#This Row],[First_name]])","v":", "}]
[{"$f":"_xlfn.CONCAT(AthleteData[[#This Row],[Last_name]],\", \",AthleteData[[#This Row],[First_name]])","v":", "}]
[{"$f":"_xlfn.CONCAT(AthleteData[[#This Row],[Last_name]],\", \",AthleteData[[#This Row],[First_name]])","v":", "}]
[{"$f":"_xlfn.CONCAT(AthleteData[[#This Row],[Last_name]],\", \",AthleteData[[#This Row],[First_name]])","v":", "}]
[{"$f":"_xlfn.CONCAT(AthleteData[[#This Row],[Last_name]],\", \",AthleteData[[#This Row],[First_name]])","v":", "}]
[{"$f":"_xlfn.CONCAT(AthleteData[[#This Row],[Last_name]],\", \",AthleteData[[#This Row],[First_name]])","v":", "}]
[{"$f":"_xlfn.CONCAT(AthleteData[[#This Row],[Last_name]],\", \",AthleteData[[#This Row],[First_name]])","v":", "}]
[{"$f":"_xlfn.CONCAT(AthleteData[[#This Row],[Last_name]],\", \",AthleteData[[#This Row],[First_name]])","v":", "}]
[{"$f":"_xlfn.CONCAT(AthleteData[[#This Row],[Last_name]],\", \",AthleteData[[#This Row],[First_name]])","v":", "}]
[{"$f":"_xlfn.CONCAT(AthleteData[[#This Row],[Last_name]],\", \",AthleteData[[#This Row],[First_name]])","v":", "}]
[{"$f":"_xlfn.CONCAT(AthleteData[[#This Row],[Last_name]],\", \",AthleteData[[#This Row],[First_name]])","v":", "}]
[{"$f":"_xlfn.CONCAT(AthleteData[[#This Row],[Last_name]],\", \",AthleteData[[#This Row],[First_name]])","v":", "}]
[{"$f":"_xlfn.CONCAT(AthleteData[[#This Row],[Last_name]],\", \",AthleteData[[#This Row],[First_name]])","v":", "}]
[{"$f":"_xlfn.CONCAT(AthleteData[[#This Row],[Last_name]],\", \",AthleteData[[#This Row],[First_name]])","v":", "}]
[{"$f":"_xlfn.CONCAT(AthleteData[[#This Row],[Last_name]],\", \",AthleteData[[#This Row],[First_name]])","v":", "}]
[{"$f":"_xlfn.CONCAT(AthleteData[[#This Row],[Last_name]],\", \",AthleteData[[#This Row],[First_name]])","v":", "}]
[{"$f":"_xlfn.CONCAT(AthleteData[[#This Row],[Last_name]],\", \",AthleteData[[#This Row],[First_name]])","v":", "}]
[{"$f":"_xlfn.CONCAT(AthleteData[[#This Row],[Last_name]],\", \",AthleteData[[#This Row],[First_name]])","v":", "}]
[{"$f":"_xlfn.CONCAT(AthleteData[[#This Row],[Last_name]],\", \",AthleteData[[#This Row],[First_name]])","v":", "}]
[{"$f":"_xlfn.CONCAT(AthleteData[[#This Row],[Last_name]],\", \",AthleteData[[#This Row],[First_name]])","v":", "}]
[{"$f":"_xlfn.CONCAT(AthleteData[[#This Row],[Last_name]],\", \",AthleteData[[#This Row],[First_name]])","v":", "}]
[{"$f":"_xlfn.CONCAT(AthleteData[[#This Row],[Last_name]],\", \",AthleteData[[#This Row],[First_name]])","v":", "}]
[{"$f":"_xlfn.CONCAT(AthleteData[[#This Row],[Last_name]],\", \",AthleteData[[#This Row],[First_name]])","v":", "}]
[{"$f":"_xlfn.CONCAT(AthleteData[[#This Row],[Last_name]],\", \",AthleteData[[#This Row],[First_name]])","v":", "}]
[{"$f":"_xlfn.CONCAT(AthleteData[[#This Row],[Last_name]],\", \",AthleteData[[#This Row],[First_name]])","v":", "}]
[{"$f":"_xlfn.CONCAT(AthleteData[[#This Row],[Last_name]],\", \",AthleteData[[#This Row],[First_name]])","v":", "}]
[{"$f":"_xlfn.CONCAT(AthleteData[[#This Row],[Last_name]],\", \",AthleteData[[#This Row],[First_name]])","v":", "}]
[{"$f":"_xlfn.CONCAT(AthleteData[[#This Row],[Last_name]],\", \",AthleteData[[#This Row],[First_name]])","v":", "}]
[{"$f":"_xlfn.CONCAT(AthleteData[[#This Row],[Last_name]],\", \",AthleteData[[#This Row],[First_name]])","v":", "}]
[{"$f":"_xlfn.CONCAT(AthleteData[[#This Row],[Last_name]],\", \",AthleteData[[#This Row],[First_name]])","v":", "}]
[{"$f":"_xlfn.CONCAT(AthleteData[[#This Row],[Last_name]],\", \",AthleteData[[#This Row],[First_name]])","v":", "}]
[{"$f":"_xlfn.CONCAT(AthleteData[[#This Row],[Last_name]],\", \",AthleteData[[#This Row],[First_name]])","v":", "}]
[{"$f":"_xlfn.CONCAT(AthleteData[[#This Row],[Last_name]],\", \",AthleteData[[#This Row],[First_name]])","v":", "}]
[{"$f":"_xlfn.CONCAT(AthleteData[[#This Row],[Last_name]],\", \",AthleteData[[#This Row],[First_name]])","v":", "}]
[{"$f":"_xlfn.CONCAT(AthleteData[[#This Row],[Last_name]],\", \",AthleteData[[#This Row],[First_name]])","v":", "}]
[{"$f":"_xlfn.CONCAT(AthleteData[[#This Row],[Last_name]],\", \",AthleteData[[#This Row],[First_name]])","v":", "}]
[{"$f":"_xlfn.CONCAT(AthleteData[[#This Row],[Last_name]],\", \",AthleteData[[#This Row],[First_name]])","v":", "}]
[{"$f":"_xlfn.CONCAT(AthleteData[[#This Row],[Last_name]],\", \",AthleteData[[#This Row],[First_name]])","v":", "}]
[{"$f":"_xlfn.CONCAT(AthleteData[[#This Row],[Last_name]],\", \",AthleteData[[#This Row],[First_name]])","v":", "}]
[{"$f":"_xlfn.CONCAT(AthleteData[[#This Row],[Last_name]],\", \",AthleteData[[#This Row],[First_name]])","v":", "}]
[{"$f":"_xlfn.CONCAT(AthleteData[[#This Row],[Last_name]],\", \",AthleteData[[#This Row],[First_name]])","v":", "}]
[{"$f":"_xlfn.CONCAT(AthleteData[[#This Row],[Last_name]],\", \",AthleteData[[#This Row],[First_name]])","v":", "}]
[{"$f":"_xlfn.CONCAT(AthleteData[[#This Row],[Last_name]],\", \",AthleteData[[#This Row],[First_name]])","v":", "}]
[{"$f":"_xlfn.CONCAT(AthleteData[[#This Row],[Last_name]],\", \",AthleteData[[#This Row],[First_name]])","v":", "}]
[{"$f":"_xlfn.CONCAT(AthleteData[[#This Row],[Last_name]],\", \",AthleteData[[#This Row],[First_name]])","v":", "}]
[{"$f":"_xlfn.CONCAT(AthleteData[[#This Row],[Last_name]],\", \",AthleteData[[#This Row],[First_name]])","v":", "}]
[{"$f":"_xlfn.CONCAT(AthleteData[[#This Row],[Last_name]],\", \",AthleteData[[#This Row],[First_name]])","v":", "}]
[{"$f":"_xlfn.CONCAT(AthleteData[[#This Row],[Last_name]],\", \",AthleteData[[#This Row],[First_name]])","v":", "}]
[{"$f":"_xlfn.CONCAT(AthleteData[[#This Row],[Last_name]],\", \",AthleteData[[#This Row],[First_name]])","v":", "}]
[{"$f":"_xlfn.CONCAT(AthleteData[[#This Row],[Last_name]],\", \",AthleteData[[#This Row],[First_name]])","v":", "}]
[{"$f":"_xlfn.CONCAT(AthleteData[[#This Row],[Last_name]],\", \",AthleteData[[#This Row],[First_name]])","v":", "}]
[{"$f":"_xlfn.CONCAT(AthleteData[[#This Row],[Last_name]],\", \",AthleteData[[#This Row],[First_name]])","v":", "}]
[{"$f":"_xlfn.CONCAT(AthleteData[[#This Row],[Last_name]],\", \",AthleteData[[#This Row],[First_name]])","v":", "}]
[{"$f":"_xlfn.CONCAT(AthleteData[[#This Row],[Last_name]],\", \",AthleteData[[#This Row],[First_name]])","v":", "}]
[{"$f":"_xlfn.CONCAT(AthleteData[[#This Row],[Last_name]],\", \",AthleteData[[#This Row],[First_name]])","v":", "}]
[{"$f":"_xlfn.CONCAT(AthleteData[[#This Row],[Last_name]],\", \",AthleteData[[#This Row],[First_name]])","v":", "}]
[{"$f":"_xlfn.CONCAT(AthleteData[[#This Row],[Last_name]],\", \",AthleteData[[#This Row],[First_name]])","v":", "}]
[{"$f":"_xlfn.CONCAT(AthleteData[[#This Row],[Last_name]],\", \",AthleteData[[#This Row],[First_name]])","v":", "}]
[{"$f":"_xlfn.CONCAT(AthleteData[[#This Row],[Last_name]],\", \",AthleteData[[#This Row],[First_name]])","v":", "}]
[{"$f":"_xlfn.CONCAT(AthleteData[[#This Row],[Last_name]],\", \",AthleteData[[#This Row],[First_name]])","v":", "}]
[{"$f":"_xlfn.CONCAT(AthleteData[[#This Row],[Last_name]],\", \",AthleteData[[#This Row],[First_name]])","v":", "}]
[{"$f":"_xlfn.CONCAT(AthleteData[[#This Row],[Last_name]],\", \",AthleteData[[#This Row],[First_name]])","v":", "}]
[{"$f":"_xlfn.CONCAT(AthleteData[[#This Row],[Last_name]],\", \",AthleteData[[#This Row],[First_name]])","v":", "}]
[{"$f":"_xlfn.CONCAT(AthleteData[[#This Row],[Last_name]],\", \",AthleteData[[#This Row],[First_name]])","v":", "}]
[{"$f":"_xlfn.CONCAT(AthleteData[[#This Row],[Last_name]],\", \",AthleteData[[#This Row],[First_name]])","v":", "}]
[{"$f":"_xlfn.CONCAT(AthleteData[[#This Row],[Last_name]],\", \",AthleteData[[#This Row],[First_name]])","v":", "}]
[{"$f":"_xlfn.CONCAT(AthleteData[[#This Row],[Last_name]],\", \",AthleteData[[#This Row],[First_name]])","v":", "}]
[{"$f":"_xlfn.CONCAT(AthleteData[[#This Row],[Last_name]],\", \",AthleteData[[#This Row],[First_name]])","v":", "}]
[{"$f":"_xlfn.CONCAT(AthleteData[[#This Row],[Last_name]],\", \",AthleteData[[#This Row],[First_name]])","v":", "}]
[{"$f":"_xlfn.CONCAT(AthleteData[[#This Row],[Last_name]],\", \",AthleteData[[#This Row],[First_name]])","v":", "}]
[{"$f":"_xlfn.CONCAT(AthleteData[[#This Row],[Last_name]],\", \",AthleteData[[#This Row],[First_name]])","v":", "}]
[{"$f":"_xlfn.CONCAT(AthleteData[[#This Row],[Last_name]],\", \",AthleteData[[#This Row],[First_name]])","v":", "}]
[{"$f":"_xlfn.CONCAT(AthleteData[[#This Row],[Last_name]],\", \",AthleteData[[#This Row],[First_name]])","v":", "}]
[{"$f":"_xlfn.CONCAT(AthleteData[[#This Row],[Last_name]],\", \",AthleteData[[#This Row],[First_name]])","v":", "}]
[{"$f":"_xlfn.CONCAT(AthleteData[[#This Row],[Last_name]],\", \",AthleteData[[#This Row],[First_name]])","v":", "}]
[{"$f":"_xlfn.CONCAT(AthleteData[[#This Row],[Last_name]],\", \",AthleteData[[#This Row],[First_name]])","v":", "}]
[{"$f":"_xlfn.CONCAT(AthleteData[[#This Row],[Last_name]],\", \",AthleteData[[#This Row],[First_name]])","v":", "}]
[{"$f":"_xlfn.CONCAT(AthleteData[[#This Row],[Last_name]],\", \",AthleteData[[#This Row],[First_name]])","v":", "}]
[{"$f":"_xlfn.CONCAT(AthleteData[[#This Row],[Last_name]],\", \",AthleteData[[#This Row],[First_name]])","v":", "}]
[{"$f":"_xlfn.CONCAT(AthleteData[[#This Row],[Last_name]],\", \",AthleteData[[#This Row],[First_name]])","v":", "}]
[{"$f":"_xlfn.CONCAT(AthleteData[[#This Row],[Last_name]],\", \",AthleteData[[#This Row],[First_name]])","v":", "}]
[{"$f":"_xlfn.CONCAT(AthleteData[[#This Row],[Last_name]],\", \",AthleteData[[#This Row],[First_name]])","v":", "}]
[{"$f":"_xlfn.CONCAT(AthleteData[[#This Row],[Last_name]],\", \",AthleteData[[#This Row],[First_name]])","v":", "}]
[{"$f":"_xlfn.CONCAT(AthleteData[[#This Row],[Last_name]],\", \",AthleteData[[#This Row],[First_name]])","v":", "}]
[{"$f":"_xlfn.CONCAT(AthleteData[[#This Row],[Last_name]],\", \",AthleteData[[#This Row],[First_name]])","v":", "}]
[{"$f":"_xlfn.CONCAT(AthleteData[[#This Row],[Last_name]],\", \",AthleteData[[#This Row],[First_name]])","v":", "}]
[{"$f":"_xlfn.CONCAT(AthleteData[[#This Row],[Last_name]],\", \",AthleteData[[#This Row],[First_name]])","v":", "}]
[{"$f":"_xlfn.CONCAT(AthleteData[[#This Row],[Last_name]],\", \",AthleteData[[#This Row],[First_name]])","v":", "}]
[{"$f":"_xlfn.CONCAT(AthleteData[[#This Row],[Last_name]],\", \",AthleteData[[#This Row],[First_name]])","v":", "}]
[{"$f":"_xlfn.CONCAT(AthleteData[[#This Row],[Last_name]],\", \",AthleteData[[#This Row],[First_name]])","v":", "}]
[{"$f":"_xlfn.CONCAT(AthleteData[[#This Row],[Last_name]],\", \",AthleteData[[#This Row],[First_name]])","v":", "}]
[{"$f":"_xlfn.CONCAT(AthleteData[[#This Row],[Last_name]],\", \",AthleteData[[#This Row],[First_name]])","v":", "}]
[{"$f":"_xlfn.CONCAT(AthleteData[[#This Row],[Last_name]],\", \",AthleteData[[#This Row],[First_name]])","v":", "}]
[{"$f":"_xlfn.CONCAT(AthleteData[[#This Row],[Last_name]],\", \",AthleteData[[#This Row],[First_name]])","v":", "}]
[{"$f":"_xlfn.CONCAT(AthleteData[[#This Row],[Last_name]],\", \",AthleteData[[#This Row],[First_name]])","v":", "}]
[{"$f":"_xlfn.CONCAT(AthleteData[[#This Row],[Last_name]],\", \",AthleteData[[#This Row],[First_name]])","v":", "}]
[{"$f":"_xlfn.CONCAT(AthleteData[[#This Row],[Last_name]],\", \",AthleteData[[#This Row],[First_name]])","v":", "}]
[{"$f":"_xlfn.CONCAT(AthleteData[[#This Row],[Last_name]],\", \",AthleteData[[#This Row],[First_name]])","v":", "}]
[{"$f":"_xlfn.CONCAT(AthleteData[[#This Row],[Last_name]],\", \",AthleteData[[#This Row],[First_name]])","v":", "}]
[{"$f":"_xlfn.CONCAT(AthleteData[[#This Row],[Last_name]],\", \",AthleteData[[#This Row],[First_name]])","v":", "}]
[{"$f":"_xlfn.CONCAT(AthleteData[[#This Row],[Last_name]],\", \",AthleteData[[#This Row],[First_name]])","v":", "}]
[{"$f":"_xlfn.CONCAT(AthleteData[[#This Row],[Last_name]],\", \",AthleteData[[#This Row],[First_name]])","v":", "}]
[{"$f":"_xlfn.CONCAT(AthleteData[[#This Row],[Last_name]],\", \",AthleteData[[#This Row],[First_name]])","v":", "}]
[{"$f":"_xlfn.CONCAT(AthleteData[[#This Row],[Last_name]],\", \",AthleteData[[#This Row],[First_name]])","v":", "}]
[{"$f":"_xlfn.CONCAT(AthleteData[[#This Row],[Last_name]],\", \",AthleteData[[#This Row],[First_name]])","v":", "}]
[{"$f":"_xlfn.CONCAT(AthleteData[[#This Row],[Last_name]],\", \",AthleteData[[#This Row],[First_name]])","v":", "}]
[{"$f":"_xlfn.CONCAT(AthleteData[[#This Row],[Last_name]],\", \",AthleteData[[#This Row],[First_name]])","v":", "}]
[{"$f":"_xlfn.CONCAT(AthleteData[[#This Row],[Last_name]],\", \",AthleteData[[#This Row],[First_name]])","v":", "}]
[{"$f":"_xlfn.CONCAT(AthleteData[[#This Row],[Last_name]],\", \",AthleteData[[#This Row],[First_name]])","v":", "}]
[{"$f":"_xlfn.CONCAT(AthleteData[[#This Row],[Last_name]],\", \",AthleteData[[#This Row],[First_name]])","v":", "}]
[{"$f":"_xlfn.CONCAT(AthleteData[[#This Row],[Last_name]],\", \",AthleteData[[#This Row],[First_name]])","v":", "}]
[{"$f":"_xlfn.CONCAT(AthleteData[[#This Row],[Last_name]],\", \",AthleteData[[#This Row],[First_name]])","v":", "}]
[{"$f":"_xlfn.CONCAT(AthleteData[[#This Row],[Last_name]],\", \",AthleteData[[#This Row],[First_name]])","v":", "}]
[{"$f":"_xlfn.CONCAT(AthleteData[[#This Row],[Last_name]],\", \",AthleteData[[#This Row],[First_name]])","v":", "}]
[{"$f":"_xlfn.CONCAT(AthleteData[[#This Row],[Last_name]],\", \",AthleteData[[#This Row],[First_name]])","v":", "}]
[{"$f":"_xlfn.CONCAT(AthleteData[[#This Row],[Last_name]],\", \",AthleteData[[#This Row],[First_name]])","v":", "}]
[{"$f":"_xlfn.CONCAT(AthleteData[[#This Row],[Last_name]],\", \",AthleteData[[#This Row],[First_name]])","v":", "}]
[{"$f":"_xlfn.CONCAT(AthleteData[[#This Row],[Last_name]],\", \",AthleteData[[#This Row],[First_name]])","v":", "}]
[{"$f":"_xlfn.CONCAT(AthleteData[[#This Row],[Last_name]],\", \",AthleteData[[#This Row],[First_name]])","v":", "}]
[{"$f":"_xlfn.CONCAT(AthleteData[[#This Row],[Last_name]],\", \",AthleteData[[#This Row],[First_name]])","v":", "}]
[{"$f":"_xlfn.CONCAT(AthleteData[[#This Row],[Last_name]],\", \",AthleteData[[#This Row],[First_name]])","v":", "}]
[{"$f":"_xlfn.CONCAT(AthleteData[[#This Row],[Last_name]],\", \",AthleteData[[#This Row],[First_name]])","v":", "}]
[{"$f":"_xlfn.CONCAT(AthleteData[[#This Row],[Last_name]],\", \",AthleteData[[#This Row],[First_name]])","v":", "}]
[{"$f":"_xlfn.CONCAT(AthleteData[[#This Row],[Last_name]],\", \",AthleteData[[#This Row],[First_name]])","v":", "}]
[{"$f":"_xlfn.CONCAT(AthleteData[[#This Row],[Last_name]],\", \",AthleteData[[#This Row],[First_name]])","v":", "}]
[{"$f":"_xlfn.CONCAT(AthleteData[[#This Row],[Last_name]],\", \",AthleteData[[#This Row],[First_name]])","v":", "}]
[{"$f":"_xlfn.CONCAT(AthleteData[[#This Row],[Last_name]],\", \",AthleteData[[#This Row],[First_name]])","v":", "}]
[{"$f":"_xlfn.CONCAT(AthleteData[[#This Row],[Last_name]],\", \",AthleteData[[#This Row],[First_name]])","v":", "}]
[{"$f":"_xlfn.CONCAT(AthleteData[[#This Row],[Last_name]],\", \",AthleteData[[#This Row],[First_name]])","v":", "}]
[{"$f":"_xlfn.CONCAT(AthleteData[[#This Row],[Last_name]],\", \",AthleteData[[#This Row],[First_name]])","v":", "}]
[{"$f":"_xlfn.CONCAT(AthleteData[[#This Row],[Last_name]],\", \",AthleteData[[#This Row],[First_name]])","v":", "}]
[{"$f":"_xlfn.CONCAT(AthleteData[[#This Row],[Last_name]],\", \",AthleteData[[#This Row],[First_name]])","v":", "}]
[{"$f":"_xlfn.CONCAT(AthleteData[[#This Row],[Last_name]],\", \",AthleteData[[#This Row],[First_name]])","v":", "}]
[{"$f":"_xlfn.CONCAT(AthleteData[[#This Row],[Last_name]],\", \",AthleteData[[#This Row],[First_name]])","v":", "}]
[{"$f":"_xlfn.CONCAT(AthleteData[[#This Row],[Last_name]],\", \",AthleteData[[#This Row],[First_name]])","v":", "}]
[{"$f":"_xlfn.CONCAT(AthleteData[[#This Row],[Last_name]],\", \",AthleteData[[#This Row],[First_name]])","v":", "}]
[{"$f":"_xlfn.CONCAT(AthleteData[[#This Row],[Last_name]],\", \",AthleteData[[#This Row],[First_name]])","v":", "}]
[{"$f":"_xlfn.CONCAT(AthleteData[[#This Row],[Last_name]],\", \",AthleteData[[#This Row],[First_name]])","v":", "}]
[{"$f":"_xlfn.CONCAT(AthleteData[[#This Row],[Last_name]],\", \",AthleteData[[#This Row],[First_name]])","v":", "}]
[{"$f":"_xlfn.CONCAT(AthleteData[[#This Row],[Last_name]],\", \",AthleteData[[#This Row],[First_name]])","v":", "}]
[{"$f":"_xlfn.CONCAT(AthleteData[[#This Row],[Last_name]],\", \",AthleteData[[#This Row],[First_name]])","v":", "}]
[{"$f":"_xlfn.CONCAT(AthleteData[[#This Row],[Last_name]],\", \",AthleteData[[#This Row],[First_name]])","v":", "}]
[{"$f":"_xlfn.CONCAT(AthleteData[[#This Row],[Last_name]],\", \",AthleteData[[#This Row],[First_name]])","v":", "}]
[{"$f":"_xlfn.CONCAT(AthleteData[[#This Row],[Last_name]],\", \",AthleteData[[#This Row],[First_name]])","v":", "}]
[{"$f":"_xlfn.CONCAT(AthleteData[[#This Row],[Last_name]],\", \",AthleteData[[#This Row],[First_name]])","v":", "}]
[{"$f":"_xlfn.CONCAT(AthleteData[[#This Row],[Last_name]],\", \",AthleteData[[#This Row],[First_name]])","v":", "}]
[{"$f":"_xlfn.CONCAT(AthleteData[[#This Row],[Last_name]],\", \",AthleteData[[#This Row],[First_name]])","v":", "}]
[{"$f":"_xlfn.CONCAT(AthleteData[[#This Row],[Last_name]],\", \",AthleteData[[#This Row],[First_name]])","v":", "}]
[{"$f":"_xlfn.CONCAT(AthleteData[[#This Row],[Last_name]],\", \",AthleteData[[#This Row],[First_name]])","v":", "}]
[{"$f":"_xlfn.CONCAT(AthleteData[[#This Row],[Last_name]],\", \",AthleteData[[#This Row],[First_name]])","v":", "}]
[{"$f":"_xlfn.CONCAT(AthleteData[[#This Row],[Last_name]],\", \",AthleteData[[#This Row],[First_name]])","v":", "}]
[{"$f":"_xlfn.CONCAT(AthleteData[[#This Row],[Last_name]],\", \",AthleteData[[#This Row],[First_name]])","v":", "}]
[{"$f":"_xlfn.CONCAT(AthleteData[[#This Row],[Last_name]],\", \",AthleteData[[#This Row],[First_name]])","v":", "}]
[{"$f":"_xlfn.CONCAT(AthleteData[[#This Row],[Last_name]],\", \",AthleteData[[#This Row],[First_name]])","v":", "}]
[{"$f":"_xlfn.CONCAT(AthleteData[[#This Row],[Last_name]],\", \",AthleteData[[#This Row],[First_name]])","v":", "}]
[{"$f":"_xlfn.CONCAT(AthleteData[[#This Row],[Last_name]],\", \",AthleteData[[#This Row],[First_name]])","v":", "}]
[{"$f":"_xlfn.CONCAT(AthleteData[[#This Row],[Last_name]],\", \",AthleteData[[#This Row],[First_name]])","v":", "}]
[{"$f":"_xlfn.CONCAT(AthleteData[[#This Row],[Last_name]],\", \",AthleteData[[#This Row],[First_name]])","v":", "}]
[{"$f":"_xlfn.CONCAT(AthleteData[[#This Row],[Last_name]],\", \",AthleteData[[#This Row],[First_name]])","v":", "}]
[{"$f":"_xlfn.CONCAT(AthleteData[[#This Row],[Last_name]],\", \",AthleteData[[#This Row],[First_name]])","v":", "}]
[{"$f":"_xlfn.CONCAT(AthleteData[[#This Row],[Last_name]],\", \",AthleteData[[#This Row],[First_name]])","v":", "}]
[{"$f":"_xlfn.CONCAT(AthleteData[[#This Row],[Last_name]],\", \",AthleteData[[#This Row],[First_name]])","v":", "}]
[{"$f":"_xlfn.CONCAT(AthleteData[[#This Row],[Last_name]],\", \",AthleteData[[#This Row],[First_name]])","v":", "}]
[{"$f":"_xlfn.CONCAT(AthleteData[[#This Row],[Last_name]],\", \",AthleteData[[#This Row],[First_name]])","v":", "}]
[{"$f":"_xlfn.CONCAT(AthleteData[[#This Row],[Last_name]],\", \",AthleteData[[#This Row],[First_name]])","v":", "}]
[{"$f":"_xlfn.CONCAT(AthleteData[[#This Row],[Last_name]],\", \",AthleteData[[#This Row],[First_name]])","v":", "}]
[{"$f":"_xlfn.CONCAT(AthleteData[[#This Row],[Last_name]],\", \",AthleteData[[#This Row],[First_name]])","v":", "}]
[{"$f":"_xlfn.CONCAT(AthleteData[[#This Row],[Last_name]],\", \",AthleteData[[#This Row],[First_name]])","v":", "}]
[{"$f":"_xlfn.CONCAT(AthleteData[[#This Row],[Last_name]],\", \",AthleteData[[#This Row],[First_name]])","v":", "}]
[{"$f":"_xlfn.CONCAT(AthleteData[[#This Row],[Last_name]],\", \",AthleteData[[#This Row],[First_name]])","v":", "}]
[{"$f":"_xlfn.CONCAT(AthleteData[[#This Row],[Last_name]],\", \",AthleteData[[#This Row],[First_name]])","v":", "}]
[{"$f":"_xlfn.CONCAT(AthleteData[[#This Row],[Last_name]],\", \",AthleteData[[#This Row],[First_name]])","v":", "}]
[{"$f":"_xlfn.CONCAT(AthleteData[[#This Row],[Last_name]],\", \",AthleteData[[#This Row],[First_name]])","v":", "}]
[{"$f":"_xlfn.CONCAT(AthleteData[[#This Row],[Last_name]],\", \",AthleteData[[#This Row],[First_name]])","v":", "}]
[{"$f":"_xlfn.CONCAT(AthleteData[[#This Row],[Last_name]],\", \",AthleteData[[#This Row],[First_name]])","v":", "}]
[{"$f":"_xlfn.CONCAT(AthleteData[[#This Row],[Last_name]],\", \",AthleteData[[#This Row],[First_name]])","v":", "}]
[{"$f":"_xlfn.CONCAT(AthleteData[[#This Row],[Last_name]],\", \",AthleteData[[#This Row],[First_name]])","v":", "}]
[{"$f":"_xlfn.CONCAT(AthleteData[[#This Row],[Last_name]],\", \",AthleteData[[#This Row],[First_name]])","v":", "}]
[{"$f":"_xlfn.CONCAT(AthleteData[[#This Row],[Last_name]],\", \",AthleteData[[#This Row],[First_name]])","v":", "}]
[{"$f":"_xlfn.CONCAT(AthleteData[[#This Row],[Last_name]],\", \",AthleteData[[#This Row],[First_name]])","v":", "}]
[{"$f":"_xlfn.CONCAT(AthleteData[[#This Row],[Last_name]],\", \",AthleteData[[#This Row],[First_name]])","v":", "}]
[{"$f":"_xlfn.CONCAT(AthleteData[[#This Row],[Last_name]],\", \",AthleteData[[#This Row],[First_name]])","v":", "}]
[{"$f":"_xlfn.CONCAT(AthleteData[[#This Row],[Last_name]],\", \",AthleteData[[#This Row],[First_name]])","v":", "}]
[{"$f":"_xlfn.CONCAT(AthleteData[[#This Row],[Last_name]],\", \",AthleteData[[#This Row],[First_name]])","v":", "}]
[{"$f":"_xlfn.CONCAT(AthleteData[[#This Row],[Last_name]],\", \",AthleteData[[#This Row],[First_name]])","v":", "}]
[{"$f":"_xlfn.CONCAT(AthleteData[[#This Row],[Last_name]],\", \",AthleteData[[#This Row],[First_name]])","v":", "}]
[{"$f":"_xlfn.CONCAT(AthleteData[[#This Row],[Last_name]],\", \",AthleteData[[#This Row],[First_name]])","v":", "}]
[{"$f":"_xlfn.CONCAT(AthleteData[[#This Row],[Last_name]],\", \",AthleteData[[#This Row],[First_name]])","v":", "}]
[{"$f":"_xlfn.CONCAT(AthleteData[[#This Row],[Last_name]],\", \",AthleteData[[#This Row],[First_name]])","v":", "}]
[{"$f":"_xlfn.CONCAT(AthleteData[[#This Row],[Last_name]],\", \",AthleteData[[#This Row],[First_name]])","v":", "}]
[{"$f":"_xlfn.CONCAT(AthleteData[[#This Row],[Last_name]],\", \",AthleteData[[#This Row],[First_name]])","v":", "}]
[{"$f":"_xlfn.CONCAT(AthleteData[[#This Row],[Last_name]],\", \",AthleteData[[#This Row],[First_name]])","v":", "}]
[{"$f":"_xlfn.CONCAT(AthleteData[[#This Row],[Last_name]],\", \",AthleteData[[#This Row],[First_name]])","v":", "}]
[{"$f":"_xlfn.CONCAT(AthleteData[[#This Row],[Last_name]],\", \",AthleteData[[#This Row],[First_name]])","v":", "}]
[{"$f":"_xlfn.CONCAT(AthleteData[[#This Row],[Last_name]],\", \",AthleteData[[#This Row],[First_name]])","v":", "}]
[{"$f":"_xlfn.CONCAT(AthleteData[[#This Row],[Last_name]],\", \",AthleteData[[#This Row],[First_name]])","v":", "}]
[{"$f":"_xlfn.CONCAT(AthleteData[[#This Row],[Last_name]],\", \",AthleteData[[#This Row],[First_name]])","v":", "}]
[{"$f":"_xlfn.CONCAT(AthleteData[[#This Row],[Last_name]],\", \",AthleteData[[#This Row],[First_name]])","v":", "}]
[{"$f":"_xlfn.CONCAT(AthleteData[[#This Row],[Last_name]],\", \",AthleteData[[#This Row],[First_name]])","v":", "}]
[{"$f":"_xlfn.CONCAT(AthleteData[[#This Row],[Last_name]],\", \",AthleteData[[#This Row],[First_name]])","v":", "}]
[{"$f":"_xlfn.CONCAT(AthleteData[[#This Row],[Last_name]],\", \",AthleteData[[#This Row],[First_name]])","v":", "}]
[{"$f":"_xlfn.CONCAT(AthleteData[[#This Row],[Last_name]],\", \",AthleteData[[#This Row],[First_name]])","v":", "}]
[{"$f":"_xlfn.CONCAT(AthleteData[[#This Row],[Last_name]],\", \",AthleteData[[#This Row],[First_name]])","v":", "}]
[{"$f":"_xlfn.CONCAT(AthleteData[[#This Row],[Last_name]],\", \",AthleteData[[#This Row],[First_name]])","v":", "}]
[{"$f":"_xlfn.CONCAT(AthleteData[[#This Row],[Last_name]],\", \",AthleteData[[#This Row],[First_name]])","v":", "}]
[{"$f":"_xlfn.CONCAT(AthleteData[[#This Row],[Last_name]],\", \",AthleteData[[#This Row],[First_name]])","v":", "}]
[{"$f":"_xlfn.CONCAT(AthleteData[[#This Row],[Last_name]],\", \",AthleteData[[#This Row],[First_name]])","v":", "}]
[{"$f":"_xlfn.CONCAT(AthleteData[[#This Row],[Last_name]],\", \",AthleteData[[#This Row],[First_name]])","v":", "}]
[{"$f":"_xlfn.CONCAT(AthleteData[[#This Row],[Last_name]],\", \",AthleteData[[#This Row],[First_name]])","v":", "}]
[{"$f":"_xlfn.CONCAT(AthleteData[[#This Row],[Last_name]],\", \",AthleteData[[#This Row],[First_name]])","v":", "}]
[{"$f":"_xlfn.CONCAT(AthleteData[[#This Row],[Last_name]],\", \",AthleteData[[#This Row],[First_name]])","v":", "}]
[{"$f":"_xlfn.CONCAT(AthleteData[[#This Row],[Last_name]],\", \",AthleteData[[#This Row],[First_name]])","v":", "}]
[{"$f":"_xlfn.CONCAT(AthleteData[[#This Row],[Last_name]],\", \",AthleteData[[#This Row],[First_name]])","v":", "}]
[{"$f":"_xlfn.CONCAT(AthleteData[[#This Row],[Last_name]],\", \",AthleteData[[#This Row],[First_name]])","v":", "}]
[{"$f":"_xlfn.CONCAT(AthleteData[[#This Row],[Last_name]],\", \",AthleteData[[#This Row],[First_name]])","v":", "}]
[{"$f":"_xlfn.CONCAT(AthleteData[[#This Row],[Last_name]],\", \",AthleteData[[#This Row],[First_name]])","v":", "}]
[{"$f":"_xlfn.CONCAT(AthleteData[[#This Row],[Last_name]],\", \",AthleteData[[#This Row],[First_name]])","v":", "}]
[{"$f":"_xlfn.CONCAT(AthleteData[[#This Row],[Last_name]],\", \",AthleteData[[#This Row],[First_name]])","v":", "}]
[{"$f":"_xlfn.CONCAT(AthleteData[[#This Row],[Last_name]],\", \",AthleteData[[#This Row],[First_name]])","v":", "}]
[{"$f":"_xlfn.CONCAT(AthleteData[[#This Row],[Last_name]],\", \",AthleteData[[#This Row],[First_name]])","v":", "}]
[{"$f":"_xlfn.CONCAT(AthleteData[[#This Row],[Last_name]],\", \",AthleteData[[#This Row],[First_name]])","v":", "}]
[{"$f":"_xlfn.CONCAT(AthleteData[[#This Row],[Last_name]],\", \",AthleteData[[#This Row],[First_name]])","v":", "}]
[{"$f":"_xlfn.CONCAT(AthleteData[[#This Row],[Last_name]],\", \",AthleteData[[#This Row],[First_name]])","v":", "}]
[{"$f":"_xlfn.CONCAT(AthleteData[[#This Row],[Last_name]],\", \",AthleteData[[#This Row],[First_name]])","v":", "}]
[{"$f":"_xlfn.CONCAT(AthleteData[[#This Row],[Last_name]],\", \",AthleteData[[#This Row],[First_name]])","v":", "}]
[{"$f":"_xlfn.CONCAT(AthleteData[[#This Row],[Last_name]],\", \",AthleteData[[#This Row],[First_name]])","v":", "}]
[{"$f":"_xlfn.CONCAT(AthleteData[[#This Row],[Last_name]],\", \",AthleteData[[#This Row],[First_name]])","v":", "}]
[{"$f":"_xlfn.CONCAT(AthleteData[[#This Row],[Last_name]],\", \",AthleteData[[#This Row],[First_name]])","v":", "}]
[{"$f":"_xlfn.CONCAT(AthleteData[[#This Row],[Last_name]],\", \",AthleteData[[#This Row],[First_name]])","v":", "}]
[{"$f":"_xlfn.CONCAT(AthleteData[[#This Row],[Last_name]],\", \",AthleteData[[#This Row],[First_name]])","v":", "}]
[{"$f":"_xlfn.CONCAT(AthleteData[[#This Row],[Last_name]],\", \",AthleteData[[#This Row],[First_name]])","v":", "}]
[{"$f":"_xlfn.CONCAT(AthleteData[[#This Row],[Last_name]],\", \",AthleteData[[#This Row],[First_name]])","v":", "}]
[{"$f":"_xlfn.CONCAT(AthleteData[[#This Row],[Last_name]],\", \",AthleteData[[#This Row],[First_name]])","v":", "}]
[{"$f":"_xlfn.CONCAT(AthleteData[[#This Row],[Last_name]],\", \",AthleteData[[#This Row],[First_name]])","v":", "}]
[{"$f":"_xlfn.CONCAT(AthleteData[[#This Row],[Last_name]],\", \",AthleteData[[#This Row],[First_name]])","v":", "}]
[{"$f":"_xlfn.CONCAT(AthleteData[[#This Row],[Last_name]],\", \",AthleteData[[#This Row],[First_name]])","v":", "}]
[{"$f":"_xlfn.CONCAT(AthleteData[[#This Row],[Last_name]],\", \",AthleteData[[#This Row],[First_name]])","v":", "}]
[{"$f":"_xlfn.CONCAT(AthleteData[[#This Row],[Last_name]],\", \",AthleteData[[#This Row],[First_name]])","v":", "}]
[{"$f":"_xlfn.CONCAT(AthleteData[[#This Row],[Last_name]],\", \",AthleteData[[#This Row],[First_name]])","v":", "}]
[{"$f":"_xlfn.CONCAT(AthleteData[[#This Row],[Last_name]],\", \",AthleteData[[#This Row],[First_name]])","v":", "}]
[{"$f":"_xlfn.CONCAT(AthleteData[[#This Row],[Last_name]],\", \",AthleteData[[#This Row],[First_name]])","v":", "}]
[{"$f":"_xlfn.CONCAT(AthleteData[[#This Row],[Last_name]],\", \",AthleteData[[#This Row],[First_name]])","v":", "}]
[{"$f":"_xlfn.CONCAT(AthleteData[[#This Row],[Last_name]],\", \",AthleteData[[#This Row],[First_name]])","v":", "}]
[{"$f":"_xlfn.CONCAT(AthleteData[[#This Row],[Last_name]],\", \",AthleteData[[#This Row],[First_name]])","v":", "}]
[{"$f":"_xlfn.CONCAT(AthleteData[[#This Row],[Last_name]],\", \",AthleteData[[#This Row],[First_name]])","v":", "}]
[{"$f":"_xlfn.CONCAT(AthleteData[[#This Row],[Last_name]],\", \",AthleteData[[#This Row],[First_name]])","v":", "}]
[{"$f":"_xlfn.CONCAT(AthleteData[[#This Row],[Last_name]],\", \",AthleteData[[#This Row],[First_name]])","v":", "}]
[{"$f":"_xlfn.CONCAT(AthleteData[[#This Row],[Last_name]],\", \",AthleteData[[#This Row],[First_name]])","v":", "}]
[{"$f":"_xlfn.CONCAT(AthleteData[[#This Row],[Last_name]],\", \",AthleteData[[#This Row],[First_name]])","v":", "}]
[{"$f":"_xlfn.CONCAT(AthleteData[[#This Row],[Last_name]],\", \",AthleteData[[#This Row],[First_name]])","v":", "}]
[{"$f":"_xlfn.CONCAT(AthleteData[[#This Row],[Last_name]],\", \",AthleteData[[#This Row],[First_name]])","v":", "}]
[{"$f":"_xlfn.CONCAT(AthleteData[[#This Row],[Last_name]],\", \",AthleteData[[#This Row],[First_name]])","v":", "}]
[{"$f":"_xlfn.CONCAT(AthleteData[[#This Row],[Last_name]],\", \",AthleteData[[#This Row],[First_name]])","v":", "}]
[{"$f":"_xlfn.CONCAT(AthleteData[[#This Row],[Last_name]],\", \",AthleteData[[#This Row],[First_name]])","v":", "}]
[{"$f":"_xlfn.CONCAT(AthleteData[[#This Row],[Last_name]],\", \",AthleteData[[#This Row],[First_name]])","v":", "}]
[{"$f":"_xlfn.CONCAT(AthleteData[[#This Row],[Last_name]],\", \",AthleteData[[#This Row],[First_name]])","v":", "}]
[{"$f":"_xlfn.CONCAT(AthleteData[[#This Row],[Last_name]],\", \",AthleteData[[#This Row],[First_name]])","v":", "}]
[{"$f":"_xlfn.CONCAT(AthleteData[[#This Row],[Last_name]],\", \",AthleteData[[#This Row],[First_name]])","v":", "}]
[{"$f":"_xlfn.CONCAT(AthleteData[[#This Row],[Last_name]],\", \",AthleteData[[#This Row],[First_name]])","v":", "}]
[{"$f":"_xlfn.CONCAT(AthleteData[[#This Row],[Last_name]],\", \",AthleteData[[#This Row],[First_name]])","v":", "}]
[{"$f":"_xlfn.CONCAT(AthleteData[[#This Row],[Last_name]],\", \",AthleteData[[#This Row],[First_name]])","v":", "}]
[{"$f":"_xlfn.CONCAT(AthleteData[[#This Row],[Last_name]],\", \",AthleteData[[#This Row],[First_name]])","v":", "}]
[{"$f":"_xlfn.CONCAT(AthleteData[[#This Row],[Last_name]],\", \",AthleteData[[#This Row],[First_name]])","v":", "}]
[{"$f":"_xlfn.CONCAT(AthleteData[[#This Row],[Last_name]],\", \",AthleteData[[#This Row],[First_name]])","v":", "}]
[{"$f":"_xlfn.CONCAT(AthleteData[[#This Row],[Last_name]],\", \",AthleteData[[#This Row],[First_name]])","v":", "}]
[{"$f":"_xlfn.CONCAT(AthleteData[[#This Row],[Last_name]],\", \",AthleteData[[#This Row],[First_name]])","v":", "}]
[{"$f":"_xlfn.CONCAT(AthleteData[[#This Row],[Last_name]],\", \",AthleteData[[#This Row],[First_name]])","v":", "}]
[{"$f":"_xlfn.CONCAT(AthleteData[[#This Row],[Last_name]],\", \",AthleteData[[#This Row],[First_name]])","v":", "}]
[{"$f":"_xlfn.CONCAT(AthleteData[[#This Row],[Last_name]],\", \",AthleteData[[#This Row],[First_name]])","v":", "}]
[{"$f":"_xlfn.CONCAT(AthleteData[[#This Row],[Last_name]],\", \",AthleteData[[#This Row],[First_name]])","v":", "}]
[{"$f":"_xlfn.CONCAT(AthleteData[[#This Row],[Last_name]],\", \",AthleteData[[#This Row],[First_name]])","v":", "}]
[{"$f":"_xlfn.CONCAT(AthleteData[[#This Row],[Last_name]],\", \",AthleteData[[#This Row],[First_name]])","v":", "}]
[{"$f":"_xlfn.CONCAT(AthleteData[[#This Row],[Last_name]],\", \",AthleteData[[#This Row],[First_name]])","v":", "}]
[{"$f":"_xlfn.CONCAT(AthleteData[[#This Row],[Last_name]],\", \",AthleteData[[#This Row],[First_name]])","v":", "}]
[{"$f":"_xlfn.CONCAT(AthleteData[[#This Row],[Last_name]],\", \",AthleteData[[#This Row],[First_name]])","v":", "}]
[{"$f":"_xlfn.CONCAT(AthleteData[[#This Row],[Last_name]],\", \",AthleteData[[#This Row],[First_name]])","v":", "}]
[{"$f":"_xlfn.CONCAT(AthleteData[[#This Row],[Last_name]],\", \",AthleteData[[#This Row],[First_name]])","v":", "}]
[{"$f":"_xlfn.CONCAT(AthleteData[[#This Row],[Last_name]],\", \",AthleteData[[#This Row],[First_name]])","v":", "}]
[{"$f":"_xlfn.CONCAT(AthleteData[[#This Row],[Last_name]],\", \",AthleteData[[#This Row],[First_name]])","v":", "}]
[{"$f":"_xlfn.CONCAT(AthleteData[[#This Row],[Last_name]],\", \",AthleteData[[#This Row],[First_name]])","v":", "}]
[{"$f":"_xlfn.CONCAT(AthleteData[[#This Row],[Last_name]],\", \",AthleteData[[#This Row],[First_name]])","v":", "}]
[{"$f":"_xlfn.CONCAT(AthleteData[[#This Row],[Last_name]],\", \",AthleteData[[#This Row],[First_name]])","v":", "}]
[{"$f":"_xlfn.CONCAT(AthleteData[[#This Row],[Last_name]],\", \",AthleteData[[#This Row],[First_name]])","v":", "}]
[{"$f":"_xlfn.CONCAT(AthleteData[[#This Row],[Last_name]],\", \",AthleteData[[#This Row],[First_name]])","v":", "}]
[{"$f":"_xlfn.CONCAT(AthleteData[[#This Row],[Last_name]],\", \",AthleteData[[#This Row],[First_name]])","v":", "}]
[{"$f":"_xlfn.CONCAT(AthleteData[[#This Row],[Last_name]],\", \",AthleteData[[#This Row],[First_name]])","v":", "}]
[{"$f":"_xlfn.CONCAT(AthleteData[[#This Row],[Last_name]],\", \",AthleteData[[#This Row],[First_name]])","v":", "}]
[{"$f":"_xlfn.CONCAT(AthleteData[[#This Row],[Last_name]],\", \",AthleteData[[#This Row],[First_name]])","v":", "}]
[{"$f":"_xlfn.CONCAT(AthleteData[[#This Row],[Last_name]],\", \",AthleteData[[#This Row],[First_name]])","v":", "}]
[{"$f":"_xlfn.CONCAT(AthleteData[[#This Row],[Last_name]],\", \",AthleteData[[#This Row],[First_name]])","v":", "}]
[{"$f":"_xlfn.CONCAT(AthleteData[[#This Row],[Last_name]],\", \",AthleteData[[#This Row],[First_name]])","v":", "}]
[{"$f":"_xlfn.CONCAT(AthleteData[[#This Row],[Last_name]],\", \",AthleteData[[#This Row],[First_name]])","v":", "}]
[{"$f":"_xlfn.CONCAT(AthleteData[[#This Row],[Last_name]],\", \",AthleteData[[#This Row],[First_name]])","v":", "}]
[{"$f":"_xlfn.CONCAT(AthleteData[[#This Row],[Last_name]],\", \",AthleteData[[#This Row],[First_name]])","v":", "}]
[{"$f":"_xlfn.CONCAT(AthleteData[[#This Row],[Last_name]],\", \",AthleteData[[#This Row],[First_name]])","v":", "}]
[{"$f":"_xlfn.CONCAT(AthleteData[[#This Row],[Last_name]],\", \",AthleteData[[#This Row],[First_name]])","v":", "}]
[{"$f":"_xlfn.CONCAT(AthleteData[[#This Row],[Last_name]],\", \",AthleteData[[#This Row],[First_name]])","v":", "}]
[{"$f":"_xlfn.CONCAT(AthleteData[[#This Row],[Last_name]],\", \",AthleteData[[#This Row],[First_name]])","v":", "}]
[{"$f":"_xlfn.CONCAT(AthleteData[[#This Row],[Last_name]],\", \",AthleteData[[#This Row],[First_name]])","v":", "}]
[{"$f":"_xlfn.CONCAT(AthleteData[[#This Row],[Last_name]],\", \",AthleteData[[#This Row],[First_name]])","v":", "}]
[{"$f":"_xlfn.CONCAT(AthleteData[[#This Row],[Last_name]],\", \",AthleteData[[#This Row],[First_name]])","v":", "}]
[{"$f":"_xlfn.CONCAT(AthleteData[[#This Row],[Last_name]],\", \",AthleteData[[#This Row],[First_name]])","v":", "}]
[{"$f":"_xlfn.CONCAT(AthleteData[[#This Row],[Last_name]],\", \",AthleteData[[#This Row],[First_name]])","v":", "}]
[{"$f":"_xlfn.CONCAT(AthleteData[[#This Row],[Last_name]],\", \",AthleteData[[#This Row],[First_name]])","v":", "}]
[{"$f":"_xlfn.CONCAT(AthleteData[[#This Row],[Last_name]],\", \",AthleteData[[#This Row],[First_name]])","v":", "}]
[{"$f":"_xlfn.CONCAT(AthleteData[[#This Row],[Last_name]],\", \",AthleteData[[#This Row],[First_name]])","v":", "}]
[{"$f":"_xlfn.CONCAT(AthleteData[[#This Row],[Last_name]],\", \",AthleteData[[#This Row],[First_name]])","v":", "}]
[{"$f":"_xlfn.CONCAT(AthleteData[[#This Row],[Last_name]],\", \",AthleteData[[#This Row],[First_name]])","v":", "}]
[{"$f":"_xlfn.CONCAT(AthleteData[[#This Row],[Last_name]],\", \",AthleteData[[#This Row],[First_name]])","v":", "}]
[{"$f":"_xlfn.CONCAT(AthleteData[[#This Row],[Last_name]],\", \",AthleteData[[#This Row],[First_name]])","v":", "}]
[{"$f":"_xlfn.CONCAT(AthleteData[[#This Row],[Last_name]],\", \",AthleteData[[#This Row],[First_name]])","v":", "}]
[{"$f":"_xlfn.CONCAT(AthleteData[[#This Row],[Last_name]],\", \",AthleteData[[#This Row],[First_name]])","v":", "}]
[{"$f":"_xlfn.CONCAT(AthleteData[[#This Row],[Last_name]],\", \",AthleteData[[#This Row],[First_name]])","v":", "}]
[{"$f":"_xlfn.CONCAT(AthleteData[[#This Row],[Last_name]],\", \",AthleteData[[#This Row],[First_name]])","v":", "}]
[{"$f":"_xlfn.CONCAT(AthleteData[[#This Row],[Last_name]],\", \",AthleteData[[#This Row],[First_name]])","v":", "}]
[{"$f":"_xlfn.CONCAT(AthleteData[[#This Row],[Last_name]],\", \",AthleteData[[#This Row],[First_name]])","v":", "}]
[{"$f":"_xlfn.CONCAT(AthleteData[[#This Row],[Last_name]],\", \",AthleteData[[#This Row],[First_name]])","v":", "}]
[{"$f":"_xlfn.CONCAT(AthleteData[[#This Row],[Last_name]],\", \",AthleteData[[#This Row],[First_name]])","v":", "}]
[{"$f":"_xlfn.CONCAT(AthleteData[[#This Row],[Last_name]],\", \",AthleteData[[#This Row],[First_name]])","v":", "}]
[{"$f":"_xlfn.CONCAT(AthleteData[[#This Row],[Last_name]],\", \",AthleteData[[#This Row],[First_name]])","v":", "}]
[{"$f":"_xlfn.CONCAT(AthleteData[[#This Row],[Last_name]],\", \",AthleteData[[#This Row],[First_name]])","v":", "}]
[{"$f":"_xlfn.CONCAT(AthleteData[[#This Row],[Last_name]],\", \",AthleteData[[#This Row],[First_name]])","v":", "}]
[{"$f":"_xlfn.CONCAT(AthleteData[[#This Row],[Last_name]],\", \",AthleteData[[#This Row],[First_name]])","v":", "}]
[{"$f":"_xlfn.CONCAT(AthleteData[[#This Row],[Last_name]],\", \",AthleteData[[#This Row],[First_name]])","v":", "}]
[{"$f":"_xlfn.CONCAT(AthleteData[[#This Row],[Last_name]],\", \",AthleteData[[#This Row],[First_name]])","v":", "}]
[{"$f":"_xlfn.CONCAT(AthleteData[[#This Row],[Last_name]],\", \",AthleteData[[#This Row],[First_name]])","v":", "}]
[{"$f":"_xlfn.CONCAT(AthleteData[[#This Row],[Last_name]],\", \",AthleteData[[#This Row],[First_name]])","v":", "}]
[{"$f":"_xlfn.CONCAT(AthleteData[[#This Row],[Last_name]],\", \",AthleteData[[#This Row],[First_name]])","v":", "}]
[{"$f":"_xlfn.CONCAT(AthleteData[[#This Row],[Last_name]],\", \",AthleteData[[#This Row],[First_name]])","v":", "}]
[{"$f":"_xlfn.CONCAT(AthleteData[[#This Row],[Last_name]],\", \",AthleteData[[#This Row],[First_name]])","v":", "}]
[{"$f":"_xlfn.CONCAT(AthleteData[[#This Row],[Last_name]],\", \",AthleteData[[#This Row],[First_name]])","v":", "}]
[{"$f":"_xlfn.CONCAT(AthleteData[[#This Row],[Last_name]],\", \",AthleteData[[#This Row],[First_name]])","v":", "}]
[{"$f":"_xlfn.CONCAT(AthleteData[[#This Row],[Last_name]],\", \",AthleteData[[#This Row],[First_name]])","v":", "}]
[{"$f":"_xlfn.CONCAT(AthleteData[[#This Row],[Last_name]],\", \",AthleteData[[#This Row],[First_name]])","v":", "}]
[{"$f":"_xlfn.CONCAT(AthleteData[[#This Row],[Last_name]],\", \",AthleteData[[#This Row],[First_name]])","v":", "}]
[{"$f":"_xlfn.CONCAT(AthleteData[[#This Row],[Last_name]],\", \",AthleteData[[#This Row],[First_name]])","v":", "}]
[{"$f":"_xlfn.CONCAT(AthleteData[[#This Row],[Last_name]],\", \",AthleteData[[#This Row],[First_name]])","v":", "}]
[{"$f":"_xlfn.CONCAT(AthleteData[[#This Row],[Last_name]],\", \",AthleteData[[#This Row],[First_name]])","v":", "}]
[{"$f":"_xlfn.CONCAT(AthleteData[[#This Row],[Last_name]],\", \",AthleteData[[#This Row],[First_name]])","v":", "}]
[{"$f":"_xlfn.CONCAT(AthleteData[[#This Row],[Last_name]],\", \",AthleteData[[#This Row],[First_name]])","v":", "}]
[{"$f":"_xlfn.CONCAT(AthleteData[[#This Row],[Last_name]],\", \",AthleteData[[#This Row],[First_name]])","v":", "}]
[{"$f":"_xlfn.CONCAT(AthleteData[[#This Row],[Last_name]],\", \",AthleteData[[#This Row],[First_name]])","v":", "}]
[{"$f":"_xlfn.CONCAT(AthleteData[[#This Row],[Last_name]],\", \",AthleteData[[#This Row],[First_name]])","v":", "}]
[{"$f":"_xlfn.CONCAT(AthleteData[[#This Row],[Last_name]],\", \",AthleteData[[#This Row],[First_name]])","v":", "}]
[{"$f":"_xlfn.CONCAT(AthleteData[[#This Row],[Last_name]],\", \",AthleteData[[#This Row],[First_name]])","v":", "}]
[{"$f":"_xlfn.CONCAT(AthleteData[[#This Row],[Last_name]],\", \",AthleteData[[#This Row],[First_name]])","v":", "}]
[{"$f":"_xlfn.CONCAT(AthleteData[[#This Row],[Last_name]],\", \",AthleteData[[#This Row],[First_name]])","v":", "}]
[{"$f":"_xlfn.CONCAT(AthleteData[[#This Row],[Last_name]],\", \",AthleteData[[#This Row],[First_name]])","v":", "}]
[{"$f":"_xlfn.CONCAT(AthleteData[[#This Row],[Last_name]],\", \",AthleteData[[#This Row],[First_name]])","v":", "}]
[{"$f":"_xlfn.CONCAT(AthleteData[[#This Row],[Last_name]],\", \",AthleteData[[#This Row],[First_name]])","v":", "}]
[{"$f":"_xlfn.CONCAT(AthleteData[[#This Row],[Last_name]],\", \",AthleteData[[#This Row],[First_name]])","v":", "}]
[{"$f":"_xlfn.CONCAT(AthleteData[[#This Row],[Last_name]],\", \",AthleteData[[#This Row],[First_name]])","v":", "}]
[{"$f":"_xlfn.CONCAT(AthleteData[[#This Row],[Last_name]],\", \",AthleteData[[#This Row],[First_name]])","v":", "}]
[{"$f":"_xlfn.CONCAT(AthleteData[[#This Row],[Last_name]],\", \",AthleteData[[#This Row],[First_name]])","v":", "}]
[{"$f":"_xlfn.CONCAT(AthleteData[[#This Row],[Last_name]],\", \",AthleteData[[#This Row],[First_name]])","v":", "}]
[{"$f":"_xlfn.CONCAT(AthleteData[[#This Row],[Last_name]],\", \",AthleteData[[#This Row],[First_name]])","v":", "}]
[{"$f":"_xlfn.CONCAT(AthleteData[[#This Row],[Last_name]],\", \",AthleteData[[#This Row],[First_name]])","v":", "}]
[{"$f":"_xlfn.CONCAT(AthleteData[[#This Row],[Last_name]],\", \",AthleteData[[#This Row],[First_name]])","v":", "}]
[{"$f":"_xlfn.CONCAT(AthleteData[[#This Row],[Last_name]],\", \",AthleteData[[#This Row],[First_name]])","v":", "}]
[{"$f":"_xlfn.CONCAT(AthleteData[[#This Row],[Last_name]],\", \",AthleteData[[#This Row],[First_name]])","v":", "}]
[{"$f":"_xlfn.CONCAT(AthleteData[[#This Row],[Last_name]],\", \",AthleteData[[#This Row],[First_name]])","v":", "}]
[{"$f":"_xlfn.CONCAT(AthleteData[[#This Row],[Last_name]],\", \",AthleteData[[#This Row],[First_name]])","v":", "}]
[{"$f":"_xlfn.CONCAT(AthleteData[[#This Row],[Last_name]],\", \",AthleteData[[#This Row],[First_name]])","v":", "}]
[{"$f":"_xlfn.CONCAT(AthleteData[[#This Row],[Last_name]],\", \",AthleteData[[#This Row],[First_name]])","v":", "}]
[{"$f":"_xlfn.CONCAT(AthleteData[[#This Row],[Last_name]],\", \",AthleteData[[#This Row],[First_name]])","v":", "}]
[{"$f":"_xlfn.CONCAT(AthleteData[[#This Row],[Last_name]],\", \",AthleteData[[#This Row],[First_name]])","v":", "}]
[{"$f":"_xlfn.CONCAT(AthleteData[[#This Row],[Last_name]],\", \",AthleteData[[#This Row],[First_name]])","v":", "}]
[{"$f":"_xlfn.CONCAT(AthleteData[[#This Row],[Last_name]],\", \",AthleteData[[#This Row],[First_name]])","v":", "}]
[{"$f":"_xlfn.CONCAT(AthleteData[[#This Row],[Last_name]],\", \",AthleteData[[#This Row],[First_name]])","v":", "}]
[{"$f":"_xlfn.CONCAT(AthleteData[[#This Row],[Last_name]],\", \",AthleteData[[#This Row],[First_name]])","v":", "}]
[{"$f":"_xlfn.CONCAT(AthleteData[[#This Row],[Last_name]],\", \",AthleteData[[#This Row],[First_name]])","v":", "}]
[{"$f":"_xlfn.CONCAT(AthleteData[[#This Row],[Last_name]],\", \",AthleteData[[#This Row],[First_name]])","v":", "}]
[{"$f":"_xlfn.CONCAT(AthleteData[[#This Row],[Last_name]],\", \",AthleteData[[#This Row],[First_name]])","v":", "}]
[{"$f":"_xlfn.CONCAT(AthleteData[[#This Row],[Last_name]],\", \",AthleteData[[#This Row],[First_name]])","v":", "}]
[{"$f":"_xlfn.CONCAT(AthleteData[[#This Row],[Last_name]],\", \",AthleteData[[#This Row],[First_name]])","v":", "}]
[{"$f":"_xlfn.CONCAT(AthleteData[[#This Row],[Last_name]],\", \",AthleteData[[#This Row],[First_name]])","v":", "}]
[{"$f":"_xlfn.CONCAT(AthleteData[[#This Row],[Last_name]],\", \",AthleteData[[#This Row],[First_name]])","v":", "}]
[{"$f":"_xlfn.CONCAT(AthleteData[[#This Row],[Last_name]],\", \",AthleteData[[#This Row],[First_name]])","v":", "}]
[{"$f":"_xlfn.CONCAT(AthleteData[[#This Row],[Last_name]],\", \",AthleteData[[#This Row],[First_name]])","v":", "}]
[{"$f":"_xlfn.CONCAT(AthleteData[[#This Row],[Last_name]],\", \",AthleteData[[#This Row],[First_name]])","v":", "}]
[{"$f":"_xlfn.CONCAT(AthleteData[[#This Row],[Last_name]],\", \",AthleteData[[#This Row],[First_name]])","v":", "}]
[{"$f":"_xlfn.CONCAT(AthleteData[[#This Row],[Last_name]],\", \",AthleteData[[#This Row],[First_name]])","v":", "}]
[{"$f":"_xlfn.CONCAT(AthleteData[[#This Row],[Last_name]],\", \",AthleteData[[#This Row],[First_name]])","v":", "}]
[{"$f":"_xlfn.CONCAT(AthleteData[[#This Row],[Last_name]],\", \",AthleteData[[#This Row],[First_name]])","v":", "}]
[{"$f":"_xlfn.CONCAT(AthleteData[[#This Row],[Last_name]],\", \",AthleteData[[#This Row],[First_name]])","v":", "}]
[{"$f":"_xlfn.CONCAT(AthleteData[[#This Row],[Last_name]],\", \",AthleteData[[#This Row],[First_name]])","v":", "}]
[{"$f":"_xlfn.CONCAT(AthleteData[[#This Row],[Last_name]],\", \",AthleteData[[#This Row],[First_name]])","v":", "}]
[{"$f":"_xlfn.CONCAT(AthleteData[[#This Row],[Last_name]],\", \",AthleteData[[#This Row],[First_name]])","v":", "}]
[{"$f":"_xlfn.CONCAT(AthleteData[[#This Row],[Last_name]],\", \",AthleteData[[#This Row],[First_name]])","v":", "}]
[{"$f":"_xlfn.CONCAT(AthleteData[[#This Row],[Last_name]],\", \",AthleteData[[#This Row],[First_name]])","v":", "}]
[{"$f":"_xlfn.CONCAT(AthleteData[[#This Row],[Last_name]],\", \",AthleteData[[#This Row],[First_name]])","v":", "}]
[{"$f":"_xlfn.CONCAT(AthleteData[[#This Row],[Last_name]],\", \",AthleteData[[#This Row],[First_name]])","v":", "}]
[{"$f":"_xlfn.CONCAT(AthleteData[[#This Row],[Last_name]],\", \",AthleteData[[#This Row],[First_name]])","v":", "}]
[{"$f":"_xlfn.CONCAT(AthleteData[[#This Row],[Last_name]],\", \",AthleteData[[#This Row],[First_name]])","v":", "}]
[{"$f":"_xlfn.CONCAT(AthleteData[[#This Row],[Last_name]],\", \",AthleteData[[#This Row],[First_name]])","v":", "}]
[{"$f":"_xlfn.CONCAT(AthleteData[[#This Row],[Last_name]],\", \",AthleteData[[#This Row],[First_name]])","v":", "}]
[{"$f":"_xlfn.CONCAT(AthleteData[[#This Row],[Last_name]],\", \",AthleteData[[#This Row],[First_name]])","v":", "}]
[{"$f":"_xlfn.CONCAT(AthleteData[[#This Row],[Last_name]],\", \",AthleteData[[#This Row],[First_name]])","v":", "}]
[{"$f":"_xlfn.CONCAT(AthleteData[[#This Row],[Last_name]],\", \",AthleteData[[#This Row],[First_name]])","v":", "}]
[{"$f":"_xlfn.CONCAT(AthleteData[[#This Row],[Last_name]],\", \",AthleteData[[#This Row],[First_name]])","v":", "}]
[{"$f":"_xlfn.CONCAT(AthleteData[[#This Row],[Last_name]],\", \",AthleteData[[#This Row],[First_name]])","v":", "}]
[{"$f":"_xlfn.CONCAT(AthleteData[[#This Row],[Last_name]],\", \",AthleteData[[#This Row],[First_name]])","v":", "}]
[{"$f":"_xlfn.CONCAT(AthleteData[[#This Row],[Last_name]],\", \",AthleteData[[#This Row],[First_name]])","v":", "}]
[{"$f":"_xlfn.CONCAT(AthleteData[[#This Row],[Last_name]],\", \",AthleteData[[#This Row],[First_name]])","v":", "}]
[{"$f":"_xlfn.CONCAT(AthleteData[[#This Row],[Last_name]],\", \",AthleteData[[#This Row],[First_name]])","v":", "}]
[{"$f":"_xlfn.CONCAT(AthleteData[[#This Row],[Last_name]],\", \",AthleteData[[#This Row],[First_name]])","v":", "}]
[{"$f":"_xlfn.CONCAT(AthleteData[[#This Row],[Last_name]],\", \",AthleteData[[#This Row],[First_name]])","v":", "}]
[{"$f":"_xlfn.CONCAT(AthleteData[[#This Row],[Last_name]],\", \",AthleteData[[#This Row],[First_name]])","v":", "}]
[{"$f":"_xlfn.CONCAT(AthleteData[[#This Row],[Last_name]],\", \",AthleteData[[#This Row],[First_name]])","v":", "}]
[{"$f":"_xlfn.CONCAT(AthleteData[[#This Row],[Last_name]],\", \",AthleteData[[#This Row],[First_name]])","v":", "}]
[{"$f":"_xlfn.CONCAT(AthleteData[[#This Row],[Last_name]],\", \",AthleteData[[#This Row],[First_name]])","v":", "}]
[{"$f":"_xlfn.CONCAT(AthleteData[[#This Row],[Last_name]],\", \",AthleteData[[#This Row],[First_name]])","v":", "}]
[{"$f":"_xlfn.CONCAT(AthleteData[[#This Row],[Last_name]],\", \",AthleteData[[#This Row],[First_name]])","v":", "}]
[{"$f":"_xlfn.CONCAT(AthleteData[[#This Row],[Last_name]],\", \",AthleteData[[#This Row],[First_name]])","v":", "}]
[{"$f":"_xlfn.CONCAT(AthleteData[[#This Row],[Last_name]],\", \",AthleteData[[#This Row],[First_name]])","v":", "}]
[{"$f":"_xlfn.CONCAT(AthleteData[[#This Row],[Last_name]],\", \",AthleteData[[#This Row],[First_name]])","v":", "}]
[{"$f":"_xlfn.CONCAT(AthleteData[[#This Row],[Last_name]],\", \",AthleteData[[#This Row],[First_name]])","v":", "}]
[{"$f":"_xlfn.CONCAT(AthleteData[[#This Row],[Last_name]],\", \",AthleteData[[#This Row],[First_name]])","v":", "}]
[{"$f":"_xlfn.CONCAT(AthleteData[[#This Row],[Last_name]],\", \",AthleteData[[#This Row],[First_name]])","v":", "}]
[{"$f":"_xlfn.CONCAT(AthleteData[[#This Row],[Last_name]],\", \",AthleteData[[#This Row],[First_name]])","v":", "}]
[{"$f":"_xlfn.CONCAT(AthleteData[[#This Row],[Last_name]],\", \",AthleteData[[#This Row],[First_name]])","v":", "}]
[{"$f":"_xlfn.CONCAT(AthleteData[[#This Row],[Last_name]],\", \",AthleteData[[#This Row],[First_name]])","v":", "}]
[{"$f":"_xlfn.CONCAT(AthleteData[[#This Row],[Last_name]],\", \",AthleteData[[#This Row],[First_name]])","v":", "}]
[{"$f":"_xlfn.CONCAT(AthleteData[[#This Row],[Last_name]],\", \",AthleteData[[#This Row],[First_name]])","v":", "}]
[{"$f":"_xlfn.CONCAT(AthleteData[[#This Row],[Last_name]],\", \",AthleteData[[#This Row],[First_name]])","v":", "}]
[{"$f":"_xlfn.CONCAT(AthleteData[[#This Row],[Last_name]],\", \",AthleteData[[#This Row],[First_name]])","v":", "}]
[{"$f":"_xlfn.CONCAT(AthleteData[[#This Row],[Last_name]],\", \",AthleteData[[#This Row],[First_name]])","v":", "}]
[{"$f":"_xlfn.CONCAT(AthleteData[[#This Row],[Last_name]],\", \",AthleteData[[#This Row],[First_name]])","v":", "}]
[{"$f":"_xlfn.CONCAT(AthleteData[[#This Row],[Last_name]],\", \",AthleteData[[#This Row],[First_name]])","v":", "}]
[{"$f":"_xlfn.CONCAT(AthleteData[[#This Row],[Last_name]],\", \",AthleteData[[#This Row],[First_name]])","v":", "}]
[{"$f":"_xlfn.CONCAT(AthleteData[[#This Row],[Last_name]],\", \",AthleteData[[#This Row],[First_name]])","v":", "}]
[{"$f":"_xlfn.CONCAT(AthleteData[[#This Row],[Last_name]],\", \",AthleteData[[#This Row],[First_name]])","v":", "}]
[{"$f":"_xlfn.CONCAT(AthleteData[[#This Row],[Last_name]],\", \",AthleteData[[#This Row],[First_name]])","v":", "}]
[{"$f":"_xlfn.CONCAT(AthleteData[[#This Row],[Last_name]],\", \",AthleteData[[#This Row],[First_name]])","v":", "}]
[{"$f":"_xlfn.CONCAT(AthleteData[[#This Row],[Last_name]],\", \",AthleteData[[#This Row],[First_name]])","v":", "}]
[{"$f":"_xlfn.CONCAT(AthleteData[[#This Row],[Last_name]],\", \",AthleteData[[#This Row],[First_name]])","v":", "}]
[{"$f":"_xlfn.CONCAT(AthleteData[[#This Row],[Last_name]],\", \",AthleteData[[#This Row],[First_name]])","v":", "}]
[{"$f":"_xlfn.CONCAT(AthleteData[[#This Row],[Last_name]],\", \",AthleteData[[#This Row],[First_name]])","v":", "}]
[{"$f":"_xlfn.CONCAT(AthleteData[[#This Row],[Last_name]],\", \",AthleteData[[#This Row],[First_name]])","v":", "}]
[{"$f":"_xlfn.CONCAT(AthleteData[[#This Row],[Last_name]],\", \",AthleteData[[#This Row],[First_name]])","v":", "}]
[{"$f":"_xlfn.CONCAT(AthleteData[[#This Row],[Last_name]],\", \",AthleteData[[#This Row],[First_name]])","v":", "}]
[{"$f":"_xlfn.CONCAT(AthleteData[[#This Row],[Last_name]],\", \",AthleteData[[#This Row],[First_name]])","v":", "}]
[{"$f":"_xlfn.CONCAT(AthleteData[[#This Row],[Last_name]],\", \",AthleteData[[#This Row],[First_name]])","v":", "}]
[{"$f":"_xlfn.CONCAT(AthleteData[[#This Row],[Last_name]],\", \",AthleteData[[#This Row],[First_name]])","v":", "}]
[{"$f":"_xlfn.CONCAT(AthleteData[[#This Row],[Last_name]],\", \",AthleteData[[#This Row],[First_name]])","v":", "}]
[{"$f":"_xlfn.CONCAT(AthleteData[[#This Row],[Last_name]],\", \",AthleteData[[#This Row],[First_name]])","v":", "}]
[{"$f":"_xlfn.CONCAT(AthleteData[[#This Row],[Last_name]],\", \",AthleteData[[#This Row],[First_name]])","v":", "}]
[{"$f":"_xlfn.CONCAT(AthleteData[[#This Row],[Last_name]],\", \",AthleteData[[#This Row],[First_name]])","v":", "}]
[{"$f":"_xlfn.CONCAT(AthleteData[[#This Row],[Last_name]],\", \",AthleteData[[#This Row],[First_name]])","v":", "}]
[{"$f":"_xlfn.CONCAT(AthleteData[[#This Row],[Last_name]],\", \",AthleteData[[#This Row],[First_name]])","v":", "}]
[{"$f":"_xlfn.CONCAT(AthleteData[[#This Row],[Last_name]],\", \",AthleteData[[#This Row],[First_name]])","v":", "}]
[{"$f":"_xlfn.CONCAT(AthleteData[[#This Row],[Last_name]],\", \",AthleteData[[#This Row],[First_name]])","v":", "}]
[{"$f":"_xlfn.CONCAT(AthleteData[[#This Row],[Last_name]],\", \",AthleteData[[#This Row],[First_name]])","v":", "}]
[{"$f":"_xlfn.CONCAT(AthleteData[[#This Row],[Last_name]],\", \",AthleteData[[#This Row],[First_name]])","v":", "}]
[{"$f":"_xlfn.CONCAT(AthleteData[[#This Row],[Last_name]],\", \",AthleteData[[#This Row],[First_name]])","v":", "}]
[{"$f":"_xlfn.CONCAT(AthleteData[[#This Row],[Last_name]],\", \",AthleteData[[#This Row],[First_name]])","v":", "}]
[{"$f":"_xlfn.CONCAT(AthleteData[[#This Row],[Last_name]],\", \",AthleteData[[#This Row],[First_name]])","v":", "}]
[{"$f":"_xlfn.CONCAT(AthleteData[[#This Row],[Last_name]],\", \",AthleteData[[#This Row],[First_name]])","v":", "}]
[{"$f":"_xlfn.CONCAT(AthleteData[[#This Row],[Last_name]],\", \",AthleteData[[#This Row],[First_name]])","v":", "}]
[{"$f":"_xlfn.CONCAT(AthleteData[[#This Row],[Last_name]],\", \",AthleteData[[#This Row],[First_name]])","v":", "}]
[{"$f":"_xlfn.CONCAT(AthleteData[[#This Row],[Last_name]],\", \",AthleteData[[#This Row],[First_name]])","v":", "}]
[{"$f":"_xlfn.CONCAT(AthleteData[[#This Row],[Last_name]],\", \",AthleteData[[#This Row],[First_name]])","v":", "}]
[{"$f":"_xlfn.CONCAT(AthleteData[[#This Row],[Last_name]],\", \",AthleteData[[#This Row],[First_name]])","v":", "}]
[{"$f":"_xlfn.CONCAT(AthleteData[[#This Row],[Last_name]],\", \",AthleteData[[#This Row],[First_name]])","v":", "}]
[{"$f":"_xlfn.CONCAT(AthleteData[[#This Row],[Last_name]],\", \",AthleteData[[#This Row],[First_name]])","v":", "}]
[{"$f":"_xlfn.CONCAT(AthleteData[[#This Row],[Last_name]],\", \",AthleteData[[#This Row],[First_name]])","v":", "}]
[{"$f":"_xlfn.CONCAT(AthleteData[[#This Row],[Last_name]],\", \",AthleteData[[#This Row],[First_name]])","v":", "}]
[{"$f":"_xlfn.CONCAT(AthleteData[[#This Row],[Last_name]],\", \",AthleteData[[#This Row],[First_name]])","v":", "}]
[{"$f":"_xlfn.CONCAT(AthleteData[[#This Row],[Last_name]],\", \",AthleteData[[#This Row],[First_name]])","v":", "}]
[{"$f":"_xlfn.CONCAT(AthleteData[[#This Row],[Last_name]],\", \",AthleteData[[#This Row],[First_name]])","v":", "}]
[{"$f":"_xlfn.CONCAT(AthleteData[[#This Row],[Last_name]],\", \",AthleteData[[#This Row],[First_name]])","v":", "}]
[{"$f":"_xlfn.CONCAT(AthleteData[[#This Row],[Last_name]],\", \",AthleteData[[#This Row],[First_name]])","v":", "}]
[{"$f":"_xlfn.CONCAT(AthleteData[[#This Row],[Last_name]],\", \",AthleteData[[#This Row],[First_name]])","v":", "}]
[{"$f":"_xlfn.CONCAT(AthleteData[[#This Row],[Last_name]],\", \",AthleteData[[#This Row],[First_name]])","v":", "}]
[{"$f":"_xlfn.CONCAT(AthleteData[[#This Row],[Last_name]],\", \",AthleteData[[#This Row],[First_name]])","v":", "}]
[{"$f":"_xlfn.CONCAT(AthleteData[[#This Row],[Last_name]],\", \",AthleteData[[#This Row],[First_name]])","v":", "}]
[{"$f":"_xlfn.CONCAT(AthleteData[[#This Row],[Last_name]],\", \",AthleteData[[#This Row],[First_name]])","v":", "}]
[{"$f":"_xlfn.CONCAT(AthleteData[[#This Row],[Last_name]],\", \",AthleteData[[#This Row],[First_name]])","v":", "}]
[{"$f":"_xlfn.CONCAT(AthleteData[[#This Row],[Last_name]],\", \",AthleteData[[#This Row],[First_name]])","v":", "}]
[{"$f":"_xlfn.CONCAT(AthleteData[[#This Row],[Last_name]],\", \",AthleteData[[#This Row],[First_name]])","v":", "}]
[{"$f":"_xlfn.CONCAT(AthleteData[[#This Row],[Last_name]],\", \",AthleteData[[#This Row],[First_name]])","v":", "}]
[{"$f":"_xlfn.CONCAT(AthleteData[[#This Row],[Last_name]],\", \",AthleteData[[#This Row],[First_name]])","v":", "}]
[{"$f":"_xlfn.CONCAT(AthleteData[[#This Row],[Last_name]],\", \",AthleteData[[#This Row],[First_name]])","v":", "}]
[{"$f":"_xlfn.CONCAT(AthleteData[[#This Row],[Last_name]],\", \",AthleteData[[#This Row],[First_name]])","v":", "}]
[{"$f":"_xlfn.CONCAT(AthleteData[[#This Row],[Last_name]],\", \",AthleteData[[#This Row],[First_name]])","v":", "}]
[{"$f":"_xlfn.CONCAT(AthleteData[[#This Row],[Last_name]],\", \",AthleteData[[#This Row],[First_name]])","v":", "}]
[{"$f":"_xlfn.CONCAT(AthleteData[[#This Row],[Last_name]],\", \",AthleteData[[#This Row],[First_name]])","v":", "}]
[{"$f":"_xlfn.CONCAT(AthleteData[[#This Row],[Last_name]],\", \",AthleteData[[#This Row],[First_name]])","v":", "}]
[{"$f":"_xlfn.CONCAT(AthleteData[[#This Row],[Last_name]],\", \",AthleteData[[#This Row],[First_name]])","v":", "}]
[{"$f":"_xlfn.CONCAT(AthleteData[[#This Row],[Last_name]],\", \",AthleteData[[#This Row],[First_name]])","v":", "}]
[{"$f":"_xlfn.CONCAT(AthleteData[[#This Row],[Last_name]],\", \",AthleteData[[#This Row],[First_name]])","v":", "}]
[{"$f":"_xlfn.CONCAT(AthleteData[[#This Row],[Last_name]],\", \",AthleteData[[#This Row],[First_name]])","v":", "}]
[{"$f":"_xlfn.CONCAT(AthleteData[[#This Row],[Last_name]],\", \",AthleteData[[#This Row],[First_name]])","v":", "}]
[{"$f":"_xlfn.CONCAT(AthleteData[[#This Row],[Last_name]],\", \",AthleteData[[#This Row],[First_name]])","v":", "}]
[{"$f":"_xlfn.CONCAT(AthleteData[[#This Row],[Last_name]],\", \",AthleteData[[#This Row],[First_name]])","v":", "}]
[{"$f":"_xlfn.CONCAT(AthleteData[[#This Row],[Last_name]],\", \",AthleteData[[#This Row],[First_name]])","v":", "}]
[{"$f":"_xlfn.CONCAT(AthleteData[[#This Row],[Last_name]],\", \",AthleteData[[#This Row],[First_name]])","v":", "}]
[{"$f":"_xlfn.CONCAT(AthleteData[[#This Row],[Last_name]],\", \",AthleteData[[#This Row],[First_name]])","v":", "}]
[{"$f":"_xlfn.CONCAT(AthleteData[[#This Row],[Last_name]],\", \",AthleteData[[#This Row],[First_name]])","v":", "}]
[{"$f":"_xlfn.CONCAT(AthleteData[[#This Row],[Last_name]],\", \",AthleteData[[#This Row],[First_name]])","v":", "}]
[{"$f":"_xlfn.CONCAT(AthleteData[[#This Row],[Last_name]],\", \",AthleteData[[#This Row],[First_name]])","v":", "}]
[{"$f":"_xlfn.CONCAT(AthleteData[[#This Row],[Last_name]],\", \",AthleteData[[#This Row],[First_name]])","v":", "}]
[{"$f":"_xlfn.CONCAT(AthleteData[[#This Row],[Last_name]],\", \",AthleteData[[#This Row],[First_name]])","v":", "}]
[{"$f":"_xlfn.CONCAT(AthleteData[[#This Row],[Last_name]],\", \",AthleteData[[#This Row],[First_name]])","v":", "}]
[{"$f":"_xlfn.CONCAT(AthleteData[[#This Row],[Last_name]],\", \",AthleteData[[#This Row],[First_name]])","v":", "}]
[{"$f":"_xlfn.CONCAT(AthleteData[[#This Row],[Last_name]],\", \",AthleteData[[#This Row],[First_name]])","v":", "}]
[{"$f":"_xlfn.CONCAT(AthleteData[[#This Row],[Last_name]],\", \",AthleteData[[#This Row],[First_name]])","v":", "}]
[{"$f":"_xlfn.CONCAT(AthleteData[[#This Row],[Last_name]],\", \",AthleteData[[#This Row],[First_name]])","v":", "}]
[{"$f":"_xlfn.CONCAT(AthleteData[[#This Row],[Last_name]],\", \",AthleteData[[#This Row],[First_name]])","v":", "}]
[{"$f":"_xlfn.CONCAT(AthleteData[[#This Row],[Last_name]],\", \",AthleteData[[#This Row],[First_name]])","v":", "}]
[{"$f":"_xlfn.CONCAT(AthleteData[[#This Row],[Last_name]],\", \",AthleteData[[#This Row],[First_name]])","v":", "}]
[{"$f":"_xlfn.CONCAT(AthleteData[[#This Row],[Last_name]],\", \",AthleteData[[#This Row],[First_name]])","v":", "}]
[{"$f":"_xlfn.CONCAT(AthleteData[[#This Row],[Last_name]],\", \",AthleteData[[#This Row],[First_name]])","v":", "}]
[{"$f":"_xlfn.CONCAT(AthleteData[[#This Row],[Last_name]],\", \",AthleteData[[#This Row],[First_name]])","v":", "}]
[{"$f":"_xlfn.CONCAT(AthleteData[[#This Row],[Last_name]],\", \",AthleteData[[#This Row],[First_name]])","v":", "}]
[{"$f":"_xlfn.CONCAT(AthleteData[[#This Row],[Last_name]],\", \",AthleteData[[#This Row],[First_name]])","v":", "}]
[{"$f":"_xlfn.CONCAT(AthleteData[[#This Row],[Last_name]],\", \",AthleteData[[#This Row],[First_name]])","v":", "}]
[{"$f":"_xlfn.CONCAT(AthleteData[[#This Row],[Last_name]],\", \",AthleteData[[#This Row],[First_name]])","v":", "}]
[{"$f":"_xlfn.CONCAT(AthleteData[[#This Row],[Last_name]],\", \",AthleteData[[#This Row],[First_name]])","v":", "}]
[{"$f":"_xlfn.CONCAT(AthleteData[[#This Row],[Last_name]],\", \",AthleteData[[#This Row],[First_name]])","v":", "}]
[{"$f":"_xlfn.CONCAT(AthleteData[[#This Row],[Last_name]],\", \",AthleteData[[#This Row],[First_name]])","v":", "}]
[{"$f":"_xlfn.CONCAT(AthleteData[[#This Row],[Last_name]],\", \",AthleteData[[#This Row],[First_name]])","v":", "}]
[{"$f":"_xlfn.CONCAT(AthleteData[[#This Row],[Last_name]],\", \",AthleteData[[#This Row],[First_name]])","v":", "}]
[{"$f":"_xlfn.CONCAT(AthleteData[[#This Row],[Last_name]],\", \",AthleteData[[#This Row],[First_name]])","v":", "}]
[{"$f":"_xlfn.CONCAT(AthleteData[[#This Row],[Last_name]],\", \",AthleteData[[#This Row],[First_name]])","v":", "}]
[{"$f":"_xlfn.CONCAT(AthleteData[[#This Row],[Last_name]],\", \",AthleteData[[#This Row],[First_name]])","v":", "}]
[{"$f":"_xlfn.CONCAT(AthleteData[[#This Row],[Last_name]],\", \",AthleteData[[#This Row],[First_name]])","v":", "}]
[{"$f":"_xlfn.CONCAT(AthleteData[[#This Row],[Last_name]],\", \",AthleteData[[#This Row],[First_name]])","v":", "}]
[{"$f":"_xlfn.CONCAT(AthleteData[[#This Row],[Last_name]],\", \",AthleteData[[#This Row],[First_name]])","v":", "}]
[{"$f":"_xlfn.CONCAT(AthleteData[[#This Row],[Last_name]],\", \",AthleteData[[#This Row],[First_name]])","v":", "}]
[{"$f":"_xlfn.CONCAT(AthleteData[[#This Row],[Last_name]],\", \",AthleteData[[#This Row],[First_name]])","v":", "}]
[{"$f":"_xlfn.CONCAT(AthleteData[[#This Row],[Last_name]],\", \",AthleteData[[#This Row],[First_name]])","v":", "}]
[{"$f":"_xlfn.CONCAT(AthleteData[[#This Row],[Last_name]],\", \",AthleteData[[#This Row],[First_name]])","v":", "}]
[{"$f":"_xlfn.CONCAT(AthleteData[[#This Row],[Last_name]],\", \",AthleteData[[#This Row],[First_name]])","v":", "}]
[{"$f":"_xlfn.CONCAT(AthleteData[[#This Row],[Last_name]],\", \",AthleteData[[#This Row],[First_name]])","v":", "}]
[{"$f":"_xlfn.CONCAT(AthleteData[[#This Row],[Last_name]],\", \",AthleteData[[#This Row],[First_name]])","v":", "}]
[{"$f":"_xlfn.CONCAT(AthleteData[[#This Row],[Last_name]],\", \",AthleteData[[#This Row],[First_name]])","v":", "}]
[{"$f":"_xlfn.CONCAT(AthleteData[[#This Row],[Last_name]],\", \",AthleteData[[#This Row],[First_name]])","v":", "}]
[{"$f":"_xlfn.CONCAT(AthleteData[[#This Row],[Last_name]],\", \",AthleteData[[#This Row],[First_name]])","v":", "}]
[{"$f":"_xlfn.CONCAT(AthleteData[[#This Row],[Last_name]],\", \",AthleteData[[#This Row],[First_name]])","v":", "}]
[{"$f":"_xlfn.CONCAT(AthleteData[[#This Row],[Last_name]],\", \",AthleteData[[#This Row],[First_name]])","v":", "}]
[{"$f":"_xlfn.CONCAT(AthleteData[[#This Row],[Last_name]],\", \",AthleteData[[#This Row],[First_name]])","v":", "}]
[{"$f":"_xlfn.CONCAT(AthleteData[[#This Row],[Last_name]],\", \",AthleteData[[#This Row],[First_name]])","v":", "}]
[{"$f":"_xlfn.CONCAT(AthleteData[[#This Row],[Last_name]],\", \",AthleteData[[#This Row],[First_name]])","v":", "}]
[{"$f":"_xlfn.CONCAT(AthleteData[[#This Row],[Last_name]],\", \",AthleteData[[#This Row],[First_name]])","v":", "}]
[{"$f":"_xlfn.CONCAT(AthleteData[[#This Row],[Last_name]],\", \",AthleteData[[#This Row],[First_name]])","v":", "}]
[{"$f":"_xlfn.CONCAT(AthleteData[[#This Row],[Last_name]],\", \",AthleteData[[#This Row],[First_name]])","v":", "}]
[{"$f":"_xlfn.CONCAT(AthleteData[[#This Row],[Last_name]],\", \",AthleteData[[#This Row],[First_name]])","v":", "}]
[{"$f":"_xlfn.CONCAT(AthleteData[[#This Row],[Last_name]],\", \",AthleteData[[#This Row],[First_name]])","v":", "}]
[{"$f":"_xlfn.CONCAT(AthleteData[[#This Row],[Last_name]],\", \",AthleteData[[#This Row],[First_name]])","v":", "}]
[{"$f":"_xlfn.CONCAT(AthleteData[[#This Row],[Last_name]],\", \",AthleteData[[#This Row],[First_name]])","v":", "}]
[{"$f":"_xlfn.CONCAT(AthleteData[[#This Row],[Last_name]],\", \",AthleteData[[#This Row],[First_name]])","v":", "}]
[{"$f":"_xlfn.CONCAT(AthleteData[[#This Row],[Last_name]],\", \",AthleteData[[#This Row],[First_name]])","v":", "}]
[{"$f":"_xlfn.CONCAT(AthleteData[[#This Row],[Last_name]],\", \",AthleteData[[#This Row],[First_name]])","v":", "}]
[{"$f":"_xlfn.CONCAT(AthleteData[[#This Row],[Last_name]],\", \",AthleteData[[#This Row],[First_name]])","v":", "}]
[{"$f":"_xlfn.CONCAT(AthleteData[[#This Row],[Last_name]],\", \",AthleteData[[#This Row],[First_name]])","v":", "}]
[{"$f":"_xlfn.CONCAT(AthleteData[[#This Row],[Last_name]],\", \",AthleteData[[#This Row],[First_name]])","v":", "}]
[{"$f":"_xlfn.CONCAT(AthleteData[[#This Row],[Last_name]],\", \",AthleteData[[#This Row],[First_name]])","v":", "}]
[{"$f":"_xlfn.CONCAT(AthleteData[[#This Row],[Last_name]],\", \",AthleteData[[#This Row],[First_name]])","v":", "}]
[{"$f":"_xlfn.CONCAT(AthleteData[[#This Row],[Last_name]],\", \",AthleteData[[#This Row],[First_name]])","v":", "}]
[{"$f":"_xlfn.CONCAT(AthleteData[[#This Row],[Last_name]],\", \",AthleteData[[#This Row],[First_name]])","v":", "}]
[{"$f":"_xlfn.CONCAT(AthleteData[[#This Row],[Last_name]],\", \",AthleteData[[#This Row],[First_name]])","v":", "}]
[{"$f":"_xlfn.CONCAT(AthleteData[[#This Row],[Last_name]],\", \",AthleteData[[#This Row],[First_name]])","v":", "}]
[{"$f":"_xlfn.CONCAT(AthleteData[[#This Row],[Last_name]],\", \",AthleteData[[#This Row],[First_name]])","v":", "}]
[{"$f":"_xlfn.CONCAT(AthleteData[[#This Row],[Last_name]],\", \",AthleteData[[#This Row],[First_name]])","v":", "}]
[{"$f":"_xlfn.CONCAT(AthleteData[[#This Row],[Last_name]],\", \",AthleteData[[#This Row],[First_name]])","v":", "}]
[{"$f":"_xlfn.CONCAT(AthleteData[[#This Row],[Last_name]],\", \",AthleteData[[#This Row],[First_name]])","v":", "}]
[{"$f":"_xlfn.CONCAT(AthleteData[[#This Row],[Last_name]],\", \",AthleteData[[#This Row],[First_name]])","v":", "}]
[{"$f":"_xlfn.CONCAT(AthleteData[[#This Row],[Last_name]],\", \",AthleteData[[#This Row],[First_name]])","v":", "}]
[{"$f":"_xlfn.CONCAT(AthleteData[[#This Row],[Last_name]],\", \",AthleteData[[#This Row],[First_name]])","v":", "}]

{"sheet":"Shot Put Data","index":10,"n_rows":2,"n_cols":10,"rows_kept":2,"cut":false,"hidden":false,"merged":[]}
["Implement Number","Test Venue","Test Date","Technical Judge","Nominal Weight","Visual Inspection","Actual Weight","Diameter","Pass or Fail","Comments"]
["Update"]

{"sheet":"Discus Data","index":11,"n_rows":2,"n_cols":14,"rows_kept":2,"cut":false,"hidden":false,"merged":[]}
["Implement Number","Test Venue","Test Date","Technical Judge","Nominal Weight","Visual Inspection","Actual Weight","Outside diameter of metal rim","Thickness of metal plate or flat centre","Diameter of metal plate or flat centre","Thickness of rim (6mm from edge)","Smoothness of Rim & Overall Surface","Pass or Fail","Comments"]
["Update"]

{"sheet":"Hammer Data","index":12,"n_rows":2,"n_cols":14,"rows_kept":2,"cut":false,"hidden":false,"merged":[]}
["Implement Number","Test Venue","Test Date","Technical Judge","Nominal Weight","Visual Inspection","Actual Weight","Length","Head Diameter","CoG","Grip Type","Brace Type","Pass or Fail","Comments"]
["Update"]

{"sheet":"Javelin Data","index":13,"n_rows":2,"n_cols":25,"rows_kept":2,"cut":false,"hidden":false,"merged":[]}
["Implement Number","Test Venue","Test Date","Technical Judge","Nominal Weight","Visual Inspection","Actual Weight","Overall Length","Tip to CoG","Tail to CoG","Head","Grip","Point Angle","In Front of Grip","Rear of Grip","150mm from Tip","At Rear of Head","Immediately behind Head","Halfway Tip to CoG","Over Grip","Half Tail to CoG","150mm from Tail","At Tail","Pass or Fail","Comments"]
["Update"]

{"sheet":"Club Data","index":14,"n_rows":2,"n_cols":14,"rows_kept":2,"cut":false,"hidden":false,"merged":[]}
["Implement Number","Test Venue","Test Date","Technical Judge","Nominal Weight","Visual Inspection","Actual Weight","Length","Neck Diameter","Body Diameter","Metal End Diameter","Metal End Thickness","Pass or Fail","Comments"]
["Update"]

{"sheet":"Model Types","index":15,"n_rows":112,"n_cols":14,"rows_kept":112,"cut":false,"hidden":false,"merged":[]}
[null,"Type","Manufacturer","Model","Colours"]
[null,"Club","Neuf","","Wooden",null,null,null,null,null,"Type","Manufacturer","Model","Colors"]
[null,"Discus","Amber","Amber Athletics"]
[null,"Discus","Apollo","Laser"]
[null,"Discus","Denfi","","Dark Blue/Black Rim"]
[null,"Discus","Denfi","","Red"]
[null,"Discus","Denfi","","White"]
[null,"Discus","Denfi","","White/Yellow"]
[null,"Discus","Denfi","Jurgen Schulz"]
[null,"Discus","Hart","","Red"]
[null,"Discus","Jurgen Schult","","White"]
[null,"Discus","Nelco","Challenger"]
[null,"Discus","Nelco","Club"]
[null,"Discus","Nelco","Competition"]
[null,"Discus","Nelco","Gold","Cream/Gold Rim"]
[null,"Discus","Nelco","Gold","Yellow/Gold Rim"]
[null,"Discus","Nelco","Indiano"]
[null,"Discus","Nelco","Jupiter Super-Spin"]
[null,"Discus","Nelco","Lo-Spin","Yellow/Black Rim/Grey Centre"]
[null,"Discus","Nelco","Odyssey"]
[null,"Discus","Nelco","Olympia Super-Spin","Yellow/Steel Rim"]
[null,"Discus","Nelco","Super-Spin","Yellow/Steel Rim"]
[null,"Discus","Nelco","Training"]
[null,"Discus","Nelco","Ultimo Super-Spin"]
[null,"Discus","Nelco","Ultra Spin","Yellow/Black Rim/Black Centre"]
[null,"Discus","Nelco","Ultra-Spin"]
[null,"Discus","Nishi","High Moment","White/Purple"]
[null,"Discus","Nordic","","Blue"]
[null,"Discus","Nordic","","Red"]
[null,"Discus","Nordic","Master","Black/gold"]
[null,"Discus","Nordic","Viking","Red"]
[null,"Discus","Polanik","","Carbon"]
[null,"Discus","Vinex","","Orange"]
[null,"Discus","Vinex","","Purple"]
[null,"Discus","Vinex","","Red"]
[null,"Hammer","Cantabrian","","Silver"]
[null,"Hammer","Nelco","","Blue"]
[null,"Hammer","Nelco","","Orange"]
[null,"Hammer","Nelco","","Red"]
[null,"Hammer","Nelco","","Silver"]
[null,"Hammer","Nelco","","Yellow"]
[null,"Hammer","Nishi","","Natural"]
[null,"Hammer","Nordic","","Blue"]
[null,"Hammer","Nordic","","Dark Blue"]
[null,"Hammer","Nordic","","Gold"]
[null,"Hammer","Nordic","","Silver"]
[null,"Hammer","Polanik","","Black"]
[null,"Hammer","Polanik","110mm","Silver"]
[null,"Hammer","Polanik","95mm","Silver"]
[null,"Hammer","Vinex","","White"]
[null,"Hammer","Vinex","","Yellow"]
[null,"Javelin","Hart","","Green"]
[null,"Javelin","Hart","","Orange"]
[null,"Javelin","Nelco","","Red"]
[null,"Javelin","Nelco","Olympia","Pink"]
[null,"Javelin","Nemeth","50m","Blue/Yellow/Orange"]
[null,"Javelin","Nemeth","Classic 75m","Purple/Yellow/Pink"]
[null,"Javelin","Nemeth","Classic 80m","Purple/Yellow/Green"]
[null,"Javelin","Nemeth","Classic 85m","Purple/Yellow/Orange"]
[null,"Javelin","Nemeth","Classic 90m","Purple/Yellow/Green"]
[null,"Javelin","Nemeth","Classic 90m - Medium Composite","Purple/Yellow/Green"]
[null,"Javelin","Nemeth","Classic 95m","Purple/Yellow/Orange"]
[null,"Javelin","Nemeth","Classic 95m - Hard Composite","Purple/Yellow/Orange"]
[null,"Javelin","Nemeth","Club 70m","Purple/Yellow/Blue"]
[null,"Javelin","Nemeth","Club 75m","Purple/Yellow/Blue"]
[null,"Javelin","Nemeth","Club 80m","Purple/Yellow/Blue"]
[null,"Javelin","Nemeth","Club 85m","Purple/Yellow/Blue"]
[null,"Javelin","Nemeth","Club 85m - Medium Composite","Purple/Yellow/Blue"]
[null,"Javelin","Nemeth","Special","Purple/Yellow"]
[null,"Javelin","Nemeth","Special 40m","Purple"]
[null,"Javelin","Nemeth","Special 50m","Blue/Yellow/Orange"]
[null,"Javelin","Nemeth","Special 60m","Blue"]
[null,"Javelin","Nemeth","Special 70m","Blue/Yellow/Blue"]
[null,"Javelin","Nemeth","Special 80m","Blue/Yellow/Orange"]
[null,"Javelin","Nemeth","Special 90m","Blue/Yellow/Orange"]
[null,"Javelin","Nemeth","Standard 50m","Purple"]
[null,"Javelin","Nemeth","Standard 60m","Purple"]
[null,"Javelin","Nemeth","Standard 70m","Purple"]
[null,"Javelin","Nemeth","Standard 70m - Soft Composite","Purple"]
[null,"Javelin","Nemeth","Uni Competition","Purple/Yellow"]
[null,"Javelin","Nordic","Air Glider"]
[null,"Javelin","Nordic","Airglider Carbon","White/Red Swirl"]
[null,"Javelin","Nordic","Carbon Champion","White/Purple Swirl"]
[null,"Javelin","Nordic","Champion Carbon"]
[null,"Javelin","Nordic","Comet 500","Orange"]
[null,"Javelin","Nordic","Diana Classic","White/Pink Swirl"]
[null,"Javelin","Nordic","Indra"]
[null,"Javelin","Nordic","Master","Blue"]
[null,"Javelin","Nordic","Metal Alloy","Grey"]
[null,"Javelin","Nordic","Razor","Orange/White"]
[null,"Javelin","Nordic","Super Elite","Black/White"]
[null,"Javelin","Nordic","Valhalla","Yellow/Green Swirl"]
[null,"Javelin","Nordic","Valhalla","Yellow/Purple Swirl"]
[null,"Javelin","Nordic","Valhalla 600","Yellow/Purple Swirl"]
[null,"Javelin","Nordic","Valhalla 800","Yellow/Purple Swirl"]
[null,"Javelin","Nordic","Valkyrie","Red/Blue Swirl"]
[null,"Javelin","Nordic","Viking","Light blue"]
[null,"Javelin","Polanik","Air Flyer","Pink/Blue"]
[null,"Shot Put","Ate","","Black/Purple"]
[null,"Shot Put","Hart","","White"]
[null,"Shot Put","Nelco","","Blue"]
[null,"Shot Put","Nelco","","Red"]
[null,"Shot Put","Nelco","","Silver"]
[null,"Shot Put","Nelco","","Yellow"]
[null,"Shot Put","Nishi","","Gold"]
[null,"Shot Put","Nishi","","Red Dot"]
[null,"Shot Put","Nishi","","Silver"]
[null,"Shot Put","Nordic","","Brown"]
[null,"Shot Put","Nordic","","Green"]
[null,"Shot Put","Nordic","","Silver"]
[null,"Shot Put","Polanik","","Yellow"]
[null,"Shot Put","Vinex","","Green"]